Workbook

Sheet Software wijzigingen
A1: SOFTWARE WIJZIGINGEN REKENTOOL
A3: Versie 1.6 d.d. 11-09-2024
A5: 1 | B5: Foutmelding kringverwijzing opgelost
B6: De berekening van de buitentemperatuur is een itteratieve berekening, de kringverwijzing waardoor een foutmelding ontstaat bij het openen van het rekenblad is opgelost.
A8: 2 | B8: Toelichtingstekst aangepast
B9: In versie 1.3 zijn 10 verblijfsruimten invoerbaar met de keuze van type verblijfsruimte. Met deze aanpassing is de tekst onder toelichting “2x zo hoog is aangenomen als in de overige verblijfsruimten (VR1 t/m 5).” Blijven staan. Dit is aangepast naar “2x zo hoog is aangenomen als in de andere verblijfsruimten.”
A11: 3 | B11: Toelichting toegevoegd oppervlak type raamvlak
B12: In de rekenbladen van de ruimten kunnen 2 typen ramen worden ingevoerd, het is niet noodzakelijk elk raam apart in te voeren. Doorgaans zijn alle typen ramen in een woning gelijk en kan het raamoppervlak (glas + kozijn) met dezelfde U- en GGL-waarden per gevel, per ruimte bij elkaar worden opgeteld. Tevens bij het invoerveld in de rekenbladen de toelichting gegeven: “Voer hier de som van het raamoppervlak (glas+kozijn) in per type raam (gelijke U- en GGL-waarde). Per gevel kunnen 2 type ramen worden ingevoerd.”
A14: 4 | B14: Bepaling buitenluchttemperatuur maatgevende ruimte tijdstip max koellast Θe aangepast
B15: Voor de bepaling van de maatgevende buitentemperatuur werd gebruikt gemaakt van x.zoeken. Dit wordt niet ondersteunt door Excel 2019 of oudere versies. De formule is aangepast.
A17: 5 | B17: Beschaduwing bij glasvlak type 2 wordt niet goed berekend.
B18: De verwijzing naar de Oriëntatie van glasvlak 2 was niet correct ingevoerd. Dit is opgelost
A20: 6 | B20: De beschaduwingsreductiefactor de waarde vanuit de NTA8800 niet altijd goed wordt overgenomen. Bijvoorbeeld; - Oriëntatie: Zuid - Relatieve breedte (Bb) = 0,50 - Beschaduwingsreductiefactor volgens de rekentool 1,00 - Beschaduwingsreductiefactor volgens de NTA8800 = 0,90
B21: Fout in de procedure dit is aangepast.
A23: 7 | B23: Ruimtenaam ruimte 6 wordt niet goed weergegeven
B24: Formule aangepast
A26: 8 | B26: Bij meerdere glasoppervlakken wordt het maatgevende tijdstip niet goed bepaald zodra noord het grootste glasoppervlak heeft.
B27: Het glas oppervlak op noord telt niet meer mee in het bepalen van het maatgevende tijdstip
A29: 9 | B29: Bij de zontoetredingsfactor werdt de Ggl;wi;k;C;juli gevraagd i.p.v. Ggl;n;wi;k;C;juli zoals deze in de BENG berekening wordt ingevoerd.
B30: Aangepast in rekentool waarbij de factor 0,9 direct verwerkt wordt in het resultaat inclusief de afronding naar beneden op veelvoud van 0,05 conform de bepalingsmethode 7.6.6.1.2 van NTA8800:2024. Het productkenmerk wordt dus ingevoerd bij de GGL waarde.
A32: 10 | B32: Forfaitaire waarden voor de reductiefactor voor de totale zontoetredingsfactor, voor uitvalschermen en knikarmschermen is toegevoegd
B33: De gewogen fractie van de tijd dat de zonwering in gebruik is voor handbediende zonwering (tabel 7.7) is niet meegenomen in de berekening omdat het uitgangspunt van Bijlage AA berekening is dat de zonwering altijd wordt gebruikt.

Sheet Toelichting
A1: TOELICHTING REKENTOOL VEREENVOUDIGDE BEPALINGSMETHODE KOELBEHOEFTE (BIJLAGE AA NTA 8800:20xx)
B3: Achtergrond
B4: De berekeningen in deze tool volgen bijlage AA van NTA 8800:20xx. Een beschrijving van de berekening, en een nadere toelichting op de invoervelden is beschreven in NTA 8800:20xx. Uitgangspunt in dit rekenblad is dat een woning niet opgesplitst is in meerdere rekenzones en dus uit één rekenzone bestaat. Mocht een woning toch uit meerdere (gekoelde) rekenzones bestaan dan kan de volgende pragmatische aanpak worden gevolgd: voer alle (verblijfs)ruimten van de (gekoelde) rekenzones van de woning in. De luchtstromen van de verschillende gekoelde rekenzones worden bij elkaar opgeteld en ingevuld bij ‘1.2 Luchtstromen verwarming’ in het tabblad ‘Invoerblad’. Onder ‘1.3 Bezetting’ wordt de gebruiksoppervlakte van de gezamenlijke gekoelde rekenzones ingevuld.
B5: Invoer raamoppervlakken
B6: In de rekenbladen van de ruimten kunnen 2 typen ramen worden ingevoerd, het is niet noodzakelijk elk raam apart in te voeren. Doorgaans zijn alle typen ramen in een woning gelijk en kan het raamoppervlak (glas + kozijn) met dezelfde U- en GGL-waarden per gevel, per ruimte bij elkaar worden opgeteld.
B8: Woonvertrek
B9: Een woonvertrek is een verblijfsruimte die bedoeld zijn of in gebruik zijn als woonkamer, keuken en/of eetkamer. In bijlage AA wordt hier onderscheid in gemaakt omdat het aannemelijk is dat de bewoners samen komen in deze ruimten en daardoor de interne warmtelast 2x zo hoog is aangenomen als in de andere verblijfsruimten.
B11: Andere verblijfsruimten
B12: Een andere verblijfsruimten is een verblijfsruimte anders dan de woonkamer, keuken en/of eetkamer.
B14: Verklaring gebruike kleuren
B15: Invoerveld
B16: Titel veld
B17: Resultaat veld
B18: (sub) Totaal veld
B20: Versie rekentool
B21: ='Software wijzigingen'!A3 -> Versie 1.6 d.d. 11-09-2024
B22: Versie 2.2 d.d. 16-12-2024 | D22: TEST VERSIE waarbij de volgende wijzigingen zijn aangebracht: Herijken van de opvallende zonnestraling, Updaten van de routine om het tijdstip te bepalen waarop de maximale koellast wordt verwacht, Herijken van de ‘vaste aftrek’ van 35 W/m2.

Sheet Invoerblad
A1: REKENTOOL VEREENVOUDIGDE BEPALINGSMETHODE KOELBEHOEFTE (BIJLAGE AA NTA 8800:20xx)
A2: DISCLAIMER: De rekentool is gebaseerd op Bijlage AA van NTA8800:20xx - Energieprestatie van gebouwen - Bepalingsmethode. Resultaten kunnen worden gebruikt in de aanvraag omgevingsvergunning om aan te tonen dat het risico op oververhitting voldoende is beperkt. De bepalingsmethode in bijlage AAis afgeleid van een reguliere koellastberekening. Deze methode is uitsluitend bedoeld om te toetsen of een woning of bouwplan volgens de eisen van de bouwregelgeving het risico op oververhitting in woningen en appartementen in voldoende mate beperkt. Deze methode is niet bedoeld en niet geschikt als vervanging voor een dimensioneringsmethode voor de daadwerkelijk te installeren koelcapaciteit. De rekentool is ontwikkeld door Nieman Raadgevende Ingenieurs in opdracht van de Rijksdienst voor Ondernemend Nederland (RVO). Aan de rekentool kunnen geen rechten worden ontleend. Hoewel dit instrument met de grootst mogelijke zorg is samengesteld kan RVO geen enkele aansprakelijkheid aanvaarden voor schade als gevolg van eventuele onjuistheden en/of uitvoering of gebruik van het instrument.
A3: PROJECTGEGEVENS
A5: Project
A6: Projectnummer
A7: Opdrachtgever
A8: Datum
A9: Omschrijving
A11: BENG GEGEVENS
A13: 1.0 Algemeen
A14: Bouwjaar | B14: vanaf 2015
A15: Is meer dan 50% van de gebouwschil aantoonbaar nageisoleerd? | B15: Nee
A16: Factor thermische isolatie ondoorzichtige delen f;iso | B16: =o_F_Iso(B14,B15) -> 2.2
A17: Orientatie voorzijde woning | B17: Noord
A18: Orientatiehoek voorzijde woning Ƴ | B18: =o_OrientatiehOEK(B17) -> 0
A27: 1.2 Luchtstromen verwarming | E27: Toelichting
A28: Infiltratie in maand juli q;v;eff;lea;in | B28: 32.32627096 | C28: m³/h | E28: Haal de luchtstromen uit de NTA8800 software. Deze waarden zijn terug te vinden in de CSV-exportfiles die vanuit de software beschikbaar zijn. Bij een BENG-berekening op woongebouw-niveau worden de luchtvolumestromen niet per appartement gegeven. In dat geval moet, naar inzicht van de adviseur, het debiet worden bepaald. Dat kan bijvoorbeeld door het totale debiet uit de BENG-berekening van het woongebouw naar rato van de gebruiksoppervlakte over de individuele appartementen te verdelen of door een aparte BENG-berekening op te stellen van het appartement waarvoor de bijlage AA berekening wordt gemaakt.
A29: Natuurlijke toevoer in maand juli q;v;eff;vent;in | B29: 0 | C29: m³/h
A30: Mechanische toevoer in maand juli q;v;mech;in | B30: 220.1835789 | C30: m³/h
A35: 1.3 Bezetting | E35: Toelichting
A36: Gebruiksoppervlak rekenzone A;g | B36: 145 | C36: m² | E36: Haal het gebruiksoppervlak A;g uit de NTA8800 software. Uitgangspunt in deze rekentool is dat er één rekenzone per woning is.
A37: Aantal woonfuncties in de rekenzone | B37: 1 | C37: stuks
A38: Gemiddelde bezetting per woonfunctie Np;woon;zi | B38: =IF(B36/B37<=30,1,IF(B36/B37<=100,2.28-1.28/70*(100-B36/B37),1.28+0.01*(B36/B37))) -> 2.73 | C38: personen
A39: Interne warmtelast Pint;zi | B39: =180*B38*B37 -> 491.4 | C39: W
A40: Rekenwaarde internewarmtelast qint;calc;zi | B40: =IFERROR(B39/(SUMIF(B46:T46,"Woonvertrek",B47:T47)*2+SUMIF(B46:T46,"Andere verblijfsruimte",B47:T47)),0) -> 3.267287234 | C40: W/m²
A42: RESULTATEN OP RUIMTENIVEAU
B44: Ruimte 1 | D44: Ruimte 2 | F44: Ruimte 3 | H44: Ruimte 4 | J44: Ruimte 5 | L44: Ruimte 6 | N44: Ruimte 7 | P44: Ruimte 8 | R44: Ruimte 9 | T44: Ruimte 10
A45: Ruimtenaam | B45: =IF('Ruimte 1'!$B$3=0,"",'Ruimte 1'!$B$3) -> Woonkamer | D45: =IF('Ruimte 2'!$B$3=0,"",'Ruimte 2'!$B$3) -> Slaap 1 | F45: =IF('Ruimte 3'!$B$3=0,"",'Ruimte 3'!$B$3) -> slaap 2 | H45: =IF('Ruimte 4'!$B$3=0,"",'Ruimte 4'!$B$3) -> slaap 3 | J45: =IF('Ruimte 5'!$B$3=0,"",'Ruimte 5'!$B$3) -> slaap 4 | N45: =IF('Ruimte 7'!$B$3=0,"",'Ruimte 7'!$B$3) ->  | P45: =IF('Ruimte 8'!$B$3=0,"",'Ruimte 8'!$B$3) ->  | R45: =IF('Ruimte 9'!$B$3=0,"",'Ruimte 9'!$B$3) ->  | T45: =IF('Ruimte 10'!$B$3=0,"",'Ruimte 10'!$B$3) -> 
A46: Type verblijfsruimte | B46: ='Ruimte 1'!$B$4 -> Woonvertrek | D46: ='Ruimte 2'!$B$4 -> Andere verblijfsruimte | F46: ='Ruimte 3'!$B$4 -> Andere verblijfsruimte | H46: ='Ruimte 4'!$B$4 -> Andere verblijfsruimte | J46: ='Ruimte 5'!$B$4 -> Andere verblijfsruimte | L46: ='Ruimte 6'!$B$4 -> Andere verblijfsruimte | N46: ='Ruimte 7'!$B$4 -> Andere verblijfsruimte | P46: ='Ruimte 8'!$B$4 -> Andere verblijfsruimte | R46: ='Ruimte 9'!$B$4 -> Andere verblijfsruimte | T46: ='Ruimte 10'!$B$4 -> Andere verblijfsruimte
A47: Vloeroppervlak (gebruiksoppervlak) | B47: ='Ruimte 1'!$B$5 -> 38.6 | C47: m² | D47: ='Ruimte 2'!$B$5 -> 11.8 | E47: m² | F47: ='Ruimte 3'!$B$5 -> 15.6 | G47: m² | H47: ='Ruimte 4'!$B$5 -> 7.3 | I47: m² | J47: ='Ruimte 5'!$B$5 -> 20.4 | K47: m² | L47: ='Ruimte 6'!$B$5 -> 18.1 | M47: m² | N47: ='Ruimte 7'!$B$5 -> 0 | O47: m² | P47: ='Ruimte 8'!$B$5 -> 0 | Q47: m² | R47: ='Ruimte 9'!$B$5 -> 0 | S47: m² | T47: ='Ruimte 10'!$B$5 -> 0 | U47: m²
A49: Buitenluchttemperatuur bij tijdstip max koellast tmax,zi | B49: ='Ruimte 1'!$B$53 -> 29.9 | C49: °C | D49: ='Ruimte 2'!$B$53 -> 29.8 | E49: °C | F49: ='Ruimte 3'!$B$53 -> 29.9 | G49: °C | H49: ='Ruimte 4'!$B$53 -> 29.9 | I49: °C | J49: ='Ruimte 5'!$B$53 -> 29.8 | K49: °C | L49: ='Ruimte 6'!$B$53 -> 29.9 | M49: °C | N49: ='Ruimte 7'!$B$53 ->  | O49: °C | P49: ='Ruimte 8'!$B$53 ->  | Q49: °C | R49: ='Ruimte 9'!$B$53 ->  | S49: °C | T49: ='Ruimte 10'!$B$53 ->  | U49: °C
A50: Koellast door interne warmtelast Pint;calc;woon/overig;zi | B50: ='Ruimte 1'!$B$60 -> 252.2345745 | C50: W | D50: ='Ruimte 2'!$B$60 -> 38.55398936 | E50: W | F50: ='Ruimte 3'!$B$60 -> 50.96968085 | G50: W | H50: ='Ruimte 4'!$B$60 -> 23.85119681 | I50: W | J50: ='Ruimte 5'!$B$60 -> 66.65265957 | K50: W | L50: ='Ruimte 6'!$B$60 -> 59.13789894 | M50: W | N50: ='Ruimte 7'!$B$60 -> 0 | O50: W | P50: ='Ruimte 8'!$B$60 -> 0 | Q50: W | R50: ='Ruimte 9'!$B$60 -> 0 | S50: W | T50: ='Ruimte 10'!$B$60 -> 0 | U50: W
A51: Koellast door buitenluchttoetreding Pv;calc;vr;zi | B51: ='Ruimte 1'!$B$61 -> 173.0320067 | C51: W | D51: ='Ruimte 2'!$B$61 -> 51.99925589 | E51: W | F51: ='Ruimte 3'!$B$61 -> 69.93003378 | G51: W | H51: ='Ruimte 4'!$B$61 -> 32.72366965 | I51: W | J51: ='Ruimte 5'!$B$61 -> 89.89701865 | K51: W | L51: ='Ruimte 6'!$B$61 -> 81.13676996 | M51: W | N51: ='Ruimte 7'!$B$61 -> 0 | O51: W | P51: ='Ruimte 8'!$B$61 -> 0 | Q51: W | R51: ='Ruimte 9'!$B$61 -> 0 | S51: W | T51: ='Ruimte 10'!$B$61 -> 0 | U51: W
A52: Koellast door transmissie ondoorzichtige delen Ptr;ntr;vr;zi | B52: =SUM('Ruimte 1'!$B$55:$T$55) -> 32.01 | C52: W | D52: =SUM('Ruimte 2'!$B$55:$T$55) -> 15.84 | E52: W | F52: =SUM('Ruimte 3'!$B$55:$T$55) -> 16.06 | G52: W | H52: =SUM('Ruimte 4'!$B$55:$T$55) -> 10.494 | I52: W | J52: =SUM('Ruimte 5'!$B$55:$T$55) -> 70.994 | K52: W | L52: =SUM('Ruimte 6'!$B$55:$T$55) -> 69.014 | M52: W | N52: =SUM('Ruimte 7'!$B$55:$T$55) -> 0 | O52: W | P52: =SUM('Ruimte 8'!$B$55:$T$55) -> 0 | Q52: W | R52: =SUM('Ruimte 9'!$B$55:$T$55) -> 0 | S52: W | T52: =SUM('Ruimte 10'!$B$55:$T$55) -> 0 | U52: W
A53: Koellastbijdrage zoninstraling transparante delen Psol;vr;zi | B53: =SUM('Ruimte 1'!$B$56:$T$56) -> 670.0664237 | C53: W | D53: =SUM('Ruimte 2'!$B$56:$T$56) -> 116.4293035 | E53: W | F53: =SUM('Ruimte 3'!$B$56:$T$56) -> 142.3687275 | G53: W | H53: =SUM('Ruimte 4'!$B$56:$T$56) -> 142.3687275 | I53: W | J53: =SUM('Ruimte 5'!$B$56:$T$56) -> 337.6449801 | K53: W | L53: =SUM('Ruimte 6'!$B$56:$T$56) -> 284.737455 | M53: W | N53: =SUM('Ruimte 7'!$B$56:$T$56) -> 0 | O53: W | P53: =SUM('Ruimte 8'!$B$56:$T$56) -> 0 | Q53: W | R53: =SUM('Ruimte 9'!$B$56:$T$56) -> 0 | S53: W | T53: =SUM('Ruimte 10'!$B$56:$T$56) -> 0 | U53: W
A54: Koellastbijdrage transmissie transparante delen Ptr;gl;vr;zi | B54: =SUM('Ruimte 1'!$B$57:$T$57) -> 83.19 | C54: W | D54: =SUM('Ruimte 2'!$B$57:$T$57) -> 17.4 | E54: W | F54: =SUM('Ruimte 3'!$B$57:$T$57) -> 16.815 | G54: W | H54: =SUM('Ruimte 4'!$B$57:$T$57) -> 16.815 | I54: W | J54: =SUM('Ruimte 5'!$B$57:$T$57) -> 50.46 | K54: W | L54: =SUM('Ruimte 6'!$B$57:$T$57) -> 33.63 | M54: W | N54: =SUM('Ruimte 7'!$B$57:$T$57) -> 0 | O54: W | P54: =SUM('Ruimte 8'!$B$57:$T$57) -> 0 | Q54: W | R54: =SUM('Ruimte 9'!$B$57:$T$57) -> 0 | S54: W | T54: =SUM('Ruimte 10'!$B$57:$T$57) -> 0 | U54: W
A56: Koelbehoefte verblijfsruimte | B56: =IFERROR(SUM(B50:B54)/B47,0) -> 31.36095867 | C56: W/m² | D56: =IFERROR(SUM(D50:D54)/D47,0) -> 20.35784311 | E56: W/m² | F56: =IFERROR(SUM(F50:F54)/F47,0) -> 18.98355398 | G56: W/m² | H56: =IFERROR(SUM(H50:H54)/H47,0) -> 30.99350602 | I56: W/m² | J56: =IFERROR(SUM(J50:J54)/J47,0) -> 30.1788558 | K56: W/m² | L56: =IFERROR(SUM(L50:L54)/L47,0) -> 29.15227204 | M56: W/m² | N56: =IFERROR(SUM(N50:N54)/N47,0) -> 0 | O56: W/m² | P56: =IFERROR(SUM(P50:P54)/P47,0) -> 0 | Q56: W/m² | R56: =IFERROR(SUM(R50:R54)/R47,0) -> 0 | S56: W/m² | T56: =IFERROR(SUM(T50:T54)/T47,0) -> 0 | U56: W/m²
A57: Vaste aftrek van 35W/m² | B57: 35 | C57: W/m² | D57: 35 | E57: W/m² | F57: 35 | G57: W/m² | H57: 35 | I57: W/m² | J57: 35 | K57: W/m² | L57: 35 | M57: W/m² | N57: 35 | O57: W/m² | P57: 35 | Q57: W/m² | R57: 35 | S57: W/m² | T57: 35 | U57: W/m²
A58: Minimaal te installeren koelcapaciteit | B58: =MAX(0,B56-B57) -> 0 | C58: W/m² | D58: =MAX(0,D56-D57) -> 0 | E58: W/m² | F58: =MAX(0,F56-F57) -> 0 | G58: W/m² | H58: =MAX(0,H56-H57) -> 0 | I58: W/m² | J58: =MAX(0,J56-J57) -> 0 | K58: W/m² | L58: =MAX(0,L56-L57) -> 0 | M58: W/m² | N58: =MAX(0,N56-N57) -> 0 | O58: W/m² | P58: =MAX(0,P56-P57) -> 0 | Q58: W/m² | R58: =MAX(0,R56-R57) -> 0 | S58: W/m² | T58: =MAX(0,T56-T57) -> 0 | U58: W/m²
A60: BENODIGDE KOELCAPACITEITVERBLIJFSRUIMTE AFGIFTE
A62: ="Benodigde koelcapaciteit " &B44&IF(B45="",""," - " &B45) -> Benodigde koelcapaciteit Ruimte 1 - Woonkamer | B62: =B47*B58 -> 0 | C62: W | D62: =B58 -> 0 | E62: W/m² | F62: =IF(D62<=0,"De ruimte moet actief gekoeld worden, aan de minimaal benodigde koelcapaciteit in de ruimte wordt geen eis gesteld.", "De berekende koelcapaciteit moet minimaal gerealiseerd worden om het risico op oververhitting voldoende te beperken") -> De ruimte moet actief gekoeld worden, aan de minimaal benodigde koelcapaciteit in de ruimte wordt geen eis gesteld.
A63: ="Benodigde koelcapaciteit " &D44&IF(D45="",""," - " &D45) -> Benodigde koelcapaciteit Ruimte 2 - Slaap 1 | B63: =D47*D58 -> 0 | C63: W | D63: =D58 -> 0 | E63: W/m² | F63: =IF(D63<=0,"De ruimte moet actief gekoeld worden, aan de minimaal benodigde koelcapaciteit in de ruimte wordt geen eis gesteld.", "De berekende koelcapaciteit moet minimaal gerealiseerd worden om het risico op oververhitting voldoende te beperken") -> De ruimte moet actief gekoeld worden, aan de minimaal benodigde koelcapaciteit in de ruimte wordt geen eis gesteld.
A64: ="Benodigde koelcapaciteit " &F44&IF(F45="",""," - " &F45) -> Benodigde koelcapaciteit Ruimte 3 - slaap 2 | B64: =F47*F58 -> 0 | C64: W | D64: =F58 -> 0 | E64: W/m² | F64: De ruimte moet actief gekoeld worden, aan de minimaal benodigde koelcapaciteit in de ruimte wordt geen eis gesteld.
A65: ="Benodigde koelcapaciteit " &H44&IF(H45="",""," - " &H45) -> Benodigde koelcapaciteit Ruimte 4 - slaap 3 | B65: =H47*H58 -> 0 | C65: W | D65: =H58 -> 0 | E65: W/m² | F65: De ruimte moet actief gekoeld worden, aan de minimaal benodigde koelcapaciteit in de ruimte wordt geen eis gesteld.
A66: ="Benodigde koelcapaciteit " &J44&IF(J45="",""," - " &J45) -> Benodigde koelcapaciteit Ruimte 5 - slaap 4 | B66: =J47*J58 -> 0 | C66: W | D66: =J58 -> 0 | E66: W/m² | F66: De ruimte moet actief gekoeld worden, aan de minimaal benodigde koelcapaciteit in de ruimte wordt geen eis gesteld.
A67: ="Benodigde koelcapaciteit " &L44&IF(L45="",""," - " &L45) -> Benodigde koelcapaciteit Ruimte 6 | B67: =L47*L58 -> 0 | C67: W | D67: =L58 -> 0 | E67: W/m² | F67: De ruimte moet actief gekoeld worden, aan de minimaal benodigde koelcapaciteit in de ruimte wordt geen eis gesteld.
A68: ="Benodigde koelcapaciteit " &N44&IF(N45="",""," - " &N45) -> Benodigde koelcapaciteit Ruimte 7 | B68: =N47*N58 -> 0 | C68: W | D68: =N58 -> 0 | E68: W/m² | F68: De ruimte moet actief gekoeld worden, aan de minimaal benodigde koelcapaciteit in de ruimte wordt geen eis gesteld.
A69: ="Benodigde koelcapaciteit " &P44&IF(P45="",""," - " &P45) -> Benodigde koelcapaciteit Ruimte 8 | B69: =P47*P58 -> 0 | C69: W | D69: =P58 -> 0 | E69: W/m² | F69: De ruimte moet actief gekoeld worden, aan de minimaal benodigde koelcapaciteit in de ruimte wordt geen eis gesteld.
A70: ="Benodigde koelcapaciteit " &R44&IF(R45="",""," - " &R45) -> Benodigde koelcapaciteit Ruimte 9 | B70: =R47*R58 -> 0 | C70: W | D70: =R58 -> 0 | E70: W/m² | F70: De ruimte moet actief gekoeld worden, aan de minimaal benodigde koelcapaciteit in de ruimte wordt geen eis gesteld.
A71: ="Benodigde koelcapaciteit " &T44&IF(T45="",""," - " &T45) -> Benodigde koelcapaciteit Ruimte 10 | B71: =T47*T58 -> 0 | C71: W | D71: =T58 -> 0 | E71: W/m² | F71: De ruimte moet actief gekoeld worden, aan de minimaal benodigde koelcapaciteit in de ruimte wordt geen eis gesteld.
A73: BENODIGDE KOELCAPACITEIT OPWEKKER
A75: Minimaal op te stellen koelvermogen opwekker | B75: =MAX(0,SUM(B50:T54)-(35*SUM(B47:T47))) -> 0 | C75: W | F75: =IF(D75<=0,"De woning moet actief gekoeld worden, aan de minimaal benodigde koelcapaciteit van de opwekker wordt geen eis gesteld.", "De minimaal berekende koelcapaciteit van de opwekker moet gerealiseerd worden om het risico op oververhitting voldoende te beperken") -> De woning moet actief gekoeld worden, aan de minimaal benodigde koelcapaciteit van de opwekker wordt geen eis gesteld.
A80: Onderstaande tabellen worden verwijderd in de uiteindelijke versie. De tabellen dienen om vast te stellen welk tijdstip tot de hoogste belasting van de opwekker leidt
B82: Ruimte 1 | D82: Ruimte 2 | F82: Ruimte 3 | H82: Ruimte 4 | J82: Ruimte 5 | L82: Ruimte 6 | N82: Ruimte 7 | P82: Ruimte 8 | R82: Ruimte 9 | T82: Ruimte 10
A84: 09:00:00 | B84: ='Ruimte 1'!$T73 -> 266.7279037 | C84: W | D84: ='Ruimte 2'!$T73 -> 1063.030751 | E84: W | F84: ='Ruimte 3'!$T73 -> 43.34808445 | G84: W | H84: ='Ruimte 4'!$T73 -> 43.34808445 | I84: W | J84: ='Ruimte 5'!$T73 -> 283.9057142 | K84: W | L84: ='Ruimte 6'!$T73 -> 86.6961689 | M84: W | N84: ='Ruimte 7'!$T73 -> 0 | O84: W | P84: ='Ruimte 8'!$T73 -> 0 | Q84: W | R84: ='Ruimte 9'!$T73 -> 0 | S84: W | T84: ='Ruimte 10'!$T73 -> 0 | U84: W | V84: =SUM(B84:T84) -> 1787.056706
A85: 10:00:00 | B85: ='Ruimte 1'!$T74 -> 416.8616987 | C85: W | D85: ='Ruimte 2'!$T74 -> 1207.522039 | E85: W | F85: ='Ruimte 3'!$T74 -> 78.93231214 | G85: W | H85: ='Ruimte 4'!$T74 -> 78.93231214 | I85: W | J85: ='Ruimte 5'!$T74 -> 317.3792323 | K85: W | L85: ='Ruimte 6'!$T74 -> 157.8646243 | M85: W | N85: ='Ruimte 7'!$T74 -> 0 | O85: W | P85: ='Ruimte 8'!$T74 -> 0 | Q85: W | R85: ='Ruimte 9'!$T74 -> 0 | S85: W | T85: ='Ruimte 10'!$T74 -> 0 | U85: W | V85: 2257.492218
A86: 11:00:00 | B86: ='Ruimte 1'!$T75 -> 507.6357978 | C86: W | D86: ='Ruimte 2'!$T75 -> 1155.58764 | E86: W | F86: ='Ruimte 3'!$T75 -> 102.0058253 | G86: W | H86: ='Ruimte 4'!$T75 -> 102.0058253 | I86: W | J86: ='Ruimte 5'!$T75 -> 320.0148601 | K86: W | L86: ='Ruimte 6'!$T75 -> 204.0116507 | M86: W | N86: ='Ruimte 7'!$T75 -> 0 | O86: W | P86: ='Ruimte 8'!$T75 -> 0 | Q86: W | R86: ='Ruimte 9'!$T75 -> 0 | S86: W | T86: ='Ruimte 10'!$T75 -> 0 | U86: W | V86: 2391.261599
A87: 12:00:00 | B87: ='Ruimte 1'!$T76 -> 580.0413708 | C87: W | D87: ='Ruimte 2'!$T76 -> 1066.552017 | E87: W | F87: ='Ruimte 3'!$T76 -> 119.5562251 | G87: W | H87: ='Ruimte 4'!$T76 -> 119.5562251 | I87: W | J87: ='Ruimte 5'!$T76 -> 331.7638753 | K87: W | L87: ='Ruimte 6'!$T76 -> 239.1124501 | M87: W | N87: ='Ruimte 7'!$T76 -> 0 | O87: W | P87: ='Ruimte 8'!$T76 -> 0 | Q87: W | R87: ='Ruimte 9'!$T76 -> 0 | S87: W | T87: ='Ruimte 10'!$T76 -> 0 | U87: W | V87: 2456.582164
A88: 13:00:00 | B88: ='Ruimte 1'!$T77 -> 603.7364056 | C88: W | D88: ='Ruimte 2'!$T77 -> 895.4418329 | E88: W | F88: ='Ruimte 3'!$T77 -> 125.6823096 | G88: W | H88: ='Ruimte 4'!$T77 -> 125.6823096 | I88: W | J88: ='Ruimte 5'!$T77 -> 331.2869633 | K88: W | L88: ='Ruimte 6'!$T77 -> 251.3646192 | M88: W | N88: ='Ruimte 7'!$T77 -> 0 | O88: W | P88: ='Ruimte 8'!$T77 -> 0 | Q88: W | R88: ='Ruimte 9'!$T77 -> 0 | S88: W | T88: ='Ruimte 10'!$T77 -> 0 | U88: W | V88: 2333.19444
A89: 14:00:00 | B89: ='Ruimte 1'!$T78 -> 670.0664237 | C89: W | D89: ='Ruimte 2'!$T78 -> 1136.657032 | E89: W | F89: ='Ruimte 3'!$T78 -> 142.3687275 | G89: W | H89: ='Ruimte 4'!$T78 -> 142.3687275 | I89: W | J89: ='Ruimte 5'!$T78 -> 335.1753172 | K89: W | L89: ='Ruimte 6'!$T78 -> 284.737455 | M89: W | N89: ='Ruimte 7'!$T78 -> 0 | O89: W | P89: ='Ruimte 8'!$T78 -> 0 | Q89: W | R89: ='Ruimte 9'!$T78 -> 0 | S89: W | T89: ='Ruimte 10'!$T78 -> 0 | U89: W | V89: 2711.373683
A90: 15:00:00 | B90: ='Ruimte 1'!$T79 -> 563.1815012 | C90: W | D90: ='Ruimte 2'!$T79 -> 1216.099394 | E90: W | F90: ='Ruimte 3'!$T79 -> 114.7066454 | G90: W | H90: ='Ruimte 4'!$T79 -> 114.7066454 | I90: W | J90: ='Ruimte 5'!$T79 -> 337.6449801 | K90: W | L90: ='Ruimte 6'!$T79 -> 229.4132907 | M90: W | N90: ='Ruimte 7'!$T79 -> 0 | O90: W | P90: ='Ruimte 8'!$T79 -> 0 | Q90: W | R90: ='Ruimte 9'!$T79 -> 0 | S90: W | T90: ='Ruimte 10'!$T79 -> 0 | U90: W | V90: 2575.752457
A91: 16:00:00 | B91: ='Ruimte 1'!$T80 -> 379.5225806 | C91: W | D91: ='Ruimte 2'!$T80 -> 1041.893835 | E91: W | F91: ='Ruimte 3'!$T80 -> 72.90628607 | G91: W | H91: ='Ruimte 4'!$T80 -> 72.90628607 | I91: W | J91: ='Ruimte 5'!$T80 -> 277.1581684 | K91: W | L91: ='Ruimte 6'!$T80 -> 145.8125721 | M91: W | N91: ='Ruimte 7'!$T80 -> 0 | O91: W | P91: ='Ruimte 8'!$T80 -> 0 | Q91: W | R91: ='Ruimte 9'!$T80 -> 0 | S91: W | T91: ='Ruimte 10'!$T80 -> 0 | U91: W | V91: 1990.199728
A92: 17:00:00 | B92: ='Ruimte 1'!$T81 -> 256.3920722 | C92: W | D92: ='Ruimte 2'!$T81 -> 929.3870499 | E92: W | F92: ='Ruimte 3'!$T81 -> 44.1390022 | G92: W | H92: ='Ruimte 4'!$T81 -> 44.1390022 | I92: W | J92: ='Ruimte 5'!$T81 -> 244.998595 | K92: W | L92: ='Ruimte 6'!$T81 -> 88.2780044 | M92: W | N92: ='Ruimte 7'!$T81 -> 0 | O92: W | P92: ='Ruimte 8'!$T81 -> 0 | Q92: W | R92: ='Ruimte 9'!$T81 -> 0 | S92: W | T92: ='Ruimte 10'!$T81 -> 0 | U92: W | V92: 1607.333726
A93: 18:00:00 | B93: ='Ruimte 1'!$T82 -> 145.7565304 | C93: W | D93: ='Ruimte 2'!$T82 -> 819.7778072 | E93: W | F93: ='Ruimte 3'!$T82 -> 16.17147917 | G93: W | H93: ='Ruimte 4'!$T82 -> 16.17147917 | I93: W | J93: ='Ruimte 5'!$T82 -> 240.0413367 | K93: W | L93: ='Ruimte 6'!$T82 -> 32.34295834 | M93: W | N93: ='Ruimte 7'!$T82 -> 0 | O93: W | P93: ='Ruimte 8'!$T82 -> 0 | Q93: W | R93: ='Ruimte 9'!$T82 -> 0 | S93: W | T93: ='Ruimte 10'!$T82 -> 0 | U93: W | V93: 1270.261591
A96: Maatgevende tijdstip | B96: =IF(MAX(V84:V93)=0,"Geen glas aanwezig",_xlfn.XLOOKUP(MAX(V84:V93),V84:V93,A84:A93,"nvt")) -> 14:00:00
A97: Minimaal op te stellen koelvermogen opwekker | B97: =MAX(V84:V93) -> 2711.373683 | C97: W | F97: Aftrek 35W/m² | H97: Totaal met afrek
A98: som VAN ALLE RUIMTEN (INCLUSIES AFTREK 35W/m² | B98: =SUM(B50:T54) -> 3116.456372 | D98: AFTREK | F98: =35*SUM(B47:T47) -> 3913 | H98: =B98-F98 -> -796.5436281
A100: infiltratie per ruimte
A101: SWM weg
A102: max koellast gewoon optellen
A103: Nieuwe uurlijksewaarden

Sheet Ruimte 1
A1: RUIMTE 1
A3: Ruimtenaam | B3: Woonkamer
A4: Type verblijfsruimte | B4: Woonvertrek
A5: Vloeroppervlak verblijfsruimte Avr (gebruiksoppervlak) | B5: 38.6 | C5: m²
B7: Voorzijde woning | F7: Linker zijde woning | J7: Achterzijde woning | N7: Rechter zijde woning | R7: Platdak
A8: Orientatie gevel / dakvlak (Helling > 15°C) | B8: =Invoerblad!$B$17 -> Noord | F8: =o_Orientatie(F9) -> Oost | J8: =o_Orientatie(J9) -> Zuid | N8: =o_Orientatie(N9) -> West | R8: Horizontaal
A9: Orientatiehoek gevel Ƴ | B9: =o_OrientatiehOEK(B8) -> 0 | F9: =IF(B9+90>360,B9+90-360,B9+90) -> 90 | J9: =IF(F9+90>360,F9+90-360,F9+90) -> 180 | N9: =IF(J9+90>360,J9+90-360,J9+90) -> 270
A10: Grenst aan buitenlucht ja of nee | B10: Ja | F10: Nee | J10: Ja | N10: Nee | R10: Nee
A11: Hellingshoek constructie ≥ 15° = hellenddak 90° = gevel | B11: 90 | C11: ° | F11: 90 | G11: ° | J11: 90 | K11: ° | N11: 90 | O11: ° | R11: 10 | S11: °
A12: Type constructie | B12: =o_TypeConstructie(B10,B11) -> Buitengevel | F12: =o_TypeConstructie(F10,F11) -> Woningscheidend | J12: =o_TypeConstructie(J10,J11) -> Buitengevel | N12: =o_TypeConstructie(N10,N11) -> Woningscheidend | R12: =o_TypeConstructie(R10,R11) -> Woningscheidend
A13: Gevel lengte (binnenwerks) | B13: 5 | C13: m | F13: 0 | G13: m | J13: 0 | K13: m | N13: 0 | O13: m | R13: 0 | S13: m
A14: Gevel hoogte / Dak breedte (binnenwerks) | B14: 2 | C14: m | F14: 0 | G14: m | J14: 0 | K14: m | N14: 0 | O14: m | R14: 0 | S14: m
A15: Constructie oppervlak (binnenwerks) | B15: 8.08 | C15: m² | F15: =F13*F14 -> 0 | G15: m² | J15: 15.87 | K15: m² | N15: =N13*N14 -> 0 | O15: m² | R15: =R13*R14 -> 0 | S15: m²
A16: Gesloten constructie oppervlak | B16: =MAX(0,B15-B18-D18) -> 6.08 | C16: m² | F16: =MAX(0,F15-F18-H18) -> 0 | G16: m² | J16: =MAX(0,J15-J18-L18) -> 8.47 | K16: m² | N16: =MAX(0,N15-N18-P18) -> 0 | O16: m² | R16: =MAX(0,R15-R18-T18) -> 0 | S16: m²
B17: Glasvlak type 1 | D17: Glasvlak type 2 | F17: Glasvlak type 1 | H17: Glasvlak type 2 | J17: Glasvlak type 1 | L17: Glasvlak type 2 | N17: Glasvlak type 1 | P17: Glasvlak type 2 | R17: Glasvlak type 1 | T17: Glasvlak type 2
A18: Totaal oppervlak van raamtype Aw,k (inclusief kozijn) | B18: 2 | C18: m² | E18: m² | G18: m² | I18: m² | J18: 7.4 | K18: m² | M18: m² | O18: m² | Q18: m² | S18: m² | U18: m²
A19: Warmtedoorgangscoefficient (U-waarde) van het raam Uw;wi;k | B19: 1.5 | C19: W/m².K | E19: W/m².K | G19: W/m².K | I19: W/m².K | J19: 1.5 | K19: W/m².K | M19: W/m².K | O19: W/m².K | Q19: W/m².K | S19: W/m².K | U19: W/m².K
A20: Zontoetredingsfactor (g_waarde) van het glas Ggl;n;wi;k;C;juli | B20: 0.6 | J20: 0.6
A21: Beschaduwing situatie bij het raamtype | B21: Minimale belemmering | D21: Minimale belemmering | F21: Minimale belemmering | H21: Minimale belemmering | J21: Minimale belemmering | L21: Minimale belemmering | N21: Minimale belemmering | P21: Minimale belemmering | R21: Minimale belemmering | T21: Minimale belemmering
B23: Overstek | D23: Overstek | F23: Overstek | H23: Overstek | J23: Overstek | L23: Overstek | N23: Overstek | P23: Overstek
A24: Hoogte verschil midden raam onderzijde overstek | B24: 0 | C24: m | D24: 0 | E24: m | F24: 0 | G24: m | H24: 0 | I24: m | J24: 0 | K24: m | L24: 0 | M24: m | N24: 0 | O24: m | P24: 0 | Q24: m | R24: 0 | U24: m
A25: Horizontale afstand glas tot eindpunt overstek | B25: 0 | C25: m | D25: 0 | E25: m | F25: 0 | G25: m | H25: 0 | I25: m | J25: 0 | K25: m | L25: 0 | M25: m | N25: 0 | O25: m | P25: 0 | Q25: m | R25: 0 | U25: m
A26: Overstekhoek | B26: =IFERROR(180/PI()*ATAN(B24/B25),0) -> 0 | C26: ° | D26: =IFERROR(180/PI()*ATAN(D24/D25),0) -> 0 | E26: ° | F26: =IFERROR(180/PI()*ATAN(F24/F25),0) -> 0 | G26: ° | H26: =IFERROR(180/PI()*ATAN(H24/H25),0) -> 0 | I26: ° | J26: =IFERROR(180/PI()*ATAN(J24/J25),0) -> 0 | K26: ° | L26: =IFERROR(180/PI()*ATAN(L24/L25),0) -> 0 | M26: ° | N26: =IFERROR(180/PI()*ATAN(N24/N25),0) -> 0 | O26: ° | P26: =IFERROR(180/PI()*ATAN(P24/P25),0) -> 0 | Q26: ° | U26: °
A27: Relatieve hoogte van overstek | B27: =IFERROR(B24/B25,1) -> 1 | D27: =IFERROR(D24/D25,1) -> 1 | F27: =IFERROR(F24/F25,1) -> 1 | H27: =IFERROR(H24/H25,1) -> 1 | J27: =IFERROR(J24/J25,1) -> 1 | L27: =IFERROR(L24/L25,1) -> 1 | N27: =IFERROR(N24/N25,1) -> 1 | P27: =IFERROR(P24/P25,1) -> 1
B29: Zijbelemmering | D29: Zijbelemmering | F29: Zijbelemmering | H29: Zijbelemmering | J29: Zijbelemmering | L29: Zijbelemmering | N29: Zijbelemmering | P29: Zijbelemmering
A30: Positie zijbelemmering irt zichtveld (naar buitengericht) | B30: Links | D30: Links | F30: Links | H30: Links | J30: Links | L30: Links | N30: Links | P30: Links
A31: Horizontale afstand midden raam verste punt belemmering | B31: 0 | C31: m | D31: 0 | E31: m | G31: m | I31: m | K31: m | L31: 1 | M31: m | O31: m | Q31: m | U31: m
A32: Horizontale breedte glas tot eindpunt belemmering | B32: 0 | C32: m | D32: 0 | E32: m | G32: m | I32: m | K32: m | M32: m | O32: m | Q32: m | U32: m
A33: Relatieve breedte van de zijbelemmering bb | B33: =IFERROR(B31/B32,999) -> 999 | D33: =IFERROR(D31/D32,999) -> 999 | F33: =IFERROR(F31/F32,999) -> 999 | H33: =IFERROR(H31/H32,999) -> 999 | J33: =IFERROR(J31/J32,999) -> 999 | L33: =IFERROR(L31/L32,999) -> 999 | N33: =IFERROR(N31/N32,999) -> 999 | P33: =IFERROR(P31/P32,999) -> 999
A35: De beschaduwingsreductiefactor Fsh;obst;wi;k;juli | B35: =IFERROR(o_Beschaduwingreductie(B21,B8,B27,B30,B33,B11),1) -> 1 | D35: =IFERROR(o_Beschaduwingreductie(D21,B8,D27,D30,D33,B11),1) -> 1 | F35: =IFERROR(o_Beschaduwingreductie(F21,F8,F27,F30,F33,F11),1) -> 1 | H35: =IFERROR(o_Beschaduwingreductie(H21,F8,H27,H30,H33,F11),1) -> 1 | J35: =IFERROR(o_Beschaduwingreductie(J21,J8,J27,J30,J33,J11),1) -> 1 | L35: =IFERROR(o_Beschaduwingreductie(L21,J8,L27,L30,L33,J11),1) -> 1 | N35: =IFERROR(o_Beschaduwingreductie(N21,N8,N27,N30,N33,N11),1) -> 1 | P35: =IFERROR(o_Beschaduwingreductie(P21,N8,P27,P30,P33,N11),1) -> 1 | R35: =o_Beschaduwingreductie(R21,R8,R27,R30,R33,R11) -> 1 | T35: =o_Beschaduwingreductie(T21,R8,T27,T30,T33,R11) -> 1
A37: Type zonwering | B37: Geen zonwering | D37: Geen zonwering | F37: Geen zonwering | H37: Geen zonwering | J37: Screen (wit) | L37: Geen zonwering | N37: Geen zonwering | P37: Geen zonwering | R37: Geen zonwering | T37: Geen zonwering
A38: De reductiefactor voor zonwering Fc;wi;k | B38: =o_Zonweringreductie(B37,B8) -> 1 | D38: =o_Zonweringreductie(D37,B8) -> 1 | F38: =o_Zonweringreductie(F37,F8) -> 1 | H38: =o_Zonweringreductie(H37,F8) -> 1 | J38: =o_Zonweringreductie(J37,J8) -> 0.25 | L38: =o_Zonweringreductie(L37,J8) -> 1 | N38: =o_Zonweringreductie(N37,N8) -> 1 | P38: =o_Zonweringreductie(P37,N8) -> 1 | R38: =o_Zonweringreductie(R37,R8) -> 1 | T38: =o_Zonweringreductie(T37,R8) -> 1
A39: Totaal opvallende zonnestraling van het raam Isol;wi;k;juli | B39: =IF(B10="Nee",0,o_Isol_Bij_Tijdstip($B$52,B8,B11)) -> 142.6885131 | C39: W/m² | D39: =IF(B10="Nee",0,o_Isol_Bij_Tijdstip($B$52,B8,B11)) -> 142.6885131 | E39: W/m² | F39: =IF(F10="Nee",0,o_Isol_Bij_Tijdstip($B$52,F8,F11)) -> 0 | G39: W/m² | H39: =IF(F10="Nee",0,o_Isol_Bij_Tijdstip($B$52,F8,F11)) -> 0 | I39: W/m² | J39: =IF(J10="Nee",0,o_Isol_Bij_Tijdstip($B$52,J8,J11)) -> 740.0583625 | K39: W/m² | L39: =IF(J10="Nee",0,o_Isol_Bij_Tijdstip($B$52,J8,J11)) -> 740.0583625 | M39: W/m² | N39: =IF(N10="Nee",0,o_Isol_Bij_Tijdstip($B$52,N8,N11)) -> 0 | O39: W/m² | P39: =IF(N10="Nee",0,o_Isol_Bij_Tijdstip($B$52,N8,N11)) -> 0 | Q39: W/m² | R39: =IF(R10="Nee",0,o_Isol_Bij_Tijdstip($B$52,R8,R11)) -> 0 | S39: W/m² | T39: =IF(R10="Nee",0,o_Isol_Bij_Tijdstip($B$52,R8,R11)) -> 0 | U39: W/m²
A41: Tijdstip maximale koellastbijdrage tmax;zi | B41: =VALUE(o_Tijdstip_Isol_Max_Orientatie(B8,B11)) -> 15:00:00 | F41: =VALUE(o_Tijdstip_Isol_Max_Orientatie(F8,F11)) -> 09:00:00 | J41: =VALUE(o_Tijdstip_Isol_Max_Orientatie(J8,J11)) -> 14:00:00 | N41: =VALUE(o_Tijdstip_Isol_Max_Orientatie(N8,N11)) -> 18:00:00 | R41: =o_Tijdstip_Isol_Max_Orientatie(R8,R11) -> 16:00:00
A42: Buitenluchttemperatuur op tijdstip max koellast Θe | B42: =o_maxTemp(VALUE(B41)) -> 29.8 | E42: °C | F42: =o_maxTemp(VALUE(F41)) -> 24.7 | I42: °C | J42: =o_maxTemp(VALUE(J41)) -> 29.9 | M42: °C | N42: =o_maxTemp(VALUE(N41)) -> 30.1 | Q42: °C | R42: =o_maxTemp(VALUE(R41)) -> 30.4
A44: Glasopppervlak | B44: =IF(B10="Ja",B18+D18,0) -> 2 | C44: m² | F44: =IF(F10="Ja",F18+H18,0) -> 0 | G44: m² | J44: =IF(J10="Ja",J18+L18,0) -> 7.4 | K44: m² | N44: =IF(N10="Ja",N18+P18,0) -> 0 | O44: m² | R44: =IF(R10="Ja",R18+T18,0) -> 0 | S44: m²
A45: Uitwendigescheidingsconstructie niet op Noord? | B45: =IF(B10="Ja",IF(B8="Noord",FALSE,TRUE),FALSE) -> FALSE | F45: =IF(F10="Ja",IF(F8="Noord",FALSE,TRUE),FALSE) -> FALSE | J45: =IF(J10="Ja",IF(J8="Noord",FALSE,TRUE),FALSE) -> TRUE | N45: =IF(N10="Ja",IF(N8="Noord",FALSE,TRUE),FALSE) -> FALSE | R45: =IF(R10="Ja",IF(R8="Noord",FALSE,TRUE),FALSE) -> FALSE
A46: De enige uitwendigescheidingscontructie? | B46: =IF(AND(B45=TRUE,COUNTIF($B$45:$R$45,TRUE)=1),TRUE,FALSE) -> FALSE | F46: =IF(AND(F45=TRUE,COUNTIF($B$45:$R$45,TRUE)=1),TRUE,FALSE) -> FALSE | J46: =IF(AND(J45=TRUE,COUNTIF($B$45:$R$45,TRUE)=1),TRUE,FALSE) -> TRUE | N46: =IF(AND(N45=TRUE,COUNTIF($B$45:$R$45,TRUE)=1),TRUE,FALSE) -> FALSE | R46: =IF(AND(R45=TRUE,COUNTIF($B$45:$R$45,TRUE)=1),TRUE,FALSE) -> FALSE
A47: Totaal glasoppervlak | B47: =IF(B8<>"Noord",B44,0) -> 0 | C47: m² | F47: =IF(F8<>"Noord",F44,0) -> 0 | G47: m² | J47: =IF(J8<>"Noord",J44,0) -> 7.4 | K47: m² | N47: =IF(N8<>"Noord",N44,0) -> 0 | O47: m² | R47: =R44 -> 0 | S47: m²
A48: Grootste glasoppervlak | B48: =IF(AND(B45,B47=MAX($B$47:$R$47)),TRUE,FALSE) -> FALSE | F48: =IF(AND(F45,F47=MAX($B$47:$R$47)),TRUE,FALSE) -> FALSE | J48: =IF(AND(J45,J47=MAX($B$47:$R$47)),TRUE,FALSE) -> TRUE | N48: =IF(AND(N45,N47=MAX($B$47:$R$47)),TRUE,FALSE) -> FALSE | R48: =IF(AND(R45,R47=MAX($B$47:$R$47)),TRUE,FALSE) -> FALSE
A49: Dakvlak maatgevend? | B49: =IF(AND(B11<90,B15>3*(B18+D18),Invoerblad!$B$25<65),TRUE,FALSE) -> FALSE | F49: =IF(AND(F11<90,F15>3*(F18+H18),Invoerblad!$B$25<65),TRUE,FALSE) -> FALSE | J49: =IF(AND(J11<90,J15>3*(J18+L18),Invoerblad!$B$25<65),TRUE,FALSE) -> FALSE | N49: =IF(AND(N11<90,N15>3*(N18+P18),Invoerblad!$B$25<65),TRUE,FALSE) -> FALSE | R49: =IF(AND(R11<90,R15>3*(R18+T18),Invoerblad!$B$25<65),TRUE,FALSE) -> FALSE
A50: is er een maatgevend dakoppervlak | B50: =IF(COUNTIF($B$49:$R$49,TRUE)>0,TRUE,FALSE) -> FALSE | F50: =IF(COUNTIF($B$49:$R$49,TRUE)>0,TRUE,FALSE) -> FALSE | J50: =IF(COUNTIF($B$49:$R$49,TRUE)>0,TRUE,FALSE) -> FALSE | N50: =IF(COUNTIF($B$49:$R$49,TRUE)>0,TRUE,FALSE) -> FALSE | R50: =IF(COUNTIF($B$49:$R$49,TRUE)>0,TRUE,FALSE) -> FALSE
A51: Maatgevende tijdstip | B51: =IF(OR(B46,AND(B45,B50,B49),AND(B45,B48,NOT(B50))),B41) -> FALSE | F51: =IF(OR(F46,AND(F45,F50,F49),AND(F45,F48,NOT(F50))),F41) -> FALSE | J51: =IF(OR(J46,AND(J45,J50,J49),AND(J45,J48,NOT(J50))),J41) -> 14:00:00 | N51: =IF(OR(N46,AND(N45,N50,N49),AND(N45,N48,NOT(N50))),N41) -> FALSE | R51: =IF(OR(R46,AND(R45,R50,R49),AND(R45,R48,NOT(R50))),R41) -> FALSE
A52: Maatgevende tijdstip tmax;zi | B52: =IFERROR(B84,"geen glas ingevoerd") -> 14:00:00
A53: Buitenluchttemperatuur op tijdstip max koellast Θe | B53: =o_maxTemp(VALUE(B52)) -> 29.9 | C53: °C
A55: Koellast door transmissie ondoorzichtige delen Ptr;ntr;vr;zi | B55: =IF(B10="Nee",0,B16*Invoerblad!$B$16) -> 13.376 | E55: W | F55: =IF(F10="Nee",0,F16*Invoerblad!$B$16) -> 0 | I55: W | J55: =IF(J10="Nee",0,J16*Invoerblad!$B$16) -> 18.634 | M55: W | N55: =IF(N10="Nee",0,N16*Invoerblad!$B$16) -> 0 | Q55: W | R55: =IF(R10="Nee",0,R16*Invoerblad!$B$16) -> 0 | U55: W
A56: Koellastbijdrage zoninstraling transparante delen Psol;vr;zi | B56: =(0.75*B18*FLOOR(B20,0.05)*0.9*B35*B38*B39)+(0.75*D18*FLOOR(D20,0.05)*0.9*D35*D38*D39) -> 115.5776956 | E56: W | F56: =(0.75*F18*FLOOR(F20,0.05)*0.9*F35*F38*F39)+(0.75*H18*FLOOR(H20,0.05)*0.9*H35*H38*H39) -> 0 | I56: W | J56: =(0.75*J18*FLOOR(J20,0.05)*0.9*J35*J38*J39)+(0.75*L18*FLOOR(L20,0.05)*0.9*L35*L38*L39) -> 554.4887281 | M56: W | N56: =(0.75*N18*FLOOR(N20,0.05)*0.9*N35*N38*N39)+(0.75*P18*FLOOR(P20,0.05)*0.9*P35*P38*P39) -> 0 | Q56: W | R56: =(0.75*R18*FLOOR(R20,0.05)*0.9*R35*R38*R39)+(0.75*T18*FLOOR(T20,0.05)*0.9*T35*T38*T39) -> 0 | U56: W
A57: Koellastbijdrage transmissie transparante delen Ptr;gl;vr;zi | B57: =IF(B10="Nee",0,IFERROR(B18*B19*($B$53-24),0)+IFERROR(D18*D19*($B$53-24),0)) -> 17.7 | E57: W | F57: =IF(F10="Nee",0,IFERROR(F18*F19*($B$53-24),0)+IFERROR(H18*H19*($B$53-24),0)) -> 0 | I57: W | J57: =IF(J10="Nee",0,IFERROR(J18*J19*($B$53-24),0)+IFERROR(L18*L19*($B$53-24),0)) -> 65.49 | M57: W | N57: =IF(N10="Nee",0,IFERROR(N18*N19*($B$53-24),0)+IFERROR(P18*P19*($B$53-24),0)) -> 0 | Q57: W | R57: =IF(R10="Nee",0,IFERROR(R18*R19*($B$53-24),0)+IFERROR(T18*T19*($B$53-24),0)) -> 0 | U57: W
A58: Totaal koellastbijdrage per gevel | B58: =SUM(B55:D57) -> 146.6536956 | E58: W | F58: =SUM(F55:H57) -> 0 | I58: W | J58: =SUM(J55:L57) -> 638.6127281 | M58: W | N58: =SUM(N55:P57) -> 0 | Q58: W | R58: =SUM(R55:R57) -> 0 | U58: W
A60: Koellast door interne warmtelast Pint;calc;woon/overig;zi | B60: =IF(B5=0,0,IF(B4="Woonvertrek",2*Invoerblad!$B$40*B5,Invoerblad!$B$40*B5)) -> 252.2345745 | E60: W
A61: Koellast door buitenluchttoetreding Pv;calc;vr;zi | B61: =IFERROR(MAX((SUM(Invoerblad!$B$28:$B$30)/3600*1.205*1005*(B53-24))/SUM(Invoerblad!$B$47:$T$47)*B5,0),0) -> 173.0320067 | C61: =IFERROR(MAX(SUM(C57:C59)/3600*1.205*1005*(C60-24),0),0) -> 0 | D61: =IFERROR(MAX(SUM(D57:D59)/3600*1.205*1005*(D60-24),0),0) -> 0 | E61: W
A63: Totaal koellastbijdrage | B63: =IFERROR(SUM(B58:T58)+B60+B61,0) -> 1210.533005 | E63: W
A64: Koelbehoefte verblijfsruimte | B64: =IFERROR(B63/B5,0) -> 31.36095867 | E64: W/m²
A67: Onderstaande tabellen worden verborgen in de uiteindelijke versie. De tabellen dienen om vast te stellen welk tijdstip tot de hoogste zonbelasting leidt
A69: Isol max voor de orientatie | B69: =o_Isol_Max_Orientatie(B8,B11) -> 143.7398809 | C69: W/m² | F69: =o_Isol_Max_Orientatie(F8,F11) -> 845.3277237 | G69: W/m² | J69: =o_Isol_Max_Orientatie(J8,J11) -> 740.0583625 | K69: W/m² | N69: =o_Isol_Max_Orientatie(N8,N11) -> 741.7580929 | O69: W/m² | R69: =o_Isol_Max_Orientatie(R8,R11) -> 914.160926 | S69: W/m²
A70: Tijdstip bij Isol max bij orientatie | B70: =VALUE(o_Tijdstip_Isol_Max_Orientatie(B8,B11)) -> 15:00:00 | F70: =VALUE(o_Tijdstip_Isol_Max_Orientatie(F8,F11)) -> 09:00:00 | J70: =VALUE(o_Tijdstip_Isol_Max_Orientatie(J8,J11)) -> 14:00:00 | N70: =VALUE(o_Tijdstip_Isol_Max_Orientatie(N8,N11)) -> 18:00:00 | R70: =VALUE(o_Tijdstip_Isol_Max_Orientatie(R8,R11)) -> 16:00:00
A72: Koellastbijdrage zoninstraling transparante delen Psol;vr;zi
A73: 09:00:00 | B73: =(0.75*B$18*FLOOR(B$20,0.05)*0.9*B$35*B$38*o_Isol_Bij_Tijdstip($A73,B$8,B$11))+(0.75*D$18*FLOOR(D$20,0.05)*0.9*D$35*D$38*o_Isol_Bij_Tijdstip($A73,B$8,B$11)) -> 97.89852213 | C73: W | F73: =(0.75*F$18*FLOOR(F$20,0.05)*0.9*F$35*F$38*o_Isol_Bij_Tijdstip($A73,F$8,F$11))+(0.75*H$18*FLOOR(H$20,0.05)*0.9*H$35*H$38*o_Isol_Bij_Tijdstip($A73,F$8,F$11)) -> 0 | G73: W | J73: =(0.75*J$18*FLOOR(J$20,0.05)*0.9*J$35*J$38*o_Isol_Bij_Tijdstip($A73,J$8,J$11))+(0.75*L$18*FLOOR(L$20,0.05)*0.9*L$35*L$38*o_Isol_Bij_Tijdstip($A73,J$8,J$11)) -> 168.8293815 | K73: W | N73: =(0.75*N$18*FLOOR(N$20,0.05)*0.9*N$35*N$38*o_Isol_Bij_Tijdstip($A73,N$8,N$11))+(0.75*P$18*FLOOR(P$20,0.05)*0.9*P$35*P$38*o_Isol_Bij_Tijdstip($A73,N$8,N$11)) -> 0 | O73: W | R73: =(0.75*R$18*FLOOR(R$20,0.05)*0.9*R$35*R$38*o_Isol_Bij_Tijdstip($A73,R$8,R$11))+(0.75*T$18*FLOOR(T$20,0.05)*0.9*T$35*T$38*o_Isol_Bij_Tijdstip($A73,R$8,R$11)) -> 0 | S73: W | T73: =B73+F73+J73+N73+R73 -> 266.7279037 | U73: W
A74: 10:00:00 | B74: =(0.75*B$18*FLOOR(B$20,0.05)*0.9*B$35*B$38*o_Isol_Bij_Tijdstip($A74,B$8,B$11))+(0.75*D$18*FLOOR(D$20,0.05)*0.9*D$35*D$38*o_Isol_Bij_Tijdstip($A74,B$8,B$11)) -> 109.4411146 | C74: W | F74: =(0.75*F$18*FLOOR(F$20,0.05)*0.9*F$35*F$38*o_Isol_Bij_Tijdstip($A74,F$8,F$11))+(0.75*H$18*FLOOR(H$20,0.05)*0.9*H$35*H$38*o_Isol_Bij_Tijdstip($A74,F$8,F$11)) -> 0 | G74: W | J74: =(0.75*J$18*FLOOR(J$20,0.05)*0.9*J$35*J$38*o_Isol_Bij_Tijdstip($A74,J$8,J$11))+(0.75*L$18*FLOOR(L$20,0.05)*0.9*L$35*L$38*o_Isol_Bij_Tijdstip($A74,J$8,J$11)) -> 307.4205841 | K74: W | N74: =(0.75*N$18*FLOOR(N$20,0.05)*0.9*N$35*N$38*o_Isol_Bij_Tijdstip($A74,N$8,N$11))+(0.75*P$18*FLOOR(P$20,0.05)*0.9*P$35*P$38*o_Isol_Bij_Tijdstip($A74,N$8,N$11)) -> 0 | O74: W | R74: =(0.75*R$18*FLOOR(R$20,0.05)*0.9*R$35*R$38*o_Isol_Bij_Tijdstip($A74,R$8,R$11))+(0.75*T$18*FLOOR(T$20,0.05)*0.9*T$35*T$38*o_Isol_Bij_Tijdstip($A74,R$8,R$11)) -> 0 | S74: W | T74: 416.8616987 | U74: W
A75: 11:00:00 | B75: =(0.75*B$18*FLOOR(B$20,0.05)*0.9*B$35*B$38*o_Isol_Bij_Tijdstip($A75,B$8,B$11))+(0.75*D$18*FLOOR(D$20,0.05)*0.9*D$35*D$38*o_Isol_Bij_Tijdstip($A75,B$8,B$11)) -> 110.3499518 | C75: W | F75: =(0.75*F$18*FLOOR(F$20,0.05)*0.9*F$35*F$38*o_Isol_Bij_Tijdstip($A75,F$8,F$11))+(0.75*H$18*FLOOR(H$20,0.05)*0.9*H$35*H$38*o_Isol_Bij_Tijdstip($A75,F$8,F$11)) -> 0 | G75: W | J75: =(0.75*J$18*FLOOR(J$20,0.05)*0.9*J$35*J$38*o_Isol_Bij_Tijdstip($A75,J$8,J$11))+(0.75*L$18*FLOOR(L$20,0.05)*0.9*L$35*L$38*o_Isol_Bij_Tijdstip($A75,J$8,J$11)) -> 397.2858461 | K75: W | N75: =(0.75*N$18*FLOOR(N$20,0.05)*0.9*N$35*N$38*o_Isol_Bij_Tijdstip($A75,N$8,N$11))+(0.75*P$18*FLOOR(P$20,0.05)*0.9*P$35*P$38*o_Isol_Bij_Tijdstip($A75,N$8,N$11)) -> 0 | O75: W | R75: =(0.75*R$18*FLOOR(R$20,0.05)*0.9*R$35*R$38*o_Isol_Bij_Tijdstip($A75,R$8,R$11))+(0.75*T$18*FLOOR(T$20,0.05)*0.9*T$35*T$38*o_Isol_Bij_Tijdstip($A75,R$8,R$11)) -> 0 | S75: W | T75: 507.6357978 | U75: W
A76: 12:00:00 | B76: =(0.75*B$18*FLOOR(B$20,0.05)*0.9*B$35*B$38*o_Isol_Bij_Tijdstip($A76,B$8,B$11))+(0.75*D$18*FLOOR(D$20,0.05)*0.9*D$35*D$38*o_Isol_Bij_Tijdstip($A76,B$8,B$11)) -> 114.4013363 | C76: W | F76: =(0.75*F$18*FLOOR(F$20,0.05)*0.9*F$35*F$38*o_Isol_Bij_Tijdstip($A76,F$8,F$11))+(0.75*H$18*FLOOR(H$20,0.05)*0.9*H$35*H$38*o_Isol_Bij_Tijdstip($A76,F$8,F$11)) -> 0 | G76: W | J76: =(0.75*J$18*FLOOR(J$20,0.05)*0.9*J$35*J$38*o_Isol_Bij_Tijdstip($A76,J$8,J$11))+(0.75*L$18*FLOOR(L$20,0.05)*0.9*L$35*L$38*o_Isol_Bij_Tijdstip($A76,J$8,J$11)) -> 465.6400345 | K76: W | N76: =(0.75*N$18*FLOOR(N$20,0.05)*0.9*N$35*N$38*o_Isol_Bij_Tijdstip($A76,N$8,N$11))+(0.75*P$18*FLOOR(P$20,0.05)*0.9*P$35*P$38*o_Isol_Bij_Tijdstip($A76,N$8,N$11)) -> 0 | O76: W | R76: =(0.75*R$18*FLOOR(R$20,0.05)*0.9*R$35*R$38*o_Isol_Bij_Tijdstip($A76,R$8,R$11))+(0.75*T$18*FLOOR(T$20,0.05)*0.9*T$35*T$38*o_Isol_Bij_Tijdstip($A76,R$8,R$11)) -> 0 | S76: W | T76: 580.0413708 | U76: W
A77: 13:00:00 | B77: =(0.75*B$18*FLOOR(B$20,0.05)*0.9*B$35*B$38*o_Isol_Bij_Tijdstip($A77,B$8,B$11))+(0.75*D$18*FLOOR(D$20,0.05)*0.9*D$35*D$38*o_Isol_Bij_Tijdstip($A77,B$8,B$11)) -> 114.2368839 | C77: W | F77: =(0.75*F$18*FLOOR(F$20,0.05)*0.9*F$35*F$38*o_Isol_Bij_Tijdstip($A77,F$8,F$11))+(0.75*H$18*FLOOR(H$20,0.05)*0.9*H$35*H$38*o_Isol_Bij_Tijdstip($A77,F$8,F$11)) -> 0 | G77: W | J77: =(0.75*J$18*FLOOR(J$20,0.05)*0.9*J$35*J$38*o_Isol_Bij_Tijdstip($A77,J$8,J$11))+(0.75*L$18*FLOOR(L$20,0.05)*0.9*L$35*L$38*o_Isol_Bij_Tijdstip($A77,J$8,J$11)) -> 489.4995217 | K77: W | N77: =(0.75*N$18*FLOOR(N$20,0.05)*0.9*N$35*N$38*o_Isol_Bij_Tijdstip($A77,N$8,N$11))+(0.75*P$18*FLOOR(P$20,0.05)*0.9*P$35*P$38*o_Isol_Bij_Tijdstip($A77,N$8,N$11)) -> 0 | O77: W | R77: =(0.75*R$18*FLOOR(R$20,0.05)*0.9*R$35*R$38*o_Isol_Bij_Tijdstip($A77,R$8,R$11))+(0.75*T$18*FLOOR(T$20,0.05)*0.9*T$35*T$38*o_Isol_Bij_Tijdstip($A77,R$8,R$11)) -> 0 | S77: W | T77: 603.7364056 | U77: W
A78: 14:00:00 | B78: =(0.75*B$18*FLOOR(B$20,0.05)*0.9*B$35*B$38*o_Isol_Bij_Tijdstip($A78,B$8,B$11))+(0.75*D$18*FLOOR(D$20,0.05)*0.9*D$35*D$38*o_Isol_Bij_Tijdstip($A78,B$8,B$11)) -> 115.5776956 | C78: W | F78: =(0.75*F$18*FLOOR(F$20,0.05)*0.9*F$35*F$38*o_Isol_Bij_Tijdstip($A78,F$8,F$11))+(0.75*H$18*FLOOR(H$20,0.05)*0.9*H$35*H$38*o_Isol_Bij_Tijdstip($A78,F$8,F$11)) -> 0 | G78: W | J78: =(0.75*J$18*FLOOR(J$20,0.05)*0.9*J$35*J$38*o_Isol_Bij_Tijdstip($A78,J$8,J$11))+(0.75*L$18*FLOOR(L$20,0.05)*0.9*L$35*L$38*o_Isol_Bij_Tijdstip($A78,J$8,J$11)) -> 554.4887281 | K78: W | N78: =(0.75*N$18*FLOOR(N$20,0.05)*0.9*N$35*N$38*o_Isol_Bij_Tijdstip($A78,N$8,N$11))+(0.75*P$18*FLOOR(P$20,0.05)*0.9*P$35*P$38*o_Isol_Bij_Tijdstip($A78,N$8,N$11)) -> 0 | O78: W | R78: =(0.75*R$18*FLOOR(R$20,0.05)*0.9*R$35*R$38*o_Isol_Bij_Tijdstip($A78,R$8,R$11))+(0.75*T$18*FLOOR(T$20,0.05)*0.9*T$35*T$38*o_Isol_Bij_Tijdstip($A78,R$8,R$11)) -> 0 | S78: W | T78: 670.0664237 | U78: W
A79: 15:00:00 | B79: =(0.75*B$18*FLOOR(B$20,0.05)*0.9*B$35*B$38*o_Isol_Bij_Tijdstip($A79,B$8,B$11))+(0.75*D$18*FLOOR(D$20,0.05)*0.9*D$35*D$38*o_Isol_Bij_Tijdstip($A79,B$8,B$11)) -> 116.4293035 | C79: W | F79: =(0.75*F$18*FLOOR(F$20,0.05)*0.9*F$35*F$38*o_Isol_Bij_Tijdstip($A79,F$8,F$11))+(0.75*H$18*FLOOR(H$20,0.05)*0.9*H$35*H$38*o_Isol_Bij_Tijdstip($A79,F$8,F$11)) -> 0 | G79: W | J79: =(0.75*J$18*FLOOR(J$20,0.05)*0.9*J$35*J$38*o_Isol_Bij_Tijdstip($A79,J$8,J$11))+(0.75*L$18*FLOOR(L$20,0.05)*0.9*L$35*L$38*o_Isol_Bij_Tijdstip($A79,J$8,J$11)) -> 446.7521977 | K79: W | N79: =(0.75*N$18*FLOOR(N$20,0.05)*0.9*N$35*N$38*o_Isol_Bij_Tijdstip($A79,N$8,N$11))+(0.75*P$18*FLOOR(P$20,0.05)*0.9*P$35*P$38*o_Isol_Bij_Tijdstip($A79,N$8,N$11)) -> 0 | O79: W | R79: =(0.75*R$18*FLOOR(R$20,0.05)*0.9*R$35*R$38*o_Isol_Bij_Tijdstip($A79,R$8,R$11))+(0.75*T$18*FLOOR(T$20,0.05)*0.9*T$35*T$38*o_Isol_Bij_Tijdstip($A79,R$8,R$11)) -> 0 | S79: W | T79: 563.1815012 | U79: W
A80: 16:00:00 | B80: =(0.75*B$18*FLOOR(B$20,0.05)*0.9*B$35*B$38*o_Isol_Bij_Tijdstip($A80,B$8,B$11))+(0.75*D$18*FLOOR(D$20,0.05)*0.9*D$35*D$38*o_Isol_Bij_Tijdstip($A80,B$8,B$11)) -> 95.5717822 | C80: W | F80: =(0.75*F$18*FLOOR(F$20,0.05)*0.9*F$35*F$38*o_Isol_Bij_Tijdstip($A80,F$8,F$11))+(0.75*H$18*FLOOR(H$20,0.05)*0.9*H$35*H$38*o_Isol_Bij_Tijdstip($A80,F$8,F$11)) -> 0 | G80: W | J80: =(0.75*J$18*FLOOR(J$20,0.05)*0.9*J$35*J$38*o_Isol_Bij_Tijdstip($A80,J$8,J$11))+(0.75*L$18*FLOOR(L$20,0.05)*0.9*L$35*L$38*o_Isol_Bij_Tijdstip($A80,J$8,J$11)) -> 283.9507984 | K80: W | N80: =(0.75*N$18*FLOOR(N$20,0.05)*0.9*N$35*N$38*o_Isol_Bij_Tijdstip($A80,N$8,N$11))+(0.75*P$18*FLOOR(P$20,0.05)*0.9*P$35*P$38*o_Isol_Bij_Tijdstip($A80,N$8,N$11)) -> 0 | O80: W | R80: =(0.75*R$18*FLOOR(R$20,0.05)*0.9*R$35*R$38*o_Isol_Bij_Tijdstip($A80,R$8,R$11))+(0.75*T$18*FLOOR(T$20,0.05)*0.9*T$35*T$38*o_Isol_Bij_Tijdstip($A80,R$8,R$11)) -> 0 | S80: W | T80: 379.5225806 | U80: W
A81: 17:00:00 | B81: =(0.75*B$18*FLOOR(B$20,0.05)*0.9*B$35*B$38*o_Isol_Bij_Tijdstip($A81,B$8,B$11))+(0.75*D$18*FLOOR(D$20,0.05)*0.9*D$35*D$38*o_Isol_Bij_Tijdstip($A81,B$8,B$11)) -> 84.48227413 | C81: W | F81: =(0.75*F$18*FLOOR(F$20,0.05)*0.9*F$35*F$38*o_Isol_Bij_Tijdstip($A81,F$8,F$11))+(0.75*H$18*FLOOR(H$20,0.05)*0.9*H$35*H$38*o_Isol_Bij_Tijdstip($A81,F$8,F$11)) -> 0 | G81: W | J81: =(0.75*J$18*FLOOR(J$20,0.05)*0.9*J$35*J$38*o_Isol_Bij_Tijdstip($A81,J$8,J$11))+(0.75*L$18*FLOOR(L$20,0.05)*0.9*L$35*L$38*o_Isol_Bij_Tijdstip($A81,J$8,J$11)) -> 171.909798 | K81: W | N81: =(0.75*N$18*FLOOR(N$20,0.05)*0.9*N$35*N$38*o_Isol_Bij_Tijdstip($A81,N$8,N$11))+(0.75*P$18*FLOOR(P$20,0.05)*0.9*P$35*P$38*o_Isol_Bij_Tijdstip($A81,N$8,N$11)) -> 0 | O81: W | R81: =(0.75*R$18*FLOOR(R$20,0.05)*0.9*R$35*R$38*o_Isol_Bij_Tijdstip($A81,R$8,R$11))+(0.75*T$18*FLOOR(T$20,0.05)*0.9*T$35*T$38*o_Isol_Bij_Tijdstip($A81,R$8,R$11)) -> 0 | S81: W | T81: 256.3920722 | U81: W
A82: 18:00:00 | B82: =(0.75*B$18*FLOOR(B$20,0.05)*0.9*B$35*B$38*o_Isol_Bij_Tijdstip($A82,B$8,B$11))+(0.75*D$18*FLOOR(D$20,0.05)*0.9*D$35*D$38*o_Isol_Bij_Tijdstip($A82,B$8,B$11)) -> 82.77287473 | C82: W | F82: =(0.75*F$18*FLOOR(F$20,0.05)*0.9*F$35*F$38*o_Isol_Bij_Tijdstip($A82,F$8,F$11))+(0.75*H$18*FLOOR(H$20,0.05)*0.9*H$35*H$38*o_Isol_Bij_Tijdstip($A82,F$8,F$11)) -> 0 | G82: W | J82: =(0.75*J$18*FLOOR(J$20,0.05)*0.9*J$35*J$38*o_Isol_Bij_Tijdstip($A82,J$8,J$11))+(0.75*L$18*FLOOR(L$20,0.05)*0.9*L$35*L$38*o_Isol_Bij_Tijdstip($A82,J$8,J$11)) -> 62.98365571 | K82: W | N82: =(0.75*N$18*FLOOR(N$20,0.05)*0.9*N$35*N$38*o_Isol_Bij_Tijdstip($A82,N$8,N$11))+(0.75*P$18*FLOOR(P$20,0.05)*0.9*P$35*P$38*o_Isol_Bij_Tijdstip($A82,N$8,N$11)) -> 0 | O82: W | R82: =(0.75*R$18*FLOOR(R$20,0.05)*0.9*R$35*R$38*o_Isol_Bij_Tijdstip($A82,R$8,R$11))+(0.75*T$18*FLOOR(T$20,0.05)*0.9*T$35*T$38*o_Isol_Bij_Tijdstip($A82,R$8,R$11)) -> 0 | S82: W | T82: 145.7565304 | U82: W
A84: Maatgevende tijdstip | B84: =IF(MAX(T73:T82)=0,"Geen glas aanwezig",_xlfn.XLOOKUP(MAX(T73:T82),T73:T82,A73:A82,"nvt")) -> 14:00:00

Sheet Ruimte 2
A1: RUIMTE 2
A3: Ruimtenaam | B3: Slaap 1
A4: Type verblijfsruimte | B4: Andere verblijfsruimte
A5: Vloeroppervlak verblijfsruimte Avr (gebruiksoppervlak) | B5: 11.8 | C5: m²
B7: Voorzijde woning | F7: Linker zijde woning | J7: Achterzijde woning | N7: Rechter zijde woning | R7: Platdak
A8: Orientatie gevel / dakvlak (Helling > 15°C) | B8: =Invoerblad!$B$17 -> Noord | F8: =o_Orientatie(F9) -> Oost | J8: =o_Orientatie(J9) -> Zuid | N8: =o_Orientatie(N9) -> West | R8: Horizontaal
A9: Orientatiehoek gevel Ƴ | B9: =o_OrientatiehOEK(B8) -> 0 | F9: =IF(B9+90>360,B9+90-360,B9+90) -> 90 | J9: =IF(F9+90>360,F9+90-360,F9+90) -> 180 | N9: =IF(J9+90>360,J9+90-360,J9+90) -> 270
A10: Grenst aan buitenlucht ja of nee | B10: Ja | F10: Nee | J10: Nee | N10: Nee | R10: Nee
A11: Hellingshoek constructie ≥ 15° = hellenddak 90° = gevel | B11: 90 | C11: ° | F11: 90 | G11: ° | J11: 90 | K11: ° | N11: 90 | O11: ° | R11: 10 | S11: °
A12: Type constructie | B12: =o_TypeConstructie(B10,B11) -> Buitengevel | F12: =o_TypeConstructie(F10,F11) -> Woningscheidend | J12: =o_TypeConstructie(J10,J11) -> Woningscheidend | N12: =o_TypeConstructie(N10,N11) -> Woningscheidend | R12: =o_TypeConstructie(R10,R11) -> Woningscheidend
A13: Gevel lengte (binnenwerks) | B13: 5 | C13: m | F13: 5 | G13: m | J13: 5 | K13: m | N13: 5 | O13: m | R13: 0 | S13: m
A14: Gevel hoogte / Dak breedte (binnenwerks) | B14: 3 | C14: m | F14: 3 | G14: m | J14: 3 | K14: m | N14: 3 | O14: m | R14: 0 | S14: m
A15: Constructie oppervlak (binnenwerks) | B15: 9.2 | C15: m² | F15: =F13*F14 -> 15 | G15: m² | J15: =J13*J14 -> 15 | K15: m² | N15: =N13*N14 -> 15 | O15: m² | R15: =R13*R14 -> 0 | S15: m²
A16: Gesloten constructie oppervlak | B16: =MAX(0,B15-B18-D18) -> 7.2 | C16: m² | F16: =MAX(0,F15-F18-H18) -> 13 | G16: m² | J16: =MAX(0,J15-J18-L18) -> 13 | K16: m² | N16: =MAX(0,N15-N18-P18) -> 13 | O16: m² | R16: =MAX(0,R15-R18-T18) -> 0 | S16: m²
B17: Glasvlak type 1 | D17: Glasvlak type 2 | F17: Glasvlak type 1 | H17: Glasvlak type 2 | J17: Glasvlak type 1 | L17: Glasvlak type 2 | N17: Glasvlak type 1 | P17: Glasvlak type 2 | R17: Glasvlak type 1 | T17: Glasvlak type 2
A18: Totaal oppervlak van raamtype Aw,k (inclusief kozijn) | B18: 2 | C18: m² | E18: m² | F18: 2 | G18: m² | I18: m² | J18: 2 | K18: m² | M18: m² | N18: 2 | O18: m² | Q18: m² | S18: m² | U18: m²
A19: Warmtedoorgangscoefficient (U-waarde) van het raam Uw;wi;k | B19: 1.5 | C19: W/m².K | E19: W/m².K | F19: 1.5 | G19: W/m².K | I19: W/m².K | J19: 1.5 | K19: W/m².K | M19: W/m².K | N19: 1.5 | O19: W/m².K | Q19: W/m².K | S19: W/m².K | U19: W/m².K
A20: Zontoetredingsfactor (g_waarde) van het glas Ggl;n;wi;k;C;juli | B20: 0.6 | F20: 0.6 | J20: 0.6 | N20: 0.6
A21: Beschaduwing situatie bij het raamtype | B21: Minimale belemmering | D21: Minimale belemmering | F21: Minimale belemmering | H21: Minimale belemmering | J21: Minimale belemmering | L21: Minimale belemmering | N21: Minimale belemmering | P21: Minimale belemmering | R21: Minimale belemmering | T21: Minimale belemmering
B23: Overstek | D23: Overstek | F23: Overstek | H23: Overstek | J23: Overstek | L23: Overstek | N23: Overstek | P23: Overstek
A24: Hoogte verschil midden raam onderzijde overstek | B24: 0 | C24: m | D24: 0 | E24: m | F24: 0 | G24: m | H24: 0 | I24: m | J24: 0 | K24: m | L24: 0 | M24: m | N24: 0 | O24: m | P24: 0 | Q24: m | R24: 0 | U24: m
A25: Horizontale afstand glas tot eindpunt overstek | B25: 0 | C25: m | D25: 0 | E25: m | F25: 0 | G25: m | H25: 0 | I25: m | J25: 0 | K25: m | L25: 0 | M25: m | N25: 0 | O25: m | P25: 0 | Q25: m | R25: 0 | U25: m
A26: Overstekhoek | B26: =IFERROR(180/PI()*ATAN(B24/B25),0) -> 0 | C26: ° | D26: =IFERROR(180/PI()*ATAN(D24/D25),0) -> 0 | E26: ° | F26: =IFERROR(180/PI()*ATAN(F24/F25),0) -> 0 | G26: ° | H26: =IFERROR(180/PI()*ATAN(H24/H25),0) -> 0 | I26: ° | J26: =IFERROR(180/PI()*ATAN(J24/J25),0) -> 0 | K26: ° | L26: =IFERROR(180/PI()*ATAN(L24/L25),0) -> 0 | M26: ° | N26: =IFERROR(180/PI()*ATAN(N24/N25),0) -> 0 | O26: ° | P26: =IFERROR(180/PI()*ATAN(P24/P25),0) -> 0 | Q26: ° | U26: °
A27: Relatieve hoogte van overstek | B27: =IFERROR(B24/B25,1) -> 1 | D27: =IFERROR(D24/D25,1) -> 1 | F27: =IFERROR(F24/F25,1) -> 1 | H27: =IFERROR(H24/H25,1) -> 1 | J27: =IFERROR(J24/J25,1) -> 1 | L27: =IFERROR(L24/L25,1) -> 1 | N27: =IFERROR(N24/N25,1) -> 1 | P27: =IFERROR(P24/P25,1) -> 1
B29: Zijbelemmering | D29: Zijbelemmering | F29: Zijbelemmering | H29: Zijbelemmering | J29: Zijbelemmering | L29: Zijbelemmering | N29: Zijbelemmering | P29: Zijbelemmering
A30: Positie zijbelemmering irt zichtveld (naar buitengericht) | B30: Links | D30: Links | F30: Links | H30: Links | J30: Links | L30: Links | N30: Links | P30: Links
A31: Horizontale afstand midden raam verste punt belemmering | B31: 0 | C31: m | D31: 0 | E31: m | G31: m | I31: m | K31: m | L31: 1 | M31: m | O31: m | Q31: m | U31: m
A32: Horizontale breedte glas tot eindpunt belemmering | B32: 0 | C32: m | D32: 0 | E32: m | G32: m | I32: m | K32: m | M32: m | O32: m | Q32: m | U32: m
A33: Relatieve breedte van de zijbelemmering bb | B33: =IFERROR(B31/B32,999) -> 999 | D33: =IFERROR(D31/D32,999) -> 999 | F33: =IFERROR(F31/F32,999) -> 999 | H33: =IFERROR(H31/H32,999) -> 999 | J33: =IFERROR(J31/J32,999) -> 999 | L33: =IFERROR(L31/L32,999) -> 999 | N33: =IFERROR(N31/N32,999) -> 999 | P33: =IFERROR(P31/P32,999) -> 999
A35: De beschaduwingsreductiefactor Fsh;obst;wi;k;juli | B35: =IFERROR(o_Beschaduwingreductie(B21,B8,B27,B30,B33,B11),1) -> 1 | D35: =IFERROR(o_Beschaduwingreductie(D21,B8,D27,D30,D33,B11),1) -> 1 | F35: =IFERROR(o_Beschaduwingreductie(F21,F8,F27,F30,F33,F11),1) -> 1 | H35: =IFERROR(o_Beschaduwingreductie(H21,F8,H27,H30,H33,F11),1) -> 1 | J35: =IFERROR(o_Beschaduwingreductie(J21,J8,J27,J30,J33,J11),1) -> 1 | L35: =IFERROR(o_Beschaduwingreductie(L21,J8,L27,L30,L33,J11),1) -> 1 | N35: =IFERROR(o_Beschaduwingreductie(N21,N8,N27,N30,N33,N11),1) -> 1 | P35: =IFERROR(o_Beschaduwingreductie(P21,N8,P27,P30,P33,N11),1) -> 1 | R35: =o_Beschaduwingreductie(R21,R8,R27,R30,R33,R11) -> 1 | T35: =o_Beschaduwingreductie(T21,R8,T27,T30,T33,R11) -> 1
A37: Type zonwering | B37: Geen zonwering | D37: Geen zonwering | F37: Geen zonwering | H37: Geen zonwering | J37: Geen zonwering | L37: Geen zonwering | N37: Geen zonwering | P37: Geen zonwering | R37: Geen zonwering | T37: Geen zonwering
A38: De reductiefactor voor zonwering Fc;wi;k | B38: =o_Zonweringreductie(B37,B8) -> 1 | D38: =o_Zonweringreductie(D37,B8) -> 1 | F38: =o_Zonweringreductie(F37,F8) -> 1 | H38: =o_Zonweringreductie(H37,F8) -> 1 | J38: =o_Zonweringreductie(J37,J8) -> 1 | L38: =o_Zonweringreductie(L37,J8) -> 1 | N38: =o_Zonweringreductie(N37,N8) -> 1 | P38: =o_Zonweringreductie(P37,N8) -> 1 | R38: =o_Zonweringreductie(R37,R8) -> 1 | T38: =o_Zonweringreductie(T37,R8) -> 1
A39: Totaal opvallende zonnestraling van het raam Isol;wi;k;juli | B39: =IF(B10="Nee",0,o_Isol_Bij_Tijdstip($B$52,B8,B11)) -> 143.7398809 | C39: W/m² | D39: =IF(B10="Nee",0,o_Isol_Bij_Tijdstip($B$52,B8,B11)) -> 143.7398809 | E39: W/m² | F39: =IF(F10="Nee",0,o_Isol_Bij_Tijdstip($B$52,F8,F11)) -> 0 | G39: W/m² | H39: =IF(F10="Nee",0,o_Isol_Bij_Tijdstip($B$52,F8,F11)) -> 0 | I39: W/m² | J39: =IF(J10="Nee",0,o_Isol_Bij_Tijdstip($B$52,J8,J11)) -> 0 | K39: W/m² | L39: =IF(J10="Nee",0,o_Isol_Bij_Tijdstip($B$52,J8,J11)) -> 0 | M39: W/m² | N39: =IF(N10="Nee",0,o_Isol_Bij_Tijdstip($B$52,N8,N11)) -> 0 | O39: W/m² | P39: =IF(N10="Nee",0,o_Isol_Bij_Tijdstip($B$52,N8,N11)) -> 0 | Q39: W/m² | R39: =IF(R10="Nee",0,o_Isol_Bij_Tijdstip($B$52,R8,R11)) -> 0 | S39: W/m² | T39: =IF(R10="Nee",0,o_Isol_Bij_Tijdstip($B$52,R8,R11)) -> 0 | U39: W/m²
A41: Tijdstip maximale koellastbijdrage tmax;zi | B41: =VALUE(o_Tijdstip_Isol_Max_Orientatie(B8,B11)) -> 15:00:00 | F41: =VALUE(o_Tijdstip_Isol_Max_Orientatie(F8,F11)) -> 09:00:00 | J41: =VALUE(o_Tijdstip_Isol_Max_Orientatie(J8,J11)) -> 14:00:00 | N41: =VALUE(o_Tijdstip_Isol_Max_Orientatie(N8,N11)) -> 18:00:00 | R41: =o_Tijdstip_Isol_Max_Orientatie(R8,R11) -> 16:00:00
A42: Buitenluchttemperatuur op tijdstip max koellast Θe | B42: =o_maxTemp(VALUE(B41)) -> 29.8 | E42: °C | F42: =o_maxTemp(VALUE(F41)) -> 24.7 | I42: °C | J42: =o_maxTemp(VALUE(J41)) -> 29.9 | M42: °C | N42: =o_maxTemp(VALUE(N41)) -> 30.1 | Q42: °C | R42: =o_maxTemp(VALUE(R41)) -> 30.4
A44: Glasopppervlak | B44: =IF(B10="Ja",B18+D18,0) -> 2 | C44: m² | F44: =IF(F10="Ja",F18+H18,0) -> 0 | G44: m² | J44: =IF(J10="Ja",J18+L18,0) -> 0 | K44: m² | N44: =IF(N10="Ja",N18+P18,0) -> 0 | O44: m² | R44: =IF(R10="Ja",R18+T18,0) -> 0 | S44: m²
A45: Uitwendigescheidingsconstructie niet op Noord? | B45: =IF(B10="Ja",IF(B8="Noord",FALSE,TRUE),FALSE) -> FALSE | F45: =IF(F10="Ja",IF(F8="Noord",FALSE,TRUE),FALSE) -> FALSE | J45: =IF(J10="Ja",IF(J8="Noord",FALSE,TRUE),FALSE) -> FALSE | N45: =IF(N10="Ja",IF(N8="Noord",FALSE,TRUE),FALSE) -> FALSE | R45: =IF(R10="Ja",IF(R8="Noord",FALSE,TRUE),FALSE) -> FALSE
A46: De enige uitwendigescheidingscontructie? | B46: =IF(AND(B45=TRUE,COUNTIF($B$45:$R$45,TRUE)=1),TRUE,FALSE) -> FALSE | F46: =IF(AND(F45=TRUE,COUNTIF($B$45:$R$45,TRUE)=1),TRUE,FALSE) -> FALSE | J46: =IF(AND(J45=TRUE,COUNTIF($B$45:$R$45,TRUE)=1),TRUE,FALSE) -> FALSE | N46: =IF(AND(N45=TRUE,COUNTIF($B$45:$R$45,TRUE)=1),TRUE,FALSE) -> FALSE | R46: =IF(AND(R45=TRUE,COUNTIF($B$45:$R$45,TRUE)=1),TRUE,FALSE) -> FALSE
A47: Totaal glasoppervlak | B47: =IF(B8<>"Noord",B44,0) -> 0 | C47: m² | F47: =IF(F8<>"Noord",F44,0) -> 0 | G47: m² | J47: =IF(J8<>"Noord",J44,0) -> 0 | K47: m² | N47: =IF(N8<>"Noord",N44,0) -> 0 | O47: m² | R47: =R44 -> 0 | S47: m²
A48: Grootste glasoppervlak | B48: =IF(AND(B45,B47=MAX($B$47:$R$47)),TRUE,FALSE) -> FALSE | F48: =IF(AND(F45,F47=MAX($B$47:$R$47)),TRUE,FALSE) -> FALSE | J48: =IF(AND(J45,J47=MAX($B$47:$R$47)),TRUE,FALSE) -> FALSE | N48: =IF(AND(N45,N47=MAX($B$47:$R$47)),TRUE,FALSE) -> FALSE | R48: =IF(AND(R45,R47=MAX($B$47:$R$47)),TRUE,FALSE) -> FALSE
A49: Dakvlak maatgevend? | B49: =IF(AND(B11<90,B15>3*(B18+D18),Invoerblad!$B$25<65),TRUE,FALSE) -> FALSE | F49: =IF(AND(F11<90,F15>3*(F18+H18),Invoerblad!$B$25<65),TRUE,FALSE) -> FALSE | J49: =IF(AND(J11<90,J15>3*(J18+L18),Invoerblad!$B$25<65),TRUE,FALSE) -> FALSE | N49: =IF(AND(N11<90,N15>3*(N18+P18),Invoerblad!$B$25<65),TRUE,FALSE) -> FALSE | R49: =IF(AND(R11<90,R15>3*(R18+T18),Invoerblad!$B$25<65),TRUE,FALSE) -> FALSE
A50: is er een maatgevend dakoppervlak | B50: =IF(COUNTIF($B$49:$R$49,TRUE)>0,TRUE,FALSE) -> FALSE | F50: =IF(COUNTIF($B$49:$R$49,TRUE)>0,TRUE,FALSE) -> FALSE | J50: =IF(COUNTIF($B$49:$R$49,TRUE)>0,TRUE,FALSE) -> FALSE | N50: =IF(COUNTIF($B$49:$R$49,TRUE)>0,TRUE,FALSE) -> FALSE | R50: =IF(COUNTIF($B$49:$R$49,TRUE)>0,TRUE,FALSE) -> FALSE
A51: Maatgevende tijdstip | B51: =IF(OR(B46,AND(B45,B50,B49),AND(B45,B48,NOT(B50))),B41) -> FALSE | F51: =IF(OR(F46,AND(F45,F50,F49),AND(F45,F48,NOT(F50))),F41) -> FALSE | J51: =IF(OR(J46,AND(J45,J50,J49),AND(J45,J48,NOT(J50))),J41) -> FALSE | N51: =IF(OR(N46,AND(N45,N50,N49),AND(N45,N48,NOT(N50))),N41) -> FALSE | R51: =IF(OR(R46,AND(R45,R50,R49),AND(R45,R48,NOT(R50))),R41) -> FALSE
A52: Maatgevende tijdstip tmax;zi | B52: =IFERROR(B84,"geen glas ingevoerd") -> 15:00:00
A53: Buitenluchttemperatuur op tijdstip max koellast Θe | B53: =o_maxTemp(VALUE(B52)) -> 29.8 | C53: °C
A55: Koellastbijdrage transmissie transparante delen Ptr;gl;vr;zi | B55: =IF(B10="Nee",0,B16*Invoerblad!$B$16) -> 15.84 | E55: W | F55: =IF(F10="Nee",0,F16*Invoerblad!$B$16) -> 0 | I55: W | J55: =IF(J10="Nee",0,J16*Invoerblad!$B$16) -> 0 | M55: W | N55: =IF(N10="Nee",0,N16*Invoerblad!$B$16) -> 0 | Q55: W | R55: =IF(R10="Nee",0,R16*Invoerblad!$B$16) -> 0 | U55: W
A56: Koellastbijdrage zoninstraling transparante delen Psol;vr;zi | B56: =(0.75*B18*FLOOR(B20,0.05)*0.9*B35*B38*B39)+(0.75*D18*FLOOR(D20,0.05)*0.9*D35*D38*D39) -> 116.4293035 | E56: W | F56: =(0.75*F18*FLOOR(F20,0.05)*0.9*F35*F38*F39)+(0.75*H18*FLOOR(H20,0.05)*0.9*H35*H38*H39) -> 0 | I56: W | J56: =(0.75*J18*FLOOR(J20,0.05)*0.9*J35*J38*J39)+(0.75*L18*FLOOR(L20,0.05)*0.9*L35*L38*L39) -> 0 | M56: W | N56: =(0.75*N18*FLOOR(N20,0.05)*0.9*N35*N38*N39)+(0.75*P18*FLOOR(P20,0.05)*0.9*P35*P38*P39) -> 0 | Q56: W | R56: =(0.75*R18*FLOOR(R20,0.05)*0.9*R35*R38*R39)+(0.75*T18*FLOOR(T20,0.05)*0.9*T35*T38*T39) -> 0 | U56: W
A57: Koellastbijdrage transmissie transparante delen Ptr;gl;vr;zi | B57: =IF(B10="Nee",0,IFERROR(B18*B19*($B$53-24),0)+IFERROR(D18*D19*($B$53-24),0)) -> 17.4 | E57: W | F57: =IF(F10="Nee",0,IFERROR(F18*F19*($B$53-24),0)+IFERROR(H18*H19*($B$53-24),0)) -> 0 | I57: W | J57: =IF(J10="Nee",0,IFERROR(J18*J19*($B$53-24),0)+IFERROR(L18*L19*($B$53-24),0)) -> 0 | M57: W | N57: =IF(N10="Nee",0,IFERROR(N18*N19*($B$53-24),0)+IFERROR(P18*P19*($B$53-24),0)) -> 0 | Q57: W | R57: =IF(R10="Nee",0,IFERROR(R18*R19*($B$53-24),0)+IFERROR(T18*T19*($B$53-24),0)) -> 0 | U57: W
A58: Totaal koellastbijdrage per gevel | B58: =SUM(B55:D57) -> 149.6693035 | E58: W | F58: =SUM(F55:H57) -> 0 | I58: W | J58: =SUM(J55:L57) -> 0 | M58: W | N58: =SUM(N55:P57) -> 0 | Q58: W | R58: =SUM(R55:R57) -> 0 | U58: W
A60: Koellast door interne warmtelast Pint;calc;woon/overig;zi | B60: =IF(B5=0,0,IF(B4="Woonvertrek",2*Invoerblad!$B$40*B5,Invoerblad!$B$40*B5)) -> 38.55398936 | E60: W
A61: Koellast door buitenluchttoetreding Pv;calc;vr;zi | B61: =IFERROR(MAX((SUM(Invoerblad!$B$28:$B$30)/3600*1.205*1005*(B53-24))/SUM(Invoerblad!$B$47:$T$47)*B5,0),0) -> 51.99925589 | C61: =IFERROR(MAX(SUM(C57:C59)/3600*1.205*1005*(C60-24),0),0) -> 0 | D61: =IFERROR(MAX(SUM(D57:D59)/3600*1.205*1005*(D60-24),0),0) -> 0 | E61: W
A63: Totaal koellastbijdrage | B63: =IFERROR(SUM(B58:T58)+B60+B61,0) -> 240.2225487 | E63: W
A64: Koelbehoefte verblijfsruimte | B64: =IFERROR(B63/B5,0) -> 20.35784311 | E64: W/m²
A67: Onderstaande tabellen worden verborgen in de uiteindelijke versie. De tabellen dienen om vast te stellen welk tijdstip tot de hoogste zonbelasting leidt
A69: Isol max voor de orientatie | B69: =o_Isol_Max_Orientatie(B8,B11) -> 143.7398809 | C69: W/m² | F69: =o_Isol_Max_Orientatie(F8,F11) -> 845.3277237 | G69: W/m² | J69: =o_Isol_Max_Orientatie(J8,J11) -> 740.0583625 | K69: W/m² | N69: =o_Isol_Max_Orientatie(N8,N11) -> 741.7580929 | O69: W/m² | R69: =o_Isol_Max_Orientatie(R8,R11) -> 914.160926 | S69: W/m²
A70: Tijdstip bij Isol max bij orientatie | B70: =VALUE(o_Tijdstip_Isol_Max_Orientatie(B8,B11)) -> 15:00:00 | F70: =VALUE(o_Tijdstip_Isol_Max_Orientatie(F8,F11)) -> 09:00:00 | J70: =VALUE(o_Tijdstip_Isol_Max_Orientatie(J8,J11)) -> 14:00:00 | N70: =VALUE(o_Tijdstip_Isol_Max_Orientatie(N8,N11)) -> 18:00:00 | R70: =VALUE(o_Tijdstip_Isol_Max_Orientatie(R8,R11)) -> 16:00:00
A72: Koellastbijdrage zoninstraling transparante delen Psol;vr;zi
A73: 09:00:00 | B73: =(0.75*B$18*FLOOR(B$20,0.05)*0.9*B$35*B$38*o_Isol_Bij_Tijdstip($A73,B$8,B$11))+(0.75*D$18*FLOOR(D$20,0.05)*0.9*D$35*D$38*o_Isol_Bij_Tijdstip($A73,B$8,B$11)) -> 97.89852213 | C73: W | F73: =(0.75*F$18*FLOOR(F$20,0.05)*0.9*F$35*F$38*o_Isol_Bij_Tijdstip($A73,F$8,F$11))+(0.75*H$18*FLOOR(H$20,0.05)*0.9*H$35*H$38*o_Isol_Bij_Tijdstip($A73,F$8,F$11)) -> 684.7154562 | G73: W | J73: =(0.75*J$18*FLOOR(J$20,0.05)*0.9*J$35*J$38*o_Isol_Bij_Tijdstip($A73,J$8,J$11))+(0.75*L$18*FLOOR(L$20,0.05)*0.9*L$35*L$38*o_Isol_Bij_Tijdstip($A73,J$8,J$11)) -> 182.5182503 | K73: W | N73: =(0.75*N$18*FLOOR(N$20,0.05)*0.9*N$35*N$38*o_Isol_Bij_Tijdstip($A73,N$8,N$11))+(0.75*P$18*FLOOR(P$20,0.05)*0.9*P$35*P$38*o_Isol_Bij_Tijdstip($A73,N$8,N$11)) -> 97.89852213 | O73: W | R73: =(0.75*R$18*FLOOR(R$20,0.05)*0.9*R$35*R$38*o_Isol_Bij_Tijdstip($A73,R$8,R$11))+(0.75*T$18*FLOOR(T$20,0.05)*0.9*T$35*T$38*o_Isol_Bij_Tijdstip($A73,R$8,R$11)) -> 0 | S73: W | T73: =B73+F73+J73+N73+R73 -> 1063.030751 | U73: W
A74: 10:00:00 | B74: =(0.75*B$18*FLOOR(B$20,0.05)*0.9*B$35*B$38*o_Isol_Bij_Tijdstip($A74,B$8,B$11))+(0.75*D$18*FLOOR(D$20,0.05)*0.9*D$35*D$38*o_Isol_Bij_Tijdstip($A74,B$8,B$11)) -> 109.4411146 | C74: W | F74: =(0.75*F$18*FLOOR(F$20,0.05)*0.9*F$35*F$38*o_Isol_Bij_Tijdstip($A74,F$8,F$11))+(0.75*H$18*FLOOR(H$20,0.05)*0.9*H$35*H$38*o_Isol_Bij_Tijdstip($A74,F$8,F$11)) -> 656.2932322 | G74: W | J74: =(0.75*J$18*FLOOR(J$20,0.05)*0.9*J$35*J$38*o_Isol_Bij_Tijdstip($A74,J$8,J$11))+(0.75*L$18*FLOOR(L$20,0.05)*0.9*L$35*L$38*o_Isol_Bij_Tijdstip($A74,J$8,J$11)) -> 332.3465774 | K74: W | N74: =(0.75*N$18*FLOOR(N$20,0.05)*0.9*N$35*N$38*o_Isol_Bij_Tijdstip($A74,N$8,N$11))+(0.75*P$18*FLOOR(P$20,0.05)*0.9*P$35*P$38*o_Isol_Bij_Tijdstip($A74,N$8,N$11)) -> 109.4411146 | O74: W | R74: =(0.75*R$18*FLOOR(R$20,0.05)*0.9*R$35*R$38*o_Isol_Bij_Tijdstip($A74,R$8,R$11))+(0.75*T$18*FLOOR(T$20,0.05)*0.9*T$35*T$38*o_Isol_Bij_Tijdstip($A74,R$8,R$11)) -> 0 | S74: W | T74: 1207.522039 | U74: W
A75: 11:00:00 | B75: =(0.75*B$18*FLOOR(B$20,0.05)*0.9*B$35*B$38*o_Isol_Bij_Tijdstip($A75,B$8,B$11))+(0.75*D$18*FLOOR(D$20,0.05)*0.9*D$35*D$38*o_Isol_Bij_Tijdstip($A75,B$8,B$11)) -> 110.3499518 | C75: W | F75: =(0.75*F$18*FLOOR(F$20,0.05)*0.9*F$35*F$38*o_Isol_Bij_Tijdstip($A75,F$8,F$11))+(0.75*H$18*FLOOR(H$20,0.05)*0.9*H$35*H$38*o_Isol_Bij_Tijdstip($A75,F$8,F$11)) -> 505.3895243 | G75: W | J75: =(0.75*J$18*FLOOR(J$20,0.05)*0.9*J$35*J$38*o_Isol_Bij_Tijdstip($A75,J$8,J$11))+(0.75*L$18*FLOOR(L$20,0.05)*0.9*L$35*L$38*o_Isol_Bij_Tijdstip($A75,J$8,J$11)) -> 429.498212 | K75: W | N75: =(0.75*N$18*FLOOR(N$20,0.05)*0.9*N$35*N$38*o_Isol_Bij_Tijdstip($A75,N$8,N$11))+(0.75*P$18*FLOOR(P$20,0.05)*0.9*P$35*P$38*o_Isol_Bij_Tijdstip($A75,N$8,N$11)) -> 110.3499518 | O75: W | R75: =(0.75*R$18*FLOOR(R$20,0.05)*0.9*R$35*R$38*o_Isol_Bij_Tijdstip($A75,R$8,R$11))+(0.75*T$18*FLOOR(T$20,0.05)*0.9*T$35*T$38*o_Isol_Bij_Tijdstip($A75,R$8,R$11)) -> 0 | S75: W | T75: 1155.58764 | U75: W
A76: 12:00:00 | B76: =(0.75*B$18*FLOOR(B$20,0.05)*0.9*B$35*B$38*o_Isol_Bij_Tijdstip($A76,B$8,B$11))+(0.75*D$18*FLOOR(D$20,0.05)*0.9*D$35*D$38*o_Isol_Bij_Tijdstip($A76,B$8,B$11)) -> 114.4013363 | C76: W | F76: =(0.75*F$18*FLOOR(F$20,0.05)*0.9*F$35*F$38*o_Isol_Bij_Tijdstip($A76,F$8,F$11))+(0.75*H$18*FLOOR(H$20,0.05)*0.9*H$35*H$38*o_Isol_Bij_Tijdstip($A76,F$8,F$11)) -> 334.3547129 | G76: W | J76: =(0.75*J$18*FLOOR(J$20,0.05)*0.9*J$35*J$38*o_Isol_Bij_Tijdstip($A76,J$8,J$11))+(0.75*L$18*FLOOR(L$20,0.05)*0.9*L$35*L$38*o_Isol_Bij_Tijdstip($A76,J$8,J$11)) -> 503.3946318 | K76: W | N76: =(0.75*N$18*FLOOR(N$20,0.05)*0.9*N$35*N$38*o_Isol_Bij_Tijdstip($A76,N$8,N$11))+(0.75*P$18*FLOOR(P$20,0.05)*0.9*P$35*P$38*o_Isol_Bij_Tijdstip($A76,N$8,N$11)) -> 114.4013363 | O76: W | R76: =(0.75*R$18*FLOOR(R$20,0.05)*0.9*R$35*R$38*o_Isol_Bij_Tijdstip($A76,R$8,R$11))+(0.75*T$18*FLOOR(T$20,0.05)*0.9*T$35*T$38*o_Isol_Bij_Tijdstip($A76,R$8,R$11)) -> 0 | S76: W | T76: 1066.552017 | U76: W
A77: 13:00:00 | B77: =(0.75*B$18*FLOOR(B$20,0.05)*0.9*B$35*B$38*o_Isol_Bij_Tijdstip($A77,B$8,B$11))+(0.75*D$18*FLOOR(D$20,0.05)*0.9*D$35*D$38*o_Isol_Bij_Tijdstip($A77,B$8,B$11)) -> 114.2368839 | C77: W | F77: =(0.75*F$18*FLOOR(F$20,0.05)*0.9*F$35*F$38*o_Isol_Bij_Tijdstip($A77,F$8,F$11))+(0.75*H$18*FLOOR(H$20,0.05)*0.9*H$35*H$38*o_Isol_Bij_Tijdstip($A77,F$8,F$11)) -> 137.779393 | G77: W | J77: =(0.75*J$18*FLOOR(J$20,0.05)*0.9*J$35*J$38*o_Isol_Bij_Tijdstip($A77,J$8,J$11))+(0.75*L$18*FLOOR(L$20,0.05)*0.9*L$35*L$38*o_Isol_Bij_Tijdstip($A77,J$8,J$11)) -> 529.1886721 | K77: W | N77: =(0.75*N$18*FLOOR(N$20,0.05)*0.9*N$35*N$38*o_Isol_Bij_Tijdstip($A77,N$8,N$11))+(0.75*P$18*FLOOR(P$20,0.05)*0.9*P$35*P$38*o_Isol_Bij_Tijdstip($A77,N$8,N$11)) -> 114.2368839 | O77: W | R77: =(0.75*R$18*FLOOR(R$20,0.05)*0.9*R$35*R$38*o_Isol_Bij_Tijdstip($A77,R$8,R$11))+(0.75*T$18*FLOOR(T$20,0.05)*0.9*T$35*T$38*o_Isol_Bij_Tijdstip($A77,R$8,R$11)) -> 0 | S77: W | T77: 895.4418329 | U77: W
A78: 14:00:00 | B78: =(0.75*B$18*FLOOR(B$20,0.05)*0.9*B$35*B$38*o_Isol_Bij_Tijdstip($A78,B$8,B$11))+(0.75*D$18*FLOOR(D$20,0.05)*0.9*D$35*D$38*o_Isol_Bij_Tijdstip($A78,B$8,B$11)) -> 115.5776956 | C78: W | F78: =(0.75*F$18*FLOOR(F$20,0.05)*0.9*F$35*F$38*o_Isol_Bij_Tijdstip($A78,F$8,F$11))+(0.75*H$18*FLOOR(H$20,0.05)*0.9*H$35*H$38*o_Isol_Bij_Tijdstip($A78,F$8,F$11)) -> 115.5776956 | G78: W | J78: =(0.75*J$18*FLOOR(J$20,0.05)*0.9*J$35*J$38*o_Isol_Bij_Tijdstip($A78,J$8,J$11))+(0.75*L$18*FLOOR(L$20,0.05)*0.9*L$35*L$38*o_Isol_Bij_Tijdstip($A78,J$8,J$11)) -> 599.4472737 | K78: W | N78: =(0.75*N$18*FLOOR(N$20,0.05)*0.9*N$35*N$38*o_Isol_Bij_Tijdstip($A78,N$8,N$11))+(0.75*P$18*FLOOR(P$20,0.05)*0.9*P$35*P$38*o_Isol_Bij_Tijdstip($A78,N$8,N$11)) -> 306.0543672 | O78: W | R78: =(0.75*R$18*FLOOR(R$20,0.05)*0.9*R$35*R$38*o_Isol_Bij_Tijdstip($A78,R$8,R$11))+(0.75*T$18*FLOOR(T$20,0.05)*0.9*T$35*T$38*o_Isol_Bij_Tijdstip($A78,R$8,R$11)) -> 0 | S78: W | T78: 1136.657032 | U78: W
A79: 15:00:00 | B79: =(0.75*B$18*FLOOR(B$20,0.05)*0.9*B$35*B$38*o_Isol_Bij_Tijdstip($A79,B$8,B$11))+(0.75*D$18*FLOOR(D$20,0.05)*0.9*D$35*D$38*o_Isol_Bij_Tijdstip($A79,B$8,B$11)) -> 116.4293035 | C79: W | F79: =(0.75*F$18*FLOOR(F$20,0.05)*0.9*F$35*F$38*o_Isol_Bij_Tijdstip($A79,F$8,F$11))+(0.75*H$18*FLOOR(H$20,0.05)*0.9*H$35*H$38*o_Isol_Bij_Tijdstip($A79,F$8,F$11)) -> 116.4293035 | G79: W | J79: =(0.75*J$18*FLOOR(J$20,0.05)*0.9*J$35*J$38*o_Isol_Bij_Tijdstip($A79,J$8,J$11))+(0.75*L$18*FLOOR(L$20,0.05)*0.9*L$35*L$38*o_Isol_Bij_Tijdstip($A79,J$8,J$11)) -> 482.9753489 | K79: W | N79: =(0.75*N$18*FLOOR(N$20,0.05)*0.9*N$35*N$38*o_Isol_Bij_Tijdstip($A79,N$8,N$11))+(0.75*P$18*FLOOR(P$20,0.05)*0.9*P$35*P$38*o_Isol_Bij_Tijdstip($A79,N$8,N$11)) -> 500.2654379 | O79: W | R79: =(0.75*R$18*FLOOR(R$20,0.05)*0.9*R$35*R$38*o_Isol_Bij_Tijdstip($A79,R$8,R$11))+(0.75*T$18*FLOOR(T$20,0.05)*0.9*T$35*T$38*o_Isol_Bij_Tijdstip($A79,R$8,R$11)) -> 0 | S79: W | T79: 1216.099394 | U79: W
A80: 16:00:00 | B80: =(0.75*B$18*FLOOR(B$20,0.05)*0.9*B$35*B$38*o_Isol_Bij_Tijdstip($A80,B$8,B$11))+(0.75*D$18*FLOOR(D$20,0.05)*0.9*D$35*D$38*o_Isol_Bij_Tijdstip($A80,B$8,B$11)) -> 95.5717822 | C80: W | F80: =(0.75*F$18*FLOOR(F$20,0.05)*0.9*F$35*F$38*o_Isol_Bij_Tijdstip($A80,F$8,F$11))+(0.75*H$18*FLOOR(H$20,0.05)*0.9*H$35*H$38*o_Isol_Bij_Tijdstip($A80,F$8,F$11)) -> 95.5717822 | G80: W | J80: =(0.75*J$18*FLOOR(J$20,0.05)*0.9*J$35*J$38*o_Isol_Bij_Tijdstip($A80,J$8,J$11))+(0.75*L$18*FLOOR(L$20,0.05)*0.9*L$35*L$38*o_Isol_Bij_Tijdstip($A80,J$8,J$11)) -> 306.9738361 | K80: W | N80: =(0.75*N$18*FLOOR(N$20,0.05)*0.9*N$35*N$38*o_Isol_Bij_Tijdstip($A80,N$8,N$11))+(0.75*P$18*FLOOR(P$20,0.05)*0.9*P$35*P$38*o_Isol_Bij_Tijdstip($A80,N$8,N$11)) -> 543.7764341 | O80: W | R80: =(0.75*R$18*FLOOR(R$20,0.05)*0.9*R$35*R$38*o_Isol_Bij_Tijdstip($A80,R$8,R$11))+(0.75*T$18*FLOOR(T$20,0.05)*0.9*T$35*T$38*o_Isol_Bij_Tijdstip($A80,R$8,R$11)) -> 0 | S80: W | T80: 1041.893835 | U80: W
A81: 17:00:00 | B81: =(0.75*B$18*FLOOR(B$20,0.05)*0.9*B$35*B$38*o_Isol_Bij_Tijdstip($A81,B$8,B$11))+(0.75*D$18*FLOOR(D$20,0.05)*0.9*D$35*D$38*o_Isol_Bij_Tijdstip($A81,B$8,B$11)) -> 84.48227413 | C81: W | F81: =(0.75*F$18*FLOOR(F$20,0.05)*0.9*F$35*F$38*o_Isol_Bij_Tijdstip($A81,F$8,F$11))+(0.75*H$18*FLOOR(H$20,0.05)*0.9*H$35*H$38*o_Isol_Bij_Tijdstip($A81,F$8,F$11)) -> 84.48227413 | G81: W | J81: =(0.75*J$18*FLOOR(J$20,0.05)*0.9*J$35*J$38*o_Isol_Bij_Tijdstip($A81,J$8,J$11))+(0.75*L$18*FLOOR(L$20,0.05)*0.9*L$35*L$38*o_Isol_Bij_Tijdstip($A81,J$8,J$11)) -> 185.8484303 | K81: W | N81: =(0.75*N$18*FLOOR(N$20,0.05)*0.9*N$35*N$38*o_Isol_Bij_Tijdstip($A81,N$8,N$11))+(0.75*P$18*FLOOR(P$20,0.05)*0.9*P$35*P$38*o_Isol_Bij_Tijdstip($A81,N$8,N$11)) -> 574.5740713 | O81: W | R81: =(0.75*R$18*FLOOR(R$20,0.05)*0.9*R$35*R$38*o_Isol_Bij_Tijdstip($A81,R$8,R$11))+(0.75*T$18*FLOOR(T$20,0.05)*0.9*T$35*T$38*o_Isol_Bij_Tijdstip($A81,R$8,R$11)) -> 0 | S81: W | T81: 929.3870499 | U81: W
A82: 18:00:00 | B82: =(0.75*B$18*FLOOR(B$20,0.05)*0.9*B$35*B$38*o_Isol_Bij_Tijdstip($A82,B$8,B$11))+(0.75*D$18*FLOOR(D$20,0.05)*0.9*D$35*D$38*o_Isol_Bij_Tijdstip($A82,B$8,B$11)) -> 82.77287473 | C82: W | F82: =(0.75*F$18*FLOOR(F$20,0.05)*0.9*F$35*F$38*o_Isol_Bij_Tijdstip($A82,F$8,F$11))+(0.75*H$18*FLOOR(H$20,0.05)*0.9*H$35*H$38*o_Isol_Bij_Tijdstip($A82,F$8,F$11)) -> 68.09043861 | G82: W | J82: =(0.75*J$18*FLOOR(J$20,0.05)*0.9*J$35*J$38*o_Isol_Bij_Tijdstip($A82,J$8,J$11))+(0.75*L$18*FLOOR(L$20,0.05)*0.9*L$35*L$38*o_Isol_Bij_Tijdstip($A82,J$8,J$11)) -> 68.09043861 | K82: W | N82: =(0.75*N$18*FLOOR(N$20,0.05)*0.9*N$35*N$38*o_Isol_Bij_Tijdstip($A82,N$8,N$11))+(0.75*P$18*FLOOR(P$20,0.05)*0.9*P$35*P$38*o_Isol_Bij_Tijdstip($A82,N$8,N$11)) -> 600.8240553 | O82: W | R82: =(0.75*R$18*FLOOR(R$20,0.05)*0.9*R$35*R$38*o_Isol_Bij_Tijdstip($A82,R$8,R$11))+(0.75*T$18*FLOOR(T$20,0.05)*0.9*T$35*T$38*o_Isol_Bij_Tijdstip($A82,R$8,R$11)) -> 0 | S82: W | T82: 819.7778072 | U82: W
A84: Maatgevende tijdstip | B84: =IF(MAX(T73:T82)=0,"Geen glas aanwezig",_xlfn.XLOOKUP(MAX(T73:T82),T73:T82,A73:A82,"nvt")) -> 15:00:00

Sheet Ruimte 3
A1: RUIMTE 3
A3: Ruimtenaam | B3: slaap 2
A4: Type verblijfsruimte | B4: Andere verblijfsruimte
A5: Vloeroppervlak verblijfsruimte Avr (gebruiksoppervlak) | B5: 15.6 | C5: m²
B7: Voorzijde woning | F7: Linker zijde woning | J7: Achterzijde woning | N7: Rechter zijde woning | R7: Platdak
A8: Orientatie gevel / dakvlak (Helling > 15°C) | B8: =Invoerblad!$B$17 -> Noord | F8: =o_Orientatie(F9) -> Oost | J8: =o_Orientatie(J9) -> Zuid | N8: =o_Orientatie(N9) -> West | R8: Horizontaal
A9: Orientatiehoek gevel Ƴ | B9: =o_OrientatiehOEK(B8) -> 0 | F9: =IF(B9+90>360,B9+90-360,B9+90) -> 90 | J9: =IF(F9+90>360,F9+90-360,F9+90) -> 180 | N9: =IF(J9+90>360,J9+90-360,J9+90) -> 270
A10: Grenst aan buitenlucht ja of nee | B10: Nee | F10: Nee | J10: Ja | N10: Nee | R10: Nee
A11: Hellingshoek constructie ≥ 15° = hellenddak 90° = gevel | B11: 90 | C11: ° | F11: 90 | G11: ° | J11: 90 | K11: ° | N11: 90 | O11: ° | R11: 10 | S11: °
A12: Type constructie | B12: =o_TypeConstructie(B10,B11) -> Woningscheidend | F12: =o_TypeConstructie(F10,F11) -> Woningscheidend | J12: =o_TypeConstructie(J10,J11) -> Buitengevel | N12: =o_TypeConstructie(N10,N11) -> Woningscheidend | R12: =o_TypeConstructie(R10,R11) -> Woningscheidend
A13: Gevel lengte (binnenwerks) | B13: 0 | C13: m | F13: 0 | G13: m | J13: 0 | K13: m | N13: 0 | O13: m | R13: 0 | S13: m
A14: Gevel hoogte / Dak breedte (binnenwerks) | B14: 0 | C14: m | F14: 0 | G14: m | J14: 0 | K14: m | N14: 0 | O14: m | R14: 0 | S14: m
A15: Constructie oppervlak (binnenwerks) | B15: =B13*B14 -> 0 | C15: m² | F15: =F13*F14 -> 0 | G15: m² | J15: 9.2 | K15: m² | N15: =N13*N14 -> 0 | O15: m² | R15: =R13*R14 -> 0 | S15: m²
A16: Gesloten constructie oppervlak | B16: =MAX(0,B15-B18-D18) -> 0 | C16: m² | F16: =MAX(0,F15-F18-H18) -> 0 | G16: m² | J16: =MAX(0,J15-J18-L18) -> 7.3 | K16: m² | N16: =MAX(0,N15-N18-P18) -> 0 | O16: m² | R16: =MAX(0,R15-R18-T18) -> 0 | S16: m²
B17: Glasvlak type 1 | D17: Glasvlak type 2 | F17: Glasvlak type 1 | H17: Glasvlak type 2 | J17: Glasvlak type 1 | L17: Glasvlak type 2 | N17: Glasvlak type 1 | P17: Glasvlak type 2 | R17: Glasvlak type 1 | T17: Glasvlak type 2
A18: Totaal oppervlak van raamtype Aw,k (inclusief kozijn) | C18: m² | E18: m² | G18: m² | I18: m² | J18: 1.9 | K18: m² | M18: m² | O18: m² | Q18: m² | S18: m² | U18: m²
A19: Warmtedoorgangscoefficient (U-waarde) van het raam Uw;wi;k | C19: W/m².K | E19: W/m².K | G19: W/m².K | I19: W/m².K | J19: 1.5 | K19: W/m².K | M19: W/m².K | O19: W/m².K | Q19: W/m².K | S19: W/m².K | U19: W/m².K
A20: Zontoetredingsfactor (g_waarde) van het glas Ggl;n;wi;k;C;juli | J20: 0.6
A21: Beschaduwing situatie bij het raamtype | B21: Minimale belemmering | D21: Minimale belemmering | F21: Minimale belemmering | H21: Minimale belemmering | J21: Minimale belemmering | L21: Minimale belemmering | N21: Minimale belemmering | P21: Minimale belemmering | R21: Minimale belemmering | T21: Minimale belemmering
B23: Overstek | D23: Overstek | F23: Overstek | H23: Overstek | J23: Overstek | L23: Overstek | N23: Overstek | P23: Overstek
A24: Hoogte verschil midden raam onderzijde overstek | B24: 0 | C24: m | D24: 0 | E24: m | F24: 0 | G24: m | H24: 0 | I24: m | J24: 0 | K24: m | L24: 0 | M24: m | N24: 0 | O24: m | P24: 0 | Q24: m | R24: 0 | U24: m
A25: Horizontale afstand glas tot eindpunt overstek | B25: 0 | C25: m | D25: 0 | E25: m | F25: 0 | G25: m | H25: 0 | I25: m | J25: 0 | K25: m | L25: 0 | M25: m | N25: 0 | O25: m | P25: 0 | Q25: m | R25: 0 | U25: m
A26: Overstekhoek | B26: =IFERROR(180/PI()*ATAN(B24/B25),0) -> 0 | C26: ° | D26: =IFERROR(180/PI()*ATAN(D24/D25),0) -> 0 | E26: ° | F26: =IFERROR(180/PI()*ATAN(F24/F25),0) -> 0 | G26: ° | H26: =IFERROR(180/PI()*ATAN(H24/H25),0) -> 0 | I26: ° | J26: =IFERROR(180/PI()*ATAN(J24/J25),0) -> 0 | K26: ° | L26: =IFERROR(180/PI()*ATAN(L24/L25),0) -> 0 | M26: ° | N26: =IFERROR(180/PI()*ATAN(N24/N25),0) -> 0 | O26: ° | P26: =IFERROR(180/PI()*ATAN(P24/P25),0) -> 0 | Q26: ° | U26: °
A27: Relatieve hoogte van overstek | B27: =IFERROR(B24/B25,1) -> 1 | D27: =IFERROR(D24/D25,1) -> 1 | F27: =IFERROR(F24/F25,1) -> 1 | H27: =IFERROR(H24/H25,1) -> 1 | J27: =IFERROR(J24/J25,1) -> 1 | L27: =IFERROR(L24/L25,1) -> 1 | N27: =IFERROR(N24/N25,1) -> 1 | P27: =IFERROR(P24/P25,1) -> 1
B29: Zijbelemmering | D29: Zijbelemmering | F29: Zijbelemmering | H29: Zijbelemmering | J29: Zijbelemmering | L29: Zijbelemmering | N29: Zijbelemmering | P29: Zijbelemmering
A30: Positie zijbelemmering irt zichtveld (naar buitengericht) | B30: Links | D30: Links | F30: Links | H30: Links | J30: Links | L30: Links | N30: Links | P30: Links
A31: Horizontale afstand midden raam verste punt belemmering | B31: 0 | C31: m | D31: 0 | E31: m | G31: m | I31: m | K31: m | L31: 1 | M31: m | O31: m | Q31: m | U31: m
A32: Horizontale breedte glas tot eindpunt belemmering | B32: 0 | C32: m | D32: 0 | E32: m | G32: m | I32: m | K32: m | M32: m | O32: m | Q32: m | U32: m
A33: Relatieve breedte van de zijbelemmering bb | B33: =IFERROR(B31/B32,999) -> 999 | D33: =IFERROR(D31/D32,999) -> 999 | F33: =IFERROR(F31/F32,999) -> 999 | H33: =IFERROR(H31/H32,999) -> 999 | J33: =IFERROR(J31/J32,999) -> 999 | L33: =IFERROR(L31/L32,999) -> 999 | N33: =IFERROR(N31/N32,999) -> 999 | P33: =IFERROR(P31/P32,999) -> 999
A35: De beschaduwingsreductiefactor Fsh;obst;wi;k;juli | B35: =IFERROR(o_Beschaduwingreductie(B21,B8,B27,B30,B33,B11),1) -> 1 | D35: =IFERROR(o_Beschaduwingreductie(D21,B8,D27,D30,D33,B11),1) -> 1 | F35: =IFERROR(o_Beschaduwingreductie(F21,F8,F27,F30,F33,F11),1) -> 1 | H35: =IFERROR(o_Beschaduwingreductie(H21,F8,H27,H30,H33,F11),1) -> 1 | J35: =IFERROR(o_Beschaduwingreductie(J21,J8,J27,J30,J33,J11),1) -> 1 | L35: =IFERROR(o_Beschaduwingreductie(L21,J8,L27,L30,L33,J11),1) -> 1 | N35: =IFERROR(o_Beschaduwingreductie(N21,N8,N27,N30,N33,N11),1) -> 1 | P35: =IFERROR(o_Beschaduwingreductie(P21,N8,P27,P30,P33,N11),1) -> 1 | R35: =o_Beschaduwingreductie(R21,R8,R27,R30,R33,R11) -> 1 | T35: =o_Beschaduwingreductie(T21,R8,T27,T30,T33,R11) -> 1
A37: Type zonwering | B37: Geen zonwering | D37: Geen zonwering | F37: Geen zonwering | H37: Geen zonwering | J37: Screen (wit) | L37: Geen zonwering | N37: Geen zonwering | P37: Geen zonwering | R37: Geen zonwering | T37: Geen zonwering
A38: De reductiefactor voor zonwering Fc;wi;k | B38: =o_Zonweringreductie(B37,B8) -> 1 | D38: =o_Zonweringreductie(D37,B8) -> 1 | F38: =o_Zonweringreductie(F37,F8) -> 1 | H38: =o_Zonweringreductie(H37,F8) -> 1 | J38: =o_Zonweringreductie(J37,J8) -> 0.25 | L38: =o_Zonweringreductie(L37,J8) -> 1 | N38: =o_Zonweringreductie(N37,N8) -> 1 | P38: =o_Zonweringreductie(P37,N8) -> 1 | R38: =o_Zonweringreductie(R37,R8) -> 1 | T38: =o_Zonweringreductie(T37,R8) -> 1
A39: Totaal opvallende zonnestraling van het raam Isol;wi;k;juli | B39: =IF(B10="Nee",0,o_Isol_Bij_Tijdstip($B$52,B8,B11)) -> 0 | C39: W/m² | D39: =IF(B10="Nee",0,o_Isol_Bij_Tijdstip($B$52,B8,B11)) -> 0 | E39: W/m² | F39: =IF(F10="Nee",0,o_Isol_Bij_Tijdstip($B$52,F8,F11)) -> 0 | G39: W/m² | H39: =IF(F10="Nee",0,o_Isol_Bij_Tijdstip($B$52,F8,F11)) -> 0 | I39: W/m² | J39: =IF(J10="Nee",0,o_Isol_Bij_Tijdstip($B$52,J8,J11)) -> 740.0583625 | K39: W/m² | L39: =IF(J10="Nee",0,o_Isol_Bij_Tijdstip($B$52,J8,J11)) -> 740.0583625 | M39: W/m² | N39: =IF(N10="Nee",0,o_Isol_Bij_Tijdstip($B$52,N8,N11)) -> 0 | O39: W/m² | P39: =IF(N10="Nee",0,o_Isol_Bij_Tijdstip($B$52,N8,N11)) -> 0 | Q39: W/m² | R39: =IF(R10="Nee",0,o_Isol_Bij_Tijdstip($B$52,R8,R11)) -> 0 | S39: W/m² | T39: =IF(R10="Nee",0,o_Isol_Bij_Tijdstip($B$52,R8,R11)) -> 0 | U39: W/m²
A41: Tijdstip maximale koellastbijdrage tmax;zi | B41: =VALUE(o_Tijdstip_Isol_Max_Orientatie(B8,B11)) -> 15:00:00 | F41: =VALUE(o_Tijdstip_Isol_Max_Orientatie(F8,F11)) -> 09:00:00 | J41: =VALUE(o_Tijdstip_Isol_Max_Orientatie(J8,J11)) -> 14:00:00 | N41: =VALUE(o_Tijdstip_Isol_Max_Orientatie(N8,N11)) -> 18:00:00 | R41: =o_Tijdstip_Isol_Max_Orientatie(R8,R11) -> 16:00:00
A42: Buitenluchttemperatuur op tijdstip max koellast Θe | B42: =o_maxTemp(VALUE(B41)) -> 29.8 | E42: °C | F42: =o_maxTemp(VALUE(F41)) -> 24.7 | I42: °C | J42: =o_maxTemp(VALUE(J41)) -> 29.9 | M42: °C | N42: =o_maxTemp(VALUE(N41)) -> 30.1 | Q42: °C | R42: =o_maxTemp(VALUE(R41)) -> 30.4
A44: Glasopppervlak | B44: =IF(B10="Ja",B18+D18,0) -> 0 | C44: m² | F44: =IF(F10="Ja",F18+H18,0) -> 0 | G44: m² | J44: =IF(J10="Ja",J18+L18,0) -> 1.9 | K44: m² | N44: =IF(N10="Ja",N18+P18,0) -> 0 | O44: m² | R44: =IF(R10="Ja",R18+T18,0) -> 0 | S44: m²
A45: Uitwendigescheidingsconstructie niet op Noord? | B45: =IF(B10="Ja",IF(B8="Noord",FALSE,TRUE),FALSE) -> FALSE | F45: =IF(F10="Ja",IF(F8="Noord",FALSE,TRUE),FALSE) -> FALSE | J45: =IF(J10="Ja",IF(J8="Noord",FALSE,TRUE),FALSE) -> TRUE | N45: =IF(N10="Ja",IF(N8="Noord",FALSE,TRUE),FALSE) -> FALSE | R45: =IF(R10="Ja",IF(R8="Noord",FALSE,TRUE),FALSE) -> FALSE
A46: De enige uitwendigescheidingscontructie? | B46: =IF(AND(B45=TRUE,COUNTIF($B$45:$R$45,TRUE)=1),TRUE,FALSE) -> FALSE | F46: =IF(AND(F45=TRUE,COUNTIF($B$45:$R$45,TRUE)=1),TRUE,FALSE) -> FALSE | J46: =IF(AND(J45=TRUE,COUNTIF($B$45:$R$45,TRUE)=1),TRUE,FALSE) -> TRUE | N46: =IF(AND(N45=TRUE,COUNTIF($B$45:$R$45,TRUE)=1),TRUE,FALSE) -> FALSE | R46: =IF(AND(R45=TRUE,COUNTIF($B$45:$R$45,TRUE)=1),TRUE,FALSE) -> FALSE
A47: Totaal glasoppervlak | B47: =IF(B8<>"Noord",B44,0) -> 0 | C47: m² | F47: =IF(F8<>"Noord",F44,0) -> 0 | G47: m² | J47: =IF(J8<>"Noord",J44,0) -> 1.9 | K47: m² | N47: =IF(N8<>"Noord",N44,0) -> 0 | O47: m² | R47: =R44 -> 0 | S47: m²
A48: Grootste glasoppervlak | B48: =IF(AND(B45,B47=MAX($B$47:$R$47)),TRUE,FALSE) -> FALSE | F48: =IF(AND(F45,F47=MAX($B$47:$R$47)),TRUE,FALSE) -> FALSE | J48: =IF(AND(J45,J47=MAX($B$47:$R$47)),TRUE,FALSE) -> TRUE | N48: =IF(AND(N45,N47=MAX($B$47:$R$47)),TRUE,FALSE) -> FALSE | R48: =IF(AND(R45,R47=MAX($B$47:$R$47)),TRUE,FALSE) -> FALSE
A49: Dakvlak maatgevend? | B49: =IF(AND(B11<90,B15>3*(B18+D18),Invoerblad!$B$25<65),TRUE,FALSE) -> FALSE | F49: =IF(AND(F11<90,F15>3*(F18+H18),Invoerblad!$B$25<65),TRUE,FALSE) -> FALSE | J49: =IF(AND(J11<90,J15>3*(J18+L18),Invoerblad!$B$25<65),TRUE,FALSE) -> FALSE | N49: =IF(AND(N11<90,N15>3*(N18+P18),Invoerblad!$B$25<65),TRUE,FALSE) -> FALSE | R49: =IF(AND(R11<90,R15>3*(R18+T18),Invoerblad!$B$25<65),TRUE,FALSE) -> FALSE
A50: is er een maatgevend dakoppervlak | B50: =IF(COUNTIF($B$49:$R$49,TRUE)>0,TRUE,FALSE) -> FALSE | F50: =IF(COUNTIF($B$49:$R$49,TRUE)>0,TRUE,FALSE) -> FALSE | J50: =IF(COUNTIF($B$49:$R$49,TRUE)>0,TRUE,FALSE) -> FALSE | N50: =IF(COUNTIF($B$49:$R$49,TRUE)>0,TRUE,FALSE) -> FALSE | R50: =IF(COUNTIF($B$49:$R$49,TRUE)>0,TRUE,FALSE) -> FALSE
A51: Maatgevende tijdstip | B51: =IF(OR(B46,AND(B45,B50,B49),AND(B45,B48,NOT(B50))),B41) -> FALSE | F51: =IF(OR(F46,AND(F45,F50,F49),AND(F45,F48,NOT(F50))),F41) -> FALSE | J51: =IF(OR(J46,AND(J45,J50,J49),AND(J45,J48,NOT(J50))),J41) -> 14:00:00 | N51: =IF(OR(N46,AND(N45,N50,N49),AND(N45,N48,NOT(N50))),N41) -> FALSE | R51: =IF(OR(R46,AND(R45,R50,R49),AND(R45,R48,NOT(R50))),R41) -> FALSE
A52: Maatgevende tijdstip tmax;zi | B52: =IFERROR(B84,"geen glas ingevoerd") -> 14:00:00
A53: Buitenluchttemperatuur op tijdstip max koellast Θe | B53: =o_maxTemp(VALUE(B52)) -> 29.9 | C53: °C
A55: Koellastbijdrage transmissie transparante delen Ptr;gl;vr;zi | B55: =IF(B10="Nee",0,B16*Invoerblad!$B$16) -> 0 | E55: W | F55: =IF(F10="Nee",0,F16*Invoerblad!$B$16) -> 0 | I55: W | J55: =IF(J10="Nee",0,J16*Invoerblad!$B$16) -> 16.06 | M55: W | N55: =IF(N10="Nee",0,N16*Invoerblad!$B$16) -> 0 | Q55: W | R55: =IF(R10="Nee",0,R16*Invoerblad!$B$16) -> 0 | U55: W
A56: Koellastbijdrage zoninstraling transparante delen Psol;vr;zi | B56: =(0.75*B18*FLOOR(B20,0.05)*0.9*B35*B38*B39)+(0.75*D18*FLOOR(D20,0.05)*0.9*D35*D38*D39) -> 0 | E56: W | F56: =(0.75*F18*FLOOR(F20,0.05)*0.9*F35*F38*F39)+(0.75*H18*FLOOR(H20,0.05)*0.9*H35*H38*H39) -> 0 | I56: W | J56: =(0.75*J18*FLOOR(J20,0.05)*0.9*J35*J38*J39)+(0.75*L18*FLOOR(L20,0.05)*0.9*L35*L38*L39) -> 142.3687275 | M56: W | N56: =(0.75*N18*FLOOR(N20,0.05)*0.9*N35*N38*N39)+(0.75*P18*FLOOR(P20,0.05)*0.9*P35*P38*P39) -> 0 | Q56: W | R56: =(0.75*R18*FLOOR(R20,0.05)*0.9*R35*R38*R39)+(0.75*T18*FLOOR(T20,0.05)*0.9*T35*T38*T39) -> 0 | U56: W
A57: Koellastbijdrage transmissie transparante delen Ptr;gl;vr;zi | B57: =IF(B10="Nee",0,IFERROR(B18*B19*($B$53-24),0)+IFERROR(D18*D19*($B$53-24),0)) -> 0 | E57: W | F57: =IF(F10="Nee",0,IFERROR(F18*F19*($B$53-24),0)+IFERROR(H18*H19*($B$53-24),0)) -> 0 | I57: W | J57: =IF(J10="Nee",0,IFERROR(J18*J19*($B$53-24),0)+IFERROR(L18*L19*($B$53-24),0)) -> 16.815 | M57: W | N57: =IF(N10="Nee",0,IFERROR(N18*N19*($B$53-24),0)+IFERROR(P18*P19*($B$53-24),0)) -> 0 | Q57: W | R57: =IF(R10="Nee",0,IFERROR(R18*R19*($B$53-24),0)+IFERROR(T18*T19*($B$53-24),0)) -> 0 | U57: W
A58: Totaal koellastbijdrage per gevel | B58: =SUM(B55:D57) -> 0 | E58: W | F58: =SUM(F55:H57) -> 0 | I58: W | J58: =SUM(J55:L57) -> 175.2437275 | M58: W | N58: =SUM(N55:P57) -> 0 | Q58: W | R58: =SUM(R55:R57) -> 0 | U58: W
A60: Koellast door interne warmtelast Pint;calc;woon/overig;zi | B60: =IF(B5=0,0,IF(B4="Woonvertrek",2*Invoerblad!$B$40*B5,Invoerblad!$B$40*B5)) -> 50.96968085 | E60: W
A61: Koellast door buitenluchttoetreding Pv;calc;vr;zi | B61: =IFERROR(MAX((SUM(Invoerblad!$B$28:$B$30)/3600*1.205*1005*(B53-24))/SUM(Invoerblad!$B$47:$T$47)*B5,0),0) -> 69.93003378 | C61: =IFERROR(MAX(SUM(C57:C59)/3600*1.205*1005*(C60-24),0),0) -> 0 | D61: =IFERROR(MAX(SUM(D57:D59)/3600*1.205*1005*(D60-24),0),0) -> 0 | E61: W
A63: Totaal koellastbijdrage | B63: =IFERROR(SUM(B58:T58)+B60+B61,0) -> 296.1434421 | E63: W
A64: Koelbehoefte verblijfsruimte | B64: =IFERROR(B63/B5,0) -> 18.98355398 | E64: W/m²
A67: Onderstaande tabellen worden verborgen in de uiteindelijke versie. De tabellen dienen om vast te stellen welk tijdstip tot de hoogste zonbelasting leidt
A69: Isol max voor de orientatie | B69: =o_Isol_Max_Orientatie(B8,B11) -> 143.7398809 | C69: W/m² | F69: =o_Isol_Max_Orientatie(F8,F11) -> 845.3277237 | G69: W/m² | J69: =o_Isol_Max_Orientatie(J8,J11) -> 740.0583625 | K69: W/m² | N69: =o_Isol_Max_Orientatie(N8,N11) -> 741.7580929 | O69: W/m² | R69: =o_Isol_Max_Orientatie(R8,R11) -> 914.160926 | S69: W/m²
A70: Tijdstip bij Isol max bij orientatie | B70: =VALUE(o_Tijdstip_Isol_Max_Orientatie(B8,B11)) -> 15:00:00 | F70: =VALUE(o_Tijdstip_Isol_Max_Orientatie(F8,F11)) -> 09:00:00 | J70: =VALUE(o_Tijdstip_Isol_Max_Orientatie(J8,J11)) -> 14:00:00 | N70: =VALUE(o_Tijdstip_Isol_Max_Orientatie(N8,N11)) -> 18:00:00 | R70: =VALUE(o_Tijdstip_Isol_Max_Orientatie(R8,R11)) -> 16:00:00
A72: Koellastbijdrage zoninstraling transparante delen Psol;vr;zi
A73: 09:00:00 | B73: =(0.75*B$18*FLOOR(B$20,0.05)*0.9*B$35*B$38*o_Isol_Bij_Tijdstip($A73,B$8,B$11))+(0.75*D$18*FLOOR(D$20,0.05)*0.9*D$35*D$38*o_Isol_Bij_Tijdstip($A73,B$8,B$11)) -> 0 | C73: W | F73: =(0.75*F$18*FLOOR(F$20,0.05)*0.9*F$35*F$38*o_Isol_Bij_Tijdstip($A73,F$8,F$11))+(0.75*H$18*FLOOR(H$20,0.05)*0.9*H$35*H$38*o_Isol_Bij_Tijdstip($A73,F$8,F$11)) -> 0 | G73: W | J73: =(0.75*J$18*FLOOR(J$20,0.05)*0.9*J$35*J$38*o_Isol_Bij_Tijdstip($A73,J$8,J$11))+(0.75*L$18*FLOOR(L$20,0.05)*0.9*L$35*L$38*o_Isol_Bij_Tijdstip($A73,J$8,J$11)) -> 43.34808445 | K73: W | N73: =(0.75*N$18*FLOOR(N$20,0.05)*0.9*N$35*N$38*o_Isol_Bij_Tijdstip($A73,N$8,N$11))+(0.75*P$18*FLOOR(P$20,0.05)*0.9*P$35*P$38*o_Isol_Bij_Tijdstip($A73,N$8,N$11)) -> 0 | O73: W | R73: =(0.75*R$18*FLOOR(R$20,0.05)*0.9*R$35*R$38*o_Isol_Bij_Tijdstip($A73,R$8,R$11))+(0.75*T$18*FLOOR(T$20,0.05)*0.9*T$35*T$38*o_Isol_Bij_Tijdstip($A73,R$8,R$11)) -> 0 | S73: W | T73: =B73+F73+J73+N73+R73 -> 43.34808445 | U73: W
A74: 10:00:00 | B74: =(0.75*B$18*FLOOR(B$20,0.05)*0.9*B$35*B$38*o_Isol_Bij_Tijdstip($A74,B$8,B$11))+(0.75*D$18*FLOOR(D$20,0.05)*0.9*D$35*D$38*o_Isol_Bij_Tijdstip($A74,B$8,B$11)) -> 0 | C74: W | F74: =(0.75*F$18*FLOOR(F$20,0.05)*0.9*F$35*F$38*o_Isol_Bij_Tijdstip($A74,F$8,F$11))+(0.75*H$18*FLOOR(H$20,0.05)*0.9*H$35*H$38*o_Isol_Bij_Tijdstip($A74,F$8,F$11)) -> 0 | G74: W | J74: =(0.75*J$18*FLOOR(J$20,0.05)*0.9*J$35*J$38*o_Isol_Bij_Tijdstip($A74,J$8,J$11))+(0.75*L$18*FLOOR(L$20,0.05)*0.9*L$35*L$38*o_Isol_Bij_Tijdstip($A74,J$8,J$11)) -> 78.93231214 | K74: W | N74: =(0.75*N$18*FLOOR(N$20,0.05)*0.9*N$35*N$38*o_Isol_Bij_Tijdstip($A74,N$8,N$11))+(0.75*P$18*FLOOR(P$20,0.05)*0.9*P$35*P$38*o_Isol_Bij_Tijdstip($A74,N$8,N$11)) -> 0 | O74: W | R74: =(0.75*R$18*FLOOR(R$20,0.05)*0.9*R$35*R$38*o_Isol_Bij_Tijdstip($A74,R$8,R$11))+(0.75*T$18*FLOOR(T$20,0.05)*0.9*T$35*T$38*o_Isol_Bij_Tijdstip($A74,R$8,R$11)) -> 0 | S74: W | T74: 78.93231214 | U74: W
A75: 11:00:00 | B75: =(0.75*B$18*FLOOR(B$20,0.05)*0.9*B$35*B$38*o_Isol_Bij_Tijdstip($A75,B$8,B$11))+(0.75*D$18*FLOOR(D$20,0.05)*0.9*D$35*D$38*o_Isol_Bij_Tijdstip($A75,B$8,B$11)) -> 0 | C75: W | F75: =(0.75*F$18*FLOOR(F$20,0.05)*0.9*F$35*F$38*o_Isol_Bij_Tijdstip($A75,F$8,F$11))+(0.75*H$18*FLOOR(H$20,0.05)*0.9*H$35*H$38*o_Isol_Bij_Tijdstip($A75,F$8,F$11)) -> 0 | G75: W | J75: =(0.75*J$18*FLOOR(J$20,0.05)*0.9*J$35*J$38*o_Isol_Bij_Tijdstip($A75,J$8,J$11))+(0.75*L$18*FLOOR(L$20,0.05)*0.9*L$35*L$38*o_Isol_Bij_Tijdstip($A75,J$8,J$11)) -> 102.0058253 | K75: W | N75: =(0.75*N$18*FLOOR(N$20,0.05)*0.9*N$35*N$38*o_Isol_Bij_Tijdstip($A75,N$8,N$11))+(0.75*P$18*FLOOR(P$20,0.05)*0.9*P$35*P$38*o_Isol_Bij_Tijdstip($A75,N$8,N$11)) -> 0 | O75: W | R75: =(0.75*R$18*FLOOR(R$20,0.05)*0.9*R$35*R$38*o_Isol_Bij_Tijdstip($A75,R$8,R$11))+(0.75*T$18*FLOOR(T$20,0.05)*0.9*T$35*T$38*o_Isol_Bij_Tijdstip($A75,R$8,R$11)) -> 0 | S75: W | T75: 102.0058253 | U75: W
A76: 12:00:00 | B76: =(0.75*B$18*FLOOR(B$20,0.05)*0.9*B$35*B$38*o_Isol_Bij_Tijdstip($A76,B$8,B$11))+(0.75*D$18*FLOOR(D$20,0.05)*0.9*D$35*D$38*o_Isol_Bij_Tijdstip($A76,B$8,B$11)) -> 0 | C76: W | F76: =(0.75*F$18*FLOOR(F$20,0.05)*0.9*F$35*F$38*o_Isol_Bij_Tijdstip($A76,F$8,F$11))+(0.75*H$18*FLOOR(H$20,0.05)*0.9*H$35*H$38*o_Isol_Bij_Tijdstip($A76,F$8,F$11)) -> 0 | G76: W | J76: =(0.75*J$18*FLOOR(J$20,0.05)*0.9*J$35*J$38*o_Isol_Bij_Tijdstip($A76,J$8,J$11))+(0.75*L$18*FLOOR(L$20,0.05)*0.9*L$35*L$38*o_Isol_Bij_Tijdstip($A76,J$8,J$11)) -> 119.5562251 | K76: W | N76: =(0.75*N$18*FLOOR(N$20,0.05)*0.9*N$35*N$38*o_Isol_Bij_Tijdstip($A76,N$8,N$11))+(0.75*P$18*FLOOR(P$20,0.05)*0.9*P$35*P$38*o_Isol_Bij_Tijdstip($A76,N$8,N$11)) -> 0 | O76: W | R76: =(0.75*R$18*FLOOR(R$20,0.05)*0.9*R$35*R$38*o_Isol_Bij_Tijdstip($A76,R$8,R$11))+(0.75*T$18*FLOOR(T$20,0.05)*0.9*T$35*T$38*o_Isol_Bij_Tijdstip($A76,R$8,R$11)) -> 0 | S76: W | T76: 119.5562251 | U76: W
A77: 13:00:00 | B77: =(0.75*B$18*FLOOR(B$20,0.05)*0.9*B$35*B$38*o_Isol_Bij_Tijdstip($A77,B$8,B$11))+(0.75*D$18*FLOOR(D$20,0.05)*0.9*D$35*D$38*o_Isol_Bij_Tijdstip($A77,B$8,B$11)) -> 0 | C77: W | F77: =(0.75*F$18*FLOOR(F$20,0.05)*0.9*F$35*F$38*o_Isol_Bij_Tijdstip($A77,F$8,F$11))+(0.75*H$18*FLOOR(H$20,0.05)*0.9*H$35*H$38*o_Isol_Bij_Tijdstip($A77,F$8,F$11)) -> 0 | G77: W | J77: =(0.75*J$18*FLOOR(J$20,0.05)*0.9*J$35*J$38*o_Isol_Bij_Tijdstip($A77,J$8,J$11))+(0.75*L$18*FLOOR(L$20,0.05)*0.9*L$35*L$38*o_Isol_Bij_Tijdstip($A77,J$8,J$11)) -> 125.6823096 | K77: W | N77: =(0.75*N$18*FLOOR(N$20,0.05)*0.9*N$35*N$38*o_Isol_Bij_Tijdstip($A77,N$8,N$11))+(0.75*P$18*FLOOR(P$20,0.05)*0.9*P$35*P$38*o_Isol_Bij_Tijdstip($A77,N$8,N$11)) -> 0 | O77: W | R77: =(0.75*R$18*FLOOR(R$20,0.05)*0.9*R$35*R$38*o_Isol_Bij_Tijdstip($A77,R$8,R$11))+(0.75*T$18*FLOOR(T$20,0.05)*0.9*T$35*T$38*o_Isol_Bij_Tijdstip($A77,R$8,R$11)) -> 0 | S77: W | T77: 125.6823096 | U77: W
A78: 14:00:00 | B78: =(0.75*B$18*FLOOR(B$20,0.05)*0.9*B$35*B$38*o_Isol_Bij_Tijdstip($A78,B$8,B$11))+(0.75*D$18*FLOOR(D$20,0.05)*0.9*D$35*D$38*o_Isol_Bij_Tijdstip($A78,B$8,B$11)) -> 0 | C78: W | F78: =(0.75*F$18*FLOOR(F$20,0.05)*0.9*F$35*F$38*o_Isol_Bij_Tijdstip($A78,F$8,F$11))+(0.75*H$18*FLOOR(H$20,0.05)*0.9*H$35*H$38*o_Isol_Bij_Tijdstip($A78,F$8,F$11)) -> 0 | G78: W | J78: =(0.75*J$18*FLOOR(J$20,0.05)*0.9*J$35*J$38*o_Isol_Bij_Tijdstip($A78,J$8,J$11))+(0.75*L$18*FLOOR(L$20,0.05)*0.9*L$35*L$38*o_Isol_Bij_Tijdstip($A78,J$8,J$11)) -> 142.3687275 | K78: W | N78: =(0.75*N$18*FLOOR(N$20,0.05)*0.9*N$35*N$38*o_Isol_Bij_Tijdstip($A78,N$8,N$11))+(0.75*P$18*FLOOR(P$20,0.05)*0.9*P$35*P$38*o_Isol_Bij_Tijdstip($A78,N$8,N$11)) -> 0 | O78: W | R78: =(0.75*R$18*FLOOR(R$20,0.05)*0.9*R$35*R$38*o_Isol_Bij_Tijdstip($A78,R$8,R$11))+(0.75*T$18*FLOOR(T$20,0.05)*0.9*T$35*T$38*o_Isol_Bij_Tijdstip($A78,R$8,R$11)) -> 0 | S78: W | T78: 142.3687275 | U78: W
A79: 15:00:00 | B79: =(0.75*B$18*FLOOR(B$20,0.05)*0.9*B$35*B$38*o_Isol_Bij_Tijdstip($A79,B$8,B$11))+(0.75*D$18*FLOOR(D$20,0.05)*0.9*D$35*D$38*o_Isol_Bij_Tijdstip($A79,B$8,B$11)) -> 0 | C79: W | F79: =(0.75*F$18*FLOOR(F$20,0.05)*0.9*F$35*F$38*o_Isol_Bij_Tijdstip($A79,F$8,F$11))+(0.75*H$18*FLOOR(H$20,0.05)*0.9*H$35*H$38*o_Isol_Bij_Tijdstip($A79,F$8,F$11)) -> 0 | G79: W | J79: =(0.75*J$18*FLOOR(J$20,0.05)*0.9*J$35*J$38*o_Isol_Bij_Tijdstip($A79,J$8,J$11))+(0.75*L$18*FLOOR(L$20,0.05)*0.9*L$35*L$38*o_Isol_Bij_Tijdstip($A79,J$8,J$11)) -> 114.7066454 | K79: W | N79: =(0.75*N$18*FLOOR(N$20,0.05)*0.9*N$35*N$38*o_Isol_Bij_Tijdstip($A79,N$8,N$11))+(0.75*P$18*FLOOR(P$20,0.05)*0.9*P$35*P$38*o_Isol_Bij_Tijdstip($A79,N$8,N$11)) -> 0 | O79: W | R79: =(0.75*R$18*FLOOR(R$20,0.05)*0.9*R$35*R$38*o_Isol_Bij_Tijdstip($A79,R$8,R$11))+(0.75*T$18*FLOOR(T$20,0.05)*0.9*T$35*T$38*o_Isol_Bij_Tijdstip($A79,R$8,R$11)) -> 0 | S79: W | T79: 114.7066454 | U79: W
A80: 16:00:00 | B80: =(0.75*B$18*FLOOR(B$20,0.05)*0.9*B$35*B$38*o_Isol_Bij_Tijdstip($A80,B$8,B$11))+(0.75*D$18*FLOOR(D$20,0.05)*0.9*D$35*D$38*o_Isol_Bij_Tijdstip($A80,B$8,B$11)) -> 0 | C80: W | F80: =(0.75*F$18*FLOOR(F$20,0.05)*0.9*F$35*F$38*o_Isol_Bij_Tijdstip($A80,F$8,F$11))+(0.75*H$18*FLOOR(H$20,0.05)*0.9*H$35*H$38*o_Isol_Bij_Tijdstip($A80,F$8,F$11)) -> 0 | G80: W | J80: =(0.75*J$18*FLOOR(J$20,0.05)*0.9*J$35*J$38*o_Isol_Bij_Tijdstip($A80,J$8,J$11))+(0.75*L$18*FLOOR(L$20,0.05)*0.9*L$35*L$38*o_Isol_Bij_Tijdstip($A80,J$8,J$11)) -> 72.90628607 | K80: W | N80: =(0.75*N$18*FLOOR(N$20,0.05)*0.9*N$35*N$38*o_Isol_Bij_Tijdstip($A80,N$8,N$11))+(0.75*P$18*FLOOR(P$20,0.05)*0.9*P$35*P$38*o_Isol_Bij_Tijdstip($A80,N$8,N$11)) -> 0 | O80: W | R80: =(0.75*R$18*FLOOR(R$20,0.05)*0.9*R$35*R$38*o_Isol_Bij_Tijdstip($A80,R$8,R$11))+(0.75*T$18*FLOOR(T$20,0.05)*0.9*T$35*T$38*o_Isol_Bij_Tijdstip($A80,R$8,R$11)) -> 0 | S80: W | T80: 72.90628607 | U80: W
A81: 17:00:00 | B81: =(0.75*B$18*FLOOR(B$20,0.05)*0.9*B$35*B$38*o_Isol_Bij_Tijdstip($A81,B$8,B$11))+(0.75*D$18*FLOOR(D$20,0.05)*0.9*D$35*D$38*o_Isol_Bij_Tijdstip($A81,B$8,B$11)) -> 0 | C81: W | F81: =(0.75*F$18*FLOOR(F$20,0.05)*0.9*F$35*F$38*o_Isol_Bij_Tijdstip($A81,F$8,F$11))+(0.75*H$18*FLOOR(H$20,0.05)*0.9*H$35*H$38*o_Isol_Bij_Tijdstip($A81,F$8,F$11)) -> 0 | G81: W | J81: =(0.75*J$18*FLOOR(J$20,0.05)*0.9*J$35*J$38*o_Isol_Bij_Tijdstip($A81,J$8,J$11))+(0.75*L$18*FLOOR(L$20,0.05)*0.9*L$35*L$38*o_Isol_Bij_Tijdstip($A81,J$8,J$11)) -> 44.1390022 | K81: W | N81: =(0.75*N$18*FLOOR(N$20,0.05)*0.9*N$35*N$38*o_Isol_Bij_Tijdstip($A81,N$8,N$11))+(0.75*P$18*FLOOR(P$20,0.05)*0.9*P$35*P$38*o_Isol_Bij_Tijdstip($A81,N$8,N$11)) -> 0 | O81: W | R81: =(0.75*R$18*FLOOR(R$20,0.05)*0.9*R$35*R$38*o_Isol_Bij_Tijdstip($A81,R$8,R$11))+(0.75*T$18*FLOOR(T$20,0.05)*0.9*T$35*T$38*o_Isol_Bij_Tijdstip($A81,R$8,R$11)) -> 0 | S81: W | T81: 44.1390022 | U81: W
A82: 18:00:00 | B82: =(0.75*B$18*FLOOR(B$20,0.05)*0.9*B$35*B$38*o_Isol_Bij_Tijdstip($A82,B$8,B$11))+(0.75*D$18*FLOOR(D$20,0.05)*0.9*D$35*D$38*o_Isol_Bij_Tijdstip($A82,B$8,B$11)) -> 0 | C82: W | F82: =(0.75*F$18*FLOOR(F$20,0.05)*0.9*F$35*F$38*o_Isol_Bij_Tijdstip($A82,F$8,F$11))+(0.75*H$18*FLOOR(H$20,0.05)*0.9*H$35*H$38*o_Isol_Bij_Tijdstip($A82,F$8,F$11)) -> 0 | G82: W | J82: =(0.75*J$18*FLOOR(J$20,0.05)*0.9*J$35*J$38*o_Isol_Bij_Tijdstip($A82,J$8,J$11))+(0.75*L$18*FLOOR(L$20,0.05)*0.9*L$35*L$38*o_Isol_Bij_Tijdstip($A82,J$8,J$11)) -> 16.17147917 | K82: W | N82: =(0.75*N$18*FLOOR(N$20,0.05)*0.9*N$35*N$38*o_Isol_Bij_Tijdstip($A82,N$8,N$11))+(0.75*P$18*FLOOR(P$20,0.05)*0.9*P$35*P$38*o_Isol_Bij_Tijdstip($A82,N$8,N$11)) -> 0 | O82: W | R82: =(0.75*R$18*FLOOR(R$20,0.05)*0.9*R$35*R$38*o_Isol_Bij_Tijdstip($A82,R$8,R$11))+(0.75*T$18*FLOOR(T$20,0.05)*0.9*T$35*T$38*o_Isol_Bij_Tijdstip($A82,R$8,R$11)) -> 0 | S82: W | T82: 16.17147917 | U82: W
A84: Maatgevende tijdstip | B84: =IF(MAX(T73:T82)=0,"Geen glas aanwezig",_xlfn.XLOOKUP(MAX(T73:T82),T73:T82,A73:A82,"nvt")) -> 14:00:00

Sheet Ruimte 4
A1: RUIMTE 1
A3: Ruimtenaam | B3: slaap 3
A4: Type verblijfsruimte | B4: Andere verblijfsruimte
A5: Vloeroppervlak verblijfsruimte Avr (gebruiksoppervlak) | B5: 7.3 | C5: m²
B7: Voorzijde woning | F7: Linker zijde woning | J7: Achterzijde woning | N7: Rechter zijde woning | R7: Platdak
A8: Orientatie gevel / dakvlak (Helling > 15°C) | B8: =Invoerblad!$B$17 -> Noord | F8: =o_Orientatie(F9) -> Oost | J8: =o_Orientatie(J9) -> Zuid | N8: =o_Orientatie(N9) -> West | R8: Horizontaal
A9: Orientatiehoek gevel Ƴ | B9: =o_OrientatiehOEK(B8) -> 0 | F9: =IF(B9+90>360,B9+90-360,B9+90) -> 90 | J9: =IF(F9+90>360,F9+90-360,F9+90) -> 180 | N9: =IF(J9+90>360,J9+90-360,J9+90) -> 270
A10: Grenst aan buitenlucht ja of nee | B10: Nee | F10: Nee | J10: Ja | N10: Nee | R10: Nee
A11: Hellingshoek constructie ≥ 15° = hellenddak 90° = gevel | B11: 90 | C11: ° | F11: 90 | G11: ° | J11: 90 | K11: ° | N11: 90 | O11: ° | R11: 10 | S11: °
A12: Type constructie | B12: =o_TypeConstructie(B10,B11) -> Woningscheidend | F12: =o_TypeConstructie(F10,F11) -> Woningscheidend | J12: =o_TypeConstructie(J10,J11) -> Buitengevel | N12: =o_TypeConstructie(N10,N11) -> Woningscheidend | R12: =o_TypeConstructie(R10,R11) -> Woningscheidend
A13: Gevel lengte (binnenwerks) | B13: 0 | C13: m | F13: 0 | G13: m | J13: 0 | K13: m | N13: 0 | O13: m | R13: 0 | S13: m
A14: Gevel hoogte / Dak breedte (binnenwerks) | B14: 0 | C14: m | F14: 0 | G14: m | J14: 0 | K14: m | N14: 0 | O14: m | R14: 0 | S14: m
A15: Constructie oppervlak (binnenwerks) | B15: 0 | C15: m² | F15: =F13*F14 -> 0 | G15: m² | J15: 6.67 | K15: m² | N15: =N13*N14 -> 0 | O15: m² | R15: =R13*R14 -> 0 | S15: m²
A16: Gesloten constructie oppervlak | B16: =MAX(0,B15-B18-D18) -> 0 | C16: m² | F16: =MAX(0,F15-F18-H18) -> 0 | G16: m² | J16: =MAX(0,J15-J18-L18) -> 4.77 | K16: m² | N16: =MAX(0,N15-N18-P18) -> 0 | O16: m² | R16: =MAX(0,R15-R18-T18) -> 0 | S16: m²
B17: Glasvlak type 1 | D17: Glasvlak type 2 | F17: Glasvlak type 1 | H17: Glasvlak type 2 | J17: Glasvlak type 1 | L17: Glasvlak type 2 | N17: Glasvlak type 1 | P17: Glasvlak type 2 | R17: Glasvlak type 1 | T17: Glasvlak type 2
A18: Totaal oppervlak van raamtype Aw,k (inclusief kozijn) | C18: m² | E18: m² | G18: m² | I18: m² | J18: 1.9 | K18: m² | M18: m² | O18: m² | Q18: m² | S18: m² | U18: m²
A19: Warmtedoorgangscoefficient (U-waarde) van het raam Uw;wi;k | C19: W/m².K | E19: W/m².K | G19: W/m².K | I19: W/m².K | J19: 1.5 | K19: W/m².K | M19: W/m².K | O19: W/m².K | Q19: W/m².K | S19: W/m².K | U19: W/m².K
A20: Zontoetredingsfactor (g_waarde) van het glas Ggl;n;wi;k;C;juli | J20: 0.6
A21: Beschaduwing situatie bij het raamtype | B21: Minimale belemmering | D21: Minimale belemmering | F21: Minimale belemmering | H21: Minimale belemmering | J21: Minimale belemmering | L21: Minimale belemmering | N21: Minimale belemmering | P21: Minimale belemmering | R21: Minimale belemmering | T21: Minimale belemmering
B23: Overstek | D23: Overstek | F23: Overstek | H23: Overstek | J23: Overstek | L23: Overstek | N23: Overstek | P23: Overstek
A24: Hoogte verschil midden raam onderzijde overstek | B24: 0 | C24: m | D24: 0 | E24: m | F24: 0 | G24: m | H24: 0 | I24: m | J24: 0 | K24: m | L24: 0 | M24: m | N24: 0 | O24: m | P24: 0 | Q24: m | R24: 0 | U24: m
A25: Horizontale afstand glas tot eindpunt overstek | B25: 0 | C25: m | D25: 0 | E25: m | F25: 0 | G25: m | H25: 0 | I25: m | J25: 0 | K25: m | L25: 0 | M25: m | N25: 0 | O25: m | P25: 0 | Q25: m | R25: 0 | U25: m
A26: Overstekhoek | B26: =IFERROR(180/PI()*ATAN(B24/B25),0) -> 0 | C26: ° | D26: =IFERROR(180/PI()*ATAN(D24/D25),0) -> 0 | E26: ° | F26: =IFERROR(180/PI()*ATAN(F24/F25),0) -> 0 | G26: ° | H26: =IFERROR(180/PI()*ATAN(H24/H25),0) -> 0 | I26: ° | J26: =IFERROR(180/PI()*ATAN(J24/J25),0) -> 0 | K26: ° | L26: =IFERROR(180/PI()*ATAN(L24/L25),0) -> 0 | M26: ° | N26: =IFERROR(180/PI()*ATAN(N24/N25),0) -> 0 | O26: ° | P26: =IFERROR(180/PI()*ATAN(P24/P25),0) -> 0 | Q26: ° | U26: °
A27: Relatieve hoogte van overstek | B27: =IFERROR(B24/B25,1) -> 1 | D27: =IFERROR(D24/D25,1) -> 1 | F27: =IFERROR(F24/F25,1) -> 1 | H27: =IFERROR(H24/H25,1) -> 1 | J27: =IFERROR(J24/J25,1) -> 1 | L27: =IFERROR(L24/L25,1) -> 1 | N27: =IFERROR(N24/N25,1) -> 1 | P27: =IFERROR(P24/P25,1) -> 1
B29: Zijbelemmering | D29: Zijbelemmering | F29: Zijbelemmering | H29: Zijbelemmering | J29: Zijbelemmering | L29: Zijbelemmering | N29: Zijbelemmering | P29: Zijbelemmering
A30: Positie zijbelemmering irt zichtveld (naar buitengericht) | B30: Links | D30: Links | F30: Links | H30: Links | J30: Links | L30: Links | N30: Links | P30: Links
A31: Horizontale afstand midden raam verste punt belemmering | B31: 0 | C31: m | D31: 0 | E31: m | G31: m | I31: m | K31: m | L31: 1 | M31: m | O31: m | Q31: m | U31: m
A32: Horizontale breedte glas tot eindpunt belemmering | B32: 0 | C32: m | D32: 0 | E32: m | G32: m | I32: m | K32: m | M32: m | O32: m | Q32: m | U32: m
A33: Relatieve breedte van de zijbelemmering bb | B33: =IFERROR(B31/B32,999) -> 999 | D33: =IFERROR(D31/D32,999) -> 999 | F33: =IFERROR(F31/F32,999) -> 999 | H33: =IFERROR(H31/H32,999) -> 999 | J33: =IFERROR(J31/J32,999) -> 999 | L33: =IFERROR(L31/L32,999) -> 999 | N33: =IFERROR(N31/N32,999) -> 999 | P33: =IFERROR(P31/P32,999) -> 999
A35: De beschaduwingsreductiefactor Fsh;obst;wi;k;juli | B35: =IFERROR(o_Beschaduwingreductie(B21,B8,B27,B30,B33,B11),1) -> 1 | D35: =IFERROR(o_Beschaduwingreductie(D21,B8,D27,D30,D33,B11),1) -> 1 | F35: =IFERROR(o_Beschaduwingreductie(F21,F8,F27,F30,F33,F11),1) -> 1 | H35: =IFERROR(o_Beschaduwingreductie(H21,F8,H27,H30,H33,F11),1) -> 1 | J35: =IFERROR(o_Beschaduwingreductie(J21,J8,J27,J30,J33,J11),1) -> 1 | L35: =IFERROR(o_Beschaduwingreductie(L21,J8,L27,L30,L33,J11),1) -> 1 | N35: =IFERROR(o_Beschaduwingreductie(N21,N8,N27,N30,N33,N11),1) -> 1 | P35: =IFERROR(o_Beschaduwingreductie(P21,N8,P27,P30,P33,N11),1) -> 1 | R35: =o_Beschaduwingreductie(R21,R8,R27,R30,R33,R11) -> 1 | T35: =o_Beschaduwingreductie(T21,R8,T27,T30,T33,R11) -> 1
A37: Type zonwering | B37: Geen zonwering | D37: Geen zonwering | F37: Geen zonwering | H37: Geen zonwering | J37: Screen (wit) | L37: Geen zonwering | N37: Geen zonwering | P37: Geen zonwering | R37: Geen zonwering | T37: Geen zonwering
A38: De reductiefactor voor zonwering Fc;wi;k | B38: =o_Zonweringreductie(B37,B8) -> 1 | D38: =o_Zonweringreductie(D37,B8) -> 1 | F38: =o_Zonweringreductie(F37,F8) -> 1 | H38: =o_Zonweringreductie(H37,F8) -> 1 | J38: =o_Zonweringreductie(J37,J8) -> 0.25 | L38: =o_Zonweringreductie(L37,J8) -> 1 | N38: =o_Zonweringreductie(N37,N8) -> 1 | P38: =o_Zonweringreductie(P37,N8) -> 1 | R38: =o_Zonweringreductie(R37,R8) -> 1 | T38: =o_Zonweringreductie(T37,R8) -> 1
A39: Totaal opvallende zonnestraling van het raam Isol;wi;k;juli | B39: =IF(B10="Nee",0,o_Isol_Bij_Tijdstip($B$52,B8,B11)) -> 0 | C39: W/m² | D39: =IF(B10="Nee",0,o_Isol_Bij_Tijdstip($B$52,B8,B11)) -> 0 | E39: W/m² | F39: =IF(F10="Nee",0,o_Isol_Bij_Tijdstip($B$52,F8,F11)) -> 0 | G39: W/m² | H39: =IF(F10="Nee",0,o_Isol_Bij_Tijdstip($B$52,F8,F11)) -> 0 | I39: W/m² | J39: =IF(J10="Nee",0,o_Isol_Bij_Tijdstip($B$52,J8,J11)) -> 740.0583625 | K39: W/m² | L39: =IF(J10="Nee",0,o_Isol_Bij_Tijdstip($B$52,J8,J11)) -> 740.0583625 | M39: W/m² | N39: =IF(N10="Nee",0,o_Isol_Bij_Tijdstip($B$52,N8,N11)) -> 0 | O39: W/m² | P39: =IF(N10="Nee",0,o_Isol_Bij_Tijdstip($B$52,N8,N11)) -> 0 | Q39: W/m² | R39: =IF(R10="Nee",0,o_Isol_Bij_Tijdstip($B$52,R8,R11)) -> 0 | S39: W/m² | T39: =IF(R10="Nee",0,o_Isol_Bij_Tijdstip($B$52,R8,R11)) -> 0 | U39: W/m²
A41: Tijdstip maximale koellastbijdrage tmax;zi | B41: =VALUE(o_Tijdstip_Isol_Max_Orientatie(B8,B11)) -> 15:00:00 | F41: =VALUE(o_Tijdstip_Isol_Max_Orientatie(F8,F11)) -> 09:00:00 | J41: =VALUE(o_Tijdstip_Isol_Max_Orientatie(J8,J11)) -> 14:00:00 | N41: =VALUE(o_Tijdstip_Isol_Max_Orientatie(N8,N11)) -> 18:00:00 | R41: =o_Tijdstip_Isol_Max_Orientatie(R8,R11) -> 16:00:00
A42: Buitenluchttemperatuur op tijdstip max koellast Θe | B42: =o_maxTemp(VALUE(B41)) -> 29.8 | E42: °C | F42: =o_maxTemp(VALUE(F41)) -> 24.7 | I42: °C | J42: =o_maxTemp(VALUE(J41)) -> 29.9 | M42: °C | N42: =o_maxTemp(VALUE(N41)) -> 30.1 | Q42: °C | R42: =o_maxTemp(VALUE(R41)) -> 30.4
A44: Glasopppervlak | B44: =IF(B10="Ja",B18+D18,0) -> 0 | C44: m² | F44: =IF(F10="Ja",F18+H18,0) -> 0 | G44: m² | J44: =IF(J10="Ja",J18+L18,0) -> 1.9 | K44: m² | N44: =IF(N10="Ja",N18+P18,0) -> 0 | O44: m² | R44: =IF(R10="Ja",R18+T18,0) -> 0 | S44: m²
A45: Uitwendigescheidingsconstructie niet op Noord? | B45: =IF(B10="Ja",IF(B8="Noord",FALSE,TRUE),FALSE) -> FALSE | F45: =IF(F10="Ja",IF(F8="Noord",FALSE,TRUE),FALSE) -> FALSE | J45: =IF(J10="Ja",IF(J8="Noord",FALSE,TRUE),FALSE) -> TRUE | N45: =IF(N10="Ja",IF(N8="Noord",FALSE,TRUE),FALSE) -> FALSE | R45: =IF(R10="Ja",IF(R8="Noord",FALSE,TRUE),FALSE) -> FALSE
A46: De enige uitwendigescheidingscontructie? | B46: =IF(AND(B45=TRUE,COUNTIF($B$45:$R$45,TRUE)=1),TRUE,FALSE) -> FALSE | F46: =IF(AND(F45=TRUE,COUNTIF($B$45:$R$45,TRUE)=1),TRUE,FALSE) -> FALSE | J46: =IF(AND(J45=TRUE,COUNTIF($B$45:$R$45,TRUE)=1),TRUE,FALSE) -> TRUE | N46: =IF(AND(N45=TRUE,COUNTIF($B$45:$R$45,TRUE)=1),TRUE,FALSE) -> FALSE | R46: =IF(AND(R45=TRUE,COUNTIF($B$45:$R$45,TRUE)=1),TRUE,FALSE) -> FALSE
A47: Totaal glasoppervlak | B47: =IF(B8<>"Noord",B44,0) -> 0 | C47: m² | F47: =IF(F8<>"Noord",F44,0) -> 0 | G47: m² | J47: =IF(J8<>"Noord",J44,0) -> 1.9 | K47: m² | N47: =IF(N8<>"Noord",N44,0) -> 0 | O47: m² | R47: =R44 -> 0 | S47: m²
A48: Grootste glasoppervlak | B48: =IF(AND(B45,B47=MAX($B$47:$R$47)),TRUE,FALSE) -> FALSE | F48: =IF(AND(F45,F47=MAX($B$47:$R$47)),TRUE,FALSE) -> FALSE | J48: =IF(AND(J45,J47=MAX($B$47:$R$47)),TRUE,FALSE) -> TRUE | N48: =IF(AND(N45,N47=MAX($B$47:$R$47)),TRUE,FALSE) -> FALSE | R48: =IF(AND(R45,R47=MAX($B$47:$R$47)),TRUE,FALSE) -> FALSE
A49: Dakvlak maatgevend? | B49: =IF(AND(B11<90,B15>3*(B18+D18),Invoerblad!$B$25<65),TRUE,FALSE) -> FALSE | F49: =IF(AND(F11<90,F15>3*(F18+H18),Invoerblad!$B$25<65),TRUE,FALSE) -> FALSE | J49: =IF(AND(J11<90,J15>3*(J18+L18),Invoerblad!$B$25<65),TRUE,FALSE) -> FALSE | N49: =IF(AND(N11<90,N15>3*(N18+P18),Invoerblad!$B$25<65),TRUE,FALSE) -> FALSE | R49: =IF(AND(R11<90,R15>3*(R18+T18),Invoerblad!$B$25<65),TRUE,FALSE) -> FALSE
A50: is er een maatgevend dakoppervlak | B50: =IF(COUNTIF($B$49:$R$49,TRUE)>0,TRUE,FALSE) -> FALSE | F50: =IF(COUNTIF($B$49:$R$49,TRUE)>0,TRUE,FALSE) -> FALSE | J50: =IF(COUNTIF($B$49:$R$49,TRUE)>0,TRUE,FALSE) -> FALSE | N50: =IF(COUNTIF($B$49:$R$49,TRUE)>0,TRUE,FALSE) -> FALSE | R50: =IF(COUNTIF($B$49:$R$49,TRUE)>0,TRUE,FALSE) -> FALSE
A51: Maatgevende tijdstip | B51: =IF(OR(B46,AND(B45,B50,B49),AND(B45,B48,NOT(B50))),B41) -> FALSE | F51: =IF(OR(F46,AND(F45,F50,F49),AND(F45,F48,NOT(F50))),F41) -> FALSE | J51: =IF(OR(J46,AND(J45,J50,J49),AND(J45,J48,NOT(J50))),J41) -> 14:00:00 | N51: =IF(OR(N46,AND(N45,N50,N49),AND(N45,N48,NOT(N50))),N41) -> FALSE | R51: =IF(OR(R46,AND(R45,R50,R49),AND(R45,R48,NOT(R50))),R41) -> FALSE
A52: Maatgevende tijdstip tmax;zi | B52: =IFERROR(B84,"geen glas ingevoerd") -> 14:00:00
A53: Buitenluchttemperatuur op tijdstip max koellast Θe | B53: =o_maxTemp(VALUE(B52)) -> 29.9 | C53: °C
A55: Koellastbijdrage transmissie transparante delen Ptr;gl;vr;zi | B55: =IF(B10="Nee",0,B16*Invoerblad!$B$16) -> 0 | E55: W | F55: =IF(F10="Nee",0,F16*Invoerblad!$B$16) -> 0 | I55: W | J55: =IF(J10="Nee",0,J16*Invoerblad!$B$16) -> 10.494 | M55: W | N55: =IF(N10="Nee",0,N16*Invoerblad!$B$16) -> 0 | Q55: W | R55: =IF(R10="Nee",0,R16*Invoerblad!$B$16) -> 0 | U55: W
A56: Koellastbijdrage zoninstraling transparante delen Psol;vr;zi | B56: =(0.75*B18*FLOOR(B20,0.05)*0.9*B35*B38*B39)+(0.75*D18*FLOOR(D20,0.05)*0.9*D35*D38*D39) -> 0 | E56: W | F56: =(0.75*F18*FLOOR(F20,0.05)*0.9*F35*F38*F39)+(0.75*H18*FLOOR(H20,0.05)*0.9*H35*H38*H39) -> 0 | I56: W | J56: =(0.75*J18*FLOOR(J20,0.05)*0.9*J35*J38*J39)+(0.75*L18*FLOOR(L20,0.05)*0.9*L35*L38*L39) -> 142.3687275 | M56: W | N56: =(0.75*N18*FLOOR(N20,0.05)*0.9*N35*N38*N39)+(0.75*P18*FLOOR(P20,0.05)*0.9*P35*P38*P39) -> 0 | Q56: W | R56: =(0.75*R18*FLOOR(R20,0.05)*0.9*R35*R38*R39)+(0.75*T18*FLOOR(T20,0.05)*0.9*T35*T38*T39) -> 0 | U56: W
A57: Koellastbijdrage transmissie transparante delen Ptr;gl;vr;zi | B57: =IF(B10="Nee",0,IFERROR(B18*B19*($B$53-24),0)+IFERROR(D18*D19*($B$53-24),0)) -> 0 | E57: W | F57: =IF(F10="Nee",0,IFERROR(F18*F19*($B$53-24),0)+IFERROR(H18*H19*($B$53-24),0)) -> 0 | I57: W | J57: =IF(J10="Nee",0,IFERROR(J18*J19*($B$53-24),0)+IFERROR(L18*L19*($B$53-24),0)) -> 16.815 | M57: W | N57: =IF(N10="Nee",0,IFERROR(N18*N19*($B$53-24),0)+IFERROR(P18*P19*($B$53-24),0)) -> 0 | Q57: W | R57: =IF(R10="Nee",0,IFERROR(R18*R19*($B$53-24),0)+IFERROR(T18*T19*($B$53-24),0)) -> 0 | U57: W
A58: Totaal koellastbijdrage per gevel | B58: =SUM(B55:D57) -> 0 | E58: W | F58: =SUM(F55:H57) -> 0 | I58: W | J58: =SUM(J55:L57) -> 169.6777275 | M58: W | N58: =SUM(N55:P57) -> 0 | Q58: W | R58: =SUM(R55:R57) -> 0 | U58: W
A60: Koellast door interne warmtelast Pint;calc;woon/overig;zi | B60: =IF(B5=0,0,IF(B4="Woonvertrek",2*Invoerblad!$B$40*B5,Invoerblad!$B$40*B5)) -> 23.85119681 | E60: W
A61: Koellast door buitenluchttoetreding Pv;calc;vr;zi | B61: =IFERROR(MAX((SUM(Invoerblad!$B$28:$B$30)/3600*1.205*1005*(B53-24))/SUM(Invoerblad!$B$47:$T$47)*B5,0),0) -> 32.72366965 | C61: =IFERROR(MAX(SUM(C57:C59)/3600*1.205*1005*(C60-24),0),0) -> 0 | D61: =IFERROR(MAX(SUM(D57:D59)/3600*1.205*1005*(D60-24),0),0) -> 0 | E61: W
A63: Totaal koellastbijdrage | B63: =IFERROR(SUM(B58:T58)+B60+B61,0) -> 226.252594 | E63: W
A64: Koelbehoefte verblijfsruimte | B64: =IFERROR(B63/B5,0) -> 30.99350602 | E64: W/m²
A67: Onderstaande tabellen worden verborgen in de uiteindelijke versie. De tabellen dienen om vast te stellen welk tijdstip tot de hoogste zonbelasting leidt
A69: Isol max voor de orientatie | B69: =o_Isol_Max_Orientatie(B8,B11) -> 143.7398809 | C69: W/m² | F69: =o_Isol_Max_Orientatie(F8,F11) -> 845.3277237 | G69: W/m² | J69: =o_Isol_Max_Orientatie(J8,J11) -> 740.0583625 | K69: W/m² | N69: =o_Isol_Max_Orientatie(N8,N11) -> 741.7580929 | O69: W/m² | R69: =o_Isol_Max_Orientatie(R8,R11) -> 914.160926 | S69: W/m²
A70: Tijdstip bij Isol max bij orientatie | B70: =VALUE(o_Tijdstip_Isol_Max_Orientatie(B8,B11)) -> 15:00:00 | F70: =VALUE(o_Tijdstip_Isol_Max_Orientatie(F8,F11)) -> 09:00:00 | J70: =VALUE(o_Tijdstip_Isol_Max_Orientatie(J8,J11)) -> 14:00:00 | N70: =VALUE(o_Tijdstip_Isol_Max_Orientatie(N8,N11)) -> 18:00:00 | R70: =VALUE(o_Tijdstip_Isol_Max_Orientatie(R8,R11)) -> 16:00:00
A72: Koellastbijdrage zoninstraling transparante delen Psol;vr;zi
A73: 09:00:00 | B73: =(0.75*B$18*FLOOR(B$20,0.05)*0.9*B$35*B$38*o_Isol_Bij_Tijdstip($A73,B$8,B$11))+(0.75*D$18*FLOOR(D$20,0.05)*0.9*D$35*D$38*o_Isol_Bij_Tijdstip($A73,B$8,B$11)) -> 0 | C73: W | D73: =o_maxTemp(VALUE(A73)) -> 24.7 | F73: =(0.75*F$18*FLOOR(F$20,0.05)*0.9*F$35*F$38*o_Isol_Bij_Tijdstip($A73,F$8,F$11))+(0.75*H$18*FLOOR(H$20,0.05)*0.9*H$35*H$38*o_Isol_Bij_Tijdstip($A73,F$8,F$11)) -> 0 | G73: W | J73: =(0.75*J$18*FLOOR(J$20,0.05)*0.9*J$35*J$38*o_Isol_Bij_Tijdstip($A73,J$8,J$11))+(0.75*L$18*FLOOR(L$20,0.05)*0.9*L$35*L$38*o_Isol_Bij_Tijdstip($A73,J$8,J$11)) -> 43.34808445 | K73: W | N73: =(0.75*N$18*FLOOR(N$20,0.05)*0.9*N$35*N$38*o_Isol_Bij_Tijdstip($A73,N$8,N$11))+(0.75*P$18*FLOOR(P$20,0.05)*0.9*P$35*P$38*o_Isol_Bij_Tijdstip($A73,N$8,N$11)) -> 0 | O73: W | R73: =(0.75*R$18*FLOOR(R$20,0.05)*0.9*R$35*R$38*o_Isol_Bij_Tijdstip($A73,R$8,R$11))+(0.75*T$18*FLOOR(T$20,0.05)*0.9*T$35*T$38*o_Isol_Bij_Tijdstip($A73,R$8,R$11)) -> 0 | S73: W | T73: =B73+F73+J73+N73+R73 -> 43.34808445 | U73: W
A74: 10:00:00 | B74: =(0.75*B$18*FLOOR(B$20,0.05)*0.9*B$35*B$38*o_Isol_Bij_Tijdstip($A74,B$8,B$11))+(0.75*D$18*FLOOR(D$20,0.05)*0.9*D$35*D$38*o_Isol_Bij_Tijdstip($A74,B$8,B$11)) -> 0 | C74: W | D74: =o_maxTemp(VALUE(A74)) -> 26.9 | F74: =(0.75*F$18*FLOOR(F$20,0.05)*0.9*F$35*F$38*o_Isol_Bij_Tijdstip($A74,F$8,F$11))+(0.75*H$18*FLOOR(H$20,0.05)*0.9*H$35*H$38*o_Isol_Bij_Tijdstip($A74,F$8,F$11)) -> 0 | G74: W | J74: =(0.75*J$18*FLOOR(J$20,0.05)*0.9*J$35*J$38*o_Isol_Bij_Tijdstip($A74,J$8,J$11))+(0.75*L$18*FLOOR(L$20,0.05)*0.9*L$35*L$38*o_Isol_Bij_Tijdstip($A74,J$8,J$11)) -> 78.93231214 | K74: W | N74: =(0.75*N$18*FLOOR(N$20,0.05)*0.9*N$35*N$38*o_Isol_Bij_Tijdstip($A74,N$8,N$11))+(0.75*P$18*FLOOR(P$20,0.05)*0.9*P$35*P$38*o_Isol_Bij_Tijdstip($A74,N$8,N$11)) -> 0 | O74: W | R74: =(0.75*R$18*FLOOR(R$20,0.05)*0.9*R$35*R$38*o_Isol_Bij_Tijdstip($A74,R$8,R$11))+(0.75*T$18*FLOOR(T$20,0.05)*0.9*T$35*T$38*o_Isol_Bij_Tijdstip($A74,R$8,R$11)) -> 0 | S74: W | T74: 78.93231214 | U74: W
A75: 11:00:00 | B75: =(0.75*B$18*FLOOR(B$20,0.05)*0.9*B$35*B$38*o_Isol_Bij_Tijdstip($A75,B$8,B$11))+(0.75*D$18*FLOOR(D$20,0.05)*0.9*D$35*D$38*o_Isol_Bij_Tijdstip($A75,B$8,B$11)) -> 0 | C75: W | D75: =o_maxTemp(VALUE(A75)) -> 28.2 | F75: =(0.75*F$18*FLOOR(F$20,0.05)*0.9*F$35*F$38*o_Isol_Bij_Tijdstip($A75,F$8,F$11))+(0.75*H$18*FLOOR(H$20,0.05)*0.9*H$35*H$38*o_Isol_Bij_Tijdstip($A75,F$8,F$11)) -> 0 | G75: W | J75: =(0.75*J$18*FLOOR(J$20,0.05)*0.9*J$35*J$38*o_Isol_Bij_Tijdstip($A75,J$8,J$11))+(0.75*L$18*FLOOR(L$20,0.05)*0.9*L$35*L$38*o_Isol_Bij_Tijdstip($A75,J$8,J$11)) -> 102.0058253 | K75: W | N75: =(0.75*N$18*FLOOR(N$20,0.05)*0.9*N$35*N$38*o_Isol_Bij_Tijdstip($A75,N$8,N$11))+(0.75*P$18*FLOOR(P$20,0.05)*0.9*P$35*P$38*o_Isol_Bij_Tijdstip($A75,N$8,N$11)) -> 0 | O75: W | R75: =(0.75*R$18*FLOOR(R$20,0.05)*0.9*R$35*R$38*o_Isol_Bij_Tijdstip($A75,R$8,R$11))+(0.75*T$18*FLOOR(T$20,0.05)*0.9*T$35*T$38*o_Isol_Bij_Tijdstip($A75,R$8,R$11)) -> 0 | S75: W | T75: 102.0058253 | U75: W
A76: 12:00:00 | B76: =(0.75*B$18*FLOOR(B$20,0.05)*0.9*B$35*B$38*o_Isol_Bij_Tijdstip($A76,B$8,B$11))+(0.75*D$18*FLOOR(D$20,0.05)*0.9*D$35*D$38*o_Isol_Bij_Tijdstip($A76,B$8,B$11)) -> 0 | C76: W | D76: =o_maxTemp(VALUE(A76)) -> 28.9 | F76: =(0.75*F$18*FLOOR(F$20,0.05)*0.9*F$35*F$38*o_Isol_Bij_Tijdstip($A76,F$8,F$11))+(0.75*H$18*FLOOR(H$20,0.05)*0.9*H$35*H$38*o_Isol_Bij_Tijdstip($A76,F$8,F$11)) -> 0 | G76: W | J76: =(0.75*J$18*FLOOR(J$20,0.05)*0.9*J$35*J$38*o_Isol_Bij_Tijdstip($A76,J$8,J$11))+(0.75*L$18*FLOOR(L$20,0.05)*0.9*L$35*L$38*o_Isol_Bij_Tijdstip($A76,J$8,J$11)) -> 119.5562251 | K76: W | N76: =(0.75*N$18*FLOOR(N$20,0.05)*0.9*N$35*N$38*o_Isol_Bij_Tijdstip($A76,N$8,N$11))+(0.75*P$18*FLOOR(P$20,0.05)*0.9*P$35*P$38*o_Isol_Bij_Tijdstip($A76,N$8,N$11)) -> 0 | O76: W | R76: =(0.75*R$18*FLOOR(R$20,0.05)*0.9*R$35*R$38*o_Isol_Bij_Tijdstip($A76,R$8,R$11))+(0.75*T$18*FLOOR(T$20,0.05)*0.9*T$35*T$38*o_Isol_Bij_Tijdstip($A76,R$8,R$11)) -> 0 | S76: W | T76: 119.5562251 | U76: W
A77: 13:00:00 | B77: =(0.75*B$18*FLOOR(B$20,0.05)*0.9*B$35*B$38*o_Isol_Bij_Tijdstip($A77,B$8,B$11))+(0.75*D$18*FLOOR(D$20,0.05)*0.9*D$35*D$38*o_Isol_Bij_Tijdstip($A77,B$8,B$11)) -> 0 | C77: W | D77: =o_maxTemp(VALUE(A77)) -> 29.7 | F77: =(0.75*F$18*FLOOR(F$20,0.05)*0.9*F$35*F$38*o_Isol_Bij_Tijdstip($A77,F$8,F$11))+(0.75*H$18*FLOOR(H$20,0.05)*0.9*H$35*H$38*o_Isol_Bij_Tijdstip($A77,F$8,F$11)) -> 0 | G77: W | J77: =(0.75*J$18*FLOOR(J$20,0.05)*0.9*J$35*J$38*o_Isol_Bij_Tijdstip($A77,J$8,J$11))+(0.75*L$18*FLOOR(L$20,0.05)*0.9*L$35*L$38*o_Isol_Bij_Tijdstip($A77,J$8,J$11)) -> 125.6823096 | K77: W | N77: =(0.75*N$18*FLOOR(N$20,0.05)*0.9*N$35*N$38*o_Isol_Bij_Tijdstip($A77,N$8,N$11))+(0.75*P$18*FLOOR(P$20,0.05)*0.9*P$35*P$38*o_Isol_Bij_Tijdstip($A77,N$8,N$11)) -> 0 | O77: W | R77: =(0.75*R$18*FLOOR(R$20,0.05)*0.9*R$35*R$38*o_Isol_Bij_Tijdstip($A77,R$8,R$11))+(0.75*T$18*FLOOR(T$20,0.05)*0.9*T$35*T$38*o_Isol_Bij_Tijdstip($A77,R$8,R$11)) -> 0 | S77: W | T77: 125.6823096 | U77: W
A78: 14:00:00 | B78: =(0.75*B$18*FLOOR(B$20,0.05)*0.9*B$35*B$38*o_Isol_Bij_Tijdstip($A78,B$8,B$11))+(0.75*D$18*FLOOR(D$20,0.05)*0.9*D$35*D$38*o_Isol_Bij_Tijdstip($A78,B$8,B$11)) -> 0 | C78: W | D78: =o_maxTemp(VALUE(A78)) -> 29.9 | F78: =(0.75*F$18*FLOOR(F$20,0.05)*0.9*F$35*F$38*o_Isol_Bij_Tijdstip($A78,F$8,F$11))+(0.75*H$18*FLOOR(H$20,0.05)*0.9*H$35*H$38*o_Isol_Bij_Tijdstip($A78,F$8,F$11)) -> 0 | G78: W | J78: =(0.75*J$18*FLOOR(J$20,0.05)*0.9*J$35*J$38*o_Isol_Bij_Tijdstip($A78,J$8,J$11))+(0.75*L$18*FLOOR(L$20,0.05)*0.9*L$35*L$38*o_Isol_Bij_Tijdstip($A78,J$8,J$11)) -> 142.3687275 | K78: W | N78: =(0.75*N$18*FLOOR(N$20,0.05)*0.9*N$35*N$38*o_Isol_Bij_Tijdstip($A78,N$8,N$11))+(0.75*P$18*FLOOR(P$20,0.05)*0.9*P$35*P$38*o_Isol_Bij_Tijdstip($A78,N$8,N$11)) -> 0 | O78: W | R78: =(0.75*R$18*FLOOR(R$20,0.05)*0.9*R$35*R$38*o_Isol_Bij_Tijdstip($A78,R$8,R$11))+(0.75*T$18*FLOOR(T$20,0.05)*0.9*T$35*T$38*o_Isol_Bij_Tijdstip($A78,R$8,R$11)) -> 0 | S78: W | T78: 142.3687275 | U78: W
A79: 15:00:00 | B79: =(0.75*B$18*FLOOR(B$20,0.05)*0.9*B$35*B$38*o_Isol_Bij_Tijdstip($A79,B$8,B$11))+(0.75*D$18*FLOOR(D$20,0.05)*0.9*D$35*D$38*o_Isol_Bij_Tijdstip($A79,B$8,B$11)) -> 0 | C79: W | D79: =o_maxTemp(VALUE(A79)) -> 29.8 | F79: =(0.75*F$18*FLOOR(F$20,0.05)*0.9*F$35*F$38*o_Isol_Bij_Tijdstip($A79,F$8,F$11))+(0.75*H$18*FLOOR(H$20,0.05)*0.9*H$35*H$38*o_Isol_Bij_Tijdstip($A79,F$8,F$11)) -> 0 | G79: W | J79: =(0.75*J$18*FLOOR(J$20,0.05)*0.9*J$35*J$38*o_Isol_Bij_Tijdstip($A79,J$8,J$11))+(0.75*L$18*FLOOR(L$20,0.05)*0.9*L$35*L$38*o_Isol_Bij_Tijdstip($A79,J$8,J$11)) -> 114.7066454 | K79: W | N79: =(0.75*N$18*FLOOR(N$20,0.05)*0.9*N$35*N$38*o_Isol_Bij_Tijdstip($A79,N$8,N$11))+(0.75*P$18*FLOOR(P$20,0.05)*0.9*P$35*P$38*o_Isol_Bij_Tijdstip($A79,N$8,N$11)) -> 0 | O79: W | R79: =(0.75*R$18*FLOOR(R$20,0.05)*0.9*R$35*R$38*o_Isol_Bij_Tijdstip($A79,R$8,R$11))+(0.75*T$18*FLOOR(T$20,0.05)*0.9*T$35*T$38*o_Isol_Bij_Tijdstip($A79,R$8,R$11)) -> 0 | S79: W | T79: 114.7066454 | U79: W
A80: 16:00:00 | B80: =(0.75*B$18*FLOOR(B$20,0.05)*0.9*B$35*B$38*o_Isol_Bij_Tijdstip($A80,B$8,B$11))+(0.75*D$18*FLOOR(D$20,0.05)*0.9*D$35*D$38*o_Isol_Bij_Tijdstip($A80,B$8,B$11)) -> 0 | C80: W | D80: =o_maxTemp(VALUE(A80)) -> 30.4 | F80: =(0.75*F$18*FLOOR(F$20,0.05)*0.9*F$35*F$38*o_Isol_Bij_Tijdstip($A80,F$8,F$11))+(0.75*H$18*FLOOR(H$20,0.05)*0.9*H$35*H$38*o_Isol_Bij_Tijdstip($A80,F$8,F$11)) -> 0 | G80: W | J80: =(0.75*J$18*FLOOR(J$20,0.05)*0.9*J$35*J$38*o_Isol_Bij_Tijdstip($A80,J$8,J$11))+(0.75*L$18*FLOOR(L$20,0.05)*0.9*L$35*L$38*o_Isol_Bij_Tijdstip($A80,J$8,J$11)) -> 72.90628607 | K80: W | N80: =(0.75*N$18*FLOOR(N$20,0.05)*0.9*N$35*N$38*o_Isol_Bij_Tijdstip($A80,N$8,N$11))+(0.75*P$18*FLOOR(P$20,0.05)*0.9*P$35*P$38*o_Isol_Bij_Tijdstip($A80,N$8,N$11)) -> 0 | O80: W | R80: =(0.75*R$18*FLOOR(R$20,0.05)*0.9*R$35*R$38*o_Isol_Bij_Tijdstip($A80,R$8,R$11))+(0.75*T$18*FLOOR(T$20,0.05)*0.9*T$35*T$38*o_Isol_Bij_Tijdstip($A80,R$8,R$11)) -> 0 | S80: W | T80: 72.90628607 | U80: W
A81: 17:00:00 | B81: =(0.75*B$18*FLOOR(B$20,0.05)*0.9*B$35*B$38*o_Isol_Bij_Tijdstip($A81,B$8,B$11))+(0.75*D$18*FLOOR(D$20,0.05)*0.9*D$35*D$38*o_Isol_Bij_Tijdstip($A81,B$8,B$11)) -> 0 | C81: W | D81: =o_maxTemp(VALUE(A81)) -> 30.6 | F81: =(0.75*F$18*FLOOR(F$20,0.05)*0.9*F$35*F$38*o_Isol_Bij_Tijdstip($A81,F$8,F$11))+(0.75*H$18*FLOOR(H$20,0.05)*0.9*H$35*H$38*o_Isol_Bij_Tijdstip($A81,F$8,F$11)) -> 0 | G81: W | J81: =(0.75*J$18*FLOOR(J$20,0.05)*0.9*J$35*J$38*o_Isol_Bij_Tijdstip($A81,J$8,J$11))+(0.75*L$18*FLOOR(L$20,0.05)*0.9*L$35*L$38*o_Isol_Bij_Tijdstip($A81,J$8,J$11)) -> 44.1390022 | K81: W | N81: =(0.75*N$18*FLOOR(N$20,0.05)*0.9*N$35*N$38*o_Isol_Bij_Tijdstip($A81,N$8,N$11))+(0.75*P$18*FLOOR(P$20,0.05)*0.9*P$35*P$38*o_Isol_Bij_Tijdstip($A81,N$8,N$11)) -> 0 | O81: W | R81: =(0.75*R$18*FLOOR(R$20,0.05)*0.9*R$35*R$38*o_Isol_Bij_Tijdstip($A81,R$8,R$11))+(0.75*T$18*FLOOR(T$20,0.05)*0.9*T$35*T$38*o_Isol_Bij_Tijdstip($A81,R$8,R$11)) -> 0 | S81: W | T81: 44.1390022 | U81: W
A82: 18:00:00 | B82: =(0.75*B$18*FLOOR(B$20,0.05)*0.9*B$35*B$38*o_Isol_Bij_Tijdstip($A82,B$8,B$11))+(0.75*D$18*FLOOR(D$20,0.05)*0.9*D$35*D$38*o_Isol_Bij_Tijdstip($A82,B$8,B$11)) -> 0 | C82: W | D82: =o_maxTemp(VALUE(A82)) -> 30.1 | F82: =(0.75*F$18*FLOOR(F$20,0.05)*0.9*F$35*F$38*o_Isol_Bij_Tijdstip($A82,F$8,F$11))+(0.75*H$18*FLOOR(H$20,0.05)*0.9*H$35*H$38*o_Isol_Bij_Tijdstip($A82,F$8,F$11)) -> 0 | G82: W | J82: =(0.75*J$18*FLOOR(J$20,0.05)*0.9*J$35*J$38*o_Isol_Bij_Tijdstip($A82,J$8,J$11))+(0.75*L$18*FLOOR(L$20,0.05)*0.9*L$35*L$38*o_Isol_Bij_Tijdstip($A82,J$8,J$11)) -> 16.17147917 | K82: W | N82: =(0.75*N$18*FLOOR(N$20,0.05)*0.9*N$35*N$38*o_Isol_Bij_Tijdstip($A82,N$8,N$11))+(0.75*P$18*FLOOR(P$20,0.05)*0.9*P$35*P$38*o_Isol_Bij_Tijdstip($A82,N$8,N$11)) -> 0 | O82: W | R82: =(0.75*R$18*FLOOR(R$20,0.05)*0.9*R$35*R$38*o_Isol_Bij_Tijdstip($A82,R$8,R$11))+(0.75*T$18*FLOOR(T$20,0.05)*0.9*T$35*T$38*o_Isol_Bij_Tijdstip($A82,R$8,R$11)) -> 0 | S82: W | T82: 16.17147917 | U82: W
A84: Maatgevende tijdstip | B84: =IF(MAX(T73:T82)=0,"Geen glas aanwezig",_xlfn.XLOOKUP(MAX(T73:T82),T73:T82,A73:A82,"nvt")) -> 14:00:00

Sheet Ruimte 5
A1: RUIMTE 5
A3: Ruimtenaam | B3: slaap 4
A4: Type verblijfsruimte | B4: Andere verblijfsruimte
A5: Vloeroppervlak verblijfsruimte Avr (gebruiksoppervlak) | B5: 20.4 | C5: m²
B7: Voorzijde woning | F7: Linker zijde woning | J7: Achterzijde woning | N7: Rechter zijde woning | R7: Platdak
A8: Orientatie gevel / dakvlak (Helling > 15°C) | B8: =Invoerblad!$B$17 -> Noord | F8: =o_Orientatie(F9) -> Oost | J8: =o_Orientatie(J9) -> Zuid | N8: =o_Orientatie(N9) -> West | R8: Horizontaal
A9: Orientatiehoek gevel Ƴ | B9: =o_OrientatiehOEK(B8) -> 0 | F9: =IF(B9+90>360,B9+90-360,B9+90) -> 90 | J9: =IF(F9+90>360,F9+90-360,F9+90) -> 180 | N9: =IF(J9+90>360,J9+90-360,J9+90) -> 270
A10: Grenst aan buitenlucht ja of nee | B10: Ja | F10: Nee | J10: Nee | N10: Nee | R10: Ja
A11: Hellingshoek constructie ≥ 15° = hellenddak 90° = gevel | B11: 90 | C11: ° | F11: 90 | G11: ° | J11: 90 | K11: ° | N11: 90 | O11: ° | R11: 10 | S11: °
A12: Type constructie | B12: =o_TypeConstructie(B10,B11) -> Buitengevel | F12: =o_TypeConstructie(F10,F11) -> Woningscheidend | J12: =o_TypeConstructie(J10,J11) -> Woningscheidend | N12: =o_TypeConstructie(N10,N11) -> Woningscheidend | R12: =o_TypeConstructie(R10,R11) -> Platdak <15°
A13: Gevel lengte (binnenwerks) | B13: 5 | C13: m | F13: 0 | G13: m | J13: 0 | K13: m | N13: 0 | O13: m | R13: 0 | S13: m
A14: Gevel hoogte / Dak breedte (binnenwerks) | B14: 2 | C14: m | F14: 0 | G14: m | J14: 0 | K14: m | N14: 0 | O14: m | R14: 0 | S14: m
A15: Constructie oppervlak (binnenwerks) | B15: 15.87 | C15: m² | F15: =F13*F14 -> 0 | G15: m² | J15: =J13*J14 -> 0 | K15: m² | N15: =N13*N14 -> 0 | O15: m² | R15: 22.2 | S15: m²
A16: Gesloten constructie oppervlak | B16: =MAX(0,B15-B18-D18) -> 10.07 | C16: m² | F16: =MAX(0,F15-F18-H18) -> 0 | G16: m² | J16: =MAX(0,J15-J18-L18) -> 0 | K16: m² | N16: =MAX(0,N15-N18-P18) -> 0 | O16: m² | R16: =MAX(0,R15-R18-T18) -> 22.2 | S16: m²
B17: Glasvlak type 1 | D17: Glasvlak type 2 | F17: Glasvlak type 1 | H17: Glasvlak type 2 | J17: Glasvlak type 1 | L17: Glasvlak type 2 | N17: Glasvlak type 1 | P17: Glasvlak type 2 | R17: Glasvlak type 1 | T17: Glasvlak type 2
A18: Totaal oppervlak van raamtype Aw,k (inclusief kozijn) | B18: 2.9 | C18: m² | D18: 2.9 | E18: m² | G18: m² | I18: m² | K18: m² | M18: m² | O18: m² | Q18: m² | S18: m² | U18: m²
A19: Warmtedoorgangscoefficient (U-waarde) van het raam Uw;wi;k | B19: 1.5 | C19: W/m².K | D19: 1.5 | E19: W/m².K | G19: W/m².K | I19: W/m².K | K19: W/m².K | M19: W/m².K | O19: W/m².K | Q19: W/m².K | S19: W/m².K | U19: W/m².K
A20: Zontoetredingsfactor (g_waarde) van het glas Ggl;n;wi;k;C;juli | B20: 0.6 | D20: 0.6
A21: Beschaduwing situatie bij het raamtype | B21: Minimale belemmering | D21: Minimale belemmering | F21: Minimale belemmering | H21: Minimale belemmering | J21: Minimale belemmering | L21: Minimale belemmering | N21: Minimale belemmering | P21: Minimale belemmering | R21: Minimale belemmering | T21: Minimale belemmering
B23: Overstek | D23: Overstek | F23: Overstek | H23: Overstek | J23: Overstek | L23: Overstek | N23: Overstek | P23: Overstek
A24: Hoogte verschil midden raam onderzijde overstek | B24: 0 | C24: m | D24: 0 | E24: m | F24: 0 | G24: m | H24: 0 | I24: m | J24: 0 | K24: m | L24: 0 | M24: m | N24: 0 | O24: m | P24: 0 | Q24: m | R24: 0 | U24: m
A25: Horizontale afstand glas tot eindpunt overstek | B25: 0 | C25: m | D25: 0 | E25: m | F25: 0 | G25: m | H25: 0 | I25: m | J25: 0 | K25: m | L25: 0 | M25: m | N25: 0 | O25: m | P25: 0 | Q25: m | R25: 0 | U25: m
A26: Overstekhoek | B26: =IFERROR(180/PI()*ATAN(B24/B25),0) -> 0 | C26: ° | D26: =IFERROR(180/PI()*ATAN(D24/D25),0) -> 0 | E26: ° | F26: =IFERROR(180/PI()*ATAN(F24/F25),0) -> 0 | G26: ° | H26: =IFERROR(180/PI()*ATAN(H24/H25),0) -> 0 | I26: ° | J26: =IFERROR(180/PI()*ATAN(J24/J25),0) -> 0 | K26: ° | L26: =IFERROR(180/PI()*ATAN(L24/L25),0) -> 0 | M26: ° | N26: =IFERROR(180/PI()*ATAN(N24/N25),0) -> 0 | O26: ° | P26: =IFERROR(180/PI()*ATAN(P24/P25),0) -> 0 | Q26: ° | U26: °
A27: Relatieve hoogte van overstek | B27: =IFERROR(B24/B25,1) -> 1 | D27: =IFERROR(D24/D25,1) -> 1 | F27: =IFERROR(F24/F25,1) -> 1 | H27: =IFERROR(H24/H25,1) -> 1 | J27: =IFERROR(J24/J25,1) -> 1 | L27: =IFERROR(L24/L25,1) -> 1 | N27: =IFERROR(N24/N25,1) -> 1 | P27: =IFERROR(P24/P25,1) -> 1
B29: Zijbelemmering | D29: Zijbelemmering | F29: Zijbelemmering | H29: Zijbelemmering | J29: Zijbelemmering | L29: Zijbelemmering | N29: Zijbelemmering | P29: Zijbelemmering
A30: Positie zijbelemmering irt zichtveld (naar buitengericht) | B30: Links | D30: Links | F30: Links | H30: Links | J30: Links | L30: Links | N30: Links | P30: Links
A31: Horizontale afstand midden raam verste punt belemmering | B31: 0 | C31: m | D31: 0 | E31: m | G31: m | I31: m | K31: m | L31: 1 | M31: m | O31: m | Q31: m | U31: m
A32: Horizontale breedte glas tot eindpunt belemmering | B32: 0 | C32: m | D32: 0 | E32: m | G32: m | I32: m | K32: m | M32: m | O32: m | Q32: m | U32: m
A33: Relatieve breedte van de zijbelemmering bb | B33: =IFERROR(B31/B32,999) -> 999 | D33: =IFERROR(D31/D32,999) -> 999 | F33: =IFERROR(F31/F32,999) -> 999 | H33: =IFERROR(H31/H32,999) -> 999 | J33: =IFERROR(J31/J32,999) -> 999 | L33: =IFERROR(L31/L32,999) -> 999 | N33: =IFERROR(N31/N32,999) -> 999 | P33: =IFERROR(P31/P32,999) -> 999
A35: De beschaduwingsreductiefactor Fsh;obst;wi;k;juli | B35: =IFERROR(o_Beschaduwingreductie(B21,B8,B27,B30,B33,B11),1) -> 1 | D35: =IFERROR(o_Beschaduwingreductie(D21,B8,D27,D30,D33,B11),1) -> 1 | F35: =IFERROR(o_Beschaduwingreductie(F21,F8,F27,F30,F33,F11),1) -> 1 | H35: =IFERROR(o_Beschaduwingreductie(H21,F8,H27,H30,H33,F11),1) -> 1 | J35: =IFERROR(o_Beschaduwingreductie(J21,J8,J27,J30,J33,J11),1) -> 1 | L35: =IFERROR(o_Beschaduwingreductie(L21,J8,L27,L30,L33,J11),1) -> 1 | N35: =IFERROR(o_Beschaduwingreductie(N21,N8,N27,N30,N33,N11),1) -> 1 | P35: =IFERROR(o_Beschaduwingreductie(P21,N8,P27,P30,P33,N11),1) -> 1 | R35: =o_Beschaduwingreductie(R21,R8,R27,R30,R33,R11) -> 1 | T35: =o_Beschaduwingreductie(T21,R8,T27,T30,T33,R11) -> 1
A37: Type zonwering | B37: Geen zonwering | D37: Geen zonwering | F37: Geen zonwering | H37: Geen zonwering | J37: Geen zonwering | L37: Geen zonwering | N37: Geen zonwering | P37: Geen zonwering | R37: Geen zonwering | T37: Geen zonwering
A38: De reductiefactor voor zonwering Fc;wi;k | B38: =o_Zonweringreductie(B37,B8) -> 1 | D38: =o_Zonweringreductie(D37,B8) -> 1 | F38: =o_Zonweringreductie(F37,F8) -> 1 | H38: =o_Zonweringreductie(H37,F8) -> 1 | J38: =o_Zonweringreductie(J37,J8) -> 1 | L38: =o_Zonweringreductie(L37,J8) -> 1 | N38: =o_Zonweringreductie(N37,N8) -> 1 | P38: =o_Zonweringreductie(P37,N8) -> 1 | R38: =o_Zonweringreductie(R37,R8) -> 1 | T38: =o_Zonweringreductie(T37,R8) -> 1
A39: Totaal opvallende zonnestraling van het raam Isol;wi;k;juli | B39: =IF(B10="Nee",0,o_Isol_Bij_Tijdstip($B$52,B8,B11)) -> 143.7398809 | C39: W/m² | D39: =IF(B10="Nee",0,o_Isol_Bij_Tijdstip($B$52,B8,B11)) -> 143.7398809 | E39: W/m² | F39: =IF(F10="Nee",0,o_Isol_Bij_Tijdstip($B$52,F8,F11)) -> 0 | G39: W/m² | H39: =IF(F10="Nee",0,o_Isol_Bij_Tijdstip($B$52,F8,F11)) -> 0 | I39: W/m² | J39: =IF(J10="Nee",0,o_Isol_Bij_Tijdstip($B$52,J8,J11)) -> 0 | K39: W/m² | L39: =IF(J10="Nee",0,o_Isol_Bij_Tijdstip($B$52,J8,J11)) -> 0 | M39: W/m² | N39: =IF(N10="Nee",0,o_Isol_Bij_Tijdstip($B$52,N8,N11)) -> 0 | O39: W/m² | P39: =IF(N10="Nee",0,o_Isol_Bij_Tijdstip($B$52,N8,N11)) -> 0 | Q39: W/m² | R39: =IF(R10="Nee",0,o_Isol_Bij_Tijdstip($B$52,R8,R11)) -> 904.0267879 | S39: W/m² | T39: =IF(R10="Nee",0,o_Isol_Bij_Tijdstip($B$52,R8,R11)) -> 904.0267879 | U39: W/m²
A41: Tijdstip maximale koellastbijdrage tmax;zi | B41: =VALUE(o_Tijdstip_Isol_Max_Orientatie(B8,B11)) -> 15:00:00 | F41: =VALUE(o_Tijdstip_Isol_Max_Orientatie(F8,F11)) -> 09:00:00 | J41: =VALUE(o_Tijdstip_Isol_Max_Orientatie(J8,J11)) -> 14:00:00 | N41: =VALUE(o_Tijdstip_Isol_Max_Orientatie(N8,N11)) -> 18:00:00 | R41: =o_Tijdstip_Isol_Max_Orientatie(R8,R11) -> 16:00:00
A42: Buitenluchttemperatuur op tijdstip max koellast Θe | B42: =o_maxTemp(VALUE(B41)) -> 29.8 | E42: °C | F42: =o_maxTemp(VALUE(F41)) -> 24.7 | I42: °C | J42: =o_maxTemp(VALUE(J41)) -> 29.9 | M42: °C | N42: =o_maxTemp(VALUE(N41)) -> 30.1 | Q42: °C | R42: =o_maxTemp(VALUE(R41)) -> 30.4
A44: Glasopppervlak | B44: =IF(B10="Ja",B18+D18,0) -> 5.8 | C44: m² | F44: =IF(F10="Ja",F18+H18,0) -> 0 | G44: m² | J44: =IF(J10="Ja",J18+L18,0) -> 0 | K44: m² | N44: =IF(N10="Ja",N18+P18,0) -> 0 | O44: m² | R44: =IF(R10="Ja",R18+T18,0) -> 0 | S44: m²
A45: Uitwendigescheidingsconstructie niet op Noord? | B45: =IF(B10="Ja",IF(B8="Noord",FALSE,TRUE),FALSE) -> FALSE | F45: =IF(F10="Ja",IF(F8="Noord",FALSE,TRUE),FALSE) -> FALSE | J45: =IF(J10="Ja",IF(J8="Noord",FALSE,TRUE),FALSE) -> FALSE | N45: =IF(N10="Ja",IF(N8="Noord",FALSE,TRUE),FALSE) -> FALSE | R45: =IF(R10="Ja",IF(R8="Noord",FALSE,TRUE),FALSE) -> TRUE
A46: De enige uitwendigescheidingscontructie? | B46: =IF(AND(B45=TRUE,COUNTIF($B$45:$R$45,TRUE)=1),TRUE,FALSE) -> FALSE | F46: =IF(AND(F45=TRUE,COUNTIF($B$45:$R$45,TRUE)=1),TRUE,FALSE) -> FALSE | J46: =IF(AND(J45=TRUE,COUNTIF($B$45:$R$45,TRUE)=1),TRUE,FALSE) -> FALSE | N46: =IF(AND(N45=TRUE,COUNTIF($B$45:$R$45,TRUE)=1),TRUE,FALSE) -> FALSE | R46: =IF(AND(R45=TRUE,COUNTIF($B$45:$R$45,TRUE)=1),TRUE,FALSE) -> TRUE
A47: Totaal glasoppervlak | B47: =IF(B8<>"Noord",B44,0) -> 0 | C47: m² | F47: =IF(F8<>"Noord",F44,0) -> 0 | G47: m² | J47: =IF(J8<>"Noord",J44,0) -> 0 | K47: m² | N47: =IF(N8<>"Noord",N44,0) -> 0 | O47: m² | R47: =R44 -> 0 | S47: m²
A48: Grootste glasoppervlak | B48: =IF(AND(B45,B47=MAX($B$47:$R$47)),TRUE,FALSE) -> FALSE | F48: =IF(AND(F45,F47=MAX($B$47:$R$47)),TRUE,FALSE) -> FALSE | J48: =IF(AND(J45,J47=MAX($B$47:$R$47)),TRUE,FALSE) -> FALSE | N48: =IF(AND(N45,N47=MAX($B$47:$R$47)),TRUE,FALSE) -> FALSE | R48: =IF(AND(R45,R47=MAX($B$47:$R$47)),TRUE,FALSE) -> TRUE
A49: Dakvlak maatgevend? | B49: =IF(AND(B11<90,B15>3*(B18+D18),Invoerblad!$B$25<65),TRUE,FALSE) -> FALSE | F49: =IF(AND(F11<90,F15>3*(F18+H18),Invoerblad!$B$25<65),TRUE,FALSE) -> FALSE | J49: =IF(AND(J11<90,J15>3*(J18+L18),Invoerblad!$B$25<65),TRUE,FALSE) -> FALSE | N49: =IF(AND(N11<90,N15>3*(N18+P18),Invoerblad!$B$25<65),TRUE,FALSE) -> FALSE | R49: =IF(AND(R11<90,R15>3*(R18+T18),Invoerblad!$B$25<65),TRUE,FALSE) -> TRUE
A50: is er een maatgevend dakoppervlak | B50: =IF(COUNTIF($B$49:$R$49,TRUE)>0,TRUE,FALSE) -> TRUE | F50: =IF(COUNTIF($B$49:$R$49,TRUE)>0,TRUE,FALSE) -> TRUE | J50: =IF(COUNTIF($B$49:$R$49,TRUE)>0,TRUE,FALSE) -> TRUE | N50: =IF(COUNTIF($B$49:$R$49,TRUE)>0,TRUE,FALSE) -> TRUE | R50: =IF(COUNTIF($B$49:$R$49,TRUE)>0,TRUE,FALSE) -> TRUE
A51: Maatgevende tijdstip | B51: =IF(OR(B46,AND(B45,B50,B49),AND(B45,B48,NOT(B50))),B41) -> FALSE | F51: =IF(OR(F46,AND(F45,F50,F49),AND(F45,F48,NOT(F50))),F41) -> FALSE | J51: =IF(OR(J46,AND(J45,J50,J49),AND(J45,J48,NOT(J50))),J41) -> FALSE | N51: =IF(OR(N46,AND(N45,N50,N49),AND(N45,N48,NOT(N50))),N41) -> FALSE | R51: =IF(OR(R46,AND(R45,R50,R49),AND(R45,R48,NOT(R50))),R41) -> 16:00:00
A52: Maatgevende tijdstip tmax;zi | B52: =IFERROR(B84,"geen glas ingevoerd") -> 15:00:00
A53: Buitenluchttemperatuur op tijdstip max koellast Θe | B53: =o_maxTemp(VALUE(B52)) -> 29.8 | C53: °C
A55: Koellastbijdrage transmissie transparante delen Ptr;gl;vr;zi | B55: =IF(B10="Nee",0,B16*Invoerblad!$B$16) -> 22.154 | E55: W | F55: =IF(F10="Nee",0,F16*Invoerblad!$B$16) -> 0 | I55: W | J55: =IF(J10="Nee",0,J16*Invoerblad!$B$16) -> 0 | M55: W | N55: =IF(N10="Nee",0,N16*Invoerblad!$B$16) -> 0 | Q55: W | R55: =IF(R10="Nee",0,R16*Invoerblad!$B$16) -> 48.84 | U55: W
A56: Koellastbijdrage zoninstraling transparante delen Psol;vr;zi | B56: =(0.75*B18*FLOOR(B20,0.05)*0.9*B35*B38*B39)+(0.75*D18*FLOOR(D20,0.05)*0.9*D35*D38*D39) -> 337.6449801 | E56: W | F56: =(0.75*F18*FLOOR(F20,0.05)*0.9*F35*F38*F39)+(0.75*H18*FLOOR(H20,0.05)*0.9*H35*H38*H39) -> 0 | I56: W | J56: =(0.75*J18*FLOOR(J20,0.05)*0.9*J35*J38*J39)+(0.75*L18*FLOOR(L20,0.05)*0.9*L35*L38*L39) -> 0 | M56: W | N56: =(0.75*N18*FLOOR(N20,0.05)*0.9*N35*N38*N39)+(0.75*P18*FLOOR(P20,0.05)*0.9*P35*P38*P39) -> 0 | Q56: W | R56: =(0.75*R18*FLOOR(R20,0.05)*0.9*R35*R38*R39)+(0.75*T18*FLOOR(T20,0.05)*0.9*T35*T38*T39) -> 0 | U56: W
A57: Koellastbijdrage transmissie transparante delen Ptr;gl;vr;zi | B57: =IF(B10="Nee",0,IFERROR(B18*B19*($B$53-24),0)+IFERROR(D18*D19*($B$53-24),0)) -> 50.46 | E57: W | F57: =IF(F10="Nee",0,IFERROR(F18*F19*($B$53-24),0)+IFERROR(H18*H19*($B$53-24),0)) -> 0 | I57: W | J57: =IF(J10="Nee",0,IFERROR(J18*J19*($B$53-24),0)+IFERROR(L18*L19*($B$53-24),0)) -> 0 | M57: W | N57: =IF(N10="Nee",0,IFERROR(N18*N19*($B$53-24),0)+IFERROR(P18*P19*($B$53-24),0)) -> 0 | Q57: W | R57: =IF(R10="Nee",0,IFERROR(R18*R19*($B$53-24),0)+IFERROR(T18*T19*($B$53-24),0)) -> 0 | U57: W
A58: Totaal koellastbijdrage per gevel | B58: =SUM(B55:D57) -> 410.2589801 | E58: W | F58: =SUM(F55:H57) -> 0 | I58: W | J58: =SUM(J55:L57) -> 0 | M58: W | N58: =SUM(N55:P57) -> 0 | Q58: W | R58: =SUM(R55:R57) -> 48.84 | U58: W
A60: Koellast door interne warmtelast Pint;calc;woon/overig;zi | B60: =IF(B5=0,0,IF(B4="Woonvertrek",2*Invoerblad!$B$40*B5,Invoerblad!$B$40*B5)) -> 66.65265957 | E60: W
A61: Koellast door buitenluchttoetreding Pv;calc;vr;zi | B61: =IFERROR(MAX((SUM(Invoerblad!$B$28:$B$30)/3600*1.205*1005*(B53-24))/SUM(Invoerblad!$B$47:$T$47)*B5,0),0) -> 89.89701865 | C61: =IFERROR(MAX(SUM(C57:C59)/3600*1.205*1005*(C60-24),0),0) -> 0 | D61: =IFERROR(MAX(SUM(D57:D59)/3600*1.205*1005*(D60-24),0),0) -> 0 | E61: W
A63: Totaal koellastbijdrage | B63: =IFERROR(SUM(B58:T58)+B60+B61,0) -> 615.6486584 | E63: W
A64: Koelbehoefte verblijfsruimte | B64: =IFERROR(B63/B5,0) -> 30.1788558 | E64: W/m²
A67: Onderstaande tabellen worden verborgen in de uiteindelijke versie. De tabellen dienen om vast te stellen welk tijdstip tot de hoogste zonbelasting leidt
A69: Isol max voor de orientatie | B69: =o_Isol_Max_Orientatie(B8,B11) -> 143.7398809 | C69: W/m² | F69: =o_Isol_Max_Orientatie(F8,F11) -> 845.3277237 | G69: W/m² | J69: =o_Isol_Max_Orientatie(J8,J11) -> 740.0583625 | K69: W/m² | N69: =o_Isol_Max_Orientatie(N8,N11) -> 741.7580929 | O69: W/m² | R69: =o_Isol_Max_Orientatie(R8,R11) -> 914.160926 | S69: W/m²
A70: Tijdstip bij Isol max bij orientatie | B70: =VALUE(o_Tijdstip_Isol_Max_Orientatie(B8,B11)) -> 15:00:00 | F70: =VALUE(o_Tijdstip_Isol_Max_Orientatie(F8,F11)) -> 09:00:00 | J70: =VALUE(o_Tijdstip_Isol_Max_Orientatie(J8,J11)) -> 14:00:00 | N70: =VALUE(o_Tijdstip_Isol_Max_Orientatie(N8,N11)) -> 18:00:00 | R70: =VALUE(o_Tijdstip_Isol_Max_Orientatie(R8,R11)) -> 16:00:00
A72: Koellastbijdrage zoninstraling transparante delen Psol;vr;zi
A73: 09:00:00 | B73: =(0.75*B$18*FLOOR(B$20,0.05)*0.9*B$35*B$38*o_Isol_Bij_Tijdstip($A73,B$8,B$11))+(0.75*D$18*FLOOR(D$20,0.05)*0.9*D$35*D$38*o_Isol_Bij_Tijdstip($A73,B$8,B$11)) -> 283.9057142 | C73: W | F73: =(0.75*F$18*FLOOR(F$20,0.05)*0.9*F$35*F$38*o_Isol_Bij_Tijdstip($A73,F$8,F$11))+(0.75*H$18*FLOOR(H$20,0.05)*0.9*H$35*H$38*o_Isol_Bij_Tijdstip($A73,F$8,F$11)) -> 0 | G73: W | J73: =(0.75*J$18*FLOOR(J$20,0.05)*0.9*J$35*J$38*o_Isol_Bij_Tijdstip($A73,J$8,J$11))+(0.75*L$18*FLOOR(L$20,0.05)*0.9*L$35*L$38*o_Isol_Bij_Tijdstip($A73,J$8,J$11)) -> 0 | K73: W | N73: =(0.75*N$18*FLOOR(N$20,0.05)*0.9*N$35*N$38*o_Isol_Bij_Tijdstip($A73,N$8,N$11))+(0.75*P$18*FLOOR(P$20,0.05)*0.9*P$35*P$38*o_Isol_Bij_Tijdstip($A73,N$8,N$11)) -> 0 | O73: W | R73: =(0.75*R$18*FLOOR(R$20,0.05)*0.9*R$35*R$38*o_Isol_Bij_Tijdstip($A73,R$8,R$11))+(0.75*T$18*FLOOR(T$20,0.05)*0.9*T$35*T$38*o_Isol_Bij_Tijdstip($A73,R$8,R$11)) -> 0 | S73: W | T73: =B73+F73+J73+N73+R73 -> 283.9057142 | U73: W
A74: 10:00:00 | B74: =(0.75*B$18*FLOOR(B$20,0.05)*0.9*B$35*B$38*o_Isol_Bij_Tijdstip($A74,B$8,B$11))+(0.75*D$18*FLOOR(D$20,0.05)*0.9*D$35*D$38*o_Isol_Bij_Tijdstip($A74,B$8,B$11)) -> 317.3792323 | C74: W | F74: =(0.75*F$18*FLOOR(F$20,0.05)*0.9*F$35*F$38*o_Isol_Bij_Tijdstip($A74,F$8,F$11))+(0.75*H$18*FLOOR(H$20,0.05)*0.9*H$35*H$38*o_Isol_Bij_Tijdstip($A74,F$8,F$11)) -> 0 | G74: W | J74: =(0.75*J$18*FLOOR(J$20,0.05)*0.9*J$35*J$38*o_Isol_Bij_Tijdstip($A74,J$8,J$11))+(0.75*L$18*FLOOR(L$20,0.05)*0.9*L$35*L$38*o_Isol_Bij_Tijdstip($A74,J$8,J$11)) -> 0 | K74: W | N74: =(0.75*N$18*FLOOR(N$20,0.05)*0.9*N$35*N$38*o_Isol_Bij_Tijdstip($A74,N$8,N$11))+(0.75*P$18*FLOOR(P$20,0.05)*0.9*P$35*P$38*o_Isol_Bij_Tijdstip($A74,N$8,N$11)) -> 0 | O74: W | R74: =(0.75*R$18*FLOOR(R$20,0.05)*0.9*R$35*R$38*o_Isol_Bij_Tijdstip($A74,R$8,R$11))+(0.75*T$18*FLOOR(T$20,0.05)*0.9*T$35*T$38*o_Isol_Bij_Tijdstip($A74,R$8,R$11)) -> 0 | S74: W | T74: 317.3792323 | U74: W
A75: 11:00:00 | B75: =(0.75*B$18*FLOOR(B$20,0.05)*0.9*B$35*B$38*o_Isol_Bij_Tijdstip($A75,B$8,B$11))+(0.75*D$18*FLOOR(D$20,0.05)*0.9*D$35*D$38*o_Isol_Bij_Tijdstip($A75,B$8,B$11)) -> 320.0148601 | C75: W | F75: =(0.75*F$18*FLOOR(F$20,0.05)*0.9*F$35*F$38*o_Isol_Bij_Tijdstip($A75,F$8,F$11))+(0.75*H$18*FLOOR(H$20,0.05)*0.9*H$35*H$38*o_Isol_Bij_Tijdstip($A75,F$8,F$11)) -> 0 | G75: W | J75: =(0.75*J$18*FLOOR(J$20,0.05)*0.9*J$35*J$38*o_Isol_Bij_Tijdstip($A75,J$8,J$11))+(0.75*L$18*FLOOR(L$20,0.05)*0.9*L$35*L$38*o_Isol_Bij_Tijdstip($A75,J$8,J$11)) -> 0 | K75: W | N75: =(0.75*N$18*FLOOR(N$20,0.05)*0.9*N$35*N$38*o_Isol_Bij_Tijdstip($A75,N$8,N$11))+(0.75*P$18*FLOOR(P$20,0.05)*0.9*P$35*P$38*o_Isol_Bij_Tijdstip($A75,N$8,N$11)) -> 0 | O75: W | R75: =(0.75*R$18*FLOOR(R$20,0.05)*0.9*R$35*R$38*o_Isol_Bij_Tijdstip($A75,R$8,R$11))+(0.75*T$18*FLOOR(T$20,0.05)*0.9*T$35*T$38*o_Isol_Bij_Tijdstip($A75,R$8,R$11)) -> 0 | S75: W | T75: 320.0148601 | U75: W
A76: 12:00:00 | B76: =(0.75*B$18*FLOOR(B$20,0.05)*0.9*B$35*B$38*o_Isol_Bij_Tijdstip($A76,B$8,B$11))+(0.75*D$18*FLOOR(D$20,0.05)*0.9*D$35*D$38*o_Isol_Bij_Tijdstip($A76,B$8,B$11)) -> 331.7638753 | C76: W | F76: =(0.75*F$18*FLOOR(F$20,0.05)*0.9*F$35*F$38*o_Isol_Bij_Tijdstip($A76,F$8,F$11))+(0.75*H$18*FLOOR(H$20,0.05)*0.9*H$35*H$38*o_Isol_Bij_Tijdstip($A76,F$8,F$11)) -> 0 | G76: W | J76: =(0.75*J$18*FLOOR(J$20,0.05)*0.9*J$35*J$38*o_Isol_Bij_Tijdstip($A76,J$8,J$11))+(0.75*L$18*FLOOR(L$20,0.05)*0.9*L$35*L$38*o_Isol_Bij_Tijdstip($A76,J$8,J$11)) -> 0 | K76: W | N76: =(0.75*N$18*FLOOR(N$20,0.05)*0.9*N$35*N$38*o_Isol_Bij_Tijdstip($A76,N$8,N$11))+(0.75*P$18*FLOOR(P$20,0.05)*0.9*P$35*P$38*o_Isol_Bij_Tijdstip($A76,N$8,N$11)) -> 0 | O76: W | R76: =(0.75*R$18*FLOOR(R$20,0.05)*0.9*R$35*R$38*o_Isol_Bij_Tijdstip($A76,R$8,R$11))+(0.75*T$18*FLOOR(T$20,0.05)*0.9*T$35*T$38*o_Isol_Bij_Tijdstip($A76,R$8,R$11)) -> 0 | S76: W | T76: 331.7638753 | U76: W
A77: 13:00:00 | B77: =(0.75*B$18*FLOOR(B$20,0.05)*0.9*B$35*B$38*o_Isol_Bij_Tijdstip($A77,B$8,B$11))+(0.75*D$18*FLOOR(D$20,0.05)*0.9*D$35*D$38*o_Isol_Bij_Tijdstip($A77,B$8,B$11)) -> 331.2869633 | C77: W | F77: =(0.75*F$18*FLOOR(F$20,0.05)*0.9*F$35*F$38*o_Isol_Bij_Tijdstip($A77,F$8,F$11))+(0.75*H$18*FLOOR(H$20,0.05)*0.9*H$35*H$38*o_Isol_Bij_Tijdstip($A77,F$8,F$11)) -> 0 | G77: W | J77: =(0.75*J$18*FLOOR(J$20,0.05)*0.9*J$35*J$38*o_Isol_Bij_Tijdstip($A77,J$8,J$11))+(0.75*L$18*FLOOR(L$20,0.05)*0.9*L$35*L$38*o_Isol_Bij_Tijdstip($A77,J$8,J$11)) -> 0 | K77: W | N77: =(0.75*N$18*FLOOR(N$20,0.05)*0.9*N$35*N$38*o_Isol_Bij_Tijdstip($A77,N$8,N$11))+(0.75*P$18*FLOOR(P$20,0.05)*0.9*P$35*P$38*o_Isol_Bij_Tijdstip($A77,N$8,N$11)) -> 0 | O77: W | R77: =(0.75*R$18*FLOOR(R$20,0.05)*0.9*R$35*R$38*o_Isol_Bij_Tijdstip($A77,R$8,R$11))+(0.75*T$18*FLOOR(T$20,0.05)*0.9*T$35*T$38*o_Isol_Bij_Tijdstip($A77,R$8,R$11)) -> 0 | S77: W | T77: 331.2869633 | U77: W
A78: 14:00:00 | B78: =(0.75*B$18*FLOOR(B$20,0.05)*0.9*B$35*B$38*o_Isol_Bij_Tijdstip($A78,B$8,B$11))+(0.75*D$18*FLOOR(D$20,0.05)*0.9*D$35*D$38*o_Isol_Bij_Tijdstip($A78,B$8,B$11)) -> 335.1753172 | C78: W | F78: =(0.75*F$18*FLOOR(F$20,0.05)*0.9*F$35*F$38*o_Isol_Bij_Tijdstip($A78,F$8,F$11))+(0.75*H$18*FLOOR(H$20,0.05)*0.9*H$35*H$38*o_Isol_Bij_Tijdstip($A78,F$8,F$11)) -> 0 | G78: W | J78: =(0.75*J$18*FLOOR(J$20,0.05)*0.9*J$35*J$38*o_Isol_Bij_Tijdstip($A78,J$8,J$11))+(0.75*L$18*FLOOR(L$20,0.05)*0.9*L$35*L$38*o_Isol_Bij_Tijdstip($A78,J$8,J$11)) -> 0 | K78: W | N78: =(0.75*N$18*FLOOR(N$20,0.05)*0.9*N$35*N$38*o_Isol_Bij_Tijdstip($A78,N$8,N$11))+(0.75*P$18*FLOOR(P$20,0.05)*0.9*P$35*P$38*o_Isol_Bij_Tijdstip($A78,N$8,N$11)) -> 0 | O78: W | R78: =(0.75*R$18*FLOOR(R$20,0.05)*0.9*R$35*R$38*o_Isol_Bij_Tijdstip($A78,R$8,R$11))+(0.75*T$18*FLOOR(T$20,0.05)*0.9*T$35*T$38*o_Isol_Bij_Tijdstip($A78,R$8,R$11)) -> 0 | S78: W | T78: 335.1753172 | U78: W
A79: 15:00:00 | B79: =(0.75*B$18*FLOOR(B$20,0.05)*0.9*B$35*B$38*o_Isol_Bij_Tijdstip($A79,B$8,B$11))+(0.75*D$18*FLOOR(D$20,0.05)*0.9*D$35*D$38*o_Isol_Bij_Tijdstip($A79,B$8,B$11)) -> 337.6449801 | C79: W | F79: =(0.75*F$18*FLOOR(F$20,0.05)*0.9*F$35*F$38*o_Isol_Bij_Tijdstip($A79,F$8,F$11))+(0.75*H$18*FLOOR(H$20,0.05)*0.9*H$35*H$38*o_Isol_Bij_Tijdstip($A79,F$8,F$11)) -> 0 | G79: W | J79: =(0.75*J$18*FLOOR(J$20,0.05)*0.9*J$35*J$38*o_Isol_Bij_Tijdstip($A79,J$8,J$11))+(0.75*L$18*FLOOR(L$20,0.05)*0.9*L$35*L$38*o_Isol_Bij_Tijdstip($A79,J$8,J$11)) -> 0 | K79: W | N79: =(0.75*N$18*FLOOR(N$20,0.05)*0.9*N$35*N$38*o_Isol_Bij_Tijdstip($A79,N$8,N$11))+(0.75*P$18*FLOOR(P$20,0.05)*0.9*P$35*P$38*o_Isol_Bij_Tijdstip($A79,N$8,N$11)) -> 0 | O79: W | R79: =(0.75*R$18*FLOOR(R$20,0.05)*0.9*R$35*R$38*o_Isol_Bij_Tijdstip($A79,R$8,R$11))+(0.75*T$18*FLOOR(T$20,0.05)*0.9*T$35*T$38*o_Isol_Bij_Tijdstip($A79,R$8,R$11)) -> 0 | S79: W | T79: 337.6449801 | U79: W
A80: 16:00:00 | B80: =(0.75*B$18*FLOOR(B$20,0.05)*0.9*B$35*B$38*o_Isol_Bij_Tijdstip($A80,B$8,B$11))+(0.75*D$18*FLOOR(D$20,0.05)*0.9*D$35*D$38*o_Isol_Bij_Tijdstip($A80,B$8,B$11)) -> 277.1581684 | C80: W | F80: =(0.75*F$18*FLOOR(F$20,0.05)*0.9*F$35*F$38*o_Isol_Bij_Tijdstip($A80,F$8,F$11))+(0.75*H$18*FLOOR(H$20,0.05)*0.9*H$35*H$38*o_Isol_Bij_Tijdstip($A80,F$8,F$11)) -> 0 | G80: W | J80: =(0.75*J$18*FLOOR(J$20,0.05)*0.9*J$35*J$38*o_Isol_Bij_Tijdstip($A80,J$8,J$11))+(0.75*L$18*FLOOR(L$20,0.05)*0.9*L$35*L$38*o_Isol_Bij_Tijdstip($A80,J$8,J$11)) -> 0 | K80: W | N80: =(0.75*N$18*FLOOR(N$20,0.05)*0.9*N$35*N$38*o_Isol_Bij_Tijdstip($A80,N$8,N$11))+(0.75*P$18*FLOOR(P$20,0.05)*0.9*P$35*P$38*o_Isol_Bij_Tijdstip($A80,N$8,N$11)) -> 0 | O80: W | R80: =(0.75*R$18*FLOOR(R$20,0.05)*0.9*R$35*R$38*o_Isol_Bij_Tijdstip($A80,R$8,R$11))+(0.75*T$18*FLOOR(T$20,0.05)*0.9*T$35*T$38*o_Isol_Bij_Tijdstip($A80,R$8,R$11)) -> 0 | S80: W | T80: 277.1581684 | U80: W
A81: 17:00:00 | B81: =(0.75*B$18*FLOOR(B$20,0.05)*0.9*B$35*B$38*o_Isol_Bij_Tijdstip($A81,B$8,B$11))+(0.75*D$18*FLOOR(D$20,0.05)*0.9*D$35*D$38*o_Isol_Bij_Tijdstip($A81,B$8,B$11)) -> 244.998595 | C81: W | F81: =(0.75*F$18*FLOOR(F$20,0.05)*0.9*F$35*F$38*o_Isol_Bij_Tijdstip($A81,F$8,F$11))+(0.75*H$18*FLOOR(H$20,0.05)*0.9*H$35*H$38*o_Isol_Bij_Tijdstip($A81,F$8,F$11)) -> 0 | G81: W | J81: =(0.75*J$18*FLOOR(J$20,0.05)*0.9*J$35*J$38*o_Isol_Bij_Tijdstip($A81,J$8,J$11))+(0.75*L$18*FLOOR(L$20,0.05)*0.9*L$35*L$38*o_Isol_Bij_Tijdstip($A81,J$8,J$11)) -> 0 | K81: W | N81: =(0.75*N$18*FLOOR(N$20,0.05)*0.9*N$35*N$38*o_Isol_Bij_Tijdstip($A81,N$8,N$11))+(0.75*P$18*FLOOR(P$20,0.05)*0.9*P$35*P$38*o_Isol_Bij_Tijdstip($A81,N$8,N$11)) -> 0 | O81: W | R81: =(0.75*R$18*FLOOR(R$20,0.05)*0.9*R$35*R$38*o_Isol_Bij_Tijdstip($A81,R$8,R$11))+(0.75*T$18*FLOOR(T$20,0.05)*0.9*T$35*T$38*o_Isol_Bij_Tijdstip($A81,R$8,R$11)) -> 0 | S81: W | T81: 244.998595 | U81: W
A82: 18:00:00 | B82: =(0.75*B$18*FLOOR(B$20,0.05)*0.9*B$35*B$38*o_Isol_Bij_Tijdstip($A82,B$8,B$11))+(0.75*D$18*FLOOR(D$20,0.05)*0.9*D$35*D$38*o_Isol_Bij_Tijdstip($A82,B$8,B$11)) -> 240.0413367 | C82: W | F82: =(0.75*F$18*FLOOR(F$20,0.05)*0.9*F$35*F$38*o_Isol_Bij_Tijdstip($A82,F$8,F$11))+(0.75*H$18*FLOOR(H$20,0.05)*0.9*H$35*H$38*o_Isol_Bij_Tijdstip($A82,F$8,F$11)) -> 0 | G82: W | J82: =(0.75*J$18*FLOOR(J$20,0.05)*0.9*J$35*J$38*o_Isol_Bij_Tijdstip($A82,J$8,J$11))+(0.75*L$18*FLOOR(L$20,0.05)*0.9*L$35*L$38*o_Isol_Bij_Tijdstip($A82,J$8,J$11)) -> 0 | K82: W | N82: =(0.75*N$18*FLOOR(N$20,0.05)*0.9*N$35*N$38*o_Isol_Bij_Tijdstip($A82,N$8,N$11))+(0.75*P$18*FLOOR(P$20,0.05)*0.9*P$35*P$38*o_Isol_Bij_Tijdstip($A82,N$8,N$11)) -> 0 | O82: W | R82: =(0.75*R$18*FLOOR(R$20,0.05)*0.9*R$35*R$38*o_Isol_Bij_Tijdstip($A82,R$8,R$11))+(0.75*T$18*FLOOR(T$20,0.05)*0.9*T$35*T$38*o_Isol_Bij_Tijdstip($A82,R$8,R$11)) -> 0 | S82: W | T82: 240.0413367 | U82: W
A84: Maatgevende tijdstip | B84: =IF(MAX(T73:T82)=0,"Geen glas aanwezig",_xlfn.XLOOKUP(MAX(T73:T82),T73:T82,A73:A82,"nvt")) -> 15:00:00

Sheet Ruimte 6
A1: RUIMTE 6
A3: Ruimtenaam | B3: slaap 5
A4: Type verblijfsruimte | B4: Andere verblijfsruimte
A5: Vloeroppervlak verblijfsruimte Avr (gebruiksoppervlak) | B5: 18.1 | C5: m²
B7: Voorzijde woning | F7: Linker zijde woning | J7: Achterzijde woning | N7: Rechter zijde woning | R7: Platdak
A8: Orientatie gevel / dakvlak (Helling > 15°C) | B8: =Invoerblad!$B$17 -> Noord | F8: =o_Orientatie(F9) -> Oost | J8: =o_Orientatie(J9) -> Zuid | N8: =o_Orientatie(N9) -> West | R8: Horizontaal
A9: Orientatiehoek gevel Ƴ | B9: =o_OrientatiehOEK(B8) -> 0 | F9: =IF(B9+90>360,B9+90-360,B9+90) -> 90 | J9: =IF(F9+90>360,F9+90-360,F9+90) -> 180 | N9: =IF(J9+90>360,J9+90-360,J9+90) -> 270
A10: Grenst aan buitenlucht ja of nee | B10: Nee | F10: Nee | J10: Ja | N10: Nee | R10: Ja
A11: Hellingshoek constructie ≥ 15° = hellenddak 90° = gevel | B11: 90 | C11: ° | F11: 90 | G11: ° | J11: 90 | K11: ° | N11: 90 | O11: ° | R11: 10 | S11: °
A12: Type constructie | B12: =o_TypeConstructie(B10,B11) -> Woningscheidend | F12: =o_TypeConstructie(F10,F11) -> Woningscheidend | J12: =o_TypeConstructie(J10,J11) -> Buitengevel | N12: =o_TypeConstructie(N10,N11) -> Woningscheidend | R12: =o_TypeConstructie(R10,R11) -> Platdak <15°
A13: Gevel lengte (binnenwerks) | B13: 5 | C13: m | F13: 0 | G13: m | J13: 0 | K13: m | N13: 0 | O13: m | R13: 0 | S13: m
A14: Gevel hoogte / Dak breedte (binnenwerks) | B14: 2 | C14: m | F14: 0 | G14: m | J14: 0 | K14: m | N14: 0 | O14: m | R14: 0 | S14: m
A15: Constructie oppervlak (binnenwerks) | B15: =B13*B14 -> 10 | C15: m² | F15: =F13*F14 -> 0 | G15: m² | J15: 15.87 | K15: m² | N15: =N13*N14 -> 0 | O15: m² | R15: 19.3 | S15: m²
A16: Gesloten constructie oppervlak | B16: =MAX(0,B15-B18-D18) -> 10 | C16: m² | F16: =MAX(0,F15-F18-H18) -> 0 | G16: m² | J16: =MAX(0,J15-J18-L18) -> 12.07 | K16: m² | N16: =MAX(0,N15-N18-P18) -> 0 | O16: m² | R16: =MAX(0,R15-R18-T18) -> 19.3 | S16: m²
B17: Glasvlak type 1 | D17: Glasvlak type 2 | F17: Glasvlak type 1 | H17: Glasvlak type 2 | J17: Glasvlak type 1 | L17: Glasvlak type 2 | N17: Glasvlak type 1 | P17: Glasvlak type 2 | R17: Glasvlak type 1 | T17: Glasvlak type 2
A18: Totaal oppervlak van raamtype Aw,k (inclusief kozijn) | B18: 0 | C18: m² | D18: 0 | E18: m² | F18: 0 | G18: m² | H18: 0 | I18: m² | J18: 1.9 | K18: m² | L18: 1.9 | M18: m² | N18: 0 | O18: m² | P18: 0 | Q18: m² | R18: 0 | S18: m² | T18: 0 | U18: m²
A19: Warmtedoorgangscoefficient (U-waarde) van het raam Uw;wi;k | B19: 1.6 | C19: W/m².K | D19: 1.6 | E19: W/m².K | F19: 1.6 | G19: W/m².K | H19: 1.6 | I19: W/m².K | J19: 1.5 | K19: W/m².K | L19: 1.5 | M19: W/m².K | N19: 1.6 | O19: W/m².K | P19: 1.6 | Q19: W/m².K | R19: 1.6 | S19: W/m².K | T19: 1.6 | U19: W/m².K
A20: Zontoetredingsfactor (g_waarde) van het glas Ggl;n;wi;k;C;juli | B20: 1 | D20: 1 | F20: 1 | H20: 1 | J20: 0.6 | L20: 0.6 | N20: 1 | P20: 1 | R20: 1 | T20: 1
A21: Beschaduwing situatie bij het raamtype | B21: Minimale belemmering | D21: Minimale belemmering | F21: Minimale belemmering | H21: Minimale belemmering | J21: Minimale belemmering | L21: Minimale belemmering | N21: Minimale belemmering | P21: Minimale belemmering | R21: Minimale belemmering | T21: Minimale belemmering
B23: Overstek | D23: Overstek | F23: Overstek | H23: Overstek | J23: Overstek | L23: Overstek | N23: Overstek | P23: Overstek
A24: Hoogte verschil midden raam onderzijde overstek | B24: 0 | C24: m | D24: 0 | E24: m | F24: 0 | G24: m | H24: 0 | I24: m | J24: 0 | K24: m | L24: 0 | M24: m | N24: 0 | O24: m | P24: 0 | Q24: m | R24: 0 | U24: m
A25: Horizontale afstand glas tot eindpunt overstek | B25: 0 | C25: m | D25: 0 | E25: m | F25: 0 | G25: m | H25: 0 | I25: m | J25: 0 | K25: m | L25: 0 | M25: m | N25: 0 | O25: m | P25: 0 | Q25: m | R25: 0 | U25: m
A26: Overstekhoek | B26: =IFERROR(180/PI()*ATAN(B24/B25),0) -> 0 | C26: ° | D26: =IFERROR(180/PI()*ATAN(D24/D25),0) -> 0 | E26: ° | F26: =IFERROR(180/PI()*ATAN(F24/F25),0) -> 0 | G26: ° | H26: =IFERROR(180/PI()*ATAN(H24/H25),0) -> 0 | I26: ° | J26: =IFERROR(180/PI()*ATAN(J24/J25),0) -> 0 | K26: ° | L26: =IFERROR(180/PI()*ATAN(L24/L25),0) -> 0 | M26: ° | N26: =IFERROR(180/PI()*ATAN(N24/N25),0) -> 0 | O26: ° | P26: =IFERROR(180/PI()*ATAN(P24/P25),0) -> 0 | Q26: ° | U26: °
A27: Relatieve hoogte van overstek | B27: =IFERROR(B24/B25,1) -> 1 | D27: =IFERROR(D24/D25,1) -> 1 | F27: =IFERROR(F24/F25,1) -> 1 | H27: =IFERROR(H24/H25,1) -> 1 | J27: =IFERROR(J24/J25,1) -> 1 | L27: =IFERROR(L24/L25,1) -> 1 | N27: =IFERROR(N24/N25,1) -> 1 | P27: =IFERROR(P24/P25,1) -> 1
B29: Zijbelemmering | D29: Zijbelemmering | F29: Zijbelemmering | H29: Zijbelemmering | J29: Zijbelemmering | L29: Zijbelemmering | N29: Zijbelemmering | P29: Zijbelemmering
A30: Positie zijbelemmering irt zichtveld (naar buitengericht) | B30: Links | D30: Links | F30: Links | H30: Links | J30: Links | L30: Links | N30: Links | P30: Links
A31: Horizontale afstand midden raam verste punt belemmering | B31: 0 | C31: m | D31: 0 | E31: m | G31: m | I31: m | K31: m | L31: 1 | M31: m | O31: m | Q31: m | U31: m
A32: Horizontale breedte glas tot eindpunt belemmering | B32: 0 | C32: m | D32: 0 | E32: m | G32: m | I32: m | K32: m | M32: m | O32: m | Q32: m | U32: m
A33: Relatieve breedte van de zijbelemmering bb | B33: =IFERROR(B31/B32,999) -> 999 | D33: =IFERROR(D31/D32,999) -> 999 | F33: =IFERROR(F31/F32,999) -> 999 | H33: =IFERROR(H31/H32,999) -> 999 | J33: =IFERROR(J31/J32,999) -> 999 | L33: =IFERROR(L31/L32,999) -> 999 | N33: =IFERROR(N31/N32,999) -> 999 | P33: =IFERROR(P31/P32,999) -> 999
A35: De beschaduwingsreductiefactor Fsh;obst;wi;k;juli | B35: =IFERROR(o_Beschaduwingreductie(B21,B8,B27,B30,B33,B11),1) -> 1 | D35: =IFERROR(o_Beschaduwingreductie(D21,B8,D27,D30,D33,B11),1) -> 1 | F35: =IFERROR(o_Beschaduwingreductie(F21,F8,F27,F30,F33,F11),1) -> 1 | H35: =IFERROR(o_Beschaduwingreductie(H21,F8,H27,H30,H33,F11),1) -> 1 | J35: =IFERROR(o_Beschaduwingreductie(J21,J8,J27,J30,J33,J11),1) -> 1 | L35: =IFERROR(o_Beschaduwingreductie(L21,J8,L27,L30,L33,J11),1) -> 1 | N35: =IFERROR(o_Beschaduwingreductie(N21,N8,N27,N30,N33,N11),1) -> 1 | P35: =IFERROR(o_Beschaduwingreductie(P21,N8,P27,P30,P33,N11),1) -> 1 | R35: =o_Beschaduwingreductie(R21,R8,R27,R30,R33,R11) -> 1 | T35: =o_Beschaduwingreductie(T21,R8,T27,T30,T33,R11) -> 1
A37: Type zonwering | B37: Geen zonwering | D37: Geen zonwering | F37: Geen zonwering | H37: Geen zonwering | J37: Screen (wit) | L37: Screen (wit) | N37: Geen zonwering | P37: Geen zonwering | R37: Geen zonwering | T37: Geen zonwering
A38: De reductiefactor voor zonwering Fc;wi;k | B38: =o_Zonweringreductie(B37,B8) -> 1 | D38: =o_Zonweringreductie(D37,B8) -> 1 | F38: =o_Zonweringreductie(F37,F8) -> 1 | H38: =o_Zonweringreductie(H37,F8) -> 1 | J38: =o_Zonweringreductie(J37,J8) -> 0.25 | L38: =o_Zonweringreductie(L37,J8) -> 0.25 | N38: =o_Zonweringreductie(N37,N8) -> 1 | P38: =o_Zonweringreductie(P37,N8) -> 1 | R38: =o_Zonweringreductie(R37,R8) -> 1 | T38: =o_Zonweringreductie(T37,R8) -> 1
A39: Totaal opvallende zonnestraling van het raam Isol;wi;k;juli | B39: =IF(B10="Nee",0,o_Isol_Bij_Tijdstip($B$52,B8,B11)) -> 0 | C39: W/m² | D39: =IF(B10="Nee",0,o_Isol_Bij_Tijdstip($B$52,B8,B11)) -> 0 | E39: W/m² | F39: =IF(F10="Nee",0,o_Isol_Bij_Tijdstip($B$52,F8,F11)) -> 0 | G39: W/m² | H39: =IF(F10="Nee",0,o_Isol_Bij_Tijdstip($B$52,F8,F11)) -> 0 | I39: W/m² | J39: =IF(J10="Nee",0,o_Isol_Bij_Tijdstip($B$52,J8,J11)) -> 740.0583625 | K39: W/m² | L39: =IF(J10="Nee",0,o_Isol_Bij_Tijdstip($B$52,J8,J11)) -> 740.0583625 | M39: W/m² | N39: =IF(N10="Nee",0,o_Isol_Bij_Tijdstip($B$52,N8,N11)) -> 0 | O39: W/m² | P39: =IF(N10="Nee",0,o_Isol_Bij_Tijdstip($B$52,N8,N11)) -> 0 | Q39: W/m² | R39: =IF(R10="Nee",0,o_Isol_Bij_Tijdstip($B$52,R8,R11)) -> 875.0868199 | S39: W/m² | T39: =IF(R10="Nee",0,o_Isol_Bij_Tijdstip($B$52,R8,R11)) -> 875.0868199 | U39: W/m²
A41: Tijdstip maximale koellastbijdrage tmax;zi | B41: =VALUE(o_Tijdstip_Isol_Max_Orientatie(B8,B11)) -> 15:00:00 | F41: =VALUE(o_Tijdstip_Isol_Max_Orientatie(F8,F11)) -> 09:00:00 | J41: =VALUE(o_Tijdstip_Isol_Max_Orientatie(J8,J11)) -> 14:00:00 | N41: =VALUE(o_Tijdstip_Isol_Max_Orientatie(N8,N11)) -> 18:00:00 | R41: =o_Tijdstip_Isol_Max_Orientatie(R8,R11) -> 16:00:00
A42: Buitenluchttemperatuur op tijdstip max koellast Θe | B42: =o_maxTemp(VALUE(B41)) -> 29.8 | E42: °C | F42: =o_maxTemp(VALUE(F41)) -> 24.7 | I42: °C | J42: =o_maxTemp(VALUE(J41)) -> 29.9 | M42: °C | N42: =o_maxTemp(VALUE(N41)) -> 30.1 | Q42: °C | R42: =o_maxTemp(VALUE(R41)) -> 30.4
A44: Glasopppervlak | B44: =IF(B10="Ja",B18+D18,0) -> 0 | C44: m² | F44: =IF(F10="Ja",F18+H18,0) -> 0 | G44: m² | J44: =IF(J10="Ja",J18+L18,0) -> 3.8 | K44: m² | N44: =IF(N10="Ja",N18+P18,0) -> 0 | O44: m² | R44: =IF(R10="Ja",R18+T18,0) -> 0 | S44: m²
A45: Uitwendigescheidingsconstructie niet op Noord? | B45: =IF(B10="Ja",IF(B8="Noord",FALSE,TRUE),FALSE) -> FALSE | F45: =IF(F10="Ja",IF(F8="Noord",FALSE,TRUE),FALSE) -> FALSE | J45: =IF(J10="Ja",IF(J8="Noord",FALSE,TRUE),FALSE) -> TRUE | N45: =IF(N10="Ja",IF(N8="Noord",FALSE,TRUE),FALSE) -> FALSE | R45: =IF(R10="Ja",IF(R8="Noord",FALSE,TRUE),FALSE) -> TRUE
A46: De enige uitwendigescheidingscontructie? | B46: =IF(AND(B45=TRUE,COUNTIF($B$45:$R$45,TRUE)=1),TRUE,FALSE) -> FALSE | F46: =IF(AND(F45=TRUE,COUNTIF($B$45:$R$45,TRUE)=1),TRUE,FALSE) -> FALSE | J46: =IF(AND(J45=TRUE,COUNTIF($B$45:$R$45,TRUE)=1),TRUE,FALSE) -> FALSE | N46: =IF(AND(N45=TRUE,COUNTIF($B$45:$R$45,TRUE)=1),TRUE,FALSE) -> FALSE | R46: =IF(AND(R45=TRUE,COUNTIF($B$45:$R$45,TRUE)=1),TRUE,FALSE) -> FALSE
A47: Totaal glasoppervlak | B47: =IF(B8<>"Noord",B44,0) -> 0 | C47: m² | F47: =IF(F8<>"Noord",F44,0) -> 0 | G47: m² | J47: =IF(J8<>"Noord",J44,0) -> 3.8 | K47: m² | N47: =IF(N8<>"Noord",N44,0) -> 0 | O47: m² | R47: =R44 -> 0 | S47: m²
A48: Grootste glasoppervlak | B48: =IF(AND(B45,B47=MAX($B$47:$R$47)),TRUE,FALSE) -> FALSE | F48: =IF(AND(F45,F47=MAX($B$47:$R$47)),TRUE,FALSE) -> FALSE | J48: =IF(AND(J45,J47=MAX($B$47:$R$47)),TRUE,FALSE) -> TRUE | N48: =IF(AND(N45,N47=MAX($B$47:$R$47)),TRUE,FALSE) -> FALSE | R48: =IF(AND(R45,R47=MAX($B$47:$R$47)),TRUE,FALSE) -> FALSE
A49: Dakvlak maatgevend? | B49: =IF(AND(B11<90,B15>3*(B18+D18),Invoerblad!$B$25<65),TRUE,FALSE) -> FALSE | F49: =IF(AND(F11<90,F15>3*(F18+H18),Invoerblad!$B$25<65),TRUE,FALSE) -> FALSE | J49: =IF(AND(J11<90,J15>3*(J18+L18),Invoerblad!$B$25<65),TRUE,FALSE) -> FALSE | N49: =IF(AND(N11<90,N15>3*(N18+P18),Invoerblad!$B$25<65),TRUE,FALSE) -> FALSE | R49: =IF(AND(R11<90,R15>3*(R18+T18),Invoerblad!$B$25<65),TRUE,FALSE) -> TRUE
A50: is er een maatgevend dakoppervlak | B50: =IF(COUNTIF($B$49:$R$49,TRUE)>0,TRUE,FALSE) -> TRUE | F50: =IF(COUNTIF($B$49:$R$49,TRUE)>0,TRUE,FALSE) -> TRUE | J50: =IF(COUNTIF($B$49:$R$49,TRUE)>0,TRUE,FALSE) -> TRUE | N50: =IF(COUNTIF($B$49:$R$49,TRUE)>0,TRUE,FALSE) -> TRUE | R50: =IF(COUNTIF($B$49:$R$49,TRUE)>0,TRUE,FALSE) -> TRUE
A51: Maatgevende tijdstip | B51: =IF(OR(B46,AND(B45,B50,B49),AND(B45,B48,NOT(B50))),B41) -> FALSE | F51: =IF(OR(F46,AND(F45,F50,F49),AND(F45,F48,NOT(F50))),F41) -> FALSE | J51: =IF(OR(J46,AND(J45,J50,J49),AND(J45,J48,NOT(J50))),J41) -> FALSE | N51: =IF(OR(N46,AND(N45,N50,N49),AND(N45,N48,NOT(N50))),N41) -> FALSE | R51: =IF(OR(R46,AND(R45,R50,R49),AND(R45,R48,NOT(R50))),R41) -> 16:00:00
A52: Maatgevende tijdstip tmax;zi | B52: =IFERROR(B84,"geen glas ingevoerd") -> 14:00:00
A53: Buitenluchttemperatuur op tijdstip max koellast Θe | B53: =o_maxTemp(VALUE(B52)) -> 29.9 | C53: °C
A55: Koellastbijdrage transmissie transparante delen Ptr;gl;vr;zi | B55: =IF(B10="Nee",0,B16*Invoerblad!$B$16) -> 0 | E55: W | F55: =IF(F10="Nee",0,F16*Invoerblad!$B$16) -> 0 | I55: W | J55: =IF(J10="Nee",0,J16*Invoerblad!$B$16) -> 26.554 | M55: W | N55: =IF(N10="Nee",0,N16*Invoerblad!$B$16) -> 0 | Q55: W | R55: =IF(R10="Nee",0,R16*Invoerblad!$B$16) -> 42.46 | U55: W
A56: Koellastbijdrage zoninstraling transparante delen Psol;vr;zi | B56: =(0.75*B18*FLOOR(B20,0.05)*0.9*B35*B38*B39)+(0.75*D18*FLOOR(D20,0.05)*0.9*D35*D38*D39) -> 0 | E56: W | F56: =(0.75*F18*FLOOR(F20,0.05)*0.9*F35*F38*F39)+(0.75*H18*FLOOR(H20,0.05)*0.9*H35*H38*H39) -> 0 | I56: W | J56: =(0.75*J18*FLOOR(J20,0.05)*0.9*J35*J38*J39)+(0.75*L18*FLOOR(L20,0.05)*0.9*L35*L38*L39) -> 284.737455 | M56: W | N56: =(0.75*N18*FLOOR(N20,0.05)*0.9*N35*N38*N39)+(0.75*P18*FLOOR(P20,0.05)*0.9*P35*P38*P39) -> 0 | Q56: W | R56: =(0.75*R18*FLOOR(R20,0.05)*0.9*R35*R38*R39)+(0.75*T18*FLOOR(T20,0.05)*0.9*T35*T38*T39) -> 0 | U56: W
A57: Koellastbijdrage transmissie transparante delen Ptr;gl;vr;zi | B57: =IF(B10="Nee",0,IFERROR(B18*B19*($B$53-24),0)+IFERROR(D18*D19*($B$53-24),0)) -> 0 | E57: W | F57: =IF(F10="Nee",0,IFERROR(F18*F19*($B$53-24),0)+IFERROR(H18*H19*($B$53-24),0)) -> 0 | I57: W | J57: =IF(J10="Nee",0,IFERROR(J18*J19*($B$53-24),0)+IFERROR(L18*L19*($B$53-24),0)) -> 33.63 | M57: W | N57: =IF(N10="Nee",0,IFERROR(N18*N19*($B$53-24),0)+IFERROR(P18*P19*($B$53-24),0)) -> 0 | Q57: W | R57: =IF(R10="Nee",0,IFERROR(R18*R19*($B$53-24),0)+IFERROR(T18*T19*($B$53-24),0)) -> 0 | U57: W
A58: Totaal koellastbijdrage per gevel | B58: =SUM(B55:D57) -> 0 | E58: W | F58: =SUM(F55:H57) -> 0 | I58: W | J58: =SUM(J55:L57) -> 344.921455 | M58: W | N58: =SUM(N55:P57) -> 0 | Q58: W | R58: =SUM(R55:R57) -> 42.46 | U58: W
A60: Koellast door interne warmtelast Pint;calc;woon/overig;zi | B60: =IF(B5=0,0,IF(B4="Woonvertrek",2*Invoerblad!$B$40*B5,Invoerblad!$B$40*B5)) -> 59.13789894 | E60: W
A61: Koellast door buitenluchttoetreding Pv;calc;vr;zi | B61: =IFERROR(MAX((SUM(Invoerblad!$B$28:$B$30)/3600*1.205*1005*(B53-24))/SUM(Invoerblad!$B$47:$T$47)*B5,0),0) -> 81.13676996 | C61: =IFERROR(MAX(SUM(C57:C59)/3600*1.205*1005*(C60-24),0),0) -> 0 | D61: =IFERROR(MAX(SUM(D57:D59)/3600*1.205*1005*(D60-24),0),0) -> 0 | E61: W
A63: Totaal koellastbijdrage | B63: =IFERROR(SUM(B58:T58)+B60+B61,0) -> 527.6561239 | E63: W
A64: Koelbehoefte verblijfsruimte | B64: =IFERROR(B63/B5,0) -> 29.15227204 | E64: W/m²
A67: Onderstaande tabellen worden verborgen in de uiteindelijke versie. De tabellen dienen om vast te stellen welk tijdstip tot de hoogste zonbelasting leidt
A69: Isol max voor de orientatie | B69: =o_Isol_Max_Orientatie(B8,B11) -> 143.7398809 | C69: W/m² | F69: =o_Isol_Max_Orientatie(F8,F11) -> 845.3277237 | G69: W/m² | J69: =o_Isol_Max_Orientatie(J8,J11) -> 740.0583625 | K69: W/m² | N69: =o_Isol_Max_Orientatie(N8,N11) -> 741.7580929 | O69: W/m² | R69: =o_Isol_Max_Orientatie(R8,R11) -> 914.160926 | S69: W/m²
A70: Tijdstip bij Isol max bij orientatie | B70: =VALUE(o_Tijdstip_Isol_Max_Orientatie(B8,B11)) -> 15:00:00 | F70: =VALUE(o_Tijdstip_Isol_Max_Orientatie(F8,F11)) -> 09:00:00 | J70: =VALUE(o_Tijdstip_Isol_Max_Orientatie(J8,J11)) -> 14:00:00 | N70: =VALUE(o_Tijdstip_Isol_Max_Orientatie(N8,N11)) -> 18:00:00 | R70: =VALUE(o_Tijdstip_Isol_Max_Orientatie(R8,R11)) -> 16:00:00
A72: Koellastbijdrage zoninstraling transparante delen Psol;vr;zi
A73: 09:00:00 | B73: =(0.75*B$18*FLOOR(B$20,0.05)*0.9*B$35*B$38*o_Isol_Bij_Tijdstip($A73,B$8,B$11))+(0.75*D$18*FLOOR(D$20,0.05)*0.9*D$35*D$38*o_Isol_Bij_Tijdstip($A73,B$8,B$11)) -> 0 | C73: W | F73: =(0.75*F$18*FLOOR(F$20,0.05)*0.9*F$35*F$38*o_Isol_Bij_Tijdstip($A73,F$8,F$11))+(0.75*H$18*FLOOR(H$20,0.05)*0.9*H$35*H$38*o_Isol_Bij_Tijdstip($A73,F$8,F$11)) -> 0 | G73: W | J73: =(0.75*J$18*FLOOR(J$20,0.05)*0.9*J$35*J$38*o_Isol_Bij_Tijdstip($A73,J$8,J$11))+(0.75*L$18*FLOOR(L$20,0.05)*0.9*L$35*L$38*o_Isol_Bij_Tijdstip($A73,J$8,J$11)) -> 86.6961689 | K73: W | N73: =(0.75*N$18*FLOOR(N$20,0.05)*0.9*N$35*N$38*o_Isol_Bij_Tijdstip($A73,N$8,N$11))+(0.75*P$18*FLOOR(P$20,0.05)*0.9*P$35*P$38*o_Isol_Bij_Tijdstip($A73,N$8,N$11)) -> 0 | O73: W | R73: =(0.75*R$18*FLOOR(R$20,0.05)*0.9*R$35*R$38*o_Isol_Bij_Tijdstip($A73,R$8,R$11))+(0.75*T$18*FLOOR(T$20,0.05)*0.9*T$35*T$38*o_Isol_Bij_Tijdstip($A73,R$8,R$11)) -> 0 | S73: W | T73: =B73+F73+J73+N73+R73 -> 86.6961689 | U73: W
A74: 10:00:00 | B74: =(0.75*B$18*FLOOR(B$20,0.05)*0.9*B$35*B$38*o_Isol_Bij_Tijdstip($A74,B$8,B$11))+(0.75*D$18*FLOOR(D$20,0.05)*0.9*D$35*D$38*o_Isol_Bij_Tijdstip($A74,B$8,B$11)) -> 0 | C74: W | F74: =(0.75*F$18*FLOOR(F$20,0.05)*0.9*F$35*F$38*o_Isol_Bij_Tijdstip($A74,F$8,F$11))+(0.75*H$18*FLOOR(H$20,0.05)*0.9*H$35*H$38*o_Isol_Bij_Tijdstip($A74,F$8,F$11)) -> 0 | G74: W | J74: =(0.75*J$18*FLOOR(J$20,0.05)*0.9*J$35*J$38*o_Isol_Bij_Tijdstip($A74,J$8,J$11))+(0.75*L$18*FLOOR(L$20,0.05)*0.9*L$35*L$38*o_Isol_Bij_Tijdstip($A74,J$8,J$11)) -> 157.8646243 | K74: W | N74: =(0.75*N$18*FLOOR(N$20,0.05)*0.9*N$35*N$38*o_Isol_Bij_Tijdstip($A74,N$8,N$11))+(0.75*P$18*FLOOR(P$20,0.05)*0.9*P$35*P$38*o_Isol_Bij_Tijdstip($A74,N$8,N$11)) -> 0 | O74: W | R74: =(0.75*R$18*FLOOR(R$20,0.05)*0.9*R$35*R$38*o_Isol_Bij_Tijdstip($A74,R$8,R$11))+(0.75*T$18*FLOOR(T$20,0.05)*0.9*T$35*T$38*o_Isol_Bij_Tijdstip($A74,R$8,R$11)) -> 0 | S74: W | T74: 157.8646243 | U74: W
A75: 11:00:00 | B75: =(0.75*B$18*FLOOR(B$20,0.05)*0.9*B$35*B$38*o_Isol_Bij_Tijdstip($A75,B$8,B$11))+(0.75*D$18*FLOOR(D$20,0.05)*0.9*D$35*D$38*o_Isol_Bij_Tijdstip($A75,B$8,B$11)) -> 0 | C75: W | F75: =(0.75*F$18*FLOOR(F$20,0.05)*0.9*F$35*F$38*o_Isol_Bij_Tijdstip($A75,F$8,F$11))+(0.75*H$18*FLOOR(H$20,0.05)*0.9*H$35*H$38*o_Isol_Bij_Tijdstip($A75,F$8,F$11)) -> 0 | G75: W | J75: =(0.75*J$18*FLOOR(J$20,0.05)*0.9*J$35*J$38*o_Isol_Bij_Tijdstip($A75,J$8,J$11))+(0.75*L$18*FLOOR(L$20,0.05)*0.9*L$35*L$38*o_Isol_Bij_Tijdstip($A75,J$8,J$11)) -> 204.0116507 | K75: W | N75: =(0.75*N$18*FLOOR(N$20,0.05)*0.9*N$35*N$38*o_Isol_Bij_Tijdstip($A75,N$8,N$11))+(0.75*P$18*FLOOR(P$20,0.05)*0.9*P$35*P$38*o_Isol_Bij_Tijdstip($A75,N$8,N$11)) -> 0 | O75: W | R75: =(0.75*R$18*FLOOR(R$20,0.05)*0.9*R$35*R$38*o_Isol_Bij_Tijdstip($A75,R$8,R$11))+(0.75*T$18*FLOOR(T$20,0.05)*0.9*T$35*T$38*o_Isol_Bij_Tijdstip($A75,R$8,R$11)) -> 0 | S75: W | T75: 204.0116507 | U75: W
A76: 12:00:00 | B76: =(0.75*B$18*FLOOR(B$20,0.05)*0.9*B$35*B$38*o_Isol_Bij_Tijdstip($A76,B$8,B$11))+(0.75*D$18*FLOOR(D$20,0.05)*0.9*D$35*D$38*o_Isol_Bij_Tijdstip($A76,B$8,B$11)) -> 0 | C76: W | F76: =(0.75*F$18*FLOOR(F$20,0.05)*0.9*F$35*F$38*o_Isol_Bij_Tijdstip($A76,F$8,F$11))+(0.75*H$18*FLOOR(H$20,0.05)*0.9*H$35*H$38*o_Isol_Bij_Tijdstip($A76,F$8,F$11)) -> 0 | G76: W | J76: =(0.75*J$18*FLOOR(J$20,0.05)*0.9*J$35*J$38*o_Isol_Bij_Tijdstip($A76,J$8,J$11))+(0.75*L$18*FLOOR(L$20,0.05)*0.9*L$35*L$38*o_Isol_Bij_Tijdstip($A76,J$8,J$11)) -> 239.1124501 | K76: W | N76: =(0.75*N$18*FLOOR(N$20,0.05)*0.9*N$35*N$38*o_Isol_Bij_Tijdstip($A76,N$8,N$11))+(0.75*P$18*FLOOR(P$20,0.05)*0.9*P$35*P$38*o_Isol_Bij_Tijdstip($A76,N$8,N$11)) -> 0 | O76: W | R76: =(0.75*R$18*FLOOR(R$20,0.05)*0.9*R$35*R$38*o_Isol_Bij_Tijdstip($A76,R$8,R$11))+(0.75*T$18*FLOOR(T$20,0.05)*0.9*T$35*T$38*o_Isol_Bij_Tijdstip($A76,R$8,R$11)) -> 0 | S76: W | T76: 239.1124501 | U76: W
A77: 13:00:00 | B77: =(0.75*B$18*FLOOR(B$20,0.05)*0.9*B$35*B$38*o_Isol_Bij_Tijdstip($A77,B$8,B$11))+(0.75*D$18*FLOOR(D$20,0.05)*0.9*D$35*D$38*o_Isol_Bij_Tijdstip($A77,B$8,B$11)) -> 0 | C77: W | F77: =(0.75*F$18*FLOOR(F$20,0.05)*0.9*F$35*F$38*o_Isol_Bij_Tijdstip($A77,F$8,F$11))+(0.75*H$18*FLOOR(H$20,0.05)*0.9*H$35*H$38*o_Isol_Bij_Tijdstip($A77,F$8,F$11)) -> 0 | G77: W | J77: =(0.75*J$18*FLOOR(J$20,0.05)*0.9*J$35*J$38*o_Isol_Bij_Tijdstip($A77,J$8,J$11))+(0.75*L$18*FLOOR(L$20,0.05)*0.9*L$35*L$38*o_Isol_Bij_Tijdstip($A77,J$8,J$11)) -> 251.3646192 | K77: W | N77: =(0.75*N$18*FLOOR(N$20,0.05)*0.9*N$35*N$38*o_Isol_Bij_Tijdstip($A77,N$8,N$11))+(0.75*P$18*FLOOR(P$20,0.05)*0.9*P$35*P$38*o_Isol_Bij_Tijdstip($A77,N$8,N$11)) -> 0 | O77: W | R77: =(0.75*R$18*FLOOR(R$20,0.05)*0.9*R$35*R$38*o_Isol_Bij_Tijdstip($A77,R$8,R$11))+(0.75*T$18*FLOOR(T$20,0.05)*0.9*T$35*T$38*o_Isol_Bij_Tijdstip($A77,R$8,R$11)) -> 0 | S77: W | T77: 251.3646192 | U77: W
A78: 14:00:00 | B78: =(0.75*B$18*FLOOR(B$20,0.05)*0.9*B$35*B$38*o_Isol_Bij_Tijdstip($A78,B$8,B$11))+(0.75*D$18*FLOOR(D$20,0.05)*0.9*D$35*D$38*o_Isol_Bij_Tijdstip($A78,B$8,B$11)) -> 0 | C78: W | F78: =(0.75*F$18*FLOOR(F$20,0.05)*0.9*F$35*F$38*o_Isol_Bij_Tijdstip($A78,F$8,F$11))+(0.75*H$18*FLOOR(H$20,0.05)*0.9*H$35*H$38*o_Isol_Bij_Tijdstip($A78,F$8,F$11)) -> 0 | G78: W | J78: =(0.75*J$18*FLOOR(J$20,0.05)*0.9*J$35*J$38*o_Isol_Bij_Tijdstip($A78,J$8,J$11))+(0.75*L$18*FLOOR(L$20,0.05)*0.9*L$35*L$38*o_Isol_Bij_Tijdstip($A78,J$8,J$11)) -> 284.737455 | K78: W | N78: =(0.75*N$18*FLOOR(N$20,0.05)*0.9*N$35*N$38*o_Isol_Bij_Tijdstip($A78,N$8,N$11))+(0.75*P$18*FLOOR(P$20,0.05)*0.9*P$35*P$38*o_Isol_Bij_Tijdstip($A78,N$8,N$11)) -> 0 | O78: W | R78: =(0.75*R$18*FLOOR(R$20,0.05)*0.9*R$35*R$38*o_Isol_Bij_Tijdstip($A78,R$8,R$11))+(0.75*T$18*FLOOR(T$20,0.05)*0.9*T$35*T$38*o_Isol_Bij_Tijdstip($A78,R$8,R$11)) -> 0 | S78: W | T78: 284.737455 | U78: W
A79: 15:00:00 | B79: =(0.75*B$18*FLOOR(B$20,0.05)*0.9*B$35*B$38*o_Isol_Bij_Tijdstip($A79,B$8,B$11))+(0.75*D$18*FLOOR(D$20,0.05)*0.9*D$35*D$38*o_Isol_Bij_Tijdstip($A79,B$8,B$11)) -> 0 | C79: W | F79: =(0.75*F$18*FLOOR(F$20,0.05)*0.9*F$35*F$38*o_Isol_Bij_Tijdstip($A79,F$8,F$11))+(0.75*H$18*FLOOR(H$20,0.05)*0.9*H$35*H$38*o_Isol_Bij_Tijdstip($A79,F$8,F$11)) -> 0 | G79: W | J79: =(0.75*J$18*FLOOR(J$20,0.05)*0.9*J$35*J$38*o_Isol_Bij_Tijdstip($A79,J$8,J$11))+(0.75*L$18*FLOOR(L$20,0.05)*0.9*L$35*L$38*o_Isol_Bij_Tijdstip($A79,J$8,J$11)) -> 229.4132907 | K79: W | N79: =(0.75*N$18*FLOOR(N$20,0.05)*0.9*N$35*N$38*o_Isol_Bij_Tijdstip($A79,N$8,N$11))+(0.75*P$18*FLOOR(P$20,0.05)*0.9*P$35*P$38*o_Isol_Bij_Tijdstip($A79,N$8,N$11)) -> 0 | O79: W | R79: =(0.75*R$18*FLOOR(R$20,0.05)*0.9*R$35*R$38*o_Isol_Bij_Tijdstip($A79,R$8,R$11))+(0.75*T$18*FLOOR(T$20,0.05)*0.9*T$35*T$38*o_Isol_Bij_Tijdstip($A79,R$8,R$11)) -> 0 | S79: W | T79: 229.4132907 | U79: W
A80: 16:00:00 | B80: =(0.75*B$18*FLOOR(B$20,0.05)*0.9*B$35*B$38*o_Isol_Bij_Tijdstip($A80,B$8,B$11))+(0.75*D$18*FLOOR(D$20,0.05)*0.9*D$35*D$38*o_Isol_Bij_Tijdstip($A80,B$8,B$11)) -> 0 | C80: W | F80: =(0.75*F$18*FLOOR(F$20,0.05)*0.9*F$35*F$38*o_Isol_Bij_Tijdstip($A80,F$8,F$11))+(0.75*H$18*FLOOR(H$20,0.05)*0.9*H$35*H$38*o_Isol_Bij_Tijdstip($A80,F$8,F$11)) -> 0 | G80: W | J80: =(0.75*J$18*FLOOR(J$20,0.05)*0.9*J$35*J$38*o_Isol_Bij_Tijdstip($A80,J$8,J$11))+(0.75*L$18*FLOOR(L$20,0.05)*0.9*L$35*L$38*o_Isol_Bij_Tijdstip($A80,J$8,J$11)) -> 145.8125721 | K80: W | N80: =(0.75*N$18*FLOOR(N$20,0.05)*0.9*N$35*N$38*o_Isol_Bij_Tijdstip($A80,N$8,N$11))+(0.75*P$18*FLOOR(P$20,0.05)*0.9*P$35*P$38*o_Isol_Bij_Tijdstip($A80,N$8,N$11)) -> 0 | O80: W | R80: =(0.75*R$18*FLOOR(R$20,0.05)*0.9*R$35*R$38*o_Isol_Bij_Tijdstip($A80,R$8,R$11))+(0.75*T$18*FLOOR(T$20,0.05)*0.9*T$35*T$38*o_Isol_Bij_Tijdstip($A80,R$8,R$11)) -> 0 | S80: W | T80: 145.8125721 | U80: W
A81: 17:00:00 | B81: =(0.75*B$18*FLOOR(B$20,0.05)*0.9*B$35*B$38*o_Isol_Bij_Tijdstip($A81,B$8,B$11))+(0.75*D$18*FLOOR(D$20,0.05)*0.9*D$35*D$38*o_Isol_Bij_Tijdstip($A81,B$8,B$11)) -> 0 | C81: W | F81: =(0.75*F$18*FLOOR(F$20,0.05)*0.9*F$35*F$38*o_Isol_Bij_Tijdstip($A81,F$8,F$11))+(0.75*H$18*FLOOR(H$20,0.05)*0.9*H$35*H$38*o_Isol_Bij_Tijdstip($A81,F$8,F$11)) -> 0 | G81: W | J81: =(0.75*J$18*FLOOR(J$20,0.05)*0.9*J$35*J$38*o_Isol_Bij_Tijdstip($A81,J$8,J$11))+(0.75*L$18*FLOOR(L$20,0.05)*0.9*L$35*L$38*o_Isol_Bij_Tijdstip($A81,J$8,J$11)) -> 88.2780044 | K81: W | N81: =(0.75*N$18*FLOOR(N$20,0.05)*0.9*N$35*N$38*o_Isol_Bij_Tijdstip($A81,N$8,N$11))+(0.75*P$18*FLOOR(P$20,0.05)*0.9*P$35*P$38*o_Isol_Bij_Tijdstip($A81,N$8,N$11)) -> 0 | O81: W | R81: =(0.75*R$18*FLOOR(R$20,0.05)*0.9*R$35*R$38*o_Isol_Bij_Tijdstip($A81,R$8,R$11))+(0.75*T$18*FLOOR(T$20,0.05)*0.9*T$35*T$38*o_Isol_Bij_Tijdstip($A81,R$8,R$11)) -> 0 | S81: W | T81: 88.2780044 | U81: W
A82: 18:00:00 | B82: =(0.75*B$18*FLOOR(B$20,0.05)*0.9*B$35*B$38*o_Isol_Bij_Tijdstip($A82,B$8,B$11))+(0.75*D$18*FLOOR(D$20,0.05)*0.9*D$35*D$38*o_Isol_Bij_Tijdstip($A82,B$8,B$11)) -> 0 | C82: W | F82: =(0.75*F$18*FLOOR(F$20,0.05)*0.9*F$35*F$38*o_Isol_Bij_Tijdstip($A82,F$8,F$11))+(0.75*H$18*FLOOR(H$20,0.05)*0.9*H$35*H$38*o_Isol_Bij_Tijdstip($A82,F$8,F$11)) -> 0 | G82: W | J82: =(0.75*J$18*FLOOR(J$20,0.05)*0.9*J$35*J$38*o_Isol_Bij_Tijdstip($A82,J$8,J$11))+(0.75*L$18*FLOOR(L$20,0.05)*0.9*L$35*L$38*o_Isol_Bij_Tijdstip($A82,J$8,J$11)) -> 32.34295834 | K82: W | N82: =(0.75*N$18*FLOOR(N$20,0.05)*0.9*N$35*N$38*o_Isol_Bij_Tijdstip($A82,N$8,N$11))+(0.75*P$18*FLOOR(P$20,0.05)*0.9*P$35*P$38*o_Isol_Bij_Tijdstip($A82,N$8,N$11)) -> 0 | O82: W | R82: =(0.75*R$18*FLOOR(R$20,0.05)*0.9*R$35*R$38*o_Isol_Bij_Tijdstip($A82,R$8,R$11))+(0.75*T$18*FLOOR(T$20,0.05)*0.9*T$35*T$38*o_Isol_Bij_Tijdstip($A82,R$8,R$11)) -> 0 | S82: W | T82: 32.34295834 | U82: W
A84: Maatgevende tijdstip | B84: =IF(MAX(T73:T82)=0,"Geen glas aanwezig",_xlfn.XLOOKUP(MAX(T73:T82),T73:T82,A73:A82,"nvt")) -> 14:00:00

Sheet Ruimte 7
A1: RUIMTE 7
A3: Ruimtenaam | B3: 0
A4: Type verblijfsruimte | B4: Andere verblijfsruimte
A5: Vloeroppervlak verblijfsruimte Avr (gebruiksoppervlak) | B5: 0 | C5: m²
B7: Voorzijde woning | F7: Linker zijde woning | J7: Achterzijde woning | N7: Rechter zijde woning | R7: Platdak
A8: Orientatie gevel / dakvlak (Helling > 15°C) | B8: =Invoerblad!$B$17 -> Noord | F8: =o_Orientatie(F9) -> Oost | J8: =o_Orientatie(J9) -> Zuid | N8: =o_Orientatie(N9) -> West | R8: Horizontaal
A9: Orientatiehoek gevel Ƴ | B9: =o_OrientatiehOEK(B8) -> 0 | F9: =IF(B9+90>360,B9+90-360,B9+90) -> 90 | J9: =IF(F9+90>360,F9+90-360,F9+90) -> 180 | N9: =IF(J9+90>360,J9+90-360,J9+90) -> 270
A10: Grenst aan buitenlucht ja of nee | B10: Nee | F10: Nee | J10: Nee | N10: Nee | R10: Nee
A11: Hellingshoek constructie ≥ 15° = hellenddak 90° = gevel | B11: 90 | C11: ° | F11: 90 | G11: ° | J11: 90 | K11: ° | N11: 90 | O11: ° | R11: 10 | S11: °
A12: Type constructie | B12: =o_TypeConstructie(B10,B11) -> Woningscheidend | F12: =o_TypeConstructie(F10,F11) -> Woningscheidend | J12: =o_TypeConstructie(J10,J11) -> Woningscheidend | N12: =o_TypeConstructie(N10,N11) -> Woningscheidend | R12: =o_TypeConstructie(R10,R11) -> Woningscheidend
A13: Gevel lengte (binnenwerks) | B13: 0 | C13: m | F13: 0 | G13: m | J13: 0 | K13: m | N13: 0 | O13: m | R13: 0 | S13: m
A14: Gevel hoogte / Dak breedte (binnenwerks) | B14: 0 | C14: m | F14: 0 | G14: m | J14: 0 | K14: m | N14: 0 | O14: m | R14: 0 | S14: m
A15: Constructie oppervlak (binnenwerks) | B15: =B13*B14 -> 0 | C15: m² | F15: =F13*F14 -> 0 | G15: m² | J15: =J13*J14 -> 0 | K15: m² | N15: =N13*N14 -> 0 | O15: m² | R15: =R13*R14 -> 0 | S15: m²
A16: Gesloten constructie oppervlak | B16: =MAX(0,B15-B18-D18) -> 0 | C16: m² | F16: =MAX(0,F15-F18-H18) -> 0 | G16: m² | J16: =MAX(0,J15-J18-L18) -> 0 | K16: m² | N16: =MAX(0,N15-N18-P18) -> 0 | O16: m² | R16: =MAX(0,R15-R18-T18) -> 0 | S16: m²
B17: Glasvlak type 1 | D17: Glasvlak type 2 | F17: Glasvlak type 1 | H17: Glasvlak type 2 | J17: Glasvlak type 1 | L17: Glasvlak type 2 | N17: Glasvlak type 1 | P17: Glasvlak type 2 | R17: Glasvlak type 1 | T17: Glasvlak type 2
A18: Totaal oppervlak van raamtype Aw,k (inclusief kozijn) | B18: 0 | C18: m² | D18: 0 | E18: m² | F18: 0 | G18: m² | H18: 0 | I18: m² | J18: 0 | K18: m² | L18: 0 | M18: m² | N18: 0 | O18: m² | P18: 0 | Q18: m² | R18: 0 | S18: m² | T18: 0 | U18: m²
A19: Warmtedoorgangscoefficient (U-waarde) van het raam Uw;wi;k | B19: 1.6 | C19: W/m².K | D19: 1.6 | E19: W/m².K | F19: 1.6 | G19: W/m².K | H19: 1.6 | I19: W/m².K | J19: 1.6 | K19: W/m².K | L19: 1.6 | M19: W/m².K | N19: 1.6 | O19: W/m².K | P19: 1.6 | Q19: W/m².K | R19: 1.6 | S19: W/m².K | T19: 1.6 | U19: W/m².K
A20: Zontoetredingsfactor (g_waarde) van het glas Ggl;n;wi;k;C;juli | B20: 1 | D20: 1 | F20: 1 | H20: 1 | J20: 1 | L20: 1 | N20: 1 | P20: 1 | R20: 1 | T20: 1
A21: Beschaduwing situatie bij het raamtype | B21: Minimale belemmering | D21: Minimale belemmering | F21: Minimale belemmering | H21: Minimale belemmering | J21: Minimale belemmering | L21: Minimale belemmering | N21: Minimale belemmering | P21: Minimale belemmering | R21: Minimale belemmering | T21: Minimale belemmering
B23: Overstek | D23: Overstek | F23: Overstek | H23: Overstek | J23: Overstek | L23: Overstek | N23: Overstek | P23: Overstek
A24: Hoogte verschil midden raam onderzijde overstek | B24: 0 | C24: m | D24: 0 | E24: m | F24: 0 | G24: m | H24: 0 | I24: m | J24: 0 | K24: m | L24: 0 | M24: m | N24: 0 | O24: m | P24: 0 | Q24: m | R24: 0 | U24: m
A25: Horizontale afstand glas tot eindpunt overstek | B25: 0 | C25: m | D25: 0 | E25: m | F25: 0 | G25: m | H25: 0 | I25: m | J25: 0 | K25: m | L25: 0 | M25: m | N25: 0 | O25: m | P25: 0 | Q25: m | R25: 0 | U25: m
A26: Overstekhoek | B26: =IFERROR(180/PI()*ATAN(B24/B25),0) -> 0 | C26: ° | D26: =IFERROR(180/PI()*ATAN(D24/D25),0) -> 0 | E26: ° | F26: =IFERROR(180/PI()*ATAN(F24/F25),0) -> 0 | G26: ° | H26: =IFERROR(180/PI()*ATAN(H24/H25),0) -> 0 | I26: ° | J26: =IFERROR(180/PI()*ATAN(J24/J25),0) -> 0 | K26: ° | L26: =IFERROR(180/PI()*ATAN(L24/L25),0) -> 0 | M26: ° | N26: =IFERROR(180/PI()*ATAN(N24/N25),0) -> 0 | O26: ° | P26: =IFERROR(180/PI()*ATAN(P24/P25),0) -> 0 | Q26: ° | U26: °
A27: Relatieve hoogte van overstek | B27: =IFERROR(B24/B25,1) -> 1 | D27: =IFERROR(D24/D25,1) -> 1 | F27: =IFERROR(F24/F25,1) -> 1 | H27: =IFERROR(H24/H25,1) -> 1 | J27: =IFERROR(J24/J25,1) -> 1 | L27: =IFERROR(L24/L25,1) -> 1 | N27: =IFERROR(N24/N25,1) -> 1 | P27: =IFERROR(P24/P25,1) -> 1
B29: Zijbelemmering | D29: Zijbelemmering | F29: Zijbelemmering | H29: Zijbelemmering | J29: Zijbelemmering | L29: Zijbelemmering | N29: Zijbelemmering | P29: Zijbelemmering
A30: Positie zijbelemmering irt zichtveld (naar buitengericht) | B30: Links | D30: Links | F30: Links | H30: Links | J30: Links | L30: Links | N30: Links | P30: Links
A31: Horizontale afstand midden raam verste punt belemmering | B31: 0 | C31: m | D31: 0 | E31: m | G31: m | I31: m | K31: m | L31: 1 | M31: m | O31: m | Q31: m | U31: m
A32: Horizontale breedte glas tot eindpunt belemmering | B32: 0 | C32: m | D32: 0 | E32: m | G32: m | I32: m | K32: m | M32: m | O32: m | Q32: m | U32: m
A33: Relatieve breedte van de zijbelemmering bb | B33: =IFERROR(B31/B32,999) -> 999 | D33: =IFERROR(D31/D32,999) -> 999 | F33: =IFERROR(F31/F32,999) -> 999 | H33: =IFERROR(H31/H32,999) -> 999 | J33: =IFERROR(J31/J32,999) -> 999 | L33: =IFERROR(L31/L32,999) -> 999 | N33: =IFERROR(N31/N32,999) -> 999 | P33: =IFERROR(P31/P32,999) -> 999
A35: De beschaduwingsreductiefactor Fsh;obst;wi;k;juli | B35: =IFERROR(o_Beschaduwingreductie(B21,B8,B27,B30,B33,B11),1) -> 1 | D35: =IFERROR(o_Beschaduwingreductie(D21,B8,D27,D30,D33,B11),1) -> 1 | F35: =IFERROR(o_Beschaduwingreductie(F21,F8,F27,F30,F33,F11),1) -> 1 | H35: =IFERROR(o_Beschaduwingreductie(H21,F8,H27,H30,H33,F11),1) -> 1 | J35: =IFERROR(o_Beschaduwingreductie(J21,J8,J27,J30,J33,J11),1) -> 1 | L35: =IFERROR(o_Beschaduwingreductie(L21,J8,L27,L30,L33,J11),1) -> 1 | N35: =IFERROR(o_Beschaduwingreductie(N21,N8,N27,N30,N33,N11),1) -> 1 | P35: =IFERROR(o_Beschaduwingreductie(P21,N8,P27,P30,P33,N11),1) -> 1 | R35: =o_Beschaduwingreductie(R21,R8,R27,R30,R33,R11) -> 1 | T35: =o_Beschaduwingreductie(T21,R8,T27,T30,T33,R11) -> 1
A37: Type zonwering | B37: Geen zonwering | D37: Geen zonwering | F37: Geen zonwering | H37: Geen zonwering | J37: Geen zonwering | L37: Geen zonwering | N37: Geen zonwering | P37: Geen zonwering | R37: Geen zonwering | T37: Geen zonwering
A38: De reductiefactor voor zonwering Fc;wi;k | B38: =o_Zonweringreductie(B37,B8) -> 1 | D38: =o_Zonweringreductie(D37,B8) -> 1 | F38: =o_Zonweringreductie(F37,F8) -> 1 | H38: =o_Zonweringreductie(H37,F8) -> 1 | J38: =o_Zonweringreductie(J37,J8) -> 1 | L38: =o_Zonweringreductie(L37,J8) -> 1 | N38: =o_Zonweringreductie(N37,N8) -> 1 | P38: =o_Zonweringreductie(P37,N8) -> 1 | R38: =o_Zonweringreductie(R37,R8) -> 1 | T38: =o_Zonweringreductie(T37,R8) -> 1
A39: Totaal opvallende zonnestraling van het raam Isol;wi;k;juli | B39: =IF(B10="Nee",0,o_Isol_Bij_Tijdstip($B$52,B8,B11)) -> 0 | C39: W/m² | D39: =IF(B10="Nee",0,o_Isol_Bij_Tijdstip($B$52,B8,B11)) -> 0 | E39: W/m² | F39: =IF(F10="Nee",0,o_Isol_Bij_Tijdstip($B$52,F8,F11)) -> 0 | G39: W/m² | H39: =IF(F10="Nee",0,o_Isol_Bij_Tijdstip($B$52,F8,F11)) -> 0 | I39: W/m² | J39: =IF(J10="Nee",0,o_Isol_Bij_Tijdstip($B$52,J8,J11)) -> 0 | K39: W/m² | L39: =IF(J10="Nee",0,o_Isol_Bij_Tijdstip($B$52,J8,J11)) -> 0 | M39: W/m² | N39: =IF(N10="Nee",0,o_Isol_Bij_Tijdstip($B$52,N8,N11)) -> 0 | O39: W/m² | P39: =IF(N10="Nee",0,o_Isol_Bij_Tijdstip($B$52,N8,N11)) -> 0 | Q39: W/m² | R39: =IF(R10="Nee",0,o_Isol_Bij_Tijdstip($B$52,R8,R11)) -> 0 | S39: W/m² | T39: =IF(R10="Nee",0,o_Isol_Bij_Tijdstip($B$52,R8,R11)) -> 0 | U39: W/m²
A41: Tijdstip maximale koellastbijdrage tmax;zi | B41: =VALUE(o_Tijdstip_Isol_Max_Orientatie(B8,B11)) -> 15:00:00 | F41: =VALUE(o_Tijdstip_Isol_Max_Orientatie(F8,F11)) -> 09:00:00 | J41: =VALUE(o_Tijdstip_Isol_Max_Orientatie(J8,J11)) -> 14:00:00 | N41: =VALUE(o_Tijdstip_Isol_Max_Orientatie(N8,N11)) -> 18:00:00 | R41: =o_Tijdstip_Isol_Max_Orientatie(R8,R11) -> 16:00:00
A42: Buitenluchttemperatuur op tijdstip max koellast Θe | B42: =o_maxTemp(VALUE(B41)) -> 29.8 | E42: °C | F42: =o_maxTemp(VALUE(F41)) -> 24.7 | I42: °C | J42: =o_maxTemp(VALUE(J41)) -> 29.9 | M42: °C | N42: =o_maxTemp(VALUE(N41)) -> 30.1 | Q42: °C | R42: =o_maxTemp(VALUE(R41)) -> 30.4
A44: Glasopppervlak | B44: =IF(B10="Ja",B18+D18,0) -> 0 | C44: m² | F44: =IF(F10="Ja",F18+H18,0) -> 0 | G44: m² | J44: =IF(J10="Ja",J18+L18,0) -> 0 | K44: m² | N44: =IF(N10="Ja",N18+P18,0) -> 0 | O44: m² | R44: =IF(R10="Ja",R18+T18,0) -> 0 | S44: m²
A45: Uitwendigescheidingsconstructie niet op Noord? | B45: =IF(B10="Ja",IF(B8="Noord",FALSE,TRUE),FALSE) -> FALSE | F45: =IF(F10="Ja",IF(F8="Noord",FALSE,TRUE),FALSE) -> FALSE | J45: =IF(J10="Ja",IF(J8="Noord",FALSE,TRUE),FALSE) -> FALSE | N45: =IF(N10="Ja",IF(N8="Noord",FALSE,TRUE),FALSE) -> FALSE | R45: =IF(R10="Ja",IF(R8="Noord",FALSE,TRUE),FALSE) -> FALSE
A46: De enige uitwendigescheidingscontructie? | B46: =IF(AND(B45=TRUE,COUNTIF($B$45:$R$45,TRUE)=1),TRUE,FALSE) -> FALSE | F46: =IF(AND(F45=TRUE,COUNTIF($B$45:$R$45,TRUE)=1),TRUE,FALSE) -> FALSE | J46: =IF(AND(J45=TRUE,COUNTIF($B$45:$R$45,TRUE)=1),TRUE,FALSE) -> FALSE | N46: =IF(AND(N45=TRUE,COUNTIF($B$45:$R$45,TRUE)=1),TRUE,FALSE) -> FALSE | R46: =IF(AND(R45=TRUE,COUNTIF($B$45:$R$45,TRUE)=1),TRUE,FALSE) -> FALSE
A47: Totaal glasoppervlak | B47: =IF(B8<>"Noord",B44,0) -> 0 | C47: m² | F47: =IF(F8<>"Noord",F44,0) -> 0 | G47: m² | J47: =IF(J8<>"Noord",J44,0) -> 0 | K47: m² | N47: =IF(N8<>"Noord",N44,0) -> 0 | O47: m² | R47: =R44 -> 0 | S47: m²
A48: Grootste glasoppervlak | B48: =IF(AND(B45,B47=MAX($B$47:$R$47)),TRUE,FALSE) -> FALSE | F48: =IF(AND(F45,F47=MAX($B$47:$R$47)),TRUE,FALSE) -> FALSE | J48: =IF(AND(J45,J47=MAX($B$47:$R$47)),TRUE,FALSE) -> FALSE | N48: =IF(AND(N45,N47=MAX($B$47:$R$47)),TRUE,FALSE) -> FALSE | R48: =IF(AND(R45,R47=MAX($B$47:$R$47)),TRUE,FALSE) -> FALSE
A49: Dakvlak maatgevend? | B49: =IF(AND(B11<90,B15>3*(B18+D18),Invoerblad!$B$25<65),TRUE,FALSE) -> FALSE | F49: =IF(AND(F11<90,F15>3*(F18+H18),Invoerblad!$B$25<65),TRUE,FALSE) -> FALSE | J49: =IF(AND(J11<90,J15>3*(J18+L18),Invoerblad!$B$25<65),TRUE,FALSE) -> FALSE | N49: =IF(AND(N11<90,N15>3*(N18+P18),Invoerblad!$B$25<65),TRUE,FALSE) -> FALSE | R49: =IF(AND(R11<90,R15>3*(R18+T18),Invoerblad!$B$25<65),TRUE,FALSE) -> FALSE
A50: is er een maatgevend dakoppervlak | B50: =IF(COUNTIF($B$49:$R$49,TRUE)>0,TRUE,FALSE) -> FALSE | F50: =IF(COUNTIF($B$49:$R$49,TRUE)>0,TRUE,FALSE) -> FALSE | J50: =IF(COUNTIF($B$49:$R$49,TRUE)>0,TRUE,FALSE) -> FALSE | N50: =IF(COUNTIF($B$49:$R$49,TRUE)>0,TRUE,FALSE) -> FALSE | R50: =IF(COUNTIF($B$49:$R$49,TRUE)>0,TRUE,FALSE) -> FALSE
A51: Maatgevende tijdstip | B51: =IF(OR(B46,AND(B45,B50,B49),AND(B45,B48,NOT(B50))),B41) -> FALSE | F51: =IF(OR(F46,AND(F45,F50,F49),AND(F45,F48,NOT(F50))),F41) -> FALSE | J51: =IF(OR(J46,AND(J45,J50,J49),AND(J45,J48,NOT(J50))),J41) -> FALSE | N51: =IF(OR(N46,AND(N45,N50,N49),AND(N45,N48,NOT(N50))),N41) -> FALSE | R51: =IF(OR(R46,AND(R45,R50,R49),AND(R45,R48,NOT(R50))),R41) -> FALSE
A52: Maatgevende tijdstip tmax;zi | B52: =IFERROR(B84,"geen glas ingevoerd") -> Geen glas aanwezig
A53: Buitenluchttemperatuur op tijdstip max koellast Θe | B53: =o_maxTemp(VALUE(B52)) ->  | C53: °C
A55: Koellastbijdrage transmissie transparante delen Ptr;gl;vr;zi | B55: =IF(B10="Nee",0,B16*Invoerblad!$B$16) -> 0 | E55: W | F55: =IF(F10="Nee",0,F16*Invoerblad!$B$16) -> 0 | I55: W | J55: =IF(J10="Nee",0,J16*Invoerblad!$B$16) -> 0 | M55: W | N55: =IF(N10="Nee",0,N16*Invoerblad!$B$16) -> 0 | Q55: W | R55: =IF(R10="Nee",0,R16*Invoerblad!$B$16) -> 0 | U55: W
A56: Koellastbijdrage zoninstraling transparante delen Psol;vr;zi | B56: =(0.75*B18*FLOOR(B20,0.05)*0.9*B35*B38*B39)+(0.75*D18*FLOOR(D20,0.05)*0.9*D35*D38*D39) -> 0 | E56: W | F56: =(0.75*F18*FLOOR(F20,0.05)*0.9*F35*F38*F39)+(0.75*H18*FLOOR(H20,0.05)*0.9*H35*H38*H39) -> 0 | I56: W | J56: =(0.75*J18*FLOOR(J20,0.05)*0.9*J35*J38*J39)+(0.75*L18*FLOOR(L20,0.05)*0.9*L35*L38*L39) -> 0 | M56: W | N56: =(0.75*N18*FLOOR(N20,0.05)*0.9*N35*N38*N39)+(0.75*P18*FLOOR(P20,0.05)*0.9*P35*P38*P39) -> 0 | Q56: W | R56: =(0.75*R18*FLOOR(R20,0.05)*0.9*R35*R38*R39)+(0.75*T18*FLOOR(T20,0.05)*0.9*T35*T38*T39) -> 0 | U56: W
A57: Koellastbijdrage transmissie transparante delen Ptr;gl;vr;zi | B57: =IF(B10="Nee",0,IFERROR(B18*B19*($B$53-24),0)+IFERROR(D18*D19*($B$53-24),0)) -> 0 | E57: W | F57: =IF(F10="Nee",0,IFERROR(F18*F19*($B$53-24),0)+IFERROR(H18*H19*($B$53-24),0)) -> 0 | I57: W | J57: =IF(J10="Nee",0,IFERROR(J18*J19*($B$53-24),0)+IFERROR(L18*L19*($B$53-24),0)) -> 0 | M57: W | N57: =IF(N10="Nee",0,IFERROR(N18*N19*($B$53-24),0)+IFERROR(P18*P19*($B$53-24),0)) -> 0 | Q57: W | R57: =IF(R10="Nee",0,IFERROR(R18*R19*($B$53-24),0)+IFERROR(T18*T19*($B$53-24),0)) -> 0 | U57: W
A58: Totaal koellastbijdrage per gevel | B58: =SUM(B55:D57) -> 0 | E58: W | F58: =SUM(F55:H57) -> 0 | I58: W | J58: =SUM(J55:L57) -> 0 | M58: W | N58: =SUM(N55:P57) -> 0 | Q58: W | R58: =SUM(R55:R57) -> 0 | U58: W
A60: Koellast door interne warmtelast Pint;calc;woon/overig;zi | B60: =IF(B5=0,0,IF(B4="Woonvertrek",2*Invoerblad!$B$40*B5,Invoerblad!$B$40*B5)) -> 0 | E60: W
A61: Koellast door buitenluchttoetreding Pv;calc;vr;zi | B61: =IFERROR(MAX((SUM(Invoerblad!$B$28:$B$30)/3600*1.205*1005*(B53-24))/SUM(Invoerblad!$B$47:$T$47)*B5,0),0) -> 0 | C61: =IFERROR(MAX(SUM(C57:C59)/3600*1.205*1005*(C60-24),0),0) -> 0 | D61: =IFERROR(MAX(SUM(D57:D59)/3600*1.205*1005*(D60-24),0),0) -> 0 | E61: W
A63: Totaal koellastbijdrage | B63: =IFERROR(SUM(B58:T58)+B60+B61,0) -> 0 | E63: W
A64: Koelbehoefte verblijfsruimte | B64: =IFERROR(B63/B5,0) -> 0 | E64: W/m²
A67: Onderstaande tabellen worden verborgen in de uiteindelijke versie. De tabellen dienen om vast te stellen welk tijdstip tot de hoogste zonbelasting leidt
A69: Isol max voor de orientatie | B69: =o_Isol_Max_Orientatie(B8,B11) -> 143.7398809 | C69: W/m² | F69: =o_Isol_Max_Orientatie(F8,F11) -> 845.3277237 | G69: W/m² | J69: =o_Isol_Max_Orientatie(J8,J11) -> 740.0583625 | K69: W/m² | N69: =o_Isol_Max_Orientatie(N8,N11) -> 741.7580929 | O69: W/m² | R69: =o_Isol_Max_Orientatie(R8,R11) -> 914.160926 | S69: W/m²
A70: Tijdstip bij Isol max bij orientatie | B70: =VALUE(o_Tijdstip_Isol_Max_Orientatie(B8,B11)) -> 15:00:00 | F70: =VALUE(o_Tijdstip_Isol_Max_Orientatie(F8,F11)) -> 09:00:00 | J70: =VALUE(o_Tijdstip_Isol_Max_Orientatie(J8,J11)) -> 14:00:00 | N70: =VALUE(o_Tijdstip_Isol_Max_Orientatie(N8,N11)) -> 18:00:00 | R70: =VALUE(o_Tijdstip_Isol_Max_Orientatie(R8,R11)) -> 16:00:00
A72: Koellastbijdrage zoninstraling transparante delen Psol;vr;zi
A73: 09:00:00 | B73: =(0.75*B$18*FLOOR(B$20,0.05)*0.9*B$35*B$38*o_Isol_Bij_Tijdstip($A73,B$8,B$11))+(0.75*D$18*FLOOR(D$20,0.05)*0.9*D$35*D$38*o_Isol_Bij_Tijdstip($A73,B$8,B$11)) -> 0 | C73: W | F73: =(0.75*F$18*FLOOR(F$20,0.05)*0.9*F$35*F$38*o_Isol_Bij_Tijdstip($A73,F$8,F$11))+(0.75*H$18*FLOOR(H$20,0.05)*0.9*H$35*H$38*o_Isol_Bij_Tijdstip($A73,F$8,F$11)) -> 0 | G73: W | J73: =(0.75*J$18*FLOOR(J$20,0.05)*0.9*J$35*J$38*o_Isol_Bij_Tijdstip($A73,J$8,J$11))+(0.75*L$18*FLOOR(L$20,0.05)*0.9*L$35*L$38*o_Isol_Bij_Tijdstip($A73,J$8,J$11)) -> 0 | K73: W | N73: =(0.75*N$18*FLOOR(N$20,0.05)*0.9*N$35*N$38*o_Isol_Bij_Tijdstip($A73,N$8,N$11))+(0.75*P$18*FLOOR(P$20,0.05)*0.9*P$35*P$38*o_Isol_Bij_Tijdstip($A73,N$8,N$11)) -> 0 | O73: W | R73: =(0.75*R$18*FLOOR(R$20,0.05)*0.9*R$35*R$38*o_Isol_Bij_Tijdstip($A73,R$8,R$11))+(0.75*T$18*FLOOR(T$20,0.05)*0.9*T$35*T$38*o_Isol_Bij_Tijdstip($A73,R$8,R$11)) -> 0 | S73: W | T73: =B73+F73+J73+N73+R73 -> 0 | U73: W
A74: 10:00:00 | B74: =(0.75*B$18*FLOOR(B$20,0.05)*0.9*B$35*B$38*o_Isol_Bij_Tijdstip($A74,B$8,B$11))+(0.75*D$18*FLOOR(D$20,0.05)*0.9*D$35*D$38*o_Isol_Bij_Tijdstip($A74,B$8,B$11)) -> 0 | C74: W | F74: =(0.75*F$18*FLOOR(F$20,0.05)*0.9*F$35*F$38*o_Isol_Bij_Tijdstip($A74,F$8,F$11))+(0.75*H$18*FLOOR(H$20,0.05)*0.9*H$35*H$38*o_Isol_Bij_Tijdstip($A74,F$8,F$11)) -> 0 | G74: W | J74: =(0.75*J$18*FLOOR(J$20,0.05)*0.9*J$35*J$38*o_Isol_Bij_Tijdstip($A74,J$8,J$11))+(0.75*L$18*FLOOR(L$20,0.05)*0.9*L$35*L$38*o_Isol_Bij_Tijdstip($A74,J$8,J$11)) -> 0 | K74: W | N74: =(0.75*N$18*FLOOR(N$20,0.05)*0.9*N$35*N$38*o_Isol_Bij_Tijdstip($A74,N$8,N$11))+(0.75*P$18*FLOOR(P$20,0.05)*0.9*P$35*P$38*o_Isol_Bij_Tijdstip($A74,N$8,N$11)) -> 0 | O74: W | R74: =(0.75*R$18*FLOOR(R$20,0.05)*0.9*R$35*R$38*o_Isol_Bij_Tijdstip($A74,R$8,R$11))+(0.75*T$18*FLOOR(T$20,0.05)*0.9*T$35*T$38*o_Isol_Bij_Tijdstip($A74,R$8,R$11)) -> 0 | S74: W | T74: 0 | U74: W
A75: 11:00:00 | B75: =(0.75*B$18*FLOOR(B$20,0.05)*0.9*B$35*B$38*o_Isol_Bij_Tijdstip($A75,B$8,B$11))+(0.75*D$18*FLOOR(D$20,0.05)*0.9*D$35*D$38*o_Isol_Bij_Tijdstip($A75,B$8,B$11)) -> 0 | C75: W | F75: =(0.75*F$18*FLOOR(F$20,0.05)*0.9*F$35*F$38*o_Isol_Bij_Tijdstip($A75,F$8,F$11))+(0.75*H$18*FLOOR(H$20,0.05)*0.9*H$35*H$38*o_Isol_Bij_Tijdstip($A75,F$8,F$11)) -> 0 | G75: W | J75: =(0.75*J$18*FLOOR(J$20,0.05)*0.9*J$35*J$38*o_Isol_Bij_Tijdstip($A75,J$8,J$11))+(0.75*L$18*FLOOR(L$20,0.05)*0.9*L$35*L$38*o_Isol_Bij_Tijdstip($A75,J$8,J$11)) -> 0 | K75: W | N75: =(0.75*N$18*FLOOR(N$20,0.05)*0.9*N$35*N$38*o_Isol_Bij_Tijdstip($A75,N$8,N$11))+(0.75*P$18*FLOOR(P$20,0.05)*0.9*P$35*P$38*o_Isol_Bij_Tijdstip($A75,N$8,N$11)) -> 0 | O75: W | R75: =(0.75*R$18*FLOOR(R$20,0.05)*0.9*R$35*R$38*o_Isol_Bij_Tijdstip($A75,R$8,R$11))+(0.75*T$18*FLOOR(T$20,0.05)*0.9*T$35*T$38*o_Isol_Bij_Tijdstip($A75,R$8,R$11)) -> 0 | S75: W | T75: 0 | U75: W
A76: 12:00:00 | B76: =(0.75*B$18*FLOOR(B$20,0.05)*0.9*B$35*B$38*o_Isol_Bij_Tijdstip($A76,B$8,B$11))+(0.75*D$18*FLOOR(D$20,0.05)*0.9*D$35*D$38*o_Isol_Bij_Tijdstip($A76,B$8,B$11)) -> 0 | C76: W | F76: =(0.75*F$18*FLOOR(F$20,0.05)*0.9*F$35*F$38*o_Isol_Bij_Tijdstip($A76,F$8,F$11))+(0.75*H$18*FLOOR(H$20,0.05)*0.9*H$35*H$38*o_Isol_Bij_Tijdstip($A76,F$8,F$11)) -> 0 | G76: W | J76: =(0.75*J$18*FLOOR(J$20,0.05)*0.9*J$35*J$38*o_Isol_Bij_Tijdstip($A76,J$8,J$11))+(0.75*L$18*FLOOR(L$20,0.05)*0.9*L$35*L$38*o_Isol_Bij_Tijdstip($A76,J$8,J$11)) -> 0 | K76: W | N76: =(0.75*N$18*FLOOR(N$20,0.05)*0.9*N$35*N$38*o_Isol_Bij_Tijdstip($A76,N$8,N$11))+(0.75*P$18*FLOOR(P$20,0.05)*0.9*P$35*P$38*o_Isol_Bij_Tijdstip($A76,N$8,N$11)) -> 0 | O76: W | R76: =(0.75*R$18*FLOOR(R$20,0.05)*0.9*R$35*R$38*o_Isol_Bij_Tijdstip($A76,R$8,R$11))+(0.75*T$18*FLOOR(T$20,0.05)*0.9*T$35*T$38*o_Isol_Bij_Tijdstip($A76,R$8,R$11)) -> 0 | S76: W | T76: 0 | U76: W
A77: 13:00:00 | B77: =(0.75*B$18*FLOOR(B$20,0.05)*0.9*B$35*B$38*o_Isol_Bij_Tijdstip($A77,B$8,B$11))+(0.75*D$18*FLOOR(D$20,0.05)*0.9*D$35*D$38*o_Isol_Bij_Tijdstip($A77,B$8,B$11)) -> 0 | C77: W | F77: =(0.75*F$18*FLOOR(F$20,0.05)*0.9*F$35*F$38*o_Isol_Bij_Tijdstip($A77,F$8,F$11))+(0.75*H$18*FLOOR(H$20,0.05)*0.9*H$35*H$38*o_Isol_Bij_Tijdstip($A77,F$8,F$11)) -> 0 | G77: W | J77: =(0.75*J$18*FLOOR(J$20,0.05)*0.9*J$35*J$38*o_Isol_Bij_Tijdstip($A77,J$8,J$11))+(0.75*L$18*FLOOR(L$20,0.05)*0.9*L$35*L$38*o_Isol_Bij_Tijdstip($A77,J$8,J$11)) -> 0 | K77: W | N77: =(0.75*N$18*FLOOR(N$20,0.05)*0.9*N$35*N$38*o_Isol_Bij_Tijdstip($A77,N$8,N$11))+(0.75*P$18*FLOOR(P$20,0.05)*0.9*P$35*P$38*o_Isol_Bij_Tijdstip($A77,N$8,N$11)) -> 0 | O77: W | R77: =(0.75*R$18*FLOOR(R$20,0.05)*0.9*R$35*R$38*o_Isol_Bij_Tijdstip($A77,R$8,R$11))+(0.75*T$18*FLOOR(T$20,0.05)*0.9*T$35*T$38*o_Isol_Bij_Tijdstip($A77,R$8,R$11)) -> 0 | S77: W | T77: 0 | U77: W
A78: 14:00:00 | B78: =(0.75*B$18*FLOOR(B$20,0.05)*0.9*B$35*B$38*o_Isol_Bij_Tijdstip($A78,B$8,B$11))+(0.75*D$18*FLOOR(D$20,0.05)*0.9*D$35*D$38*o_Isol_Bij_Tijdstip($A78,B$8,B$11)) -> 0 | C78: W | F78: =(0.75*F$18*FLOOR(F$20,0.05)*0.9*F$35*F$38*o_Isol_Bij_Tijdstip($A78,F$8,F$11))+(0.75*H$18*FLOOR(H$20,0.05)*0.9*H$35*H$38*o_Isol_Bij_Tijdstip($A78,F$8,F$11)) -> 0 | G78: W | J78: =(0.75*J$18*FLOOR(J$20,0.05)*0.9*J$35*J$38*o_Isol_Bij_Tijdstip($A78,J$8,J$11))+(0.75*L$18*FLOOR(L$20,0.05)*0.9*L$35*L$38*o_Isol_Bij_Tijdstip($A78,J$8,J$11)) -> 0 | K78: W | N78: =(0.75*N$18*FLOOR(N$20,0.05)*0.9*N$35*N$38*o_Isol_Bij_Tijdstip($A78,N$8,N$11))+(0.75*P$18*FLOOR(P$20,0.05)*0.9*P$35*P$38*o_Isol_Bij_Tijdstip($A78,N$8,N$11)) -> 0 | O78: W | R78: =(0.75*R$18*FLOOR(R$20,0.05)*0.9*R$35*R$38*o_Isol_Bij_Tijdstip($A78,R$8,R$11))+(0.75*T$18*FLOOR(T$20,0.05)*0.9*T$35*T$38*o_Isol_Bij_Tijdstip($A78,R$8,R$11)) -> 0 | S78: W | T78: 0 | U78: W
A79: 15:00:00 | B79: =(0.75*B$18*FLOOR(B$20,0.05)*0.9*B$35*B$38*o_Isol_Bij_Tijdstip($A79,B$8,B$11))+(0.75*D$18*FLOOR(D$20,0.05)*0.9*D$35*D$38*o_Isol_Bij_Tijdstip($A79,B$8,B$11)) -> 0 | C79: W | F79: =(0.75*F$18*FLOOR(F$20,0.05)*0.9*F$35*F$38*o_Isol_Bij_Tijdstip($A79,F$8,F$11))+(0.75*H$18*FLOOR(H$20,0.05)*0.9*H$35*H$38*o_Isol_Bij_Tijdstip($A79,F$8,F$11)) -> 0 | G79: W | J79: =(0.75*J$18*FLOOR(J$20,0.05)*0.9*J$35*J$38*o_Isol_Bij_Tijdstip($A79,J$8,J$11))+(0.75*L$18*FLOOR(L$20,0.05)*0.9*L$35*L$38*o_Isol_Bij_Tijdstip($A79,J$8,J$11)) -> 0 | K79: W | N79: =(0.75*N$18*FLOOR(N$20,0.05)*0.9*N$35*N$38*o_Isol_Bij_Tijdstip($A79,N$8,N$11))+(0.75*P$18*FLOOR(P$20,0.05)*0.9*P$35*P$38*o_Isol_Bij_Tijdstip($A79,N$8,N$11)) -> 0 | O79: W | R79: =(0.75*R$18*FLOOR(R$20,0.05)*0.9*R$35*R$38*o_Isol_Bij_Tijdstip($A79,R$8,R$11))+(0.75*T$18*FLOOR(T$20,0.05)*0.9*T$35*T$38*o_Isol_Bij_Tijdstip($A79,R$8,R$11)) -> 0 | S79: W | T79: 0 | U79: W
A80: 16:00:00 | B80: =(0.75*B$18*FLOOR(B$20,0.05)*0.9*B$35*B$38*o_Isol_Bij_Tijdstip($A80,B$8,B$11))+(0.75*D$18*FLOOR(D$20,0.05)*0.9*D$35*D$38*o_Isol_Bij_Tijdstip($A80,B$8,B$11)) -> 0 | C80: W | F80: =(0.75*F$18*FLOOR(F$20,0.05)*0.9*F$35*F$38*o_Isol_Bij_Tijdstip($A80,F$8,F$11))+(0.75*H$18*FLOOR(H$20,0.05)*0.9*H$35*H$38*o_Isol_Bij_Tijdstip($A80,F$8,F$11)) -> 0 | G80: W | J80: =(0.75*J$18*FLOOR(J$20,0.05)*0.9*J$35*J$38*o_Isol_Bij_Tijdstip($A80,J$8,J$11))+(0.75*L$18*FLOOR(L$20,0.05)*0.9*L$35*L$38*o_Isol_Bij_Tijdstip($A80,J$8,J$11)) -> 0 | K80: W | N80: =(0.75*N$18*FLOOR(N$20,0.05)*0.9*N$35*N$38*o_Isol_Bij_Tijdstip($A80,N$8,N$11))+(0.75*P$18*FLOOR(P$20,0.05)*0.9*P$35*P$38*o_Isol_Bij_Tijdstip($A80,N$8,N$11)) -> 0 | O80: W | R80: =(0.75*R$18*FLOOR(R$20,0.05)*0.9*R$35*R$38*o_Isol_Bij_Tijdstip($A80,R$8,R$11))+(0.75*T$18*FLOOR(T$20,0.05)*0.9*T$35*T$38*o_Isol_Bij_Tijdstip($A80,R$8,R$11)) -> 0 | S80: W | T80: 0 | U80: W
A81: 17:00:00 | B81: =(0.75*B$18*FLOOR(B$20,0.05)*0.9*B$35*B$38*o_Isol_Bij_Tijdstip($A81,B$8,B$11))+(0.75*D$18*FLOOR(D$20,0.05)*0.9*D$35*D$38*o_Isol_Bij_Tijdstip($A81,B$8,B$11)) -> 0 | C81: W | F81: =(0.75*F$18*FLOOR(F$20,0.05)*0.9*F$35*F$38*o_Isol_Bij_Tijdstip($A81,F$8,F$11))+(0.75*H$18*FLOOR(H$20,0.05)*0.9*H$35*H$38*o_Isol_Bij_Tijdstip($A81,F$8,F$11)) -> 0 | G81: W | J81: =(0.75*J$18*FLOOR(J$20,0.05)*0.9*J$35*J$38*o_Isol_Bij_Tijdstip($A81,J$8,J$11))+(0.75*L$18*FLOOR(L$20,0.05)*0.9*L$35*L$38*o_Isol_Bij_Tijdstip($A81,J$8,J$11)) -> 0 | K81: W | N81: =(0.75*N$18*FLOOR(N$20,0.05)*0.9*N$35*N$38*o_Isol_Bij_Tijdstip($A81,N$8,N$11))+(0.75*P$18*FLOOR(P$20,0.05)*0.9*P$35*P$38*o_Isol_Bij_Tijdstip($A81,N$8,N$11)) -> 0 | O81: W | R81: =(0.75*R$18*FLOOR(R$20,0.05)*0.9*R$35*R$38*o_Isol_Bij_Tijdstip($A81,R$8,R$11))+(0.75*T$18*FLOOR(T$20,0.05)*0.9*T$35*T$38*o_Isol_Bij_Tijdstip($A81,R$8,R$11)) -> 0 | S81: W | T81: 0 | U81: W
A82: 18:00:00 | B82: =(0.75*B$18*FLOOR(B$20,0.05)*0.9*B$35*B$38*o_Isol_Bij_Tijdstip($A82,B$8,B$11))+(0.75*D$18*FLOOR(D$20,0.05)*0.9*D$35*D$38*o_Isol_Bij_Tijdstip($A82,B$8,B$11)) -> 0 | C82: W | F82: =(0.75*F$18*FLOOR(F$20,0.05)*0.9*F$35*F$38*o_Isol_Bij_Tijdstip($A82,F$8,F$11))+(0.75*H$18*FLOOR(H$20,0.05)*0.9*H$35*H$38*o_Isol_Bij_Tijdstip($A82,F$8,F$11)) -> 0 | G82: W | J82: =(0.75*J$18*FLOOR(J$20,0.05)*0.9*J$35*J$38*o_Isol_Bij_Tijdstip($A82,J$8,J$11))+(0.75*L$18*FLOOR(L$20,0.05)*0.9*L$35*L$38*o_Isol_Bij_Tijdstip($A82,J$8,J$11)) -> 0 | K82: W | N82: =(0.75*N$18*FLOOR(N$20,0.05)*0.9*N$35*N$38*o_Isol_Bij_Tijdstip($A82,N$8,N$11))+(0.75*P$18*FLOOR(P$20,0.05)*0.9*P$35*P$38*o_Isol_Bij_Tijdstip($A82,N$8,N$11)) -> 0 | O82: W | R82: =(0.75*R$18*FLOOR(R$20,0.05)*0.9*R$35*R$38*o_Isol_Bij_Tijdstip($A82,R$8,R$11))+(0.75*T$18*FLOOR(T$20,0.05)*0.9*T$35*T$38*o_Isol_Bij_Tijdstip($A82,R$8,R$11)) -> 0 | S82: W | T82: 0 | U82: W
A84: Maatgevende tijdstip | B84: =IF(MAX(T73:T82)=0,"Geen glas aanwezig",_xlfn.XLOOKUP(MAX(T73:T82),T73:T82,A73:A82,"nvt")) -> Geen glas aanwezig

Sheet Ruimte 8
A1: RUIMTE 8
A3: Ruimtenaam | B3: 0
A4: Type verblijfsruimte | B4: Andere verblijfsruimte
A5: Vloeroppervlak verblijfsruimte Avr (gebruiksoppervlak) | B5: 0 | C5: m²
B7: Voorzijde woning | F7: Linker zijde woning | J7: Achterzijde woning | N7: Rechter zijde woning | R7: Platdak
A8: Orientatie gevel / dakvlak (Helling > 15°C) | B8: =Invoerblad!$B$17 -> Noord | F8: =o_Orientatie(F9) -> Oost | J8: =o_Orientatie(J9) -> Zuid | N8: =o_Orientatie(N9) -> West | R8: Horizontaal
A9: Orientatiehoek gevel Ƴ | B9: =o_OrientatiehOEK(B8) -> 0 | F9: =IF(B9+90>360,B9+90-360,B9+90) -> 90 | J9: =IF(F9+90>360,F9+90-360,F9+90) -> 180 | N9: =IF(J9+90>360,J9+90-360,J9+90) -> 270
A10: Grenst aan buitenlucht ja of nee | B10: Ja | F10: Ja | J10: Ja | N10: Ja | R10: Ja
A11: Hellingshoek constructie ≥ 15° = hellenddak 90° = gevel | B11: 90 | C11: ° | F11: 90 | G11: ° | J11: 90 | K11: ° | N11: 90 | O11: ° | R11: 10 | S11: °
A12: Type constructie | B12: =o_TypeConstructie(B10,B11) -> Buitengevel | F12: =o_TypeConstructie(F10,F11) -> Buitengevel | J12: =o_TypeConstructie(J10,J11) -> Buitengevel | N12: =o_TypeConstructie(N10,N11) -> Buitengevel | R12: =o_TypeConstructie(R10,R11) -> Platdak <15°
A13: Gevel lengte (binnenwerks) | B13: 0 | C13: m | F13: 0 | G13: m | J13: 0 | K13: m | N13: 0 | O13: m | R13: 0 | S13: m
A14: Gevel hoogte / Dak breedte (binnenwerks) | B14: 0 | C14: m | F14: 0 | G14: m | J14: 0 | K14: m | N14: 0 | O14: m | R14: 0 | S14: m
A15: Constructie oppervlak (binnenwerks) | B15: =B13*B14 -> 0 | C15: m² | F15: =F13*F14 -> 0 | G15: m² | J15: =J13*J14 -> 0 | K15: m² | N15: =N13*N14 -> 0 | O15: m² | R15: =R13*R14 -> 0 | S15: m²
A16: Gesloten constructie oppervlak | B16: =MAX(0,B15-B18-D18) -> 0 | C16: m² | F16: =MAX(0,F15-F18-H18) -> 0 | G16: m² | J16: =MAX(0,J15-J18-L18) -> 0 | K16: m² | N16: =MAX(0,N15-N18-P18) -> 0 | O16: m² | R16: =MAX(0,R15-R18-T18) -> 0 | S16: m²
B17: Glasvlak type 1 | D17: Glasvlak type 2 | F17: Glasvlak type 1 | H17: Glasvlak type 2 | J17: Glasvlak type 1 | L17: Glasvlak type 2 | N17: Glasvlak type 1 | P17: Glasvlak type 2 | R17: Glasvlak type 1 | T17: Glasvlak type 2
A18: Totaal oppervlak van raamtype Aw,k (inclusief kozijn) | B18: 0 | C18: m² | D18: 0 | E18: m² | F18: 0 | G18: m² | H18: 0 | I18: m² | J18: 0 | K18: m² | L18: 0 | M18: m² | N18: 0 | O18: m² | P18: 0 | Q18: m² | R18: 0 | S18: m² | T18: 0 | U18: m²
A19: Warmtedoorgangscoefficient (U-waarde) van het raam Uw;wi;k | B19: 1.6 | C19: W/m².K | D19: 1.6 | E19: W/m².K | F19: 1.6 | G19: W/m².K | H19: 1.6 | I19: W/m².K | J19: 1.6 | K19: W/m².K | L19: 1.6 | M19: W/m².K | N19: 1.6 | O19: W/m².K | P19: 1.6 | Q19: W/m².K | R19: 1.6 | S19: W/m².K | T19: 1.6 | U19: W/m².K
A20: Zontoetredingsfactor (g_waarde) van het glas Ggl;n;wi;k;C;juli | B20: 1 | D20: 1 | F20: 1 | H20: 1 | J20: 1 | L20: 1 | N20: 1 | P20: 1 | R20: 1 | T20: 1
A21: Beschaduwing situatie bij het raamtype | B21: Minimale belemmering | D21: Minimale belemmering | F21: Minimale belemmering | H21: Minimale belemmering | J21: Minimale belemmering | L21: Minimale belemmering | N21: Minimale belemmering | P21: Minimale belemmering | R21: Minimale belemmering | T21: Minimale belemmering
B23: Overstek | D23: Overstek | F23: Overstek | H23: Overstek | J23: Overstek | L23: Overstek | N23: Overstek | P23: Overstek
A24: Hoogte verschil midden raam onderzijde overstek | B24: 0 | C24: m | D24: 0 | E24: m | F24: 0 | G24: m | H24: 0 | I24: m | J24: 0 | K24: m | L24: 0 | M24: m | N24: 0 | O24: m | P24: 0 | Q24: m | R24: 0 | U24: m
A25: Horizontale afstand glas tot eindpunt overstek | B25: 0 | C25: m | D25: 0 | E25: m | F25: 0 | G25: m | H25: 0 | I25: m | J25: 0 | K25: m | L25: 0 | M25: m | N25: 0 | O25: m | P25: 0 | Q25: m | R25: 0 | U25: m
A26: Overstekhoek | B26: =IFERROR(180/PI()*ATAN(B24/B25),0) -> 0 | C26: ° | D26: =IFERROR(180/PI()*ATAN(D24/D25),0) -> 0 | E26: ° | F26: =IFERROR(180/PI()*ATAN(F24/F25),0) -> 0 | G26: ° | H26: =IFERROR(180/PI()*ATAN(H24/H25),0) -> 0 | I26: ° | J26: =IFERROR(180/PI()*ATAN(J24/J25),0) -> 0 | K26: ° | L26: =IFERROR(180/PI()*ATAN(L24/L25),0) -> 0 | M26: ° | N26: =IFERROR(180/PI()*ATAN(N24/N25),0) -> 0 | O26: ° | P26: =IFERROR(180/PI()*ATAN(P24/P25),0) -> 0 | Q26: ° | U26: °
A27: Relatieve hoogte van overstek | B27: =IFERROR(B24/B25,1) -> 1 | D27: =IFERROR(D24/D25,1) -> 1 | F27: =IFERROR(F24/F25,1) -> 1 | H27: =IFERROR(H24/H25,1) -> 1 | J27: =IFERROR(J24/J25,1) -> 1 | L27: =IFERROR(L24/L25,1) -> 1 | N27: =IFERROR(N24/N25,1) -> 1 | P27: =IFERROR(P24/P25,1) -> 1
B29: Zijbelemmering | D29: Zijbelemmering | F29: Zijbelemmering | H29: Zijbelemmering | J29: Zijbelemmering | L29: Zijbelemmering | N29: Zijbelemmering | P29: Zijbelemmering
A30: Positie zijbelemmering irt zichtveld (naar buitengericht) | B30: Links | D30: Links | F30: Links | H30: Links | J30: Links | L30: Links | N30: Links | P30: Links
A31: Horizontale afstand midden raam verste punt belemmering | B31: 0 | C31: m | D31: 0 | E31: m | G31: m | I31: m | K31: m | L31: 1 | M31: m | O31: m | Q31: m | U31: m
A32: Horizontale breedte glas tot eindpunt belemmering | B32: 0 | C32: m | D32: 0 | E32: m | G32: m | I32: m | K32: m | M32: m | O32: m | Q32: m | U32: m
A33: Relatieve breedte van de zijbelemmering bb | B33: =IFERROR(B31/B32,999) -> 999 | D33: =IFERROR(D31/D32,999) -> 999 | F33: =IFERROR(F31/F32,999) -> 999 | H33: =IFERROR(H31/H32,999) -> 999 | J33: =IFERROR(J31/J32,999) -> 999 | L33: =IFERROR(L31/L32,999) -> 999 | N33: =IFERROR(N31/N32,999) -> 999 | P33: =IFERROR(P31/P32,999) -> 999
A35: De beschaduwingsreductiefactor Fsh;obst;wi;k;juli | B35: =IFERROR(o_Beschaduwingreductie(B21,B8,B27,B30,B33,B11),1) -> 1 | D35: =IFERROR(o_Beschaduwingreductie(D21,B8,D27,D30,D33,B11),1) -> 1 | F35: =IFERROR(o_Beschaduwingreductie(F21,F8,F27,F30,F33,F11),1) -> 1 | H35: =IFERROR(o_Beschaduwingreductie(H21,F8,H27,H30,H33,F11),1) -> 1 | J35: =IFERROR(o_Beschaduwingreductie(J21,J8,J27,J30,J33,J11),1) -> 1 | L35: =IFERROR(o_Beschaduwingreductie(L21,J8,L27,L30,L33,J11),1) -> 1 | N35: =IFERROR(o_Beschaduwingreductie(N21,N8,N27,N30,N33,N11),1) -> 1 | P35: =IFERROR(o_Beschaduwingreductie(P21,N8,P27,P30,P33,N11),1) -> 1 | R35: =o_Beschaduwingreductie(R21,R8,R27,R30,R33,R11) -> 1 | T35: =o_Beschaduwingreductie(T21,R8,T27,T30,T33,R11) -> 1
A37: Type zonwering | B37: Geen zonwering | D37: Geen zonwering | F37: Geen zonwering | H37: Geen zonwering | J37: Geen zonwering | L37: Geen zonwering | N37: Geen zonwering | P37: Geen zonwering | R37: Geen zonwering | T37: Geen zonwering
A38: De reductiefactor voor zonwering Fc;wi;k | B38: =o_Zonweringreductie(B37,B8) -> 1 | D38: =o_Zonweringreductie(D37,B8) -> 1 | F38: =o_Zonweringreductie(F37,F8) -> 1 | H38: =o_Zonweringreductie(H37,F8) -> 1 | J38: =o_Zonweringreductie(J37,J8) -> 1 | L38: =o_Zonweringreductie(L37,J8) -> 1 | N38: =o_Zonweringreductie(N37,N8) -> 1 | P38: =o_Zonweringreductie(P37,N8) -> 1 | R38: =o_Zonweringreductie(R37,R8) -> 1 | T38: =o_Zonweringreductie(T37,R8) -> 1
A39: Totaal opvallende zonnestraling van het raam Isol;wi;k;juli | B39: =IF(B10="Nee",0,o_Isol_Bij_Tijdstip($B$52,B8,B11)) -> 102.1887342 | C39: W/m² | D39: =IF(B10="Nee",0,o_Isol_Bij_Tijdstip($B$52,B8,B11)) -> 102.1887342 | E39: W/m² | F39: =IF(F10="Nee",0,o_Isol_Bij_Tijdstip($B$52,F8,F11)) -> 84.06226988 | G39: W/m² | H39: =IF(F10="Nee",0,o_Isol_Bij_Tijdstip($B$52,F8,F11)) -> 84.06226988 | I39: W/m² | J39: =IF(J10="Nee",0,o_Isol_Bij_Tijdstip($B$52,J8,J11)) -> 84.06226988 | K39: W/m² | L39: =IF(J10="Nee",0,o_Isol_Bij_Tijdstip($B$52,J8,J11)) -> 84.06226988 | M39: W/m² | N39: =IF(N10="Nee",0,o_Isol_Bij_Tijdstip($B$52,N8,N11)) -> 741.7580929 | O39: W/m² | P39: =IF(N10="Nee",0,o_Isol_Bij_Tijdstip($B$52,N8,N11)) -> 741.7580929 | Q39: W/m² | R39: =IF(R10="Nee",0,o_Isol_Bij_Tijdstip($B$52,R8,R11)) -> 408.3060242 | S39: W/m² | T39: =IF(R10="Nee",0,o_Isol_Bij_Tijdstip($B$52,R8,R11)) -> 408.3060242 | U39: W/m²
A41: Tijdstip maximale koellastbijdrage tmax;zi | B41: =VALUE(o_Tijdstip_Isol_Max_Orientatie(B8,B11)) -> 15:00:00 | F41: =VALUE(o_Tijdstip_Isol_Max_Orientatie(F8,F11)) -> 09:00:00 | J41: =VALUE(o_Tijdstip_Isol_Max_Orientatie(J8,J11)) -> 14:00:00 | N41: =VALUE(o_Tijdstip_Isol_Max_Orientatie(N8,N11)) -> 18:00:00 | R41: =o_Tijdstip_Isol_Max_Orientatie(R8,R11) -> 16:00:00
A42: Buitenluchttemperatuur op tijdstip max koellast Θe | B42: =o_maxTemp(VALUE(B41)) -> 29.8 | E42: °C | F42: =o_maxTemp(VALUE(F41)) -> 24.7 | I42: °C | J42: =o_maxTemp(VALUE(J41)) -> 29.9 | M42: °C | N42: =o_maxTemp(VALUE(N41)) -> 30.1 | Q42: °C | R42: =o_maxTemp(VALUE(R41)) -> 30.4
A44: Glasopppervlak | B44: =IF(B10="Ja",B18+D18,0) -> 0 | C44: m² | F44: =IF(F10="Ja",F18+H18,0) -> 0 | G44: m² | J44: =IF(J10="Ja",J18+L18,0) -> 0 | K44: m² | N44: =IF(N10="Ja",N18+P18,0) -> 0 | O44: m² | R44: =IF(R10="Ja",R18+T18,0) -> 0 | S44: m²
A45: Uitwendigescheidingsconstructie niet op Noord? | B45: =IF(B10="Ja",IF(B8="Noord",FALSE,TRUE),FALSE) -> FALSE | F45: =IF(F10="Ja",IF(F8="Noord",FALSE,TRUE),FALSE) -> TRUE | J45: =IF(J10="Ja",IF(J8="Noord",FALSE,TRUE),FALSE) -> TRUE | N45: =IF(N10="Ja",IF(N8="Noord",FALSE,TRUE),FALSE) -> TRUE | R45: =IF(R10="Ja",IF(R8="Noord",FALSE,TRUE),FALSE) -> TRUE
A46: De enige uitwendigescheidingscontructie? | B46: =IF(AND(B45=TRUE,COUNTIF($B$45:$R$45,TRUE)=1),TRUE,FALSE) -> FALSE | F46: =IF(AND(F45=TRUE,COUNTIF($B$45:$R$45,TRUE)=1),TRUE,FALSE) -> FALSE | J46: =IF(AND(J45=TRUE,COUNTIF($B$45:$R$45,TRUE)=1),TRUE,FALSE) -> FALSE | N46: =IF(AND(N45=TRUE,COUNTIF($B$45:$R$45,TRUE)=1),TRUE,FALSE) -> FALSE | R46: =IF(AND(R45=TRUE,COUNTIF($B$45:$R$45,TRUE)=1),TRUE,FALSE) -> FALSE
A47: Totaal glasoppervlak | B47: =IF(B8<>"Noord",B44,0) -> 0 | C47: m² | F47: =IF(F8<>"Noord",F44,0) -> 0 | G47: m² | J47: =IF(J8<>"Noord",J44,0) -> 0 | K47: m² | N47: =IF(N8<>"Noord",N44,0) -> 0 | O47: m² | R47: =R44 -> 0 | S47: m²
A48: Grootste glasoppervlak | B48: =IF(AND(B45,B47=MAX($B$47:$R$47)),TRUE,FALSE) -> FALSE | F48: =IF(AND(F45,F47=MAX($B$47:$R$47)),TRUE,FALSE) -> TRUE | J48: =IF(AND(J45,J47=MAX($B$47:$R$47)),TRUE,FALSE) -> TRUE | N48: =IF(AND(N45,N47=MAX($B$47:$R$47)),TRUE,FALSE) -> TRUE | R48: =IF(AND(R45,R47=MAX($B$47:$R$47)),TRUE,FALSE) -> TRUE
A49: Dakvlak maatgevend? | B49: =IF(AND(B11<90,B15>3*(B18+D18),Invoerblad!$B$25<65),TRUE,FALSE) -> FALSE | F49: =IF(AND(F11<90,F15>3*(F18+H18),Invoerblad!$B$25<65),TRUE,FALSE) -> FALSE | J49: =IF(AND(J11<90,J15>3*(J18+L18),Invoerblad!$B$25<65),TRUE,FALSE) -> FALSE | N49: =IF(AND(N11<90,N15>3*(N18+P18),Invoerblad!$B$25<65),TRUE,FALSE) -> FALSE | R49: =IF(AND(R11<90,R15>3*(R18+T18),Invoerblad!$B$25<65),TRUE,FALSE) -> FALSE
A50: is er een maatgevend dakoppervlak | B50: =IF(COUNTIF($B$49:$R$49,TRUE)>0,TRUE,FALSE) -> FALSE | F50: =IF(COUNTIF($B$49:$R$49,TRUE)>0,TRUE,FALSE) -> FALSE | J50: =IF(COUNTIF($B$49:$R$49,TRUE)>0,TRUE,FALSE) -> FALSE | N50: =IF(COUNTIF($B$49:$R$49,TRUE)>0,TRUE,FALSE) -> FALSE | R50: =IF(COUNTIF($B$49:$R$49,TRUE)>0,TRUE,FALSE) -> FALSE
A51: Maatgevende tijdstip | B51: =IF(OR(B46,AND(B45,B50,B49),AND(B45,B48,NOT(B50))),B41) -> FALSE | F51: =IF(OR(F46,AND(F45,F50,F49),AND(F45,F48,NOT(F50))),F41) -> 09:00:00 | J51: =IF(OR(J46,AND(J45,J50,J49),AND(J45,J48,NOT(J50))),J41) -> 14:00:00 | N51: =IF(OR(N46,AND(N45,N50,N49),AND(N45,N48,NOT(N50))),N41) -> 18:00:00 | R51: =IF(OR(R46,AND(R45,R50,R49),AND(R45,R48,NOT(R50))),R41) -> 16:00:00
A52: Maatgevende tijdstip tmax;zi | B52: =IFERROR(B84,"geen glas ingevoerd") -> Geen glas aanwezig
A53: Buitenluchttemperatuur op tijdstip max koellast Θe | B53: =o_maxTemp(VALUE(B52)) ->  | C53: °C
A55: Koellastbijdrage transmissie transparante delen Ptr;gl;vr;zi | B55: =IF(B10="Nee",0,B16*Invoerblad!$B$16) -> 0 | E55: W | F55: =IF(F10="Nee",0,F16*Invoerblad!$B$16) -> 0 | I55: W | J55: =IF(J10="Nee",0,J16*Invoerblad!$B$16) -> 0 | M55: W | N55: =IF(N10="Nee",0,N16*Invoerblad!$B$16) -> 0 | Q55: W | R55: =IF(R10="Nee",0,R16*Invoerblad!$B$16) -> 0 | U55: W
A56: Koellastbijdrage zoninstraling transparante delen Psol;vr;zi | B56: =(0.75*B18*FLOOR(B20,0.05)*0.9*B35*B38*B39)+(0.75*D18*FLOOR(D20,0.05)*0.9*D35*D38*D39) -> 0 | E56: W | F56: =(0.75*F18*FLOOR(F20,0.05)*0.9*F35*F38*F39)+(0.75*H18*FLOOR(H20,0.05)*0.9*H35*H38*H39) -> 0 | I56: W | J56: =(0.75*J18*FLOOR(J20,0.05)*0.9*J35*J38*J39)+(0.75*L18*FLOOR(L20,0.05)*0.9*L35*L38*L39) -> 0 | M56: W | N56: =(0.75*N18*FLOOR(N20,0.05)*0.9*N35*N38*N39)+(0.75*P18*FLOOR(P20,0.05)*0.9*P35*P38*P39) -> 0 | Q56: W | R56: =(0.75*R18*FLOOR(R20,0.05)*0.9*R35*R38*R39)+(0.75*T18*FLOOR(T20,0.05)*0.9*T35*T38*T39) -> 0 | U56: W
A57: Koellastbijdrage transmissie transparante delen Ptr;gl;vr;zi | B57: =IF(B10="Nee",0,IFERROR(B18*B19*($B$53-24),0)+IFERROR(D18*D19*($B$53-24),0)) -> 0 | E57: W | F57: =IF(F10="Nee",0,IFERROR(F18*F19*($B$53-24),0)+IFERROR(H18*H19*($B$53-24),0)) -> 0 | I57: W | J57: =IF(J10="Nee",0,IFERROR(J18*J19*($B$53-24),0)+IFERROR(L18*L19*($B$53-24),0)) -> 0 | M57: W | N57: =IF(N10="Nee",0,IFERROR(N18*N19*($B$53-24),0)+IFERROR(P18*P19*($B$53-24),0)) -> 0 | Q57: W | R57: =IF(R10="Nee",0,IFERROR(R18*R19*($B$53-24),0)+IFERROR(T18*T19*($B$53-24),0)) -> 0 | U57: W
A58: Totaal koellastbijdrage per gevel | B58: =SUM(B55:D57) -> 0 | E58: W | F58: =SUM(F55:H57) -> 0 | I58: W | J58: =SUM(J55:L57) -> 0 | M58: W | N58: =SUM(N55:P57) -> 0 | Q58: W | R58: =SUM(R55:R57) -> 0 | U58: W
A60: Koellast door interne warmtelast Pint;calc;woon/overig;zi | B60: =IF(B5=0,0,IF(B4="Woonvertrek",2*Invoerblad!$B$40*B5,Invoerblad!$B$40*B5)) -> 0 | E60: W
A61: Koellast door buitenluchttoetreding Pv;calc;vr;zi | B61: =IFERROR(MAX((SUM(Invoerblad!$B$28:$B$30)/3600*1.205*1005*(B53-24))/SUM(Invoerblad!$B$47:$T$47)*B5,0),0) -> 0 | C61: =IFERROR(MAX(SUM(C57:C59)/3600*1.205*1005*(C60-24),0),0) -> 0 | D61: =IFERROR(MAX(SUM(D57:D59)/3600*1.205*1005*(D60-24),0),0) -> 0 | E61: W
A63: Totaal koellastbijdrage | B63: =IFERROR(SUM(B58:T58)+B60+B61,0) -> 0 | E63: W
A64: Koelbehoefte verblijfsruimte | B64: =IFERROR(B63/B5,0) -> 0 | E64: W/m²
A67: Onderstaande tabellen worden verborgen in de uiteindelijke versie. De tabellen dienen om vast te stellen welk tijdstip tot de hoogste zonbelasting leidt
A69: Isol max voor de orientatie | B69: =o_Isol_Max_Orientatie(B8,B11) -> 143.7398809 | C69: W/m² | F69: =o_Isol_Max_Orientatie(F8,F11) -> 845.3277237 | G69: W/m² | J69: =o_Isol_Max_Orientatie(J8,J11) -> 740.0583625 | K69: W/m² | N69: =o_Isol_Max_Orientatie(N8,N11) -> 741.7580929 | O69: W/m² | R69: =o_Isol_Max_Orientatie(R8,R11) -> 914.160926 | S69: W/m²
A70: Tijdstip bij Isol max bij orientatie | B70: =VALUE(o_Tijdstip_Isol_Max_Orientatie(B8,B11)) -> 15:00:00 | F70: =VALUE(o_Tijdstip_Isol_Max_Orientatie(F8,F11)) -> 09:00:00 | J70: =VALUE(o_Tijdstip_Isol_Max_Orientatie(J8,J11)) -> 14:00:00 | N70: =VALUE(o_Tijdstip_Isol_Max_Orientatie(N8,N11)) -> 18:00:00 | R70: =VALUE(o_Tijdstip_Isol_Max_Orientatie(R8,R11)) -> 16:00:00
A72: Koellastbijdrage zoninstraling transparante delen Psol;vr;zi
A73: 09:00:00 | B73: =(0.75*B$18*FLOOR(B$20,0.05)*0.9*B$35*B$38*o_Isol_Bij_Tijdstip($A73,B$8,B$11))+(0.75*D$18*FLOOR(D$20,0.05)*0.9*D$35*D$38*o_Isol_Bij_Tijdstip($A73,B$8,B$11)) -> 0 | C73: W | F73: =(0.75*F$18*FLOOR(F$20,0.05)*0.9*F$35*F$38*o_Isol_Bij_Tijdstip($A73,F$8,F$11))+(0.75*H$18*FLOOR(H$20,0.05)*0.9*H$35*H$38*o_Isol_Bij_Tijdstip($A73,F$8,F$11)) -> 0 | G73: W | J73: =(0.75*J$18*FLOOR(J$20,0.05)*0.9*J$35*J$38*o_Isol_Bij_Tijdstip($A73,J$8,J$11))+(0.75*L$18*FLOOR(L$20,0.05)*0.9*L$35*L$38*o_Isol_Bij_Tijdstip($A73,J$8,J$11)) -> 0 | K73: W | N73: =(0.75*N$18*FLOOR(N$20,0.05)*0.9*N$35*N$38*o_Isol_Bij_Tijdstip($A73,N$8,N$11))+(0.75*P$18*FLOOR(P$20,0.05)*0.9*P$35*P$38*o_Isol_Bij_Tijdstip($A73,N$8,N$11)) -> 0 | O73: W | R73: =(0.75*R$18*FLOOR(R$20,0.05)*0.9*R$35*R$38*o_Isol_Bij_Tijdstip($A73,R$8,R$11))+(0.75*T$18*FLOOR(T$20,0.05)*0.9*T$35*T$38*o_Isol_Bij_Tijdstip($A73,R$8,R$11)) -> 0 | S73: W | T73: =B73+F73+J73+N73+R73 -> 0 | U73: W
A74: 10:00:00 | B74: =(0.75*B$18*FLOOR(B$20,0.05)*0.9*B$35*B$38*o_Isol_Bij_Tijdstip($A74,B$8,B$11))+(0.75*D$18*FLOOR(D$20,0.05)*0.9*D$35*D$38*o_Isol_Bij_Tijdstip($A74,B$8,B$11)) -> 0 | C74: W | F74: =(0.75*F$18*FLOOR(F$20,0.05)*0.9*F$35*F$38*o_Isol_Bij_Tijdstip($A74,F$8,F$11))+(0.75*H$18*FLOOR(H$20,0.05)*0.9*H$35*H$38*o_Isol_Bij_Tijdstip($A74,F$8,F$11)) -> 0 | G74: W | J74: =(0.75*J$18*FLOOR(J$20,0.05)*0.9*J$35*J$38*o_Isol_Bij_Tijdstip($A74,J$8,J$11))+(0.75*L$18*FLOOR(L$20,0.05)*0.9*L$35*L$38*o_Isol_Bij_Tijdstip($A74,J$8,J$11)) -> 0 | K74: W | N74: =(0.75*N$18*FLOOR(N$20,0.05)*0.9*N$35*N$38*o_Isol_Bij_Tijdstip($A74,N$8,N$11))+(0.75*P$18*FLOOR(P$20,0.05)*0.9*P$35*P$38*o_Isol_Bij_Tijdstip($A74,N$8,N$11)) -> 0 | O74: W | R74: =(0.75*R$18*FLOOR(R$20,0.05)*0.9*R$35*R$38*o_Isol_Bij_Tijdstip($A74,R$8,R$11))+(0.75*T$18*FLOOR(T$20,0.05)*0.9*T$35*T$38*o_Isol_Bij_Tijdstip($A74,R$8,R$11)) -> 0 | S74: W | T74: 0 | U74: W
A75: 11:00:00 | B75: =(0.75*B$18*FLOOR(B$20,0.05)*0.9*B$35*B$38*o_Isol_Bij_Tijdstip($A75,B$8,B$11))+(0.75*D$18*FLOOR(D$20,0.05)*0.9*D$35*D$38*o_Isol_Bij_Tijdstip($A75,B$8,B$11)) -> 0 | C75: W | F75: =(0.75*F$18*FLOOR(F$20,0.05)*0.9*F$35*F$38*o_Isol_Bij_Tijdstip($A75,F$8,F$11))+(0.75*H$18*FLOOR(H$20,0.05)*0.9*H$35*H$38*o_Isol_Bij_Tijdstip($A75,F$8,F$11)) -> 0 | G75: W | J75: =(0.75*J$18*FLOOR(J$20,0.05)*0.9*J$35*J$38*o_Isol_Bij_Tijdstip($A75,J$8,J$11))+(0.75*L$18*FLOOR(L$20,0.05)*0.9*L$35*L$38*o_Isol_Bij_Tijdstip($A75,J$8,J$11)) -> 0 | K75: W | N75: =(0.75*N$18*FLOOR(N$20,0.05)*0.9*N$35*N$38*o_Isol_Bij_Tijdstip($A75,N$8,N$11))+(0.75*P$18*FLOOR(P$20,0.05)*0.9*P$35*P$38*o_Isol_Bij_Tijdstip($A75,N$8,N$11)) -> 0 | O75: W | R75: =(0.75*R$18*FLOOR(R$20,0.05)*0.9*R$35*R$38*o_Isol_Bij_Tijdstip($A75,R$8,R$11))+(0.75*T$18*FLOOR(T$20,0.05)*0.9*T$35*T$38*o_Isol_Bij_Tijdstip($A75,R$8,R$11)) -> 0 | S75: W | T75: 0 | U75: W
A76: 12:00:00 | B76: =(0.75*B$18*FLOOR(B$20,0.05)*0.9*B$35*B$38*o_Isol_Bij_Tijdstip($A76,B$8,B$11))+(0.75*D$18*FLOOR(D$20,0.05)*0.9*D$35*D$38*o_Isol_Bij_Tijdstip($A76,B$8,B$11)) -> 0 | C76: W | F76: =(0.75*F$18*FLOOR(F$20,0.05)*0.9*F$35*F$38*o_Isol_Bij_Tijdstip($A76,F$8,F$11))+(0.75*H$18*FLOOR(H$20,0.05)*0.9*H$35*H$38*o_Isol_Bij_Tijdstip($A76,F$8,F$11)) -> 0 | G76: W | J76: =(0.75*J$18*FLOOR(J$20,0.05)*0.9*J$35*J$38*o_Isol_Bij_Tijdstip($A76,J$8,J$11))+(0.75*L$18*FLOOR(L$20,0.05)*0.9*L$35*L$38*o_Isol_Bij_Tijdstip($A76,J$8,J$11)) -> 0 | K76: W | N76: =(0.75*N$18*FLOOR(N$20,0.05)*0.9*N$35*N$38*o_Isol_Bij_Tijdstip($A76,N$8,N$11))+(0.75*P$18*FLOOR(P$20,0.05)*0.9*P$35*P$38*o_Isol_Bij_Tijdstip($A76,N$8,N$11)) -> 0 | O76: W | R76: =(0.75*R$18*FLOOR(R$20,0.05)*0.9*R$35*R$38*o_Isol_Bij_Tijdstip($A76,R$8,R$11))+(0.75*T$18*FLOOR(T$20,0.05)*0.9*T$35*T$38*o_Isol_Bij_Tijdstip($A76,R$8,R$11)) -> 0 | S76: W | T76: 0 | U76: W
A77: 13:00:00 | B77: =(0.75*B$18*FLOOR(B$20,0.05)*0.9*B$35*B$38*o_Isol_Bij_Tijdstip($A77,B$8,B$11))+(0.75*D$18*FLOOR(D$20,0.05)*0.9*D$35*D$38*o_Isol_Bij_Tijdstip($A77,B$8,B$11)) -> 0 | C77: W | F77: =(0.75*F$18*FLOOR(F$20,0.05)*0.9*F$35*F$38*o_Isol_Bij_Tijdstip($A77,F$8,F$11))+(0.75*H$18*FLOOR(H$20,0.05)*0.9*H$35*H$38*o_Isol_Bij_Tijdstip($A77,F$8,F$11)) -> 0 | G77: W | J77: =(0.75*J$18*FLOOR(J$20,0.05)*0.9*J$35*J$38*o_Isol_Bij_Tijdstip($A77,J$8,J$11))+(0.75*L$18*FLOOR(L$20,0.05)*0.9*L$35*L$38*o_Isol_Bij_Tijdstip($A77,J$8,J$11)) -> 0 | K77: W | N77: =(0.75*N$18*FLOOR(N$20,0.05)*0.9*N$35*N$38*o_Isol_Bij_Tijdstip($A77,N$8,N$11))+(0.75*P$18*FLOOR(P$20,0.05)*0.9*P$35*P$38*o_Isol_Bij_Tijdstip($A77,N$8,N$11)) -> 0 | O77: W | R77: =(0.75*R$18*FLOOR(R$20,0.05)*0.9*R$35*R$38*o_Isol_Bij_Tijdstip($A77,R$8,R$11))+(0.75*T$18*FLOOR(T$20,0.05)*0.9*T$35*T$38*o_Isol_Bij_Tijdstip($A77,R$8,R$11)) -> 0 | S77: W | T77: 0 | U77: W
A78: 14:00:00 | B78: =(0.75*B$18*FLOOR(B$20,0.05)*0.9*B$35*B$38*o_Isol_Bij_Tijdstip($A78,B$8,B$11))+(0.75*D$18*FLOOR(D$20,0.05)*0.9*D$35*D$38*o_Isol_Bij_Tijdstip($A78,B$8,B$11)) -> 0 | C78: W | F78: =(0.75*F$18*FLOOR(F$20,0.05)*0.9*F$35*F$38*o_Isol_Bij_Tijdstip($A78,F$8,F$11))+(0.75*H$18*FLOOR(H$20,0.05)*0.9*H$35*H$38*o_Isol_Bij_Tijdstip($A78,F$8,F$11)) -> 0 | G78: W | J78: =(0.75*J$18*FLOOR(J$20,0.05)*0.9*J$35*J$38*o_Isol_Bij_Tijdstip($A78,J$8,J$11))+(0.75*L$18*FLOOR(L$20,0.05)*0.9*L$35*L$38*o_Isol_Bij_Tijdstip($A78,J$8,J$11)) -> 0 | K78: W | N78: =(0.75*N$18*FLOOR(N$20,0.05)*0.9*N$35*N$38*o_Isol_Bij_Tijdstip($A78,N$8,N$11))+(0.75*P$18*FLOOR(P$20,0.05)*0.9*P$35*P$38*o_Isol_Bij_Tijdstip($A78,N$8,N$11)) -> 0 | O78: W | R78: =(0.75*R$18*FLOOR(R$20,0.05)*0.9*R$35*R$38*o_Isol_Bij_Tijdstip($A78,R$8,R$11))+(0.75*T$18*FLOOR(T$20,0.05)*0.9*T$35*T$38*o_Isol_Bij_Tijdstip($A78,R$8,R$11)) -> 0 | S78: W | T78: 0 | U78: W
A79: 15:00:00 | B79: =(0.75*B$18*FLOOR(B$20,0.05)*0.9*B$35*B$38*o_Isol_Bij_Tijdstip($A79,B$8,B$11))+(0.75*D$18*FLOOR(D$20,0.05)*0.9*D$35*D$38*o_Isol_Bij_Tijdstip($A79,B$8,B$11)) -> 0 | C79: W | F79: =(0.75*F$18*FLOOR(F$20,0.05)*0.9*F$35*F$38*o_Isol_Bij_Tijdstip($A79,F$8,F$11))+(0.75*H$18*FLOOR(H$20,0.05)*0.9*H$35*H$38*o_Isol_Bij_Tijdstip($A79,F$8,F$11)) -> 0 | G79: W | J79: =(0.75*J$18*FLOOR(J$20,0.05)*0.9*J$35*J$38*o_Isol_Bij_Tijdstip($A79,J$8,J$11))+(0.75*L$18*FLOOR(L$20,0.05)*0.9*L$35*L$38*o_Isol_Bij_Tijdstip($A79,J$8,J$11)) -> 0 | K79: W | N79: =(0.75*N$18*FLOOR(N$20,0.05)*0.9*N$35*N$38*o_Isol_Bij_Tijdstip($A79,N$8,N$11))+(0.75*P$18*FLOOR(P$20,0.05)*0.9*P$35*P$38*o_Isol_Bij_Tijdstip($A79,N$8,N$11)) -> 0 | O79: W | R79: =(0.75*R$18*FLOOR(R$20,0.05)*0.9*R$35*R$38*o_Isol_Bij_Tijdstip($A79,R$8,R$11))+(0.75*T$18*FLOOR(T$20,0.05)*0.9*T$35*T$38*o_Isol_Bij_Tijdstip($A79,R$8,R$11)) -> 0 | S79: W | T79: 0 | U79: W
A80: 16:00:00 | B80: =(0.75*B$18*FLOOR(B$20,0.05)*0.9*B$35*B$38*o_Isol_Bij_Tijdstip($A80,B$8,B$11))+(0.75*D$18*FLOOR(D$20,0.05)*0.9*D$35*D$38*o_Isol_Bij_Tijdstip($A80,B$8,B$11)) -> 0 | C80: W | F80: =(0.75*F$18*FLOOR(F$20,0.05)*0.9*F$35*F$38*o_Isol_Bij_Tijdstip($A80,F$8,F$11))+(0.75*H$18*FLOOR(H$20,0.05)*0.9*H$35*H$38*o_Isol_Bij_Tijdstip($A80,F$8,F$11)) -> 0 | G80: W | J80: =(0.75*J$18*FLOOR(J$20,0.05)*0.9*J$35*J$38*o_Isol_Bij_Tijdstip($A80,J$8,J$11))+(0.75*L$18*FLOOR(L$20,0.05)*0.9*L$35*L$38*o_Isol_Bij_Tijdstip($A80,J$8,J$11)) -> 0 | K80: W | N80: =(0.75*N$18*FLOOR(N$20,0.05)*0.9*N$35*N$38*o_Isol_Bij_Tijdstip($A80,N$8,N$11))+(0.75*P$18*FLOOR(P$20,0.05)*0.9*P$35*P$38*o_Isol_Bij_Tijdstip($A80,N$8,N$11)) -> 0 | O80: W | R80: =(0.75*R$18*FLOOR(R$20,0.05)*0.9*R$35*R$38*o_Isol_Bij_Tijdstip($A80,R$8,R$11))+(0.75*T$18*FLOOR(T$20,0.05)*0.9*T$35*T$38*o_Isol_Bij_Tijdstip($A80,R$8,R$11)) -> 0 | S80: W | T80: 0 | U80: W
A81: 17:00:00 | B81: =(0.75*B$18*FLOOR(B$20,0.05)*0.9*B$35*B$38*o_Isol_Bij_Tijdstip($A81,B$8,B$11))+(0.75*D$18*FLOOR(D$20,0.05)*0.9*D$35*D$38*o_Isol_Bij_Tijdstip($A81,B$8,B$11)) -> 0 | C81: W | F81: =(0.75*F$18*FLOOR(F$20,0.05)*0.9*F$35*F$38*o_Isol_Bij_Tijdstip($A81,F$8,F$11))+(0.75*H$18*FLOOR(H$20,0.05)*0.9*H$35*H$38*o_Isol_Bij_Tijdstip($A81,F$8,F$11)) -> 0 | G81: W | J81: =(0.75*J$18*FLOOR(J$20,0.05)*0.9*J$35*J$38*o_Isol_Bij_Tijdstip($A81,J$8,J$11))+(0.75*L$18*FLOOR(L$20,0.05)*0.9*L$35*L$38*o_Isol_Bij_Tijdstip($A81,J$8,J$11)) -> 0 | K81: W | N81: =(0.75*N$18*FLOOR(N$20,0.05)*0.9*N$35*N$38*o_Isol_Bij_Tijdstip($A81,N$8,N$11))+(0.75*P$18*FLOOR(P$20,0.05)*0.9*P$35*P$38*o_Isol_Bij_Tijdstip($A81,N$8,N$11)) -> 0 | O81: W | R81: =(0.75*R$18*FLOOR(R$20,0.05)*0.9*R$35*R$38*o_Isol_Bij_Tijdstip($A81,R$8,R$11))+(0.75*T$18*FLOOR(T$20,0.05)*0.9*T$35*T$38*o_Isol_Bij_Tijdstip($A81,R$8,R$11)) -> 0 | S81: W | T81: 0 | U81: W
A82: 18:00:00 | B82: =(0.75*B$18*FLOOR(B$20,0.05)*0.9*B$35*B$38*o_Isol_Bij_Tijdstip($A82,B$8,B$11))+(0.75*D$18*FLOOR(D$20,0.05)*0.9*D$35*D$38*o_Isol_Bij_Tijdstip($A82,B$8,B$11)) -> 0 | C82: W | F82: =(0.75*F$18*FLOOR(F$20,0.05)*0.9*F$35*F$38*o_Isol_Bij_Tijdstip($A82,F$8,F$11))+(0.75*H$18*FLOOR(H$20,0.05)*0.9*H$35*H$38*o_Isol_Bij_Tijdstip($A82,F$8,F$11)) -> 0 | G82: W | J82: =(0.75*J$18*FLOOR(J$20,0.05)*0.9*J$35*J$38*o_Isol_Bij_Tijdstip($A82,J$8,J$11))+(0.75*L$18*FLOOR(L$20,0.05)*0.9*L$35*L$38*o_Isol_Bij_Tijdstip($A82,J$8,J$11)) -> 0 | K82: W | N82: =(0.75*N$18*FLOOR(N$20,0.05)*0.9*N$35*N$38*o_Isol_Bij_Tijdstip($A82,N$8,N$11))+(0.75*P$18*FLOOR(P$20,0.05)*0.9*P$35*P$38*o_Isol_Bij_Tijdstip($A82,N$8,N$11)) -> 0 | O82: W | R82: =(0.75*R$18*FLOOR(R$20,0.05)*0.9*R$35*R$38*o_Isol_Bij_Tijdstip($A82,R$8,R$11))+(0.75*T$18*FLOOR(T$20,0.05)*0.9*T$35*T$38*o_Isol_Bij_Tijdstip($A82,R$8,R$11)) -> 0 | S82: W | T82: 0 | U82: W
A84: Maatgevende tijdstip | B84: =IF(MAX(T73:T82)=0,"Geen glas aanwezig",_xlfn.XLOOKUP(MAX(T73:T82),T73:T82,A73:A82,"nvt")) -> Geen glas aanwezig

Sheet Ruimte 9
A1: RUIMTE 9
A3: Ruimtenaam | B3: 0
A4: Type verblijfsruimte | B4: Andere verblijfsruimte
A5: Vloeroppervlak verblijfsruimte Avr (gebruiksoppervlak) | B5: 0 | C5: m²
B7: Voorzijde woning | F7: Linker zijde woning | J7: Achterzijde woning | N7: Rechter zijde woning | R7: Platdak
A8: Orientatie gevel / dakvlak (Helling > 15°C) | B8: =Invoerblad!$B$17 -> Noord | F8: =o_Orientatie(F9) -> Oost | J8: =o_Orientatie(J9) -> Zuid | N8: =o_Orientatie(N9) -> West | R8: Horizontaal
A9: Orientatiehoek gevel Ƴ | B9: =o_OrientatiehOEK(B8) -> 0 | F9: =IF(B9+90>360,B9+90-360,B9+90) -> 90 | J9: =IF(F9+90>360,F9+90-360,F9+90) -> 180 | N9: =IF(J9+90>360,J9+90-360,J9+90) -> 270
A10: Grenst aan buitenlucht ja of nee | B10: Ja | F10: Ja | J10: Ja | N10: Ja | R10: Ja
A11: Hellingshoek constructie ≥ 15° = hellenddak 90° = gevel | B11: 90 | C11: ° | F11: 90 | G11: ° | J11: 90 | K11: ° | N11: 90 | O11: ° | R11: 10 | S11: °
A12: Type constructie | B12: =o_TypeConstructie(B10,B11) -> Buitengevel | F12: =o_TypeConstructie(F10,F11) -> Buitengevel | J12: =o_TypeConstructie(J10,J11) -> Buitengevel | N12: =o_TypeConstructie(N10,N11) -> Buitengevel | R12: =o_TypeConstructie(R10,R11) -> Platdak <15°
A13: Gevel lengte (binnenwerks) | B13: 0 | C13: m | F13: 0 | G13: m | J13: 0 | K13: m | N13: 0 | O13: m | R13: 0 | S13: m
A14: Gevel hoogte / Dak breedte (binnenwerks) | B14: 0 | C14: m | F14: 0 | G14: m | J14: 0 | K14: m | N14: 0 | O14: m | R14: 0 | S14: m
A15: Constructie oppervlak (binnenwerks) | B15: =B13*B14 -> 0 | C15: m² | F15: =F13*F14 -> 0 | G15: m² | J15: =J13*J14 -> 0 | K15: m² | N15: =N13*N14 -> 0 | O15: m² | R15: =R13*R14 -> 0 | S15: m²
A16: Gesloten constructie oppervlak | B16: =MAX(0,B15-B18-D18) -> 0 | C16: m² | F16: =MAX(0,F15-F18-H18) -> 0 | G16: m² | J16: =MAX(0,J15-J18-L18) -> 0 | K16: m² | N16: =MAX(0,N15-N18-P18) -> 0 | O16: m² | R16: =MAX(0,R15-R18-T18) -> 0 | S16: m²
B17: Glasvlak type 1 | D17: Glasvlak type 2 | F17: Glasvlak type 1 | H17: Glasvlak type 2 | J17: Glasvlak type 1 | L17: Glasvlak type 2 | N17: Glasvlak type 1 | P17: Glasvlak type 2 | R17: Glasvlak type 1 | T17: Glasvlak type 2
A18: Totaal oppervlak van raamtype Aw,k (inclusief kozijn) | B18: 0 | C18: m² | D18: 0 | E18: m² | F18: 0 | G18: m² | H18: 0 | I18: m² | J18: 0 | K18: m² | L18: 0 | M18: m² | N18: 0 | O18: m² | P18: 0 | Q18: m² | R18: 0 | S18: m² | T18: 0 | U18: m²
A19: Warmtedoorgangscoefficient (U-waarde) van het raam Uw;wi;k | B19: 1.6 | C19: W/m².K | D19: 1.6 | E19: W/m².K | F19: 1.6 | G19: W/m².K | H19: 1.6 | I19: W/m².K | J19: 1.6 | K19: W/m².K | L19: 1.6 | M19: W/m².K | N19: 1.6 | O19: W/m².K | P19: 1.6 | Q19: W/m².K | R19: 1.6 | S19: W/m².K | T19: 1.6 | U19: W/m².K
A20: Zontoetredingsfactor (g_waarde) van het glas Ggl;n;wi;k;C;juli | B20: 1 | D20: 1 | F20: 1 | H20: 1 | J20: 1 | L20: 1 | N20: 1 | P20: 1 | R20: 1 | T20: 1
A21: Beschaduwing situatie bij het raamtype | B21: Minimale belemmering | D21: Minimale belemmering | F21: Minimale belemmering | H21: Minimale belemmering | J21: Minimale belemmering | L21: Minimale belemmering | N21: Minimale belemmering | P21: Minimale belemmering | R21: Minimale belemmering | T21: Minimale belemmering
B23: Overstek | D23: Overstek | F23: Overstek | H23: Overstek | J23: Overstek | L23: Overstek | N23: Overstek | P23: Overstek
A24: Hoogte verschil midden raam onderzijde overstek | B24: 0 | C24: m | D24: 0 | E24: m | F24: 0 | G24: m | H24: 0 | I24: m | J24: 0 | K24: m | L24: 0 | M24: m | N24: 0 | O24: m | P24: 0 | Q24: m | R24: 0 | U24: m
A25: Horizontale afstand glas tot eindpunt overstek | B25: 0 | C25: m | D25: 0 | E25: m | F25: 0 | G25: m | H25: 0 | I25: m | J25: 0 | K25: m | L25: 0 | M25: m | N25: 0 | O25: m | P25: 0 | Q25: m | R25: 0 | U25: m
A26: Overstekhoek | B26: =IFERROR(180/PI()*ATAN(B24/B25),0) -> 0 | C26: ° | D26: =IFERROR(180/PI()*ATAN(D24/D25),0) -> 0 | E26: ° | F26: =IFERROR(180/PI()*ATAN(F24/F25),0) -> 0 | G26: ° | H26: =IFERROR(180/PI()*ATAN(H24/H25),0) -> 0 | I26: ° | J26: =IFERROR(180/PI()*ATAN(J24/J25),0) -> 0 | K26: ° | L26: =IFERROR(180/PI()*ATAN(L24/L25),0) -> 0 | M26: ° | N26: =IFERROR(180/PI()*ATAN(N24/N25),0) -> 0 | O26: ° | P26: =IFERROR(180/PI()*ATAN(P24/P25),0) -> 0 | Q26: ° | U26: °
A27: Relatieve hoogte van overstek | B27: =IFERROR(B24/B25,1) -> 1 | D27: =IFERROR(D24/D25,1) -> 1 | F27: =IFERROR(F24/F25,1) -> 1 | H27: =IFERROR(H24/H25,1) -> 1 | J27: =IFERROR(J24/J25,1) -> 1 | L27: =IFERROR(L24/L25,1) -> 1 | N27: =IFERROR(N24/N25,1) -> 1 | P27: =IFERROR(P24/P25,1) -> 1
B29: Zijbelemmering | D29: Zijbelemmering | F29: Zijbelemmering | H29: Zijbelemmering | J29: Zijbelemmering | L29: Zijbelemmering | N29: Zijbelemmering | P29: Zijbelemmering
A30: Positie zijbelemmering irt zichtveld (naar buitengericht) | B30: Links | D30: Links | F30: Links | H30: Links | J30: Links | L30: Links | N30: Links | P30: Links
A31: Horizontale afstand midden raam verste punt belemmering | B31: 0 | C31: m | D31: 0 | E31: m | G31: m | I31: m | K31: m | L31: 1 | M31: m | O31: m | Q31: m | U31: m
A32: Horizontale breedte glas tot eindpunt belemmering | B32: 0 | C32: m | D32: 0 | E32: m | G32: m | I32: m | K32: m | M32: m | O32: m | Q32: m | U32: m
A33: Relatieve breedte van de zijbelemmering bb | B33: =IFERROR(B31/B32,999) -> 999 | D33: =IFERROR(D31/D32,999) -> 999 | F33: =IFERROR(F31/F32,999) -> 999 | H33: =IFERROR(H31/H32,999) -> 999 | J33: =IFERROR(J31/J32,999) -> 999 | L33: =IFERROR(L31/L32,999) -> 999 | N33: =IFERROR(N31/N32,999) -> 999 | P33: =IFERROR(P31/P32,999) -> 999
A35: De beschaduwingsreductiefactor Fsh;obst;wi;k;juli | B35: =IFERROR(o_Beschaduwingreductie(B21,B8,B27,B30,B33,B11),1) -> 1 | D35: =IFERROR(o_Beschaduwingreductie(D21,B8,D27,D30,D33,B11),1) -> 1 | F35: =IFERROR(o_Beschaduwingreductie(F21,F8,F27,F30,F33,F11),1) -> 1 | H35: =IFERROR(o_Beschaduwingreductie(H21,F8,H27,H30,H33,F11),1) -> 1 | J35: =IFERROR(o_Beschaduwingreductie(J21,J8,J27,J30,J33,J11),1) -> 1 | L35: =IFERROR(o_Beschaduwingreductie(L21,J8,L27,L30,L33,J11),1) -> 1 | N35: =IFERROR(o_Beschaduwingreductie(N21,N8,N27,N30,N33,N11),1) -> 1 | P35: =IFERROR(o_Beschaduwingreductie(P21,N8,P27,P30,P33,N11),1) -> 1 | R35: =o_Beschaduwingreductie(R21,R8,R27,R30,R33,R11) -> 1 | T35: =o_Beschaduwingreductie(T21,R8,T27,T30,T33,R11) -> 1
A37: Type zonwering | B37: Geen zonwering | D37: Geen zonwering | F37: Geen zonwering | H37: Geen zonwering | J37: Geen zonwering | L37: Geen zonwering | N37: Geen zonwering | P37: Geen zonwering | R37: Geen zonwering | T37: Geen zonwering
A38: De reductiefactor voor zonwering Fc;wi;k | B38: =o_Zonweringreductie(B37,B8) -> 1 | D38: =o_Zonweringreductie(D37,B8) -> 1 | F38: =o_Zonweringreductie(F37,F8) -> 1 | H38: =o_Zonweringreductie(H37,F8) -> 1 | J38: =o_Zonweringreductie(J37,J8) -> 1 | L38: =o_Zonweringreductie(L37,J8) -> 1 | N38: =o_Zonweringreductie(N37,N8) -> 1 | P38: =o_Zonweringreductie(P37,N8) -> 1 | R38: =o_Zonweringreductie(R37,R8) -> 1 | T38: =o_Zonweringreductie(T37,R8) -> 1
A39: Totaal opvallende zonnestraling van het raam Isol;wi;k;juli | B39: =IF(B10="Nee",0,o_Isol_Bij_Tijdstip($B$52,B8,B11)) -> 102.1887342 | C39: W/m² | D39: =IF(B10="Nee",0,o_Isol_Bij_Tijdstip($B$52,B8,B11)) -> 102.1887342 | E39: W/m² | F39: =IF(F10="Nee",0,o_Isol_Bij_Tijdstip($B$52,F8,F11)) -> 84.06226988 | G39: W/m² | H39: =IF(F10="Nee",0,o_Isol_Bij_Tijdstip($B$52,F8,F11)) -> 84.06226988 | I39: W/m² | J39: =IF(J10="Nee",0,o_Isol_Bij_Tijdstip($B$52,J8,J11)) -> 84.06226988 | K39: W/m² | L39: =IF(J10="Nee",0,o_Isol_Bij_Tijdstip($B$52,J8,J11)) -> 84.06226988 | M39: W/m² | N39: =IF(N10="Nee",0,o_Isol_Bij_Tijdstip($B$52,N8,N11)) -> 741.7580929 | O39: W/m² | P39: =IF(N10="Nee",0,o_Isol_Bij_Tijdstip($B$52,N8,N11)) -> 741.7580929 | Q39: W/m² | R39: =IF(R10="Nee",0,o_Isol_Bij_Tijdstip($B$52,R8,R11)) -> 408.3060242 | S39: W/m² | T39: =IF(R10="Nee",0,o_Isol_Bij_Tijdstip($B$52,R8,R11)) -> 408.3060242 | U39: W/m²
A41: Tijdstip maximale koellastbijdrage tmax;zi | B41: =VALUE(o_Tijdstip_Isol_Max_Orientatie(B8,B11)) -> 15:00:00 | F41: =VALUE(o_Tijdstip_Isol_Max_Orientatie(F8,F11)) -> 09:00:00 | J41: =VALUE(o_Tijdstip_Isol_Max_Orientatie(J8,J11)) -> 14:00:00 | N41: =VALUE(o_Tijdstip_Isol_Max_Orientatie(N8,N11)) -> 18:00:00 | R41: =o_Tijdstip_Isol_Max_Orientatie(R8,R11) -> 16:00:00
A42: Buitenluchttemperatuur op tijdstip max koellast Θe | B42: =o_maxTemp(VALUE(B41)) -> 29.8 | E42: °C | F42: =o_maxTemp(VALUE(F41)) -> 24.7 | I42: °C | J42: =o_maxTemp(VALUE(J41)) -> 29.9 | M42: °C | N42: =o_maxTemp(VALUE(N41)) -> 30.1 | Q42: °C | R42: =o_maxTemp(VALUE(R41)) -> 30.4
A44: Glasopppervlak | B44: =IF(B10="Ja",B18+D18,0) -> 0 | C44: m² | F44: =IF(F10="Ja",F18+H18,0) -> 0 | G44: m² | J44: =IF(J10="Ja",J18+L18,0) -> 0 | K44: m² | N44: =IF(N10="Ja",N18+P18,0) -> 0 | O44: m² | R44: =IF(R10="Ja",R18+T18,0) -> 0 | S44: m²
A45: Uitwendigescheidingsconstructie niet op Noord? | B45: =IF(B10="Ja",IF(B8="Noord",FALSE,TRUE),FALSE) -> FALSE | F45: =IF(F10="Ja",IF(F8="Noord",FALSE,TRUE),FALSE) -> TRUE | J45: =IF(J10="Ja",IF(J8="Noord",FALSE,TRUE),FALSE) -> TRUE | N45: =IF(N10="Ja",IF(N8="Noord",FALSE,TRUE),FALSE) -> TRUE | R45: =IF(R10="Ja",IF(R8="Noord",FALSE,TRUE),FALSE) -> TRUE
A46: De enige uitwendigescheidingscontructie? | B46: =IF(AND(B45=TRUE,COUNTIF($B$45:$R$45,TRUE)=1),TRUE,FALSE) -> FALSE | F46: =IF(AND(F45=TRUE,COUNTIF($B$45:$R$45,TRUE)=1),TRUE,FALSE) -> FALSE | J46: =IF(AND(J45=TRUE,COUNTIF($B$45:$R$45,TRUE)=1),TRUE,FALSE) -> FALSE | N46: =IF(AND(N45=TRUE,COUNTIF($B$45:$R$45,TRUE)=1),TRUE,FALSE) -> FALSE | R46: =IF(AND(R45=TRUE,COUNTIF($B$45:$R$45,TRUE)=1),TRUE,FALSE) -> FALSE
A47: Totaal glasoppervlak | B47: =IF(B8<>"Noord",B44,0) -> 0 | C47: m² | F47: =IF(F8<>"Noord",F44,0) -> 0 | G47: m² | J47: =IF(J8<>"Noord",J44,0) -> 0 | K47: m² | N47: =IF(N8<>"Noord",N44,0) -> 0 | O47: m² | R47: =R44 -> 0 | S47: m²
A48: Grootste glasoppervlak | B48: =IF(AND(B45,B47=MAX($B$47:$R$47)),TRUE,FALSE) -> FALSE | F48: =IF(AND(F45,F47=MAX($B$47:$R$47)),TRUE,FALSE) -> TRUE | J48: =IF(AND(J45,J47=MAX($B$47:$R$47)),TRUE,FALSE) -> TRUE | N48: =IF(AND(N45,N47=MAX($B$47:$R$47)),TRUE,FALSE) -> TRUE | R48: =IF(AND(R45,R47=MAX($B$47:$R$47)),TRUE,FALSE) -> TRUE
A49: Dakvlak maatgevend? | B49: =IF(AND(B11<90,B15>3*(B18+D18),Invoerblad!$B$25<65),TRUE,FALSE) -> FALSE | F49: =IF(AND(F11<90,F15>3*(F18+H18),Invoerblad!$B$25<65),TRUE,FALSE) -> FALSE | J49: =IF(AND(J11<90,J15>3*(J18+L18),Invoerblad!$B$25<65),TRUE,FALSE) -> FALSE | N49: =IF(AND(N11<90,N15>3*(N18+P18),Invoerblad!$B$25<65),TRUE,FALSE) -> FALSE | R49: =IF(AND(R11<90,R15>3*(R18+T18),Invoerblad!$B$25<65),TRUE,FALSE) -> FALSE
A50: is er een maatgevend dakoppervlak | B50: =IF(COUNTIF($B$49:$R$49,TRUE)>0,TRUE,FALSE) -> FALSE | F50: =IF(COUNTIF($B$49:$R$49,TRUE)>0,TRUE,FALSE) -> FALSE | J50: =IF(COUNTIF($B$49:$R$49,TRUE)>0,TRUE,FALSE) -> FALSE | N50: =IF(COUNTIF($B$49:$R$49,TRUE)>0,TRUE,FALSE) -> FALSE | R50: =IF(COUNTIF($B$49:$R$49,TRUE)>0,TRUE,FALSE) -> FALSE
A51: Maatgevende tijdstip | B51: =IF(OR(B46,AND(B45,B50,B49),AND(B45,B48,NOT(B50))),B41) -> FALSE | F51: =IF(OR(F46,AND(F45,F50,F49),AND(F45,F48,NOT(F50))),F41) -> 09:00:00 | J51: =IF(OR(J46,AND(J45,J50,J49),AND(J45,J48,NOT(J50))),J41) -> 14:00:00 | N51: =IF(OR(N46,AND(N45,N50,N49),AND(N45,N48,NOT(N50))),N41) -> 18:00:00 | R51: =IF(OR(R46,AND(R45,R50,R49),AND(R45,R48,NOT(R50))),R41) -> 16:00:00
A52: Maatgevende tijdstip tmax;zi | B52: =IFERROR(B84,"geen glas ingevoerd") -> Geen glas aanwezig
A53: Buitenluchttemperatuur op tijdstip max koellast Θe | B53: =o_maxTemp(VALUE(B52)) ->  | C53: °C
A55: Koellastbijdrage transmissie transparante delen Ptr;gl;vr;zi | B55: =IF(B10="Nee",0,B16*Invoerblad!$B$16) -> 0 | E55: W | F55: =IF(F10="Nee",0,F16*Invoerblad!$B$16) -> 0 | I55: W | J55: =IF(J10="Nee",0,J16*Invoerblad!$B$16) -> 0 | M55: W | N55: =IF(N10="Nee",0,N16*Invoerblad!$B$16) -> 0 | Q55: W | R55: =IF(R10="Nee",0,R16*Invoerblad!$B$16) -> 0 | U55: W
A56: Koellastbijdrage zoninstraling transparante delen Psol;vr;zi | B56: =(0.75*B18*FLOOR(B20,0.05)*0.9*B35*B38*B39)+(0.75*D18*FLOOR(D20,0.05)*0.9*D35*D38*D39) -> 0 | E56: W | F56: =(0.75*F18*FLOOR(F20,0.05)*0.9*F35*F38*F39)+(0.75*H18*FLOOR(H20,0.05)*0.9*H35*H38*H39) -> 0 | I56: W | J56: =(0.75*J18*FLOOR(J20,0.05)*0.9*J35*J38*J39)+(0.75*L18*FLOOR(L20,0.05)*0.9*L35*L38*L39) -> 0 | M56: W | N56: =(0.75*N18*FLOOR(N20,0.05)*0.9*N35*N38*N39)+(0.75*P18*FLOOR(P20,0.05)*0.9*P35*P38*P39) -> 0 | Q56: W | R56: =(0.75*R18*FLOOR(R20,0.05)*0.9*R35*R38*R39)+(0.75*T18*FLOOR(T20,0.05)*0.9*T35*T38*T39) -> 0 | U56: W
A57: Koellastbijdrage transmissie transparante delen Ptr;gl;vr;zi | B57: =IF(B10="Nee",0,IFERROR(B18*B19*($B$53-24),0)+IFERROR(D18*D19*($B$53-24),0)) -> 0 | E57: W | F57: =IF(F10="Nee",0,IFERROR(F18*F19*($B$53-24),0)+IFERROR(H18*H19*($B$53-24),0)) -> 0 | I57: W | J57: =IF(J10="Nee",0,IFERROR(J18*J19*($B$53-24),0)+IFERROR(L18*L19*($B$53-24),0)) -> 0 | M57: W | N57: =IF(N10="Nee",0,IFERROR(N18*N19*($B$53-24),0)+IFERROR(P18*P19*($B$53-24),0)) -> 0 | Q57: W | R57: =IF(R10="Nee",0,IFERROR(R18*R19*($B$53-24),0)+IFERROR(T18*T19*($B$53-24),0)) -> 0 | U57: W
A58: Totaal koellastbijdrage per gevel | B58: =SUM(B55:D57) -> 0 | E58: W | F58: =SUM(F55:H57) -> 0 | I58: W | J58: =SUM(J55:L57) -> 0 | M58: W | N58: =SUM(N55:P57) -> 0 | Q58: W | R58: =SUM(R55:R57) -> 0 | U58: W
A60: Koellast door interne warmtelast Pint;calc;woon/overig;zi | B60: =IF(B5=0,0,IF(B4="Woonvertrek",2*Invoerblad!$B$40*B5,Invoerblad!$B$40*B5)) -> 0 | E60: W
A61: Koellast door buitenluchttoetreding Pv;calc;vr;zi | B61: =IFERROR(MAX((SUM(Invoerblad!$B$28:$B$30)/3600*1.205*1005*(B53-24))/SUM(Invoerblad!$B$47:$T$47)*B5,0),0) -> 0 | C61: =IFERROR(MAX(SUM(C57:C59)/3600*1.205*1005*(C60-24),0),0) -> 0 | D61: =IFERROR(MAX(SUM(D57:D59)/3600*1.205*1005*(D60-24),0),0) -> 0 | E61: W
A63: Totaal koellastbijdrage | B63: =IFERROR(SUM(B58:T58)+B60+B61,0) -> 0 | E63: W
A64: Koelbehoefte verblijfsruimte | B64: =IFERROR(B63/B5,0) -> 0 | E64: W/m²
A67: Onderstaande tabellen worden verborgen in de uiteindelijke versie. De tabellen dienen om vast te stellen welk tijdstip tot de hoogste zonbelasting leidt
A69: Isol max voor de orientatie | B69: =o_Isol_Max_Orientatie(B8,B11) -> 143.7398809 | C69: W/m² | F69: =o_Isol_Max_Orientatie(F8,F11) -> 845.3277237 | G69: W/m² | J69: =o_Isol_Max_Orientatie(J8,J11) -> 740.0583625 | K69: W/m² | N69: =o_Isol_Max_Orientatie(N8,N11) -> 741.7580929 | O69: W/m² | R69: =o_Isol_Max_Orientatie(R8,R11) -> 914.160926 | S69: W/m²
A70: Tijdstip bij Isol max bij orientatie | B70: =VALUE(o_Tijdstip_Isol_Max_Orientatie(B8,B11)) -> 15:00:00 | F70: =VALUE(o_Tijdstip_Isol_Max_Orientatie(F8,F11)) -> 09:00:00 | J70: =VALUE(o_Tijdstip_Isol_Max_Orientatie(J8,J11)) -> 14:00:00 | N70: =VALUE(o_Tijdstip_Isol_Max_Orientatie(N8,N11)) -> 18:00:00 | R70: =VALUE(o_Tijdstip_Isol_Max_Orientatie(R8,R11)) -> 16:00:00
A72: Koellastbijdrage zoninstraling transparante delen Psol;vr;zi
A73: 09:00:00 | B73: =(0.75*B$18*FLOOR(B$20,0.05)*0.9*B$35*B$38*o_Isol_Bij_Tijdstip($A73,B$8,B$11))+(0.75*D$18*FLOOR(D$20,0.05)*0.9*D$35*D$38*o_Isol_Bij_Tijdstip($A73,B$8,B$11)) -> 0 | C73: W | F73: =(0.75*F$18*FLOOR(F$20,0.05)*0.9*F$35*F$38*o_Isol_Bij_Tijdstip($A73,F$8,F$11))+(0.75*H$18*FLOOR(H$20,0.05)*0.9*H$35*H$38*o_Isol_Bij_Tijdstip($A73,F$8,F$11)) -> 0 | G73: W | J73: =(0.75*J$18*FLOOR(J$20,0.05)*0.9*J$35*J$38*o_Isol_Bij_Tijdstip($A73,J$8,J$11))+(0.75*L$18*FLOOR(L$20,0.05)*0.9*L$35*L$38*o_Isol_Bij_Tijdstip($A73,J$8,J$11)) -> 0 | K73: W | N73: =(0.75*N$18*FLOOR(N$20,0.05)*0.9*N$35*N$38*o_Isol_Bij_Tijdstip($A73,N$8,N$11))+(0.75*P$18*FLOOR(P$20,0.05)*0.9*P$35*P$38*o_Isol_Bij_Tijdstip($A73,N$8,N$11)) -> 0 | O73: W | R73: =(0.75*R$18*FLOOR(R$20,0.05)*0.9*R$35*R$38*o_Isol_Bij_Tijdstip($A73,R$8,R$11))+(0.75*T$18*FLOOR(T$20,0.05)*0.9*T$35*T$38*o_Isol_Bij_Tijdstip($A73,R$8,R$11)) -> 0 | S73: W | T73: =B73+F73+J73+N73+R73 -> 0 | U73: W
A74: 10:00:00 | B74: =(0.75*B$18*FLOOR(B$20,0.05)*0.9*B$35*B$38*o_Isol_Bij_Tijdstip($A74,B$8,B$11))+(0.75*D$18*FLOOR(D$20,0.05)*0.9*D$35*D$38*o_Isol_Bij_Tijdstip($A74,B$8,B$11)) -> 0 | C74: W | F74: =(0.75*F$18*FLOOR(F$20,0.05)*0.9*F$35*F$38*o_Isol_Bij_Tijdstip($A74,F$8,F$11))+(0.75*H$18*FLOOR(H$20,0.05)*0.9*H$35*H$38*o_Isol_Bij_Tijdstip($A74,F$8,F$11)) -> 0 | G74: W | J74: =(0.75*J$18*FLOOR(J$20,0.05)*0.9*J$35*J$38*o_Isol_Bij_Tijdstip($A74,J$8,J$11))+(0.75*L$18*FLOOR(L$20,0.05)*0.9*L$35*L$38*o_Isol_Bij_Tijdstip($A74,J$8,J$11)) -> 0 | K74: W | N74: =(0.75*N$18*FLOOR(N$20,0.05)*0.9*N$35*N$38*o_Isol_Bij_Tijdstip($A74,N$8,N$11))+(0.75*P$18*FLOOR(P$20,0.05)*0.9*P$35*P$38*o_Isol_Bij_Tijdstip($A74,N$8,N$11)) -> 0 | O74: W | R74: =(0.75*R$18*FLOOR(R$20,0.05)*0.9*R$35*R$38*o_Isol_Bij_Tijdstip($A74,R$8,R$11))+(0.75*T$18*FLOOR(T$20,0.05)*0.9*T$35*T$38*o_Isol_Bij_Tijdstip($A74,R$8,R$11)) -> 0 | S74: W | T74: 0 | U74: W
A75: 11:00:00 | B75: =(0.75*B$18*FLOOR(B$20,0.05)*0.9*B$35*B$38*o_Isol_Bij_Tijdstip($A75,B$8,B$11))+(0.75*D$18*FLOOR(D$20,0.05)*0.9*D$35*D$38*o_Isol_Bij_Tijdstip($A75,B$8,B$11)) -> 0 | C75: W | F75: =(0.75*F$18*FLOOR(F$20,0.05)*0.9*F$35*F$38*o_Isol_Bij_Tijdstip($A75,F$8,F$11))+(0.75*H$18*FLOOR(H$20,0.05)*0.9*H$35*H$38*o_Isol_Bij_Tijdstip($A75,F$8,F$11)) -> 0 | G75: W | J75: =(0.75*J$18*FLOOR(J$20,0.05)*0.9*J$35*J$38*o_Isol_Bij_Tijdstip($A75,J$8,J$11))+(0.75*L$18*FLOOR(L$20,0.05)*0.9*L$35*L$38*o_Isol_Bij_Tijdstip($A75,J$8,J$11)) -> 0 | K75: W | N75: =(0.75*N$18*FLOOR(N$20,0.05)*0.9*N$35*N$38*o_Isol_Bij_Tijdstip($A75,N$8,N$11))+(0.75*P$18*FLOOR(P$20,0.05)*0.9*P$35*P$38*o_Isol_Bij_Tijdstip($A75,N$8,N$11)) -> 0 | O75: W | R75: =(0.75*R$18*FLOOR(R$20,0.05)*0.9*R$35*R$38*o_Isol_Bij_Tijdstip($A75,R$8,R$11))+(0.75*T$18*FLOOR(T$20,0.05)*0.9*T$35*T$38*o_Isol_Bij_Tijdstip($A75,R$8,R$11)) -> 0 | S75: W | T75: 0 | U75: W
A76: 12:00:00 | B76: =(0.75*B$18*FLOOR(B$20,0.05)*0.9*B$35*B$38*o_Isol_Bij_Tijdstip($A76,B$8,B$11))+(0.75*D$18*FLOOR(D$20,0.05)*0.9*D$35*D$38*o_Isol_Bij_Tijdstip($A76,B$8,B$11)) -> 0 | C76: W | F76: =(0.75*F$18*FLOOR(F$20,0.05)*0.9*F$35*F$38*o_Isol_Bij_Tijdstip($A76,F$8,F$11))+(0.75*H$18*FLOOR(H$20,0.05)*0.9*H$35*H$38*o_Isol_Bij_Tijdstip($A76,F$8,F$11)) -> 0 | G76: W | J76: =(0.75*J$18*FLOOR(J$20,0.05)*0.9*J$35*J$38*o_Isol_Bij_Tijdstip($A76,J$8,J$11))+(0.75*L$18*FLOOR(L$20,0.05)*0.9*L$35*L$38*o_Isol_Bij_Tijdstip($A76,J$8,J$11)) -> 0 | K76: W | N76: =(0.75*N$18*FLOOR(N$20,0.05)*0.9*N$35*N$38*o_Isol_Bij_Tijdstip($A76,N$8,N$11))+(0.75*P$18*FLOOR(P$20,0.05)*0.9*P$35*P$38*o_Isol_Bij_Tijdstip($A76,N$8,N$11)) -> 0 | O76: W | R76: =(0.75*R$18*FLOOR(R$20,0.05)*0.9*R$35*R$38*o_Isol_Bij_Tijdstip($A76,R$8,R$11))+(0.75*T$18*FLOOR(T$20,0.05)*0.9*T$35*T$38*o_Isol_Bij_Tijdstip($A76,R$8,R$11)) -> 0 | S76: W | T76: 0 | U76: W
A77: 13:00:00 | B77: =(0.75*B$18*FLOOR(B$20,0.05)*0.9*B$35*B$38*o_Isol_Bij_Tijdstip($A77,B$8,B$11))+(0.75*D$18*FLOOR(D$20,0.05)*0.9*D$35*D$38*o_Isol_Bij_Tijdstip($A77,B$8,B$11)) -> 0 | C77: W | F77: =(0.75*F$18*FLOOR(F$20,0.05)*0.9*F$35*F$38*o_Isol_Bij_Tijdstip($A77,F$8,F$11))+(0.75*H$18*FLOOR(H$20,0.05)*0.9*H$35*H$38*o_Isol_Bij_Tijdstip($A77,F$8,F$11)) -> 0 | G77: W | J77: =(0.75*J$18*FLOOR(J$20,0.05)*0.9*J$35*J$38*o_Isol_Bij_Tijdstip($A77,J$8,J$11))+(0.75*L$18*FLOOR(L$20,0.05)*0.9*L$35*L$38*o_Isol_Bij_Tijdstip($A77,J$8,J$11)) -> 0 | K77: W | N77: =(0.75*N$18*FLOOR(N$20,0.05)*0.9*N$35*N$38*o_Isol_Bij_Tijdstip($A77,N$8,N$11))+(0.75*P$18*FLOOR(P$20,0.05)*0.9*P$35*P$38*o_Isol_Bij_Tijdstip($A77,N$8,N$11)) -> 0 | O77: W | R77: =(0.75*R$18*FLOOR(R$20,0.05)*0.9*R$35*R$38*o_Isol_Bij_Tijdstip($A77,R$8,R$11))+(0.75*T$18*FLOOR(T$20,0.05)*0.9*T$35*T$38*o_Isol_Bij_Tijdstip($A77,R$8,R$11)) -> 0 | S77: W | T77: 0 | U77: W
A78: 14:00:00 | B78: =(0.75*B$18*FLOOR(B$20,0.05)*0.9*B$35*B$38*o_Isol_Bij_Tijdstip($A78,B$8,B$11))+(0.75*D$18*FLOOR(D$20,0.05)*0.9*D$35*D$38*o_Isol_Bij_Tijdstip($A78,B$8,B$11)) -> 0 | C78: W | F78: =(0.75*F$18*FLOOR(F$20,0.05)*0.9*F$35*F$38*o_Isol_Bij_Tijdstip($A78,F$8,F$11))+(0.75*H$18*FLOOR(H$20,0.05)*0.9*H$35*H$38*o_Isol_Bij_Tijdstip($A78,F$8,F$11)) -> 0 | G78: W | J78: =(0.75*J$18*FLOOR(J$20,0.05)*0.9*J$35*J$38*o_Isol_Bij_Tijdstip($A78,J$8,J$11))+(0.75*L$18*FLOOR(L$20,0.05)*0.9*L$35*L$38*o_Isol_Bij_Tijdstip($A78,J$8,J$11)) -> 0 | K78: W | N78: =(0.75*N$18*FLOOR(N$20,0.05)*0.9*N$35*N$38*o_Isol_Bij_Tijdstip($A78,N$8,N$11))+(0.75*P$18*FLOOR(P$20,0.05)*0.9*P$35*P$38*o_Isol_Bij_Tijdstip($A78,N$8,N$11)) -> 0 | O78: W | R78: =(0.75*R$18*FLOOR(R$20,0.05)*0.9*R$35*R$38*o_Isol_Bij_Tijdstip($A78,R$8,R$11))+(0.75*T$18*FLOOR(T$20,0.05)*0.9*T$35*T$38*o_Isol_Bij_Tijdstip($A78,R$8,R$11)) -> 0 | S78: W | T78: 0 | U78: W
A79: 15:00:00 | B79: =(0.75*B$18*FLOOR(B$20,0.05)*0.9*B$35*B$38*o_Isol_Bij_Tijdstip($A79,B$8,B$11))+(0.75*D$18*FLOOR(D$20,0.05)*0.9*D$35*D$38*o_Isol_Bij_Tijdstip($A79,B$8,B$11)) -> 0 | C79: W | F79: =(0.75*F$18*FLOOR(F$20,0.05)*0.9*F$35*F$38*o_Isol_Bij_Tijdstip($A79,F$8,F$11))+(0.75*H$18*FLOOR(H$20,0.05)*0.9*H$35*H$38*o_Isol_Bij_Tijdstip($A79,F$8,F$11)) -> 0 | G79: W | J79: =(0.75*J$18*FLOOR(J$20,0.05)*0.9*J$35*J$38*o_Isol_Bij_Tijdstip($A79,J$8,J$11))+(0.75*L$18*FLOOR(L$20,0.05)*0.9*L$35*L$38*o_Isol_Bij_Tijdstip($A79,J$8,J$11)) -> 0 | K79: W | N79: =(0.75*N$18*FLOOR(N$20,0.05)*0.9*N$35*N$38*o_Isol_Bij_Tijdstip($A79,N$8,N$11))+(0.75*P$18*FLOOR(P$20,0.05)*0.9*P$35*P$38*o_Isol_Bij_Tijdstip($A79,N$8,N$11)) -> 0 | O79: W | R79: =(0.75*R$18*FLOOR(R$20,0.05)*0.9*R$35*R$38*o_Isol_Bij_Tijdstip($A79,R$8,R$11))+(0.75*T$18*FLOOR(T$20,0.05)*0.9*T$35*T$38*o_Isol_Bij_Tijdstip($A79,R$8,R$11)) -> 0 | S79: W | T79: 0 | U79: W
A80: 16:00:00 | B80: =(0.75*B$18*FLOOR(B$20,0.05)*0.9*B$35*B$38*o_Isol_Bij_Tijdstip($A80,B$8,B$11))+(0.75*D$18*FLOOR(D$20,0.05)*0.9*D$35*D$38*o_Isol_Bij_Tijdstip($A80,B$8,B$11)) -> 0 | C80: W | F80: =(0.75*F$18*FLOOR(F$20,0.05)*0.9*F$35*F$38*o_Isol_Bij_Tijdstip($A80,F$8,F$11))+(0.75*H$18*FLOOR(H$20,0.05)*0.9*H$35*H$38*o_Isol_Bij_Tijdstip($A80,F$8,F$11)) -> 0 | G80: W | J80: =(0.75*J$18*FLOOR(J$20,0.05)*0.9*J$35*J$38*o_Isol_Bij_Tijdstip($A80,J$8,J$11))+(0.75*L$18*FLOOR(L$20,0.05)*0.9*L$35*L$38*o_Isol_Bij_Tijdstip($A80,J$8,J$11)) -> 0 | K80: W | N80: =(0.75*N$18*FLOOR(N$20,0.05)*0.9*N$35*N$38*o_Isol_Bij_Tijdstip($A80,N$8,N$11))+(0.75*P$18*FLOOR(P$20,0.05)*0.9*P$35*P$38*o_Isol_Bij_Tijdstip($A80,N$8,N$11)) -> 0 | O80: W | R80: =(0.75*R$18*FLOOR(R$20,0.05)*0.9*R$35*R$38*o_Isol_Bij_Tijdstip($A80,R$8,R$11))+(0.75*T$18*FLOOR(T$20,0.05)*0.9*T$35*T$38*o_Isol_Bij_Tijdstip($A80,R$8,R$11)) -> 0 | S80: W | T80: 0 | U80: W
A81: 17:00:00 | B81: =(0.75*B$18*FLOOR(B$20,0.05)*0.9*B$35*B$38*o_Isol_Bij_Tijdstip($A81,B$8,B$11))+(0.75*D$18*FLOOR(D$20,0.05)*0.9*D$35*D$38*o_Isol_Bij_Tijdstip($A81,B$8,B$11)) -> 0 | C81: W | F81: =(0.75*F$18*FLOOR(F$20,0.05)*0.9*F$35*F$38*o_Isol_Bij_Tijdstip($A81,F$8,F$11))+(0.75*H$18*FLOOR(H$20,0.05)*0.9*H$35*H$38*o_Isol_Bij_Tijdstip($A81,F$8,F$11)) -> 0 | G81: W | J81: =(0.75*J$18*FLOOR(J$20,0.05)*0.9*J$35*J$38*o_Isol_Bij_Tijdstip($A81,J$8,J$11))+(0.75*L$18*FLOOR(L$20,0.05)*0.9*L$35*L$38*o_Isol_Bij_Tijdstip($A81,J$8,J$11)) -> 0 | K81: W | N81: =(0.75*N$18*FLOOR(N$20,0.05)*0.9*N$35*N$38*o_Isol_Bij_Tijdstip($A81,N$8,N$11))+(0.75*P$18*FLOOR(P$20,0.05)*0.9*P$35*P$38*o_Isol_Bij_Tijdstip($A81,N$8,N$11)) -> 0 | O81: W | R81: =(0.75*R$18*FLOOR(R$20,0.05)*0.9*R$35*R$38*o_Isol_Bij_Tijdstip($A81,R$8,R$11))+(0.75*T$18*FLOOR(T$20,0.05)*0.9*T$35*T$38*o_Isol_Bij_Tijdstip($A81,R$8,R$11)) -> 0 | S81: W | T81: 0 | U81: W
A82: 18:00:00 | B82: =(0.75*B$18*FLOOR(B$20,0.05)*0.9*B$35*B$38*o_Isol_Bij_Tijdstip($A82,B$8,B$11))+(0.75*D$18*FLOOR(D$20,0.05)*0.9*D$35*D$38*o_Isol_Bij_Tijdstip($A82,B$8,B$11)) -> 0 | C82: W | F82: =(0.75*F$18*FLOOR(F$20,0.05)*0.9*F$35*F$38*o_Isol_Bij_Tijdstip($A82,F$8,F$11))+(0.75*H$18*FLOOR(H$20,0.05)*0.9*H$35*H$38*o_Isol_Bij_Tijdstip($A82,F$8,F$11)) -> 0 | G82: W | J82: =(0.75*J$18*FLOOR(J$20,0.05)*0.9*J$35*J$38*o_Isol_Bij_Tijdstip($A82,J$8,J$11))+(0.75*L$18*FLOOR(L$20,0.05)*0.9*L$35*L$38*o_Isol_Bij_Tijdstip($A82,J$8,J$11)) -> 0 | K82: W | N82: =(0.75*N$18*FLOOR(N$20,0.05)*0.9*N$35*N$38*o_Isol_Bij_Tijdstip($A82,N$8,N$11))+(0.75*P$18*FLOOR(P$20,0.05)*0.9*P$35*P$38*o_Isol_Bij_Tijdstip($A82,N$8,N$11)) -> 0 | O82: W | R82: =(0.75*R$18*FLOOR(R$20,0.05)*0.9*R$35*R$38*o_Isol_Bij_Tijdstip($A82,R$8,R$11))+(0.75*T$18*FLOOR(T$20,0.05)*0.9*T$35*T$38*o_Isol_Bij_Tijdstip($A82,R$8,R$11)) -> 0 | S82: W | T82: 0 | U82: W
A84: Maatgevende tijdstip | B84: =IF(MAX(T73:T82)=0,"Geen glas aanwezig",_xlfn.XLOOKUP(MAX(T73:T82),T73:T82,A73:A82,"nvt")) -> Geen glas aanwezig

Sheet Ruimte 10
A1: RUIMTE 10
A3: Ruimtenaam | B3: 0
A4: Type verblijfsruimte | B4: Andere verblijfsruimte
A5: Vloeroppervlak verblijfsruimte Avr (gebruiksoppervlak) | B5: 0 | C5: m²
B7: Voorzijde woning | F7: Linker zijde woning | J7: Achterzijde woning | N7: Rechter zijde woning | R7: Platdak
A8: Orientatie gevel / dakvlak (Helling > 15°C) | B8: =Invoerblad!$B$17 -> Noord | F8: =o_Orientatie(F9) -> Oost | J8: =o_Orientatie(J9) -> Zuid | N8: =o_Orientatie(N9) -> West | R8: Horizontaal
A9: Orientatiehoek gevel Ƴ | B9: =o_OrientatiehOEK(B8) -> 0 | F9: =IF(B9+90>360,B9+90-360,B9+90) -> 90 | J9: =IF(F9+90>360,F9+90-360,F9+90) -> 180 | N9: =IF(J9+90>360,J9+90-360,J9+90) -> 270
A10: Grenst aan buitenlucht ja of nee | B10: Ja | F10: Ja | J10: Ja | N10: Ja | R10: Ja
A11: Hellingshoek constructie ≥ 15° = hellenddak 90° = gevel | B11: 90 | C11: ° | F11: 90 | G11: ° | J11: 90 | K11: ° | N11: 90 | O11: ° | R11: 10 | S11: °
A12: Type constructie | B12: =o_TypeConstructie(B10,B11) -> Buitengevel | F12: =o_TypeConstructie(F10,F11) -> Buitengevel | J12: =o_TypeConstructie(J10,J11) -> Buitengevel | N12: =o_TypeConstructie(N10,N11) -> Buitengevel | R12: =o_TypeConstructie(R10,R11) -> Platdak <15°
A13: Gevel lengte (binnenwerks) | B13: 0 | C13: m | F13: 0 | G13: m | J13: 0 | K13: m | N13: 0 | O13: m | R13: 0 | S13: m
A14: Gevel hoogte / Dak breedte (binnenwerks) | B14: 0 | C14: m | F14: 0 | G14: m | J14: 0 | K14: m | N14: 0 | O14: m | R14: 0 | S14: m
A15: Constructie oppervlak (binnenwerks) | B15: =B13*B14 -> 0 | C15: m² | F15: =F13*F14 -> 0 | G15: m² | J15: =J13*J14 -> 0 | K15: m² | N15: =N13*N14 -> 0 | O15: m² | R15: =R13*R14 -> 0 | S15: m²
A16: Gesloten constructie oppervlak | B16: =MAX(0,B15-B18-D18) -> 0 | C16: m² | F16: =MAX(0,F15-F18-H18) -> 0 | G16: m² | J16: =MAX(0,J15-J18-L18) -> 0 | K16: m² | N16: =MAX(0,N15-N18-P18) -> 0 | O16: m² | R16: =MAX(0,R15-R18-T18) -> 0 | S16: m²
B17: Glasvlak type 1 | D17: Glasvlak type 2 | F17: Glasvlak type 1 | H17: Glasvlak type 2 | J17: Glasvlak type 1 | L17: Glasvlak type 2 | N17: Glasvlak type 1 | P17: Glasvlak type 2 | R17: Glasvlak type 1 | T17: Glasvlak type 2
A18: Totaal oppervlak van raamtype Aw,k (inclusief kozijn) | B18: 0 | C18: m² | D18: 0 | E18: m² | F18: 0 | G18: m² | H18: 0 | I18: m² | J18: 0 | K18: m² | L18: 0 | M18: m² | N18: 0 | O18: m² | P18: 0 | Q18: m² | R18: 0 | S18: m² | T18: 0 | U18: m²
A19: Warmtedoorgangscoefficient (U-waarde) van het raam Uw;wi;k | B19: 1.6 | C19: W/m².K | D19: 1.6 | E19: W/m².K | F19: 1.6 | G19: W/m².K | H19: 1.6 | I19: W/m².K | J19: 1.6 | K19: W/m².K | L19: 1.6 | M19: W/m².K | N19: 1.6 | O19: W/m².K | P19: 1.6 | Q19: W/m².K | R19: 1.6 | S19: W/m².K | T19: 1.6 | U19: W/m².K
A20: Zontoetredingsfactor (g_waarde) van het glas Ggl;n;wi;k;C;juli | B20: 1 | D20: 1 | F20: 1 | H20: 1 | J20: 1 | L20: 1 | N20: 1 | P20: 1 | R20: 1 | T20: 1
A21: Beschaduwing situatie bij het raamtype | B21: Minimale belemmering | D21: Minimale belemmering | F21: Minimale belemmering | H21: Minimale belemmering | J21: Minimale belemmering | L21: Minimale belemmering | N21: Minimale belemmering | P21: Minimale belemmering | R21: Minimale belemmering | T21: Minimale belemmering
B23: Overstek | D23: Overstek | F23: Overstek | H23: Overstek | J23: Overstek | L23: Overstek | N23: Overstek | P23: Overstek
A24: Hoogte verschil midden raam onderzijde overstek | B24: 0 | C24: m | D24: 0 | E24: m | F24: 0 | G24: m | H24: 0 | I24: m | J24: 0 | K24: m | L24: 0 | M24: m | N24: 0 | O24: m | P24: 0 | Q24: m | R24: 0 | U24: m
A25: Horizontale afstand glas tot eindpunt overstek | B25: 0 | C25: m | D25: 0 | E25: m | F25: 0 | G25: m | H25: 0 | I25: m | J25: 0 | K25: m | L25: 0 | M25: m | N25: 0 | O25: m | P25: 0 | Q25: m | R25: 0 | U25: m
A26: Overstekhoek | B26: =IFERROR(180/PI()*ATAN(B24/B25),0) -> 0 | C26: ° | D26: =IFERROR(180/PI()*ATAN(D24/D25),0) -> 0 | E26: ° | F26: =IFERROR(180/PI()*ATAN(F24/F25),0) -> 0 | G26: ° | H26: =IFERROR(180/PI()*ATAN(H24/H25),0) -> 0 | I26: ° | J26: =IFERROR(180/PI()*ATAN(J24/J25),0) -> 0 | K26: ° | L26: =IFERROR(180/PI()*ATAN(L24/L25),0) -> 0 | M26: ° | N26: =IFERROR(180/PI()*ATAN(N24/N25),0) -> 0 | O26: ° | P26: =IFERROR(180/PI()*ATAN(P24/P25),0) -> 0 | Q26: ° | U26: °
A27: Relatieve hoogte van overstek | B27: =IFERROR(B24/B25,1) -> 1 | D27: =IFERROR(D24/D25,1) -> 1 | F27: =IFERROR(F24/F25,1) -> 1 | H27: =IFERROR(H24/H25,1) -> 1 | J27: =IFERROR(J24/J25,1) -> 1 | L27: =IFERROR(L24/L25,1) -> 1 | N27: =IFERROR(N24/N25,1) -> 1 | P27: =IFERROR(P24/P25,1) -> 1
B29: Zijbelemmering | D29: Zijbelemmering | F29: Zijbelemmering | H29: Zijbelemmering | J29: Zijbelemmering | L29: Zijbelemmering | N29: Zijbelemmering | P29: Zijbelemmering
A30: Positie zijbelemmering irt zichtveld (naar buitengericht) | B30: Links | D30: Links | F30: Links | H30: Links | J30: Links | L30: Links | N30: Links | P30: Links
A31: Horizontale afstand midden raam verste punt belemmering | B31: 0 | C31: m | D31: 0 | E31: m | G31: m | I31: m | K31: m | L31: 1 | M31: m | O31: m | Q31: m | U31: m
A32: Horizontale breedte glas tot eindpunt belemmering | B32: 0 | C32: m | D32: 0 | E32: m | G32: m | I32: m | K32: m | M32: m | O32: m | Q32: m | U32: m
A33: Relatieve breedte van de zijbelemmering bb | B33: =IFERROR(B31/B32,999) -> 999 | D33: =IFERROR(D31/D32,999) -> 999 | F33: =IFERROR(F31/F32,999) -> 999 | H33: =IFERROR(H31/H32,999) -> 999 | J33: =IFERROR(J31/J32,999) -> 999 | L33: =IFERROR(L31/L32,999) -> 999 | N33: =IFERROR(N31/N32,999) -> 999 | P33: =IFERROR(P31/P32,999) -> 999
A35: De beschaduwingsreductiefactor Fsh;obst;wi;k;juli | B35: =IFERROR(o_Beschaduwingreductie(B21,B8,B27,B30,B33,B11),1) -> 1 | D35: =IFERROR(o_Beschaduwingreductie(D21,B8,D27,D30,D33,B11),1) -> 1 | F35: =IFERROR(o_Beschaduwingreductie(F21,F8,F27,F30,F33,F11),1) -> 1 | H35: =IFERROR(o_Beschaduwingreductie(H21,F8,H27,H30,H33,F11),1) -> 1 | J35: =IFERROR(o_Beschaduwingreductie(J21,J8,J27,J30,J33,J11),1) -> 1 | L35: =IFERROR(o_Beschaduwingreductie(L21,J8,L27,L30,L33,J11),1) -> 1 | N35: =IFERROR(o_Beschaduwingreductie(N21,N8,N27,N30,N33,N11),1) -> 1 | P35: =IFERROR(o_Beschaduwingreductie(P21,N8,P27,P30,P33,N11),1) -> 1 | R35: =o_Beschaduwingreductie(R21,R8,R27,R30,R33,R11) -> 1 | T35: =o_Beschaduwingreductie(T21,R8,T27,T30,T33,R11) -> 1
A37: Type zonwering | B37: Geen zonwering | D37: Geen zonwering | F37: Geen zonwering | H37: Geen zonwering | J37: Geen zonwering | L37: Geen zonwering | N37: Geen zonwering | P37: Geen zonwering | R37: Geen zonwering | T37: Geen zonwering
A38: De reductiefactor voor zonwering Fc;wi;k | B38: =o_Zonweringreductie(B37,B8) -> 1 | D38: =o_Zonweringreductie(D37,B8) -> 1 | F38: =o_Zonweringreductie(F37,F8) -> 1 | H38: =o_Zonweringreductie(H37,F8) -> 1 | J38: =o_Zonweringreductie(J37,J8) -> 1 | L38: =o_Zonweringreductie(L37,J8) -> 1 | N38: =o_Zonweringreductie(N37,N8) -> 1 | P38: =o_Zonweringreductie(P37,N8) -> 1 | R38: =o_Zonweringreductie(R37,R8) -> 1 | T38: =o_Zonweringreductie(T37,R8) -> 1
A39: Totaal opvallende zonnestraling van het raam Isol;wi;k;juli | B39: =IF(B10="Nee",0,o_Isol_Bij_Tijdstip($B$52,B8,B11)) -> 102.1887342 | C39: W/m² | D39: =IF(B10="Nee",0,o_Isol_Bij_Tijdstip($B$52,B8,B11)) -> 102.1887342 | E39: W/m² | F39: =IF(F10="Nee",0,o_Isol_Bij_Tijdstip($B$52,F8,F11)) -> 84.06226988 | G39: W/m² | H39: =IF(F10="Nee",0,o_Isol_Bij_Tijdstip($B$52,F8,F11)) -> 84.06226988 | I39: W/m² | J39: =IF(J10="Nee",0,o_Isol_Bij_Tijdstip($B$52,J8,J11)) -> 84.06226988 | K39: W/m² | L39: =IF(J10="Nee",0,o_Isol_Bij_Tijdstip($B$52,J8,J11)) -> 84.06226988 | M39: W/m² | N39: =IF(N10="Nee",0,o_Isol_Bij_Tijdstip($B$52,N8,N11)) -> 741.7580929 | O39: W/m² | P39: =IF(N10="Nee",0,o_Isol_Bij_Tijdstip($B$52,N8,N11)) -> 741.7580929 | Q39: W/m² | R39: =IF(R10="Nee",0,o_Isol_Bij_Tijdstip($B$52,R8,R11)) -> 408.3060242 | S39: W/m² | T39: =IF(R10="Nee",0,o_Isol_Bij_Tijdstip($B$52,R8,R11)) -> 408.3060242 | U39: W/m²
A41: Tijdstip maximale koellastbijdrage tmax;zi | B41: =VALUE(o_Tijdstip_Isol_Max_Orientatie(B8,B11)) -> 15:00:00 | F41: =VALUE(o_Tijdstip_Isol_Max_Orientatie(F8,F11)) -> 09:00:00 | J41: =VALUE(o_Tijdstip_Isol_Max_Orientatie(J8,J11)) -> 14:00:00 | N41: =VALUE(o_Tijdstip_Isol_Max_Orientatie(N8,N11)) -> 18:00:00 | R41: =o_Tijdstip_Isol_Max_Orientatie(R8,R11) -> 16:00:00
A42: Buitenluchttemperatuur op tijdstip max koellast Θe | B42: =o_maxTemp(VALUE(B41)) -> 29.8 | E42: °C | F42: =o_maxTemp(VALUE(F41)) -> 24.7 | I42: °C | J42: =o_maxTemp(VALUE(J41)) -> 29.9 | M42: °C | N42: =o_maxTemp(VALUE(N41)) -> 30.1 | Q42: °C | R42: =o_maxTemp(VALUE(R41)) -> 30.4
A44: Glasopppervlak | B44: =IF(B10="Ja",B18+D18,0) -> 0 | C44: m² | F44: =IF(F10="Ja",F18+H18,0) -> 0 | G44: m² | J44: =IF(J10="Ja",J18+L18,0) -> 0 | K44: m² | N44: =IF(N10="Ja",N18+P18,0) -> 0 | O44: m² | R44: =IF(R10="Ja",R18+T18,0) -> 0 | S44: m²
A45: Uitwendigescheidingsconstructie niet op Noord? | B45: =IF(B10="Ja",IF(B8="Noord",FALSE,TRUE),FALSE) -> FALSE | F45: =IF(F10="Ja",IF(F8="Noord",FALSE,TRUE),FALSE) -> TRUE | J45: =IF(J10="Ja",IF(J8="Noord",FALSE,TRUE),FALSE) -> TRUE | N45: =IF(N10="Ja",IF(N8="Noord",FALSE,TRUE),FALSE) -> TRUE | R45: =IF(R10="Ja",IF(R8="Noord",FALSE,TRUE),FALSE) -> TRUE
A46: De enige uitwendigescheidingscontructie? | B46: =IF(AND(B45=TRUE,COUNTIF($B$45:$R$45,TRUE)=1),TRUE,FALSE) -> FALSE | F46: =IF(AND(F45=TRUE,COUNTIF($B$45:$R$45,TRUE)=1),TRUE,FALSE) -> FALSE | J46: =IF(AND(J45=TRUE,COUNTIF($B$45:$R$45,TRUE)=1),TRUE,FALSE) -> FALSE | N46: =IF(AND(N45=TRUE,COUNTIF($B$45:$R$45,TRUE)=1),TRUE,FALSE) -> FALSE | R46: =IF(AND(R45=TRUE,COUNTIF($B$45:$R$45,TRUE)=1),TRUE,FALSE) -> FALSE
A47: Totaal glasoppervlak | B47: =IF(B8<>"Noord",B44,0) -> 0 | C47: m² | F47: =IF(F8<>"Noord",F44,0) -> 0 | G47: m² | J47: =IF(J8<>"Noord",J44,0) -> 0 | K47: m² | N47: =IF(N8<>"Noord",N44,0) -> 0 | O47: m² | R47: =R44 -> 0 | S47: m²
A48: Grootste glasoppervlak | B48: =IF(AND(B45,B47=MAX($B$47:$R$47)),TRUE,FALSE) -> FALSE | F48: =IF(AND(F45,F47=MAX($B$47:$R$47)),TRUE,FALSE) -> TRUE | J48: =IF(AND(J45,J47=MAX($B$47:$R$47)),TRUE,FALSE) -> TRUE | N48: =IF(AND(N45,N47=MAX($B$47:$R$47)),TRUE,FALSE) -> TRUE | R48: =IF(AND(R45,R47=MAX($B$47:$R$47)),TRUE,FALSE) -> TRUE
A49: Dakvlak maatgevend? | B49: =IF(AND(B11<90,B15>3*(B18+D18),Invoerblad!$B$25<65),TRUE,FALSE) -> FALSE | F49: =IF(AND(F11<90,F15>3*(F18+H18),Invoerblad!$B$25<65),TRUE,FALSE) -> FALSE | J49: =IF(AND(J11<90,J15>3*(J18+L18),Invoerblad!$B$25<65),TRUE,FALSE) -> FALSE | N49: =IF(AND(N11<90,N15>3*(N18+P18),Invoerblad!$B$25<65),TRUE,FALSE) -> FALSE | R49: =IF(AND(R11<90,R15>3*(R18+T18),Invoerblad!$B$25<65),TRUE,FALSE) -> FALSE
A50: is er een maatgevend dakoppervlak | B50: =IF(COUNTIF($B$49:$R$49,TRUE)>0,TRUE,FALSE) -> FALSE | F50: =IF(COUNTIF($B$49:$R$49,TRUE)>0,TRUE,FALSE) -> FALSE | J50: =IF(COUNTIF($B$49:$R$49,TRUE)>0,TRUE,FALSE) -> FALSE | N50: =IF(COUNTIF($B$49:$R$49,TRUE)>0,TRUE,FALSE) -> FALSE | R50: =IF(COUNTIF($B$49:$R$49,TRUE)>0,TRUE,FALSE) -> FALSE
A51: Maatgevende tijdstip | B51: =IF(OR(B46,AND(B45,B50,B49),AND(B45,B48,NOT(B50))),B41) -> FALSE | F51: =IF(OR(F46,AND(F45,F50,F49),AND(F45,F48,NOT(F50))),F41) -> 09:00:00 | J51: =IF(OR(J46,AND(J45,J50,J49),AND(J45,J48,NOT(J50))),J41) -> 14:00:00 | N51: =IF(OR(N46,AND(N45,N50,N49),AND(N45,N48,NOT(N50))),N41) -> 18:00:00 | R51: =IF(OR(R46,AND(R45,R50,R49),AND(R45,R48,NOT(R50))),R41) -> 16:00:00
A52: Maatgevende tijdstip tmax;zi | B52: =IFERROR(B84,"geen glas ingevoerd") -> Geen glas aanwezig
A53: Buitenluchttemperatuur op tijdstip max koellast Θe | B53: =o_maxTemp(VALUE(B52)) ->  | C53: °C
A55: Koellastbijdrage transmissie transparante delen Ptr;gl;vr;zi | B55: =IF(B10="Nee",0,B16*Invoerblad!$B$16) -> 0 | E55: W | F55: =IF(F10="Nee",0,F16*Invoerblad!$B$16) -> 0 | I55: W | J55: =IF(J10="Nee",0,J16*Invoerblad!$B$16) -> 0 | M55: W | N55: =IF(N10="Nee",0,N16*Invoerblad!$B$16) -> 0 | Q55: W | R55: =IF(R10="Nee",0,R16*Invoerblad!$B$16) -> 0 | U55: W
A56: Koellastbijdrage zoninstraling transparante delen Psol;vr;zi | B56: =(0.75*B18*FLOOR(B20,0.05)*0.9*B35*B38*B39)+(0.75*D18*FLOOR(D20,0.05)*0.9*D35*D38*D39) -> 0 | E56: W | F56: =(0.75*F18*FLOOR(F20,0.05)*0.9*F35*F38*F39)+(0.75*H18*FLOOR(H20,0.05)*0.9*H35*H38*H39) -> 0 | I56: W | J56: =(0.75*J18*FLOOR(J20,0.05)*0.9*J35*J38*J39)+(0.75*L18*FLOOR(L20,0.05)*0.9*L35*L38*L39) -> 0 | M56: W | N56: =(0.75*N18*FLOOR(N20,0.05)*0.9*N35*N38*N39)+(0.75*P18*FLOOR(P20,0.05)*0.9*P35*P38*P39) -> 0 | Q56: W | R56: =(0.75*R18*FLOOR(R20,0.05)*0.9*R35*R38*R39)+(0.75*T18*FLOOR(T20,0.05)*0.9*T35*T38*T39) -> 0 | U56: W
A57: Koellastbijdrage transmissie transparante delen Ptr;gl;vr;zi | B57: =IF(B10="Nee",0,IFERROR(B18*B19*($B$53-24),0)+IFERROR(D18*D19*($B$53-24),0)) -> 0 | E57: W | F57: =IF(F10="Nee",0,IFERROR(F18*F19*($B$53-24),0)+IFERROR(H18*H19*($B$53-24),0)) -> 0 | I57: W | J57: =IF(J10="Nee",0,IFERROR(J18*J19*($B$53-24),0)+IFERROR(L18*L19*($B$53-24),0)) -> 0 | M57: W | N57: =IF(N10="Nee",0,IFERROR(N18*N19*($B$53-24),0)+IFERROR(P18*P19*($B$53-24),0)) -> 0 | Q57: W | R57: =IF(R10="Nee",0,IFERROR(R18*R19*($B$53-24),0)+IFERROR(T18*T19*($B$53-24),0)) -> 0 | U57: W
A58: Totaal koellastbijdrage per gevel | B58: =SUM(B55:D57) -> 0 | E58: W | F58: =SUM(F55:H57) -> 0 | I58: W | J58: =SUM(J55:L57) -> 0 | M58: W | N58: =SUM(N55:P57) -> 0 | Q58: W | R58: =SUM(R55:R57) -> 0 | U58: W
A60: Koellast door interne warmtelast Pint;calc;woon/overig;zi | B60: =IF(B5=0,0,IF(B4="Woonvertrek",2*Invoerblad!$B$40*B5,Invoerblad!$B$40*B5)) -> 0 | E60: W
A61: Koellast door buitenluchttoetreding Pv;calc;vr;zi | B61: =IFERROR(MAX((SUM(Invoerblad!$B$28:$B$30)/3600*1.205*1005*(B53-24))/SUM(Invoerblad!$B$47:$T$47)*B5,0),0) -> 0 | C61: =IFERROR(MAX(SUM(C57:C59)/3600*1.205*1005*(C60-24),0),0) -> 0 | D61: =IFERROR(MAX(SUM(D57:D59)/3600*1.205*1005*(D60-24),0),0) -> 0 | E61: W
A63: Totaal koellastbijdrage | B63: =IFERROR(SUM(B58:T58)+B60+B61,0) -> 0 | E63: W
A64: Koelbehoefte verblijfsruimte | B64: =IFERROR(B63/B5,0) -> 0 | E64: W/m²
A67: Onderstaande tabellen worden verborgen in de uiteindelijke versie. De tabellen dienen om vast te stellen welk tijdstip tot de hoogste zonbelasting leidt
A69: Isol max voor de orientatie | B69: =o_Isol_Max_Orientatie(B8,B11) -> 143.7398809 | C69: W/m² | F69: =o_Isol_Max_Orientatie(F8,F11) -> 845.3277237 | G69: W/m² | J69: =o_Isol_Max_Orientatie(J8,J11) -> 740.0583625 | K69: W/m² | N69: =o_Isol_Max_Orientatie(N8,N11) -> 741.7580929 | O69: W/m² | R69: =o_Isol_Max_Orientatie(R8,R11) -> 914.160926 | S69: W/m²
A70: Tijdstip bij Isol max bij orientatie | B70: =VALUE(o_Tijdstip_Isol_Max_Orientatie(B8,B11)) -> 15:00:00 | F70: =VALUE(o_Tijdstip_Isol_Max_Orientatie(F8,F11)) -> 09:00:00 | J70: =VALUE(o_Tijdstip_Isol_Max_Orientatie(J8,J11)) -> 14:00:00 | N70: =VALUE(o_Tijdstip_Isol_Max_Orientatie(N8,N11)) -> 18:00:00 | R70: =VALUE(o_Tijdstip_Isol_Max_Orientatie(R8,R11)) -> 16:00:00
A72: Koellastbijdrage zoninstraling transparante delen Psol;vr;zi
A73: 09:00:00 | B73: =(0.75*B$18*FLOOR(B$20,0.05)*0.9*B$35*B$38*o_Isol_Bij_Tijdstip($A73,B$8,B$11))+(0.75*D$18*FLOOR(D$20,0.05)*0.9*D$35*D$38*o_Isol_Bij_Tijdstip($A73,B$8,B$11)) -> 0 | C73: W | F73: =(0.75*F$18*FLOOR(F$20,0.05)*0.9*F$35*F$38*o_Isol_Bij_Tijdstip($A73,F$8,F$11))+(0.75*H$18*FLOOR(H$20,0.05)*0.9*H$35*H$38*o_Isol_Bij_Tijdstip($A73,F$8,F$11)) -> 0 | G73: W | J73: =(0.75*J$18*FLOOR(J$20,0.05)*0.9*J$35*J$38*o_Isol_Bij_Tijdstip($A73,J$8,J$11))+(0.75*L$18*FLOOR(L$20,0.05)*0.9*L$35*L$38*o_Isol_Bij_Tijdstip($A73,J$8,J$11)) -> 0 | K73: W | N73: =(0.75*N$18*FLOOR(N$20,0.05)*0.9*N$35*N$38*o_Isol_Bij_Tijdstip($A73,N$8,N$11))+(0.75*P$18*FLOOR(P$20,0.05)*0.9*P$35*P$38*o_Isol_Bij_Tijdstip($A73,N$8,N$11)) -> 0 | O73: W | R73: =(0.75*R$18*FLOOR(R$20,0.05)*0.9*R$35*R$38*o_Isol_Bij_Tijdstip($A73,R$8,R$11))+(0.75*T$18*FLOOR(T$20,0.05)*0.9*T$35*T$38*o_Isol_Bij_Tijdstip($A73,R$8,R$11)) -> 0 | S73: W | T73: =B73+F73+J73+N73+R73 -> 0 | U73: W
A74: 10:00:00 | B74: =(0.75*B$18*FLOOR(B$20,0.05)*0.9*B$35*B$38*o_Isol_Bij_Tijdstip($A74,B$8,B$11))+(0.75*D$18*FLOOR(D$20,0.05)*0.9*D$35*D$38*o_Isol_Bij_Tijdstip($A74,B$8,B$11)) -> 0 | C74: W | F74: =(0.75*F$18*FLOOR(F$20,0.05)*0.9*F$35*F$38*o_Isol_Bij_Tijdstip($A74,F$8,F$11))+(0.75*H$18*FLOOR(H$20,0.05)*0.9*H$35*H$38*o_Isol_Bij_Tijdstip($A74,F$8,F$11)) -> 0 | G74: W | J74: =(0.75*J$18*FLOOR(J$20,0.05)*0.9*J$35*J$38*o_Isol_Bij_Tijdstip($A74,J$8,J$11))+(0.75*L$18*FLOOR(L$20,0.05)*0.9*L$35*L$38*o_Isol_Bij_Tijdstip($A74,J$8,J$11)) -> 0 | K74: W | N74: =(0.75*N$18*FLOOR(N$20,0.05)*0.9*N$35*N$38*o_Isol_Bij_Tijdstip($A74,N$8,N$11))+(0.75*P$18*FLOOR(P$20,0.05)*0.9*P$35*P$38*o_Isol_Bij_Tijdstip($A74,N$8,N$11)) -> 0 | O74: W | R74: =(0.75*R$18*FLOOR(R$20,0.05)*0.9*R$35*R$38*o_Isol_Bij_Tijdstip($A74,R$8,R$11))+(0.75*T$18*FLOOR(T$20,0.05)*0.9*T$35*T$38*o_Isol_Bij_Tijdstip($A74,R$8,R$11)) -> 0 | S74: W | T74: 0 | U74: W
A75: 11:00:00 | B75: =(0.75*B$18*FLOOR(B$20,0.05)*0.9*B$35*B$38*o_Isol_Bij_Tijdstip($A75,B$8,B$11))+(0.75*D$18*FLOOR(D$20,0.05)*0.9*D$35*D$38*o_Isol_Bij_Tijdstip($A75,B$8,B$11)) -> 0 | C75: W | F75: =(0.75*F$18*FLOOR(F$20,0.05)*0.9*F$35*F$38*o_Isol_Bij_Tijdstip($A75,F$8,F$11))+(0.75*H$18*FLOOR(H$20,0.05)*0.9*H$35*H$38*o_Isol_Bij_Tijdstip($A75,F$8,F$11)) -> 0 | G75: W | J75: =(0.75*J$18*FLOOR(J$20,0.05)*0.9*J$35*J$38*o_Isol_Bij_Tijdstip($A75,J$8,J$11))+(0.75*L$18*FLOOR(L$20,0.05)*0.9*L$35*L$38*o_Isol_Bij_Tijdstip($A75,J$8,J$11)) -> 0 | K75: W | N75: =(0.75*N$18*FLOOR(N$20,0.05)*0.9*N$35*N$38*o_Isol_Bij_Tijdstip($A75,N$8,N$11))+(0.75*P$18*FLOOR(P$20,0.05)*0.9*P$35*P$38*o_Isol_Bij_Tijdstip($A75,N$8,N$11)) -> 0 | O75: W | R75: =(0.75*R$18*FLOOR(R$20,0.05)*0.9*R$35*R$38*o_Isol_Bij_Tijdstip($A75,R$8,R$11))+(0.75*T$18*FLOOR(T$20,0.05)*0.9*T$35*T$38*o_Isol_Bij_Tijdstip($A75,R$8,R$11)) -> 0 | S75: W | T75: 0 | U75: W
A76: 12:00:00 | B76: =(0.75*B$18*FLOOR(B$20,0.05)*0.9*B$35*B$38*o_Isol_Bij_Tijdstip($A76,B$8,B$11))+(0.75*D$18*FLOOR(D$20,0.05)*0.9*D$35*D$38*o_Isol_Bij_Tijdstip($A76,B$8,B$11)) -> 0 | C76: W | F76: =(0.75*F$18*FLOOR(F$20,0.05)*0.9*F$35*F$38*o_Isol_Bij_Tijdstip($A76,F$8,F$11))+(0.75*H$18*FLOOR(H$20,0.05)*0.9*H$35*H$38*o_Isol_Bij_Tijdstip($A76,F$8,F$11)) -> 0 | G76: W | J76: =(0.75*J$18*FLOOR(J$20,0.05)*0.9*J$35*J$38*o_Isol_Bij_Tijdstip($A76,J$8,J$11))+(0.75*L$18*FLOOR(L$20,0.05)*0.9*L$35*L$38*o_Isol_Bij_Tijdstip($A76,J$8,J$11)) -> 0 | K76: W | N76: =(0.75*N$18*FLOOR(N$20,0.05)*0.9*N$35*N$38*o_Isol_Bij_Tijdstip($A76,N$8,N$11))+(0.75*P$18*FLOOR(P$20,0.05)*0.9*P$35*P$38*o_Isol_Bij_Tijdstip($A76,N$8,N$11)) -> 0 | O76: W | R76: =(0.75*R$18*FLOOR(R$20,0.05)*0.9*R$35*R$38*o_Isol_Bij_Tijdstip($A76,R$8,R$11))+(0.75*T$18*FLOOR(T$20,0.05)*0.9*T$35*T$38*o_Isol_Bij_Tijdstip($A76,R$8,R$11)) -> 0 | S76: W | T76: 0 | U76: W
A77: 13:00:00 | B77: =(0.75*B$18*FLOOR(B$20,0.05)*0.9*B$35*B$38*o_Isol_Bij_Tijdstip($A77,B$8,B$11))+(0.75*D$18*FLOOR(D$20,0.05)*0.9*D$35*D$38*o_Isol_Bij_Tijdstip($A77,B$8,B$11)) -> 0 | C77: W | F77: =(0.75*F$18*FLOOR(F$20,0.05)*0.9*F$35*F$38*o_Isol_Bij_Tijdstip($A77,F$8,F$11))+(0.75*H$18*FLOOR(H$20,0.05)*0.9*H$35*H$38*o_Isol_Bij_Tijdstip($A77,F$8,F$11)) -> 0 | G77: W | J77: =(0.75*J$18*FLOOR(J$20,0.05)*0.9*J$35*J$38*o_Isol_Bij_Tijdstip($A77,J$8,J$11))+(0.75*L$18*FLOOR(L$20,0.05)*0.9*L$35*L$38*o_Isol_Bij_Tijdstip($A77,J$8,J$11)) -> 0 | K77: W | N77: =(0.75*N$18*FLOOR(N$20,0.05)*0.9*N$35*N$38*o_Isol_Bij_Tijdstip($A77,N$8,N$11))+(0.75*P$18*FLOOR(P$20,0.05)*0.9*P$35*P$38*o_Isol_Bij_Tijdstip($A77,N$8,N$11)) -> 0 | O77: W | R77: =(0.75*R$18*FLOOR(R$20,0.05)*0.9*R$35*R$38*o_Isol_Bij_Tijdstip($A77,R$8,R$11))+(0.75*T$18*FLOOR(T$20,0.05)*0.9*T$35*T$38*o_Isol_Bij_Tijdstip($A77,R$8,R$11)) -> 0 | S77: W | T77: 0 | U77: W
A78: 14:00:00 | B78: =(0.75*B$18*FLOOR(B$20,0.05)*0.9*B$35*B$38*o_Isol_Bij_Tijdstip($A78,B$8,B$11))+(0.75*D$18*FLOOR(D$20,0.05)*0.9*D$35*D$38*o_Isol_Bij_Tijdstip($A78,B$8,B$11)) -> 0 | C78: W | F78: =(0.75*F$18*FLOOR(F$20,0.05)*0.9*F$35*F$38*o_Isol_Bij_Tijdstip($A78,F$8,F$11))+(0.75*H$18*FLOOR(H$20,0.05)*0.9*H$35*H$38*o_Isol_Bij_Tijdstip($A78,F$8,F$11)) -> 0 | G78: W | J78: =(0.75*J$18*FLOOR(J$20,0.05)*0.9*J$35*J$38*o_Isol_Bij_Tijdstip($A78,J$8,J$11))+(0.75*L$18*FLOOR(L$20,0.05)*0.9*L$35*L$38*o_Isol_Bij_Tijdstip($A78,J$8,J$11)) -> 0 | K78: W | N78: =(0.75*N$18*FLOOR(N$20,0.05)*0.9*N$35*N$38*o_Isol_Bij_Tijdstip($A78,N$8,N$11))+(0.75*P$18*FLOOR(P$20,0.05)*0.9*P$35*P$38*o_Isol_Bij_Tijdstip($A78,N$8,N$11)) -> 0 | O78: W | R78: =(0.75*R$18*FLOOR(R$20,0.05)*0.9*R$35*R$38*o_Isol_Bij_Tijdstip($A78,R$8,R$11))+(0.75*T$18*FLOOR(T$20,0.05)*0.9*T$35*T$38*o_Isol_Bij_Tijdstip($A78,R$8,R$11)) -> 0 | S78: W | T78: 0 | U78: W
A79: 15:00:00 | B79: =(0.75*B$18*FLOOR(B$20,0.05)*0.9*B$35*B$38*o_Isol_Bij_Tijdstip($A79,B$8,B$11))+(0.75*D$18*FLOOR(D$20,0.05)*0.9*D$35*D$38*o_Isol_Bij_Tijdstip($A79,B$8,B$11)) -> 0 | C79: W | F79: =(0.75*F$18*FLOOR(F$20,0.05)*0.9*F$35*F$38*o_Isol_Bij_Tijdstip($A79,F$8,F$11))+(0.75*H$18*FLOOR(H$20,0.05)*0.9*H$35*H$38*o_Isol_Bij_Tijdstip($A79,F$8,F$11)) -> 0 | G79: W | J79: =(0.75*J$18*FLOOR(J$20,0.05)*0.9*J$35*J$38*o_Isol_Bij_Tijdstip($A79,J$8,J$11))+(0.75*L$18*FLOOR(L$20,0.05)*0.9*L$35*L$38*o_Isol_Bij_Tijdstip($A79,J$8,J$11)) -> 0 | K79: W | N79: =(0.75*N$18*FLOOR(N$20,0.05)*0.9*N$35*N$38*o_Isol_Bij_Tijdstip($A79,N$8,N$11))+(0.75*P$18*FLOOR(P$20,0.05)*0.9*P$35*P$38*o_Isol_Bij_Tijdstip($A79,N$8,N$11)) -> 0 | O79: W | R79: =(0.75*R$18*FLOOR(R$20,0.05)*0.9*R$35*R$38*o_Isol_Bij_Tijdstip($A79,R$8,R$11))+(0.75*T$18*FLOOR(T$20,0.05)*0.9*T$35*T$38*o_Isol_Bij_Tijdstip($A79,R$8,R$11)) -> 0 | S79: W | T79: 0 | U79: W
A80: 16:00:00 | B80: =(0.75*B$18*FLOOR(B$20,0.05)*0.9*B$35*B$38*o_Isol_Bij_Tijdstip($A80,B$8,B$11))+(0.75*D$18*FLOOR(D$20,0.05)*0.9*D$35*D$38*o_Isol_Bij_Tijdstip($A80,B$8,B$11)) -> 0 | C80: W | F80: =(0.75*F$18*FLOOR(F$20,0.05)*0.9*F$35*F$38*o_Isol_Bij_Tijdstip($A80,F$8,F$11))+(0.75*H$18*FLOOR(H$20,0.05)*0.9*H$35*H$38*o_Isol_Bij_Tijdstip($A80,F$8,F$11)) -> 0 | G80: W | J80: =(0.75*J$18*FLOOR(J$20,0.05)*0.9*J$35*J$38*o_Isol_Bij_Tijdstip($A80,J$8,J$11))+(0.75*L$18*FLOOR(L$20,0.05)*0.9*L$35*L$38*o_Isol_Bij_Tijdstip($A80,J$8,J$11)) -> 0 | K80: W | N80: =(0.75*N$18*FLOOR(N$20,0.05)*0.9*N$35*N$38*o_Isol_Bij_Tijdstip($A80,N$8,N$11))+(0.75*P$18*FLOOR(P$20,0.05)*0.9*P$35*P$38*o_Isol_Bij_Tijdstip($A80,N$8,N$11)) -> 0 | O80: W | R80: =(0.75*R$18*FLOOR(R$20,0.05)*0.9*R$35*R$38*o_Isol_Bij_Tijdstip($A80,R$8,R$11))+(0.75*T$18*FLOOR(T$20,0.05)*0.9*T$35*T$38*o_Isol_Bij_Tijdstip($A80,R$8,R$11)) -> 0 | S80: W | T80: 0 | U80: W
A81: 17:00:00 | B81: =(0.75*B$18*FLOOR(B$20,0.05)*0.9*B$35*B$38*o_Isol_Bij_Tijdstip($A81,B$8,B$11))+(0.75*D$18*FLOOR(D$20,0.05)*0.9*D$35*D$38*o_Isol_Bij_Tijdstip($A81,B$8,B$11)) -> 0 | C81: W | F81: =(0.75*F$18*FLOOR(F$20,0.05)*0.9*F$35*F$38*o_Isol_Bij_Tijdstip($A81,F$8,F$11))+(0.75*H$18*FLOOR(H$20,0.05)*0.9*H$35*H$38*o_Isol_Bij_Tijdstip($A81,F$8,F$11)) -> 0 | G81: W | J81: =(0.75*J$18*FLOOR(J$20,0.05)*0.9*J$35*J$38*o_Isol_Bij_Tijdstip($A81,J$8,J$11))+(0.75*L$18*FLOOR(L$20,0.05)*0.9*L$35*L$38*o_Isol_Bij_Tijdstip($A81,J$8,J$11)) -> 0 | K81: W | N81: =(0.75*N$18*FLOOR(N$20,0.05)*0.9*N$35*N$38*o_Isol_Bij_Tijdstip($A81,N$8,N$11))+(0.75*P$18*FLOOR(P$20,0.05)*0.9*P$35*P$38*o_Isol_Bij_Tijdstip($A81,N$8,N$11)) -> 0 | O81: W | R81: =(0.75*R$18*FLOOR(R$20,0.05)*0.9*R$35*R$38*o_Isol_Bij_Tijdstip($A81,R$8,R$11))+(0.75*T$18*FLOOR(T$20,0.05)*0.9*T$35*T$38*o_Isol_Bij_Tijdstip($A81,R$8,R$11)) -> 0 | S81: W | T81: 0 | U81: W
A82: 18:00:00 | B82: =(0.75*B$18*FLOOR(B$20,0.05)*0.9*B$35*B$38*o_Isol_Bij_Tijdstip($A82,B$8,B$11))+(0.75*D$18*FLOOR(D$20,0.05)*0.9*D$35*D$38*o_Isol_Bij_Tijdstip($A82,B$8,B$11)) -> 0 | C82: W | F82: =(0.75*F$18*FLOOR(F$20,0.05)*0.9*F$35*F$38*o_Isol_Bij_Tijdstip($A82,F$8,F$11))+(0.75*H$18*FLOOR(H$20,0.05)*0.9*H$35*H$38*o_Isol_Bij_Tijdstip($A82,F$8,F$11)) -> 0 | G82: W | J82: =(0.75*J$18*FLOOR(J$20,0.05)*0.9*J$35*J$38*o_Isol_Bij_Tijdstip($A82,J$8,J$11))+(0.75*L$18*FLOOR(L$20,0.05)*0.9*L$35*L$38*o_Isol_Bij_Tijdstip($A82,J$8,J$11)) -> 0 | K82: W | N82: =(0.75*N$18*FLOOR(N$20,0.05)*0.9*N$35*N$38*o_Isol_Bij_Tijdstip($A82,N$8,N$11))+(0.75*P$18*FLOOR(P$20,0.05)*0.9*P$35*P$38*o_Isol_Bij_Tijdstip($A82,N$8,N$11)) -> 0 | O82: W | R82: =(0.75*R$18*FLOOR(R$20,0.05)*0.9*R$35*R$38*o_Isol_Bij_Tijdstip($A82,R$8,R$11))+(0.75*T$18*FLOOR(T$20,0.05)*0.9*T$35*T$38*o_Isol_Bij_Tijdstip($A82,R$8,R$11)) -> 0 | S82: W | T82: 0 | U82: W
A84: Maatgevende tijdstip | B84: =IF(MAX(T73:T82)=0,"Geen glas aanwezig",_xlfn.XLOOKUP(MAX(T73:T82),T73:T82,A73:A82,"nvt")) -> Geen glas aanwezig

Sheet Tabellen (hidden)
A1: Factor voor thermsiche isolatie van ondoorzichtige delen Tabel AA.4 NTA8800 | D1: Ja of nee
A2: Bouwjaar | B2: fiso | D2: Ja
A3: ≤1974 | B3: 17 | D3: Nee
A4: 1975 - 1991 | B4: 10
A5: 1992 - 2014 | B5: 3.2
A6: >2015 | B6: 2.2
A8: Massa van de vloeren tabel 7.11 NTA8800
A9: Vloeren
A10: Houten vloeren | B10: Licht
A11: Houtskeletbouw (hsb) vloeren | B11: Licht
A12: Staalframebouw (sfb) vloeren | B12: Licht
A13: Vloeren van elk type die aan de binnenzijde zijn geïsoleerd | B13: Licht
A14: Staal-beton vloeren | B14: Zwaar
A15: Niet-massieve betonnen vloeren | B15: Zwaar
A16: Massieve betonnen vloeren | B16: Zeer Zwaar
A17: Massa van de wanden tabel 7.12 NTA8800
A18: Wanden
A19: Houtskeletbouw (hsb) | B19: Licht
A20: Staalframebouw (sfb) | B20: Licht
A21: Staalskeletbouw | B21: Licht
A22: Wanden van elk type die aan de binnenzijde zijn geïsoleerd | B22: Licht
A23: Dragend metselwerk | B23: Zwaar
A24: Betonnen kolom-ligger skeletbouw | B24: Zwaar
A25: Betonnen wand-vloer skeletbouw | B25: Zeer Zwaar
A27: Type bouwwijze vloeren | B27: Type bouwwijze wanden | C27: Zoek waarde | D27: Specifieke interne warmtecapaciteit | E27: Massa van de constructie | F27: Specifieke werkzame massa
D28: [kJ/m²K] | E28: [kg/m²] | F28: [kg/m²]
A29: Licht | B29: Licht | C29: =A29&B29 -> LichtLicht | D29: 80 | E29: <250 | F29: 50
A30: Licht | B30: Zwaar | C30: LichtZwaar | D30: 180 | E30: 250 tot 500 | F30: 65
A31: Zwaar | B31: Licht | C31: ZwaarLicht | F31: 65
A32: Zeer zwaar | B32: Licht | C32: Zeer zwaarLicht | F32: 65
A33: Zwaar | B33: Zwaar | C33: ZwaarZwaar | D33: 360 | E33: 500 tot 750 | F33: 85
A34: Licht | B34: Zeer zwaar | C34: LichtZeer zwaar | F34: 85
A35: Zwaar | B35: Zeer zwaar | C35: ZwaarZeer zwaar | D35: 450 | E35: >750 | F35: 100
A36: Zeer zwaar | B36: Zwaar | C36: Zeer zwaarZwaar | F36: 100
A37: Zeer zwaar | B37: Zeer zwaar | C37: Zeer zwaarZeer zwaar | F37: 100
D39: Tijdstip maximale koellast Tabel AA.2 NTA8800
A40: Orientatie | B40: Graden | C40: Orientatie | D40: SWM = 50 | E40: SWM > 50
A41: - | B41: =Invoerblad!B33*B4 -> 0 | C41: - | D41: nvt | E41: nvt
A42: Noord | B42: 0 | C42: Oost | D42: nvt | E42: nvt
A43: Noord-Oost | B43: 45 | C43: ZuidOost | D43: 09:00:00 | E43: 11:00:00
A44: Oost | B44: 90 | C44: Zuid | D44: 09:00:00 | E44: 11:00:00
A45: Zuid-Oost | B45: 135 | C45: ZuidWest | D45: 11:00:00 | E45: 13:00:00
A46: Zuid | B46: 180 | C46: West | D46: 13:00:00 | E46: 15:00:00
A47: Zuid-West | B47: 225 | C47: NoordWest | D47: 15:00:00 | E47: 16:30:00
A48: West | B48: 270 | C48: Noord | D48: 17:00:00 | E48: 18:00:00
A49: Noord-West | B49: 315 | C49: NoordOost | D49: 17:00:00 | E49: 18:00:00
A50: Horizontaal | C50: Horizontaal | D50: 13:00:00 | E50: 16:00:00 | F50: dakvlak <15° helling
A53: Buitenluchttemperatuur voor aandeel ventilatie bij tijdstip
A54: nvt | B54: nvt
A55: 09:00:00 | B55: 24.7 | C55: 7 | D55: 17:40:00 | E55: =FORECAST(D55,B55:B67,A55:A67) -> 28.28278388 | F55: =Linterp(D55) -> 
A56: 10:00:00 | B56: 26.9 | C56: 8 | E56: =_xlfn.FORECAST.LINEAR(D55,B55:B67,A55:A69) -> 
A57: 11:00:00 | B57: 28.2 | C57: 9
A58: 12:00:00 | B58: 28.9 | C58: 10 | D58: UREN | E58: 7.5
A59: 13:00:00 | B59: 29.7 | C59: 11 | E59: =_xlfn.FORECAST.LINEAR(E58,B55:B67,C55:C69) -> 
A60: 14:00:00 | B60: 29.9 | C60: 12
A61: 15:00:00 | B61: 29.8 | C61: 13
A62: 16:00:00 | B62: 30.4 | C62: 14
A63: 17:00:00 | B63: 30.6 | C63: 15
A64: 18:00:00 | B64: 30.1 | C64: 16
A65: 19:00:00 | B65: 29.5 | C65: 17
A66: 20:00:00 | B66: 25.9 | C66: 18
A67: 21:00:00 | B67: 23.4 | C67: 19
C68: 20
C69: 21
A71: Maandgemiddelde totale opvallende zonnestraling isol;mi over alla uren tabel 17,2 NTA8800
B72: Helling 0° (platdak | C72: Helling 30° | D72: Helling 45° | E72: Helling 60° | F72: Helling 90° (gevel) | G72: Helling 180° (vloer boven buitenlucht)
B73: 0 | C73: 30 | D73: 45 | E73: 60 | F73: 90 | G73: 180
A74: Noord | B74: 0 | C74: 0 | D74: 0 | E74: 0 | F74: 0 | G74: 0 | H74: geen koellast op noord verwacht
A75: NoordOost | B75: 191 | C75: 156.9 | D75: 132.7 | E75: 112.3 | F75: 81.2 | G75: 38.2
A76: Oost | B76: 191 | C76: 175 | D76: 160.4 | E76: 143.2 | F76: 104.9 | G76: 38.2
A77: ZuidOost | B77: 191 | C77: 190 | D77: 179.1 | E77: 161.8 | F77: 113.2 | G77: 38.2
A78: Zuid | B78: 191 | C78: 196.1 | D78: 185 | E78: 165.9 | F78: 109.7 | G78: 38.2
A79: ZuidWest | B79: 191 | C79: 193.2 | D79: 182.5 | E79: 165.4 | F79: 117.1 | G79: 38.2
A80: West | B80: 191 | C80: 180.2 | D80: 166.8 | E80: 150.6 | F80: 112.7 | G80: 38.2
A81: NoordWest | B81: 191 | C81: 162.1 | D81: 139 | E81: 119.2 | F81: 88.5 | G81: 38.2
A83: type zonwering tabel 7,5
A84: Type zonwering | B84: Fc
A85: Geen zonwering | B85: 1
A86: Screen (zwart, antraciet, donkerbruin) | B86: 0.12
A87: Screen (overige kleuren) | B87: 0.2
A88: Screen (wit) | B88: 0.25
A89: Screen (onbekende kleur) | B89: 0.2
A90: Jaloezieën (zwart, antraciet, donkerbruin) | B90: 0.05
A91: Jaloezieën (overige kleuren) | B91: 0.1
A92: Jaloezieën (wit) | B92: 0.2
A93: Jaloezieën (onbekende kleur) | B93: 0.1
A94: Rolluiken (overige kleuren) | B94: 0.11
A95: Rolluiken (wit) | B95: 0.04
A96: Rolluiken (onbekende kleur) | B96: 0.11
A97: Gemetalisseerde weefsels (binnen toegepast) | B97: 0.45
A98: Uitvalschermen
A99: Knikarmschermen
A102: Tabel 8.23 ISSO 82.1 Mogelijke beschaduwingssituaties bij ramen in gevels
A103: Minimale belemmering | B103: tabel 17,5
A104: Constante overstek | B104: tabel 17,9
A105: Zijbelemmering | B105: tabel 17,11
A106: Volledige belemmering | B106: tabel 17,14
A107: Constante overstek en één of meer zij)belemmering(en) | B107: tabel 17,9
A108: Overige belemmering
A110: Tabel 8.24 ISSO 82.1 Mogelijke beschaduwingssituaties bij ramen platte en hellende daken
A111: Minimale belemmering
A112: Volledige belemmering
A113: Overige belemmering

Sheet Tabel AA (hidden)
A1: β | B1: 0° | C1: 30°
A2: γ | B2: – | C2: 180° | D2: 225° | E2: 270° | F2: 315° | G2: 360° | H2: 45° | I2: 90° | J2: 135°
C3: Z | D3: ZW | E3: W | F3: NW | G3: N | H3: NO | I3: O | J3: ZO
A4: Tijdstip | B4: Isol;mi
B5: W/m2
A6: 09:00:00 | B6: 576.1492101 | C6: 576.7203303 | D6: 305.2840476 | E6: 162.2532548 | F6: 231.4134505 | G6: 472.25153 | H6: 743.6878127 | I6: 886.7186055 | J6: 817.5584098
A7: 10:00:00 | B7: 748.259706 | C7: 813.8198145 | D7: 534.825778 | E7: 338.6608142 | F7: 340.2356985 | G7: 538.6278851 | H7: 817.6219216 | I7: 1013.786885 | J7: 1012.212001
A8: 11:00:00 | B8: 824.2952432 | C8: 940.3058843 | D8: 710.1753153 | E8: 499.4491975 | F8: 431.5680326 | G8: 546.2956866 | H8: 776.4262556 | I8: 987.1523735 | J8: 1055.033538
A9: 12:00:00 | B9: 893.0204327 | C9: 1043.951377 | D9: 877.6155607 | E9: 668.0583696 | F9: 538.0355642 | G9: 563.7127406 | H9: 730.048557 | I9: 939.605748 | J9: 1069.628553
A10: 13:00:00 | B10: 914.160926 | C10: 1078.206138 | D10: 992.9075997 | E10: 807.5306463 | F10: 630.6665833 | G10: 565.9199802 | H10: 651.2185189 | I10: 836.5954724 | J10: 1013.459535
A11: 14:00:00 | B11: 875.0868199 | C11: 1085.984656 | D11: 1081.642204 | E11: 904.8779231 | F11: 659.2379321 | G11: 488.614806 | H11: 492.9572579 | I11: 669.7215384 | J11: 915.3615294
A12: 15:00:00 | B12: 904.0267879 | C12: 1038.592655 | D12: 1139.86073 | E12: 1049.265549 | F12: 819.8765397 | G12: 586.0666727 | H12: 484.7985971 | I12: 575.3937782 | J12: 804.7827876
A13: 16:00:00 | B13: 691.20297 | C13: 754.4759977 | D13: 911.8897759 | E13: 900.650441 | F13: 727.3418428 | G13: 493.4858077 | H13: 336.0720295 | I13: 347.3113645 | J13: 520.6199627
A14: 17:00:00 | B14: 538.5664031 | C14: 552.1735679 | D14: 747.7647861 | E14: 792.1276673 | F14: 659.2750374 | G14: 427.0301652 | H14: 231.4389471 | I14: 187.0760659 | J14: 319.9286957
A15: 18:00:00 | B15: 408.3060242 | C15: 363.0089393 | D15: 598.1940868 | E15: 700.920083 | F15: 611.0114327 | G15: 381.1354037 | H15: 145.9502562 | I15: 59.24635524 | J15: 133.1329103
A17: β | C17: 45°
A18: γ | C18: 180° | D18: 225° | E18: 270° | F18: 315° | G18: 360° | H18: 45° | I18: 90° | J18: 135°
C19: Z | D19: ZW | E19: W | F19: NW | G19: N | H19: NO | I19: O | J19: ZO
A20: Tijdstip | B20: Isol;mi
B21: W/m2
A22: 09:00:00 | C22: 527.2317607 | D22: 143.3628884 | E22: 99.3453311 | F22: 99.3453311 | G22: 379.4905665 | H22: 763.3594388 | I22: 965.6355258 | J22: 867.828239
A23: 10:00:00 | C23: 774.7044633 | D23: 380.147313 | E23: 102.7281608 | F23: 104.9553836 | G23: 385.5243044 | H23: 780.0814548 | I23: 1057.500607 | J23: 1055.273384
A24: 11:00:00 | C24: 914.0353586 | D24: 588.5815867 | E24: 290.5698529 | F24: 194.571389 | G24: 356.8207932 | H24: 682.274565 | I24: 980.2862988 | J24: 1076.284763
A25: 12:00:00 | C25: 1025.457709 | D25: 790.2233415 | E25: 493.8647198 | F25: 309.984705 | G25: 346.2977161 | H25: 581.5320835 | I25: 877.8907052 | J25: 1061.77072
A26: 13:00:00 | C26: 1062.951263 | D26: 942.3209131 | E26: 680.1583114 | F26: 430.0347549 | G26: 338.4692306 | H26: 459.0995809 | I26: 721.2621826 | J26: 971.3857391
A27: 14:00:00 | C27: 1094.67299 | D27: 1088.531836 | E27: 838.5493927 | F27: 491.1619861 | G27: 249.864447 | H27: 256.0056014 | I27: 505.9880443 | J27: 853.3754509
A28: 15:00:00 | C28: 1012.82796 | D28: 1156.042646 | E28: 1027.921712 | F28: 703.5166637 | G28: 372.8595787 | H28: 229.6448928 | I28: 357.7658266 | J28: 682.1708747
A29: 16:00:00 | C29: 718.6950287 | D29: 941.3117288 | E29: 925.4169088 | F29: 680.3215388 | G29: 349.5991624 | H29: 126.9824624 | I29: 142.8772823 | J29: 387.9726523
A30: 17:00:00 | C30: 510.2917965 | D30: 786.8995499 | E30: 849.6381382 | F30: 661.7561472 | G30: 333.3122992 | H30: 76.7056542 | I30: 76.7056542 | J30: 181.8479485
A31: 18:00:00 | C31: 308.6752182 | D31: 641.2772434 | E31: 786.5537405 | F31: 659.4037078 | G31: 334.3099099 | H31: 66.07135466 | I31: 66.07135466 | J31: 66.07135466
A33: β | C33: 60°
A34: γ | C34: 180° | D34: 225° | E34: 270° | F34: 315° | G34: 360° | H34: 45° | I34: 90° | J34: 135°
C35: Z | D35: ZW | E35: W | F35: NW | G35: N | H35: NO | I35: O | J35: ZO
A36: Tijdstip | B36: Isol;mi
B37: W/m2
A38: 09:00:00 | C38: 448.3120167 | D38: 107.512386 | E38: 107.512386 | F38: 107.512386 | G38: 267.3667469 | H38: 737.5081795 | I38: 985.2447796 | J38: 865.4558068
A39: 10:00:00 | C39: 690.1195932 | D39: 206.8877469 | E39: 110.3312157 | F39: 110.3312157 | G39: 213.4731896 | H39: 696.7050359 | I39: 1036.47272 | J39: 1033.74494
A40: 11:00:00 | C40: 832.6759178 | D40: 434.0780799 | E40: 102.543705 | F40: 102.543705 | G40: 150.2302365 | H40: 548.8280744 | I40: 913.8164171 | J40: 1031.390043
A41: 12:00:00 | C41: 944.558797 | D41: 656.4567119 | E41: 293.4930099 | F41: 102.5789441 | G41: 112.7610789 | H41: 400.863164 | I41: 763.826866 | J41: 989.032971
A42: 13:00:00 | C42: 982.7314946 | D42: 834.9900918 | E42: 513.9077899 | F42: 207.5702468 | G42: 100.2469613 | H42: 243.1672434 | I42: 564.2495453 | J42: 870.5870884
A43: 14:00:00 | C43: 1036.56081 | D43: 1029.039463 | E43: 722.8747477 | F43: 297.4138031 | G43: 108.6221677 | H43: 108.6221677 | I43: 315.5719418 | J43: 741.0328865
A44: 15:00:00 | C44: 925.9443377 | D44: 1101.34579 | E44: 944.4303332 | F44: 547.1169143 | G44: 142.1463453 | H44: 107.6060299 | I44: 123.6603498 | J44: 520.9737687
A45: 16:00:00 | C45: 640.1944754 | D45: 912.843137 | E45: 893.3760378 | F45: 593.1967404 | G45: 188.146206 | H45: 91.28195443 | I45: 91.28195443 | J45: 235.143941
A46: 17:00:00 | C46: 439.0263689 | D46: 777.8002963 | E46: 854.6390605 | F46: 624.5315556 | G46: 222.2716372 | H46: 86.62900295 | I46: 86.62900295 | J46: 86.62900295
A47: 18:00:00 | C47: 237.6927418 | D47: 645.0453664 | E47: 822.9720111 | F47: 667.2456606 | G47: 269.088699 | H47: 72.78065118 | I47: 72.78065118 | J47: 72.78065118
A49: β | C49: 90°
A50: γ | C50: 180° | D50: 225° | E50: 270° | F50: 315° | G50: 360° | H50: 45° | I50: 90° | J50: 135°
C51: Z | D51: ZW | E51: W | F51: NW | G51: N | H51: NO | I51: O | J51: ZO
A52: Tijdstip | B52: Isol;mi
B53: W/m2
A54: 09:00:00 | C54: 225.3311732 | D54: 120.862373 | E54: 120.862373 | F54: 120.862373 | G54: 120.862373 | H54: 559.2661381 | I54: 845.3277237 | J54: 707.0073323
A55: 10:00:00 | C55: 410.3044166 | D55: 135.1124871 | E55: 135.1124871 | F55: 135.1124871 | G55: 135.1124871 | H55: 417.9086308 | I55: 810.2385583 | J55: 807.0887897
A56: 11:00:00 | C56: 530.2447061 | D56: 136.2345083 | E56: 136.2345083 | F56: 136.2345083 | G56: 136.2345083 | H56: 202.4854486 | I56: 623.9376843 | J56: 759.700014
A57: 12:00:00 | C57: 621.4748541 | D57: 288.8032214 | E57: 141.2362177 | F57: 141.2362177 | G57: 141.2362177 | H57: 141.2362177 | I57: 412.7835961 | J57: 672.8292068
A58: 13:00:00 | C58: 653.3193483 | D58: 482.7222708 | E58: 141.03319 | F58: 141.03319 | G58: 141.03319 | H58: 141.03319 | I58: 170.0980161 | J58: 523.826142
A59: 14:00:00 | C59: 740.0583625 | D59: 731.3734588 | E59: 377.8448977 | F59: 142.6885131 | G59: 142.6885131 | H59: 142.6885131 | I59: 142.6885131 | J59: 398.8121103
A60: 15:00:00 | C60: 596.2658628 | D60: 798.8020139 | E60: 617.6116517 | F60: 158.833633 | G60: 143.7398809 | H60: 143.7398809 | I60: 143.7398809 | J60: 143.7398809
A61: 16:00:00 | C61: 378.9800446 | D61: 693.807601 | E61: 671.328931 | F61: 324.7117346 | G61: 117.9898546 | H61: 117.9898546 | I61: 117.9898546 | J61: 117.9898546
A62: 17:00:00 | C62: 229.4425066 | D62: 620.6249429 | E62: 709.3507053 | F62: 443.6454455 | G62: 104.2991039 | H62: 104.2991039 | I62: 104.2991039 | J62: 104.2991039
A63: 18:00:00 | C63: 84.06226988 | D63: 536.3061005 | E63: 741.7580929 | F63: 561.9407922 | G63: 102.1887342 | H63: 84.06226988 | I63: 84.06226988 | J63: 84.06226988
A65: β | C65: 135° | K65: 180°
A66: γ | C66: 180° | D66: 225° | E66: 270° | F66: 315° | G66: 360° | H66: 45° | I66: 90° | J66: 135° | K66: –
C67: Z | D67: ZW | E67: W | F67: NW | G67: N | H67: NO | I67: O | J67: ZO
A68: Tijdstip | B68: Isol;mi
B69: W/m2
A70: 09:00:00 | C70: 127.4419529 | D70: 127.4419529 | E70: 127.4419529 | F70: 127.4419529 | G70: 127.4419529 | H70: 127.4419529 | I70: 285.7004825 | J70: 187.8931958 | K70: 115.229842
A71: 10:00:00 | C71: 156.8347741 | D71: 156.8347741 | E71: 156.8347741 | F71: 156.8347741 | G71: 156.8347741 | H71: 156.8347741 | I71: 156.8347741 | J71: 156.8347741 | K71: 149.6519412
A72: 11:00:00 | C72: 169.1362709 | D72: 169.1362709 | E72: 169.1362709 | F72: 169.1362709 | G72: 169.1362709 | H72: 169.1362709 | I72: 169.1362709 | J72: 169.1362709 | K72: 164.8590486
A73: 12:00:00 | C73: 180.7090695 | D73: 180.7090695 | E73: 180.7090695 | F73: 180.7090695 | G73: 180.7090695 | H73: 180.7090695 | I73: 180.7090695 | J73: 180.7090695 | K73: 178.6040865
A74: 13:00:00 | C74: 183.5827351 | D74: 183.5827351 | E74: 183.5827351 | F74: 183.5827351 | G74: 183.5827351 | H74: 183.5827351 | I74: 183.5827351 | J74: 183.5827351 | K74: 182.8321852
A75: 14:00:00 | C75: 177.2448589 | D75: 177.2448589 | E75: 177.2448589 | F75: 177.2448589 | G75: 177.2448589 | H75: 177.2448589 | I75: 177.2448589 | J75: 177.2448589 | K75: 175.017364
A76: 15:00:00 | C76: 181.4489915 | D76: 181.4489915 | E76: 181.4489915 | F76: 181.4489915 | G76: 181.4489915 | H76: 181.4489915 | I76: 181.4489915 | J76: 181.4489915 | K76: 180.8053576
A77: 16:00:00 | C77: 143.1436497 | D77: 143.1436497 | E77: 143.1436497 | F77: 143.1436497 | G77: 143.1436497 | H77: 143.1436497 | I77: 143.1436497 | J77: 143.1436497 | K77: 138.240594
A78: 17:00:00 | C78: 117.1428833 | D78: 137.1439917 | E78: 199.88258 | F78: 117.1428833 | G78: 117.1428833 | H78: 117.1428833 | I78: 117.1428833 | J78: 117.1428833 | K78: 107.7132806
A79: 18:00:00 | C79: 90.51979726 | D79: 154.8832672 | E79: 300.1597643 | F79: 173.0097316 | G79: 90.51979726 | H79: 90.51979726 | I79: 90.51979726 | J79: 90.51979726 | K79: 81.66120484
A84: Tabel AA.xxx geeft de totale opvallende zonnestraling voor verschillende oriëntaties (γ) en hellingshoeken (β). Voor tussenliggende oriëntaties moet de waarde behorend bij de dichtstbijzijnde oriëntatie worden genomen. Indien de oriëntatie precies tussen twee aangegeven oriëntaties in ligt, moet de hoogste, naastliggende waarde worden genomen. Voor tussenliggende hellingshoeken moet lineair geïnterpoleerd worden tussen de tabelwaarden.
